Workbook

Sheet Overview
A1: ComMaster Overview
A2: Version Date
A82: Sheet Name | B82: Contents
A83: Overview | B83: Overview of model structure
A84: Update Log | B84: Update Log: Log for updates to Draft 6th Plan Assessment
A85: MLIST | B85: Master List of measure bundles
A86: FILES | B86: List and links to measure-level files. Plus housekeeping and administrative functions.
A87: APPLIC | B87: Applicability factor for the measure bundle. Fraction of stock the measure applies to.
A88: BASE | B88: Baseline penetration of measure bundles. Estimated fraction of stock where the measure is already in place.
A89: STOCK | B89: Vintage cohort for measure bundles.
A90: TURN | B90: Turnover rate for stock to which measure applies.
A91: ACHIEVE | B91: Achievable rate of acquisition for measure bundles by year
A92: CODE | B92: Tables developed to estimate regional baseline penetration for various elements of energy codes by jurisdiction
A93: CHAR | B93: Key characteristics for stock by vintage cohort and building subtype. Used to develop regional application of measures.
A94: FLOOR | B94: Floor area forecast summary used to develop data in CHAR
A95: VARS | B95: List of variables and definitions used in the CHAR tab and elsewhere in the files.
A96: Labels | B96: Map of building types labels from different sources.
A97: Lookup | B97: Lookup table for vintage cohort
A98: EUI | B98: Reference EUI from various sources including CBECS & CBSA.

Sheet LOG
A2: Com_Master Revision Log
B3: Item | C3: Description | D3: Who | E3: When | F3: Note
B4: =ROW()-ROW($B$3) -> 1 | C4: Eliminate old STOCK tab
B5: =ROW()-ROW($B$3) -> 2 | C5: Revise FEAS tab - move second block from APPLIC to FEAS | D5: KS | E5: 2019-08-09 | F5: Cut and pasted from APPLIC to FEAS - seemed to work ok. The links followed correctly.
B6: 3 | C6: Revisit CHAR tab/matrix - Change to EXISTING vs. New
B7: 4 | C7: Move ramp rates from ACHIEV tab to RAMP tab and align rows | D7: KS | E7: 2019-08-12
B8: 5 | C8: Fix row offset error in sheet TURN | D8: CG | E8: 2019-11-05 | F8: Done manually
B9: 6 | C9: Kevin check data in TURN for cooking equipment. | D9: KS
B10: 7 | C10: Think about getting rid of TURN and putting data in native measure workbooks | D10: CG | F10: Good Idea. But need to fix all workbooks that use TURN. Tricky.
B11: 8 | C11: Added column in "FILES" to report cumulative savings 2027 | D11: CG | E11: 2019-11-05 | F11: Made dynamic date
B12: 9 | C12: Added new Ramp Rate Curve | D12: CG | E12: 2019-11-05 | F12: LO80Fast
B13: 10 | C13: Check and update if needed RAMPS - some ld shapes in there sync with RES
B14: 11 | C14: Clean up old and useless sheets
B15: 12 | C15: Update CHAR with data from CBSA 2019 on fuel shares
B16: 13 | C16: Update CHAR on floor area splits per 2021P units forecast
A25: Measure workbook build checklist
B26: Item | C26: Description | D26: Who | E26: When | F26: Note
C27: Update measure name in Com_Master MLIST (green) tab and all yellow tabs
C28: Verify the MAX is working correctly
C29: Run ProCost
C30: Update cost data to 2016$
C31: Check the leftover new SF is being added to Retro
C32: Customize the ForRPM tab - column headings must be exact
C33: --Make sure there is a TRC BC ratio column
C34: --Make sure the column between shape has zero values (not blank)
C35: --make sure the sum of the shapes matches the measure savings
C36: --make sure there are two peak columns
A40: Measure naming rules of Thumb
C41: Different name if it has different savings, cost or life
C42: Retro, NR, or New not needed in the name, but separate row in ForRPM needed
C43: By building type?

Sheet MLIST
A1: MLIST | B1: Master Measure List, Bundled Measures
B2: It all starts here…
A4: 1 | B4: 2 | C4: 3 | D4: 4 | E4: 5 | F4: 6 | G4: 7
J10: Measure Sources and Stauts
A11: End Use (BPA Taxonomy) | B11: Base Measure Name | C11: VCohort | D11: Measure Index Name | E11: Unit of Savings | F11: Measure Bundle Description | G11: Number of Measures in Bundle | H11: Descriptive Name | I11: Segment | J11: Savings Sources | K11: 2021P Technical Savings (aMW) | L11: Baseline | M11: Baseline Saturation | N11: Baseline Notes | O11: Cost Source | P11: Cost Notes | Q11: New from 7P | R11: 6P Vintage | S11: Status | T11: Status notes | U11: Category | V11: TAP_Name | W11: Measure bundle Count
A12: Compressed Air | B12: Compressors | C12: New | D12: =CONCATENATE(B12,"-",C12) -> Compressors-New | F12: Upgrade CS or VS compressors | I12: Some | U12: Compressed Air System Controls | W12: 1 | AI12: Compressed Air
A13: Compressed Air | B13: Compressors | C13: NR | D13: Compressors-NR | F13: Upgrade CS or VS compressors | I13: Some | U13: Compressed Air System Improvements | W13: =IF(B13=B12,W12,W12+1) -> 1 | AI13: Electronics
A14: Electronics | B14: Laptop | C14: NR | D14: Laptop-NR | E14: Count | F14: ENERGY STAR Laptops | H14: ENERGY STAR Laptops | I14: All | U14: Computer Technologies | W14: =IF(B14=#REF!,#REF!,#REF!+1) ->  | AI14: HVAC
A15: Electronics | B15: PowerStrips | C15: Retro | D15: PowerStrips-Retro | E15: Count | F15: Smart Plug Power Strips | H15: Smart Plug Power Strips | I15: All | U15: Plug Load | W15: =IF(B15=B14,W14,W14+1) ->  | AI15: Lighting
A16: Electronics | B16: PowerStrips | C16: New | D16: =CONCATENATE(B16,"-",C16) -> PowerStrips-New | E16: Count | F16: Smart Plug Power Strips
A17: Electronics | B17: Data Centers | C17: NR | D17: Data Centers-NR | E17: Count | F17: Data Centers; Virtualization, efficient servers, network gear, power supplies, and other measures at NR | H17: Data Centers | I17: All | U17: Computer Technologies | W17: =IF(B17=B15,W15,W15+1) ->  | AI17: Refrigeration
A18: Electronics | B18: Desktop-WA | C18: NR | D18: Desktop-WA-NR | E18: Count | F18: Desktop computers in WA (state standard applies) | I18: All | U18: Computer Technologies | AI18: Water Heating
A19: Electronics | B19: Desktop | C19: NR | D19: Desktop-NR | E19: Count | F19: Commercial Computer Desktop | H19: ENERGY STAR Desktop | I19: All | U19: Computer Technologies
A20: Electronics | B20: Laptop-WA | C20: NR | D20: Laptop-WA-NR | E20: Count | F20: Laptop computers in WA (state standard applies)
A21: Food Preparation | B21: Pre-Rinse Spray Valve | C21: Retro | D21: Pre-Rinse Spray Valve-Retro | E21: Count | F21: Low-flow pre-rinse spray valves for restaurant kitchens, cafeterias, and food-serving | H21: Pre-Rinse Spray Valve | I21: Some | U21: Water Using Devices | W21: =IF(B21=B19,W19,W19+1) -> 
A22: Food Preparation | B22: Steamer | C22: NR | D22: Steamer-NR | E22: Count | F22: Efficient cooking equipment such as hot food holders, steamers and ovens | H22: Cooking Equipment | I22: All | U22: Cooking
A23: Food Preparation | B23: Combo Oven | C23: NR | D23: =CONCATENATE(B23,"-",C23) -> Combo Oven-NR | E23: Count | F23: Efficient cooking equipment such as hot food holders, steamers and ovens
A24: Food Preparation | B24: HFHC | C24: NR | D24: HFHC-NR | E24: Count | F24: Efficient cooking equipment such as hot food holders, steamers and ovens
A25: Food Preparation | B25: Convection Oven | C25: NR | D25: Convection Oven-NR | E25: Count | F25: Efficient cooking equipment such as hot food holders, steamers and ovens
A26: Food Preparation | B26: Fryer | C26: NR | D26: Fryer-NR | E26: Count | F26: Efficient cooking equipment such as hot food holders, steamers and ovens
A27: Food Preparation | B27: Griddle | C27: NR | D27: Griddle-NR | E27: Count | F27: Efficient cooking equipment such as hot food holders, steamers and ovens
A28: Food Preparation | B28: Overwrapper | C28: NR | D28: =CONCATENATE(B28,"-",C28) -> Overwrapper-NR | E28: Count | F28: Over-wrapper (primarily found in grocery stores)
A29: HVAC | B29: DHP | C29: New | D29: DHP-New | E29: kWh per KSF BT | F29: Ductless Heat Pump | H29: Ductless Heat Pump | I29: All | U29: HVAC System Improvements | W29: =IF(B29=B22,W22,W22+1) -> 
A30: HVAC | B30: DHP | C30: Retro | D30: DHP-Retro | E30: kWh per KSF BT | F30: Ductless Heat Pump | H30: Ductless Heat Pump | I30: All | U30: HVAC System Improvements
A31: HVAC | B31: Glass | C31: New | D31: Glass-New | E31: kWh per KSF BT | F31: Windows and glazing more efficiecnt that code or standard practice | H31: Windows | I31: All | U31: Envelope
A32: HVAC | B32: Glass | C32: NR | D32: Glass-NR | E32: kWh per KSF BT | F32: Windows and glazing more efficiecnt that code or standard practice | H32: Windows | I32: All | U32: Envelope
A33: HVAC | B33: ARC | C33: New | D33: ARC-New | E33: kWh per KSF BT | F33: Suite of measures and control strategies for buildings served by package roof top HVAC units | H33: Advanced Rooftop Controller | I33: Most | U33: HVAC System Improvements | W33: =IF(B33=#REF!,#REF!,#REF!+1) -> 
A34: HVAC | B34: ARC | C34: NR | D34: ARC-NR | E34: kWh per KSF BT | F34: Suite of measures and control strategies for buildings served by package roof top HVAC units | H34: Advanced Rooftop Controller | I34: Most | U34: HVAC System Improvements
A35: HVAC | B35: ARC | C35: Retro | D35: ARC-Retro | E35: kWh per KSF BT | F35: Suite of measures and control strategies for buildings served by package roof top HVAC units | H35: Advanced Rooftop Controller | I35: Most | U35: HVAC System Improvements
A36: HVAC | B36: Chiller-Upgrade | C36: New | D36: Chiller-Upgrade-New | E36: kWh per KSF BT | F36: Higher efficiency chiller plant | H36: Variable Speed Chiller | I36: Some | U36: Envelope
A37: HVAC | B37: Chiller-Upgrade | C37: NR | D37: Chiller-Upgrade-NR | E37: kWh per KSF BT | F37: Higher efficiency chiller plant | H37: Variable Speed Chiller | I37: Some | U37: Envelope
A38: HVAC | B38: Chiller-System | C38: Retro | D38: Chiller-System-Retro | E38: kWh per KSF BT | F38: Various upgrades and tuneups to the chiller system | H38: Chiller System Retrofit | I38: Some
A39: HVAC | B39: Fans | C39: Retro | D39: Fans-Retro | E39: Count | F39: Fans | I39: All | U39: Whole Bldg/Meter Level System Improvements | W39: =IF(B39=#REF!,#REF!,#REF!+1) -> 
A40: HVAC | B40: Fans | C40: NR | D40: Fans-NR | E40: Count | F40: Fans
A41: HVAC | B41: Fans | C41: New | D41: Fans-New | E41: Count | F41: Fans
A42: HVAC | B42: VHE-DOAS | C42: NR | D42: VHE-DOAS-NR | E42: kWh per KSF BT
A43: HVAC | B43: VHE-DOAS | C43: New | D43: VHE-DOAS-New | E43: kWh per KSF BT
A44: HVAC | C44: NR | D44: -NR | I44: all
A45: HVAC | B45: Commercial EM | C45: New | D45: Commercial EM-New | E45: kWh per KSF BT | F45: Energy Management in New Buildings | H45: SEM in New buildings | I45: all | U45: HVAC System Improvements | W45: =IF(B45=B39,W39,W39+1) -> 
A46: HVAC | B46: Commercial EM | C46: Retro | D46: Commercial EM-Retro | E46: kWh per KSF BT | F46: Energy Management in Existing Buildings | H46: SEM in Existing Buildings | I46: all | U46: HVAC System Improvements
A47: HVAC | B47: Economizer | C47: Retro | D47: Economizer-Retro | E47: kWh per KSF BT | F47: Economizer Improvements | H47: Economizer maintenance and repair | I47: Some | U47: HVAC System Improvements
A48: HVAC | B48: Demand Control Ventilation | C48: New | D48: Demand Control Ventilation-New | E48: kWh per KSF BT | F48: Fan control strategies, DCV and Fleet Strategy DOAS with heat recovery in simple HVAC systems | H48: Demand Control Ventilation | I48: All | U48: HVAC System Controls
A49: HVAC | B49: Demand Control Ventilation | C49: NR | D49: Demand Control Ventilation-NR | E49: kWh per KSF BT | F49: Fan control strategies, DCV and Fleet Strategy DOAS with heat recovery in simple HVAC systems | H49: Demand Control Ventilation | I49: All | U49: HVAC System Controls
A50: HVAC | B50: Demand Control Ventilation | C50: Retro | D50: Demand Control Ventilation-Retro | E50: kWh per KSF BT | F50: Fan control strategies, DCV and Fleet Strategy DOAS with heat recovery in simple HVAC systems | H50: Demand Control Ventilation | I50: All | U50: HVAC System Controls
A51: HVAC | B51: DCV-Lab Hood | C51: Retro | D51: DCV-Lab Hood-Retro | E51: Count | F51: Effiicient fume hoods in labs | H51: Premium Fume Hood | I51: Some | U51: Pumps and Fans
A52: HVAC | B52: DCV-Kitchen | C52: Retro | D52: DCV-Kitchen-Retro | E52: Count | F52: Demand control ventilation systems for large restaurant hoods | H52: DCV Restaurant Hood | I52: Restaurant | U52: Pumps and Fans
A53: HVAC | B53: DCV-Parking Garage | C53: Retro | D53: DCV-Parking Garage-Retro | E53: kWh per kSF BT | F53: Demand control ventilation systems for parking garages | H53: DCV Parking Garage | I53: All | U53: Pumps and Fans
A54: HVAC | B54: Weatherization - School | C54: Retro | D54: =CONCATENATE(B54,"-",C54) -> Weatherization - School-Retro | E54: kWh per KSF BT | F54: School building weatherization | H54: Weatherization - School | I54: K-12 | U54: Envelope
A55: HVAC | B55: Energy Recovery Ventilator | C55: NR | D55: Energy Recovery Ventilator-NR | E55: Count | F55: Heat Recovery Ventilation | H55: Heat Recovery Ventilation | I55: All | U55: Computer Technologies
A56: HVAC | B56: AC Heat Recovery for Water Heating | C56: NR | D56: AC Heat Recovery for Water Heating-NR | E56: Count | F56: AC Heat Recovery for Water Heating | H56: AC Heat Recovery for Water Heating | I56: All | U56: Heat Recovery
A57: HVAC | B57: Room Occupancy Sensors in Lodging | C57: Retro | D57: Room Occupancy Sensors in Lodging-Retro | E57: Count | F57: Room Occupancy Sensors in Lodging | H57: Room Occupancy Sensors in Lodging | I57: Lodging | U57: Whole Bldg/Meter Level System Improvements
A58: HVAC | B58: Pool Blankets | C58: Retro | D58: Pool Blankets-Retro | E58: Count | F58: Pool Blankets | H58: Pool Blankets | I58: Some | U58: Pool System Improvements | W58: =IF(B58=#REF!,#REF!,#REF!+1) -> 
A59: HVAC | B59: ConnectedThermostats | C59: New | D59: =CONCATENATE(B59,"-",C59) -> ConnectedThermostats-New | E59: kWh per KSF BT | F59: Web-Enabled Thermostats | H59: Web-Enabled Thermostats | I59: Some | U59: HVAC System Controls | W59: =IF(B59=B57,W57,W57+1) -> 
A60: HVAC | B60: ConnectedThermostats | C60: Retro | D60: ConnectedThermostats-Retro | E60: kWh per KSF BT | F60: Web-Enabled Thermostats | H60: Web-Enabled Thermostats | I60: Some | U60: HVAC System Controls | W60: =IF(B60=B58,W58,W58+1) -> 
A61: HVAC | B61: CircPumps | C61: NR | D61: CircPumps-NR | E61: Count | F61: Circulation Pump ECM and drive | H61: Circulation Pump ECM and drive | I61: Some | U61: HVAC System Controls
A62: HVAC | B62: Circpumps | C62: New | D62: Circpumps-New | E62: Count | F62: Circulation Pump ECM and drive | H62: Circ Pump ECM and drive | I62: Some | U62: Pumps and Fans
A63: HVAC | B63: VRF-DOAS | C63: New | D63: VRF-DOAS-New | E63: kWh per KSF BT | F63: Variable Refrigerant Flow | H63: =F63 -> Variable Refrigerant Flow | I63: Some | U63: HVAC System Improvements
A64: HVAC | B64: VRF-DOAS | C64: NR | D64: VRF-DOAS-NR | E64: kWh per KSF BT | F64: Variable Refrigerant Flow | H64: =F64 -> Variable Refrigerant Flow | I64: Some | U64: Envelope
A65: HVAC | B65: Evaporator Roof Top HVAC | C65: Retro | D65: Evaporator Roof Top HVAC-Retro | E65: kWh per KSF BT | F65: Evaporator Roof Top HVAC | H65: Evaporator Roof Top HVAC | I65: Some | U65: HVAC System Improvements
A66: HVAC | B66: HeatPumps | C66: NR | D66: HeatPumps-NR | E66: kWh per KSF BT
A67: HVAC | B67: HeatPumps | C67: New | D67: HeatPumps-New | E67: kWh per KSF BT
A68: HVAC | B68: VCHP | C68: NR | D68: VCHP-NR
A69: HVAC | B69: VCHP | C69: New | D69: VCHP-New
A70: HVAC | B70: UnitaryAC | C70: NR | D70: UnitaryAC-NR
A71: HVAC | B71: UnitaryAC | C71: New | D71: UnitaryAC-New
A72: HVAC | B72: Com-PTAC | C72: NR | D72: Com-PTAC-NR
A73: HVAC | B73: Com-PTAC | C73: New | D73: Com-PTAC-New
A74: HVAC | B74: COM-PTHP | C74: NR | D74: COM-PTHP-NR
A75: HVAC | B75: COM-PTHP | C75: New | D75: COM-PTHP-New
A76: HVAC | B76: COM-PTHP | C76: Retro | D76: COM-PTHP-Retro
A77: HVAC | B77: Com-DOAS | C77: New | D77: Com-DOAS-New
A78: HVAC | B78: Com-DOAS | C78: Retro | D78: Com-DOAS-Retro
A79: HVAC | B79: Secondary Glazing Systems | C79: Retro | D79: Secondary Glazing Systems-Retro | E79: kWh per KSF BT | F79: Secondary Glazing Systems | H79: Secondary Glazing Systems | I79: All | U79: Envelope | W79: =IF(B79=B65,W65,W65+1) -> 
A80: Lighting | B80: LPD Package | C80: New | D80: LPD Package-New | E80: kWh per KSF BT | F80: Lamp, ballast and fixture improvements to lighting power density | H80: Lighting Power Density | I80: All | U80: Lamps/Ballasts/Fixtures
A81: Lighting | B81: LPD Package | C81: NR | D81: LPD Package-NR | E81: kWh per KSF BT | F81: Lamp, ballast and fixture improvements to lighting power density | H81: Lighting Power Density | I81: All | U81: Lamps/Ballasts/Fixtures
A82: Lighting | B82: LPD Package | C82: Retro | D82: LPD Package-Retro | E82: kWh per KSF BT | F82: Lamp, ballast and fixture improvements to lighting power density | H82: Lighting Power Density | I82: All | U82: Lamps/Ballasts/Fixtures
A83: Lighting | B83: Top Daylighting | C83: New | D83: Top Daylighting-New | E83: kWh per KSF BT | F83: Skylights with lighting controls | H83: Daylighting with Skylights | I83: All | U83: Lighting Controls
A84: Lighting | B84: Perimeter Daylighting Controls Advanced | C84: New | D84: Perimeter Daylighting Controls Advanced-New | E84: kWh per KSF BT | F84: Perimeter daylighting controls | H84: Daylighting with Windows | I84: All | U84: Lighting Controls
A85: Lighting | B85: Perimeter Daylighting Controls Advanced | C85: NR | D85: Perimeter Daylighting Controls Advanced-NR | E85: kWh per KSF BT | F85: Perimeter daylighting controls | H85: Daylighting with Windows | I85: All | U85: Lighting Controls
A86: Lighting | B86: Lighting Controls Interior | C86: New | D86: Lighting Controls Interior-New | E86: kWh per KSF BT | F86: Occupancy controls for lighting areas not required by code such as warehouse aisle, classrooms | H86: Lighting Controls Interior | I86: All | U86: Lighting Controls
A87: Lighting | B87: Lighting Controls Interior | C87: NR | D87: Lighting Controls Interior-NR | E87: kWh per KSF BT | F87: Occupancy controls for lighting areas not required by code such as warehouse aisle, classrooms | H87: Lighting Controls Interior | I87: All | U87: Lighting Controls
A88: Lighting | B88: Exterior Building Lighting | C88: New | D88: Exterior Building Lighting-New | E88: kWh per KSF BT | F88: Effiicient façade, walkway, area and decorative exterior lighting, such as LED | H88: Exterior Building Lighting | I88: All | U88: Lamps/Ballasts/Fixtures
A89: Lighting | B89: Exterior Building Lighting | C89: NR | D89: Exterior Building Lighting-NR | E89: kWh per KSF BT | F89: Effiicient façade, walkway, area and decorative exterior lighting, such as LED | H89: Exterior Building Lighting | I89: All | U89: Lamps/Ballasts/Fixtures
A90: Lighting | B90: Street and Roadway Lighting | C90: New | D90: Street and Roadway Lighting-New | E90: Count | F90: Efficient street and roadway lighting, LED and induction | H90: Street and Roadway Lighting | I90: Non-Building | U90: Lamps/Ballasts/Fixtures
A91: Lighting | B91: Street and Roadway Lighting | C91: Retro | D91: Street and Roadway Lighting-Retro | E91: Count | F91: Efficient street and roadway lighting, LED and induction | H91: Street and Roadway Lighting | I91: Non-Building | U91: Lamps/Ballasts/Fixtures
A92: Lighting | B92: Parking Garage Lighting | C92: New | D92: Parking Garage Lighting-New | E92: kWh per KSF | F92: Efficient parking garage lighting with controls | H92: Parking Garage Lighting | I92: All | U92: Lamps/Ballasts/Fixtures | V92: Lamps/Ballasts/Fixtures w/Controls
A93: Lighting | B93: Parking Garage Lighting | C93: Retro | D93: Parking Garage Lighting-Retro | E93: kWh per KSF | F93: Efficient parking garage lighting with controls | H93: Parking Garage Lighting | I93: All | U93: Lamps/Ballasts/Fixtures | V93: Lamps/Ballasts/Fixtures w/Controls
A94: Lighting | B94: Bi-Level Stairwell Lighting | C94: NR | D94: Bi-Level Stairwell Lighting-NR | E94: kWh per KSF BT | F94: Bi-Level occupancy sensor control on stairwell | H94: Bi-Level Stairwell | I94: All | U94: Lighting Controls
A95: Lighting | B95: Low Power LF Lamps | C95: NR | D95: =CONCATENATE(B95,"-",C95) -> Low Power LF Lamps-NR | E95: lamp | F95: Shift mix of 32W, 28W and 25W lamps towards low watt lamps | H95: High Performance Low Power Fluorescent Lamps | I95: All | U95: Lamps/Ballasts/Fixtures
A96: Lighting | B96: LEC Exit Sign | C96: New | D96: =CONCATENATE(B96,"-",C96) -> LEC Exit Sign-New | E96: sign | F96: Light Emiting Capacitor Exit Sign | H96: LEC Exit Sign | I96: All
A97: Lighting | B97: LEC Exit Sign | C97: NR | D97: =CONCATENATE(B97,"-",C97) -> LEC Exit Sign-NR | E97: sign | F97: Light Emiting Capacitor Exit Sign | H97: LEC Exit Sign | I97: All
A98: Refrigeration | B98: Commercial Ice Maker | C98: NR | D98: Commercial Ice Maker-NR | E98: count | I98: All | U98: Motors
A99: Refrigeration | B99: Commercial Beverage Vending Machine | C99: NR | D99: Commercial Beverage Vending Machine-NR | E99: Count | I99: All | U99: Motors
A100: Motors/Drives | B100: Clean Water PUmps | C100: Retro | D100: Clean Water PUmps-Retro | E100: Count | I100: Some | U100: Pool System Improvements | W100: =IF(B100=B99,W99,W99+1) -> 
A101: Electronics | B101: Servers & Power Supplies | C101: NR | D101: Servers & Power Supplies-NR | E101: Count | F101: Stand-alone estimate for servers and power supplies in embedded data centers | I101: All | U101: Motors
A102: Process Loads | B102: Elevators | C102: Retro | D102: Elevators-Retro | U102: Motors
A103: Motors/Drives | B103: Clean Water Pumps | C103: NR | D103: =CONCATENATE(B103,"-",C103) -> Clean Water Pumps-NR | E103: Count
A104: Motors/Drives | B104: Clean Water Pumps | C104: New | D104: Clean Water Pumps-New | E104: Count
A105: Process Loads | B105: EBHeaterControl | C105: Retro | D105: =CONCATENATE(B105,"-",C105) -> EBHeaterControl-Retro | E105: Count | F105: Engine Generator Block Heaters (for standby generators) | H105: Engine Generator Block Heaters | I105: All | U105: Process Loads System Controls | W105: =IF(B105=#REF!,#REF!,#REF!+1) -> 
A106: Refrigeration | B106: GroceryRefrigeration | C106: NR | D106: GroceryRefrigeration-NR
A107: Refrigeration | B107: GroceryRefrigeration | C107: Retro | D107: GroceryRefrigeration-Retro | E107: kWh per KSF BT | F107: Grocery store refrigeration measures | H107: Grocery Refrigeration Bundle | I107: Grocery | U107: Refrigeration System Improvements | W107: =IF(B107=B105,W105,W105+1) -> 
A108: Refrigeration | B108: GroceryRefrigeration | C108: New | D108: GroceryRefrigeration-New
A109: Refrigeration | B109: Packaged Refrigeration Equipment | C109: New | D109: Packaged Refrigeration Equipment-New | E109: Count | F109: Efficient refrigerators and freezers, beverage merchandizers, ice makers and vending machines | H109: Packaged Refrigeration Equipment | I109: Grocery | U109: Packaged Refrigeration | W109: =IF(B109=B107,W107,W107+1) -> 
A110: Refrigeration | B110: Refrig-Freezer | C110: NR | D110: Refrig-Freezer-NR | E110: Count | F110: Commercial Energy STAR 4.0 Refrigerators and Freezers per RTF | H110: Appliances - Com Refrigerators and Freezers | I110: All | U110: Refrigeration System Improvements
A111: Refrigeration | B111: Refrig-Freezer | C111: New | D111: Refrig-Freezer-New | E111: Count | I111: All | U111: Refrigeration System Improvements
A112: Refrigeration | B112: Water Cooler Controls | C112: NR | D112: Water Cooler Controls-NR | E112: Count | F112: Water Cooler Controls | H112: Water Cooler Controls | I112: Some | U112: Refrigeration System Controls
A113: Water Heating | B113: HPWH ResType | C113: New | D113: HPWH ResType-New | E113: Count | F113: Residential size HPWH in commercial buildings | H113: Heat Pump Water Heater - small size | I113: All | U113: Water Heaters
A114: Water Heating | B114: HPWH ResType | C114: NR | D114: HPWH ResType-NR | E114: Count | F114: Residential size HPWH in commercial buildings | H114: Heat Pump Water Heater - small size | I114: All | U114: Water Heaters
A115: Water Heating | B115: Washer | C115: New | D115: Washer-New | E115: Count | F115: Efficient (Energy STAR) clothes washers in commercial buildings | H115: Appliances - Clothes Washers
A116: Water Heating | B116: Washer | C116: NR | D116: Washer-NR | E116: Count | F116: Efficient (Energy STAR) clothes washers in commercial buildings | H116: Appliances - Clothes Washers | I116: Some | U116: Water Using Devices | W116: =IF(B116=B114,W114,W114+1) -> 
A117: Water Heating | B117: Showerheads | C117: NR | D117: Showerheads-NR | E117: Count | F117: Efficient showerheads | H117: DHW - Showerheads | I117: Some | U117: Water Using Devices
A118: Water Heating | B118: Showerheads | C118: Retro | D118: Showerheads-Retro | E118: Count | I118: All | U118: Water Using Devices
A140: BPA Taxonomy EndUse_Name | B140: Category_Name | C140: TAP_Name
A141: Compressed Air | B141: Compressed Air System Controls | C141: Compressed Air Control Improvements (non-VFD)
A142: Electronics | B142: Compressed Air System Improvements | C142: Compressed Air Control Improvements (VFD)
A143: Food Preparation | B143: Computer Technologies | C143: Compressed Air System Compressor Improvements (non-VFD)
A144: HVAC | B144: Cooking | C144: Compressed Air System Compressor Improvements (VFD)
A145: Lighting | B145: Delamping | C145: Compressed Air System Demand Side Improvements
A146: Motors/Drives | B146: Elevators | C146: Compressed Air System Dryer Improvements
A147: Process Loads | B147: Envelope | C147: Compressed Air System Regulation Improvements
A148: Refrigeration | B148: Escalators | C148: Compressed Air System Storage Improvements
A149: Water Heating | B149: Heat Recovery | C149: Compressed Air System Supply Side Improvements
A150: Whole Bldg/Meter Level | B150: HVAC System Controls | C150: Compressors
B151: HVAC System Improvements | C151: Heat Recovery Improvements
B152: Lamps/Ballasts/Fixtures | C152: Network Computer Power Management
B153: Lighting Controls | C153: Power Supplies
B154: Motors | C154: Server Virtualization/Load Reduction
B155: Motors/Drives Controls | C155: Servers
B156: Packaged Refrigeration | C156: Power Strips
B157: Plug Load | C157: Cooking Equipment
B158: Pool System Improvements | C158: Electric Combination Ovens
B159: Process Loads System Controls | C159: Electric Commercial Steam Cookers
B160: Process Loads System Improvements | C160: Electric Convection Ovens
B161: Pumps and Fans | C161: Electric Fryers
B162: Refrigeration System Controls | C162: Hot Food Holding Cabinets
B163: Refrigeration System Improvements | C163: Air Sealing
B164: Signs and Signals | C164: Insulation
B165: System Efficiency Improvements | C165: Windows
B166: Water Heaters | C166: Humidification/Dehumidification Improvements
B167: Water Heating Controls | C167: Energy Management Systems/System Controls
B168: Water Using Devices | C168: HVAC Control Improvements (non-VFD)
B169: Whole Bldg/Meter Level System Improvements | C169: HVAC Control Improvements (VFD)
C170: Pneumatic to DDC Control Improvements
C171: Thermostats
C172: Air-Source Heat Pumps
C173: Building Commissioning Improvements
C174: Centrifugal Chiller Improvements
C175: Duct Insulation
C176: Ductless Heat Pumps
C177: Economizer System Improvements
C178: Interactive HVAC System Improvements
C179: Reciprocating Chiller Improvements
C180: Rooftop Units
C181: Rotary Screw Chiller Improvements
C182: Scroll Chiller Improvements
C183: Storage Tank Insulation Improvements
C184: Variable Refrigerant Flow System Improvements
C185: Ventilation System Improvements
C186: Water-Source Heat Pumps
C187: Delamping
C188: Lamps/Ballasts
C189: Lamps/Ballasts w/Controls
C190: Lamps/Ballasts w/Delamping
C191: Lamps/Ballasts w/Delamping and Controls
C192: Lamps/Ballasts/Fixtures
C193: Lamps/Ballasts/Fixtures w/Controls
C194: Lamps/Ballasts/Fixtures w/Delamping
C195: Lamps/Ballasts/Fixtures w/Delamping and Controls
C196: Control Panels
C197: Daylighting
C198: Occupancy Sensors
C199: Photocells
C200: Timers
C201: LED Exit Signs
C202: LED Traffic Signals
C203: Motor Rewind
C204: Motors
C205: Electronically Commutated Motor (ECM)
C206: Motors/Drives Control Improvements (non-VFD)
C207: Motors/Drives Control Improvements (VFD)
C208: Motors/Drives Installation on Fan System
C209: Motors/Drives Installation on Vacuum Pumps
C210: Elevators
C211: Escalators
C212: Process Loads Control Improvements (non-VFD)
C213: Process Loads Control Improvements (VFD)
C214: Interactive Process Loads System Improvements
C215: Centrifugal Pump System Improvements
C216: Fan System Improvements
C217: Pump System Improvements
C218: Turbine Pump System Improvements
C219: Vacuum Pump System Improvements
C220: Freezer Decommissioning
C221: Freezers
C222: Ice Makers
C223: Packaged Refrigeration System Improvements
C224: Refrigerator Decommissioning
C225: Refrigerators
C226: Vending Machines
C227: Condensor Fan System Improvements
... 33 more rows

Sheet FILES
A1: FILES | B1: Map to Supporting Files
H3: Report Year | I3: Report Year
H4: 2041 | I4: 2027
G6: Total Commercial Technical Achievable Potential thus far: | H6: =SUM(H12:H121) -> 1309.299824 | I6: =SUM(I12:I121) -> 244.3253305
B10: 1 | C10: 2 | D10: 3 | E10: 4 | F10: 5 | G10: 6 | H10: 7 | I10: 8 | J10: 9 | K10: 10 | L10: 11 | M10: 12 | N10: 13 | O10: 14 | P10: 15 | Q10: 16 | R10: 17 | S10: 18 | T10: 19 | U10: 20 | V10: 21 | W10: 22 | X10: 23 | Y10: 24 | Z10: 25 | AA10: 26 | AB10: 27
A11: End-Use | B11: Measure Index Name | C11: File Link | D11: Supply Curve Worksheet | E11: Lost Opp | F11: Descriptive Name | G11: Most Recent Substantive Update | H11: Cumulative Technically Achievable Savings in 2041 in MWa | I11: Cumulative Technically Achievable Savings in 2027 in MWa | J11: aMW in New Building Non Plug Load | K11: Comparable Estimate for 7th Plan (Pasted Values) | L11: Final Check for Draft Plan | O11: Analyst | P11: Comments Reviewed & Updates Complete | Q11: Run ProCost with Final Inputs (Gas) | R11: Check/Repair RPM Links | S11: SC Curve to Auto High/Low Forecast | T11: SC Curve measure references linked to MList | U11: Check Linked Files and Range Names. Correct link to ComMaster | V11: Load Shapes Updated | W11: Draft Plan Elect Shape | X11: Draft Plan Gas Shape | Y11: New Electric Shape | Z11: New Gas Shape
A12: =MLIST!A12 -> Compressed Air | B12: =MLIST!D12 -> Compressors-New | C12: Com-AirComp-2021P_V7.xlsx | F12: =MLIST!H12 -> 0 | H12: ='[3]SC-NEW'!$C$10 -> 1.69139035
A13: =MLIST!A13 -> Compressed Air | B13: =MLIST!D13 -> Compressors-NR | C13: Com-AirComp-2021P_V7.xlsx | F13: =MLIST!H13 -> 0 | H13: ='[3]SC-NR'!$C$10 -> 8.102491659
A14: =MLIST!A14 -> Electronics | B14: =MLIST!D14 -> Laptop-NR | C14: Com-Computers-2021P_V3.xlsx | F14: =MLIST!H14 -> ENERGY STAR Laptops | H14: =[4]forRPM!$AF$6 -> 0
A15: =MLIST!A15 -> Electronics | B15: =MLIST!D15 -> PowerStrips-Retro | C15: Com-PowerStrips_2021P_V1.xlsm | F15: =MLIST!H15 -> Smart Plug Power Strips | H15: ='[5]SC New'!$C$10 -> 2.461993928 | I15: ='[5]SC New'!$J$156 -> 0.1857062089
A16: =MLIST!A16 -> Electronics | B16: =MLIST!D16 -> PowerStrips-New | C16: Com-PowerStrips_2021P_V1.xlsm | F16: =MLIST!H16 -> 0 | H16: ='[5]SC Retro'!$C$10 -> 18.11133186 | I16: ='[5]SC Retro'!$J$156 -> 4.978537105
A17: =MLIST!A17 -> Electronics | B17: =MLIST!D17 -> Data Centers-NR | C17: Com-Servers&PowerSupply-2021P_V8.xlsx | F17: =MLIST!H17 -> Data Centers | H17: ='[6]SC-NR Servers&PS'!Y$128 -> 49.54992633 | I17: ='[6]SC-NR Servers&PS'!$P$127 -> 9.848924276
A18: =MLIST!A18 -> Electronics | B18: =MLIST!D18 -> Desktop-WA-NR | C18: Com-Computers-2021P_V3.xlsx | F18: =MLIST!H18 -> 0 | H18: =[4]forRPM!$AF$3 -> 6.284665904
A19: =MLIST!A19 -> Electronics | B19: =MLIST!D19 -> Desktop-NR | C19: Com-Computers-2021P_V3.xlsx | F19: =MLIST!H19 -> ENERGY STAR Desktop | H19: =[4]forRPM!$AF$4 -> 0.445852015
A20: =MLIST!A20 -> Electronics | B20: =MLIST!D20 -> Laptop-WA-NR | C20: Com-Computers-2021P_V3.xlsx | F20: =MLIST!H20 -> 0 | H20: =[4]forRPM!$AF$5 -> 0.445852015
A21: =MLIST!A21 -> Food Preparation | B21: =MLIST!D21 -> Pre-Rinse Spray Valve-Retro | C21: COM-PreRinseSpray-2021P_V1.xlsm | F21: =MLIST!H21 -> Pre-Rinse Spray Valve | H21: ='[7]SC-Retro'!$C$10 -> 0.9101993723
A22: =MLIST!A22 -> Food Preparation | B22: =MLIST!D22 -> Steamer-NR | C22: Com-Cooking-2021P_V2.xlsm | F22: =MLIST!B22 -> Steamer | H22: =VLOOKUP(F22,'[8]SC-NR'!D$60:AB$66,23,FALSE) -> 7.740681558 | I22: =VLOOKUP(F22,'[8]SC-NR'!D$60:Y$66,($I$4-2020),FALSE) -> 0.6192865061
A23: =MLIST!A23 -> Food Preparation | B23: =MLIST!D23 -> Combo Oven-NR | C23: Com-Cooking-2021P_V2.xlsm | F23: =MLIST!B23 -> Combo Oven | H23: =VLOOKUP(F23,'[8]SC-NR'!D$60:AB$66,23,FALSE) -> 7.686409773 | I23: =VLOOKUP(F23,'[8]SC-NR'!D$60:Y$66,($I$4-2020),FALSE) -> 0.4011581789
A24: =MLIST!A24 -> Food Preparation | B24: =MLIST!D24 -> HFHC-NR | C24: Com-Cooking-2021P_V2.xlsm | F24: =MLIST!B24 -> HFHC | H24: =VLOOKUP(F24,'[8]SC-NR'!D$60:AB$66,23,FALSE) -> 6.057222798 | I24: =VLOOKUP(F24,'[8]SC-NR'!D$60:Y$66,($I$4-2020),FALSE) -> 0.2188592078
A25: =MLIST!A25 -> Food Preparation | B25: =MLIST!D25 -> Convection Oven-NR | C25: Com-Cooking-2021P_V2.xlsm | F25: =MLIST!B25 -> Convection Oven | H25: =VLOOKUP(F25,'[8]SC-NR'!D$60:AB$66,23,FALSE) -> 1.905829122 | I25: =VLOOKUP(F25,'[8]SC-NR'!D$60:Y$66,($I$4-2020),FALSE) -> 0.09423125619
A26: =MLIST!A26 -> Food Preparation | B26: =MLIST!D26 -> Fryer-NR | C26: Com-Cooking-2021P_V2.xlsm | F26: =MLIST!B26 -> Fryer | H26: =VLOOKUP(F26,'[8]SC-NR'!D$60:AB$66,23,FALSE) -> 0.4145586312 | I26: =VLOOKUP(F26,'[8]SC-NR'!D$60:Y$66,($I$4-2020),FALSE) -> 0.04264251851
A27: =MLIST!A27 -> Food Preparation | B27: =MLIST!D27 -> Griddle-NR | C27: Com-Cooking-2021P_V2.xlsm | F27: =MLIST!B27 -> Griddle | H27: =VLOOKUP(F27,'[8]SC-NR'!D$60:AB$66,23,FALSE) -> 3.044435524 | I27: =VLOOKUP(F27,'[8]SC-NR'!D$60:Y$66,($I$4-2020),FALSE) -> 0.09533451222
A28: =MLIST!A28 -> Food Preparation | B28: =MLIST!D28 -> Overwrapper-NR | C28: Com-Cooking-2021P_V2.xlsm | F28: =MLIST!B28 -> Overwrapper | H28: =VLOOKUP(F28,'[8]SC-NR'!D$60:AB$66,23,FALSE) -> 2.000732864 | I28: =VLOOKUP(F28,'[8]SC-NR'!D$60:Y$66,($I$4-2020),FALSE) -> 0.07518197321
A29: =MLIST!A29 -> HVAC | B29: =MLIST!D29 -> DHP-New | C29: Com-DHP-2021P_v1.xlsm | F29: =MLIST!H29 -> Ductless Heat Pump | H29: ='[9]SC New'!$C$10 -> 2.157729972 | I29: ='[9]SC New'!$J$156 -> 0.2294625699
A30: =MLIST!A30 -> HVAC | B30: =MLIST!D30 -> DHP-Retro | C30: Com-DHP-2021P_v1.xlsm | F30: =MLIST!H30 -> Ductless Heat Pump | H30: ='[9]SC Retro'!$C$10 -> 26.82061719 | I30: ='[9]SC Retro'!$J$156 -> 18.41637173
A31: =MLIST!A31 -> HVAC | B31: =MLIST!D31 -> Glass-New | F31: =MLIST!H31 -> Windows
A32: =MLIST!A32 -> HVAC | B32: =MLIST!D32 -> Glass-NR | F32: =MLIST!H32 -> Windows
A33: =MLIST!A33 -> HVAC | B33: =MLIST!D33 -> ARC-New | F33: =MLIST!H33 -> Advanced Rooftop Controller
A34: =MLIST!A34 -> HVAC | B34: =MLIST!D34 -> ARC-NR | F34: =MLIST!H34 -> Advanced Rooftop Controller
A35: =MLIST!A35 -> HVAC | B35: =MLIST!D35 -> ARC-Retro | C35: Com-ARC-2021P_V3.xlsm | F35: =MLIST!H35 -> Advanced Rooftop Controller | H35: ='[10]SC Retro'!$C$10 -> 23.04190186
A36: =MLIST!A36 -> HVAC | B36: =MLIST!D36 -> Chiller-Upgrade-New | C36: Com-Chiller-2021P_V1.xlsm | F36: =MLIST!H36 -> Variable Speed Chiller | H36: ='[11]SC New'!$C$10 -> 3.254837313
A37: =MLIST!A37 -> HVAC | B37: =MLIST!D37 -> Chiller-Upgrade-NR | C37: Com-Chiller-2021P_V1.xlsm | F37: =MLIST!H37 -> Variable Speed Chiller | H37: ='[11]SC NR'!$C$10 -> 6.601257495
A38: =MLIST!A38 -> HVAC | B38: =MLIST!D38 -> Chiller-System-Retro | C38: Com-Chiller-2021P_V1.xlsm | F38: =MLIST!H38 -> Chiller System Retrofit | H38: ='[11]SC Retro'!$C$10 -> 11.97954461
A39: =MLIST!A39 -> HVAC | B39: =MLIST!D39 -> Fans-Retro | C39: COM-Fans-2021P_V7.xlsm | F39: =MLIST!H39 -> 0 | H39: ='[12]SC Retro'!$C$10 -> 44.92072961 | I39: ='[12]SC Retro'!$J$156 -> 12.59452676
A40: =MLIST!A40 -> HVAC | B40: =MLIST!D40 -> Fans-NR | C40: COM-Fans-2021P_V7.xlsm | H40: ='[13]SC-NR'!$C$10 -> 87.785592 | I40: ='[13]SC-NR'!$J$193 -> 0
A41: =MLIST!A41 -> HVAC | B41: =MLIST!D41 -> Fans-New | C41: COM-Fans-2021P_V7.xlsm | H41: ='[13]SC-New'!$C$10 -> 32.32872947 | I41: ='[13]SC-New'!$J$192 -> 0
A42: =MLIST!A42 -> HVAC | B42: =MLIST!D42 -> VHE-DOAS-NR | C42: Com-VHE-DOAS-2021P_V1.xlsm
A43: =MLIST!A43 -> HVAC | B43: =MLIST!D43 -> VHE-DOAS-New | C43: Com-VHE-DOAS-2021P_V1.xlsm | H43: ='[14]SC New'!$C$10 -> 13.42764809
A44: =MLIST!A44 -> HVAC | B44: =MLIST!D44 -> -NR | H44: ='[13]SC-Retro'!$C$10 -> 1.363990346
A45: =MLIST!A45 -> HVAC | B45: =MLIST!D45 -> Commercial EM-New | F45: =MLIST!H45 -> SEM in New buildings
A46: =MLIST!A46 -> HVAC | B46: =MLIST!D46 -> Commercial EM-Retro | F46: =MLIST!H46 -> SEM in Existing Buildings
A47: =MLIST!A47 -> HVAC | F47: =MLIST!H47 -> Economizer maintenance and repair
A48: =MLIST!A48 -> HVAC | B48: =MLIST!D48 -> Demand Control Ventilation-New | F48: =MLIST!H48 -> Demand Control Ventilation
A49: =MLIST!A49 -> HVAC | B49: =MLIST!D49 -> Demand Control Ventilation-NR | F49: =MLIST!H49 -> Demand Control Ventilation
A50: =MLIST!A50 -> HVAC | B50: =MLIST!D50 -> Demand Control Ventilation-Retro | F50: =MLIST!H50 -> Demand Control Ventilation
A51: =MLIST!A51 -> HVAC | B51: =MLIST!D51 -> DCV-Lab Hood-Retro | C51: Com-DCV-2021P_V1.xlsm | F51: =MLIST!H51 -> Premium Fume Hood
A52: =MLIST!A52 -> HVAC | B52: =MLIST!D52 -> DCV-Kitchen-Retro | C52: Com-DCV-2021P_V1.xlsm | F52: =MLIST!H52 -> DCV Restaurant Hood
A53: =MLIST!A53 -> HVAC | B53: =MLIST!D53 -> DCV-Parking Garage-Retro | C53: Com-DCV-2021P_V1.xlsm | F53: =MLIST!H53 -> DCV Parking Garage
A54: =MLIST!A54 -> HVAC | F54: =MLIST!H54 -> Weatherization - School
A55: =MLIST!A55 -> HVAC | F55: =MLIST!H55 -> Heat Recovery Ventilation
A56: =MLIST!A56 -> HVAC | B56: =MLIST!D56 -> AC Heat Recovery for Water Heating-NR | F56: =MLIST!H56 -> AC Heat Recovery for Water Heating
A57: =MLIST!A57 -> HVAC | F57: =MLIST!H57 -> Room Occupancy Sensors in Lodging
A58: =MLIST!A58 -> HVAC | F58: =MLIST!H58 -> Pool Blankets | AG58: C-LOff-Lgt-LPD Int-All-All-C | AH58: Commercial-large Office-Heat | AI58: C-LOff-HVAC-ER-All-All-C
A59: =MLIST!A59 -> HVAC | B59: =MLIST!D59 -> ConnectedThermostats-New | C59: Com-ConnectedThermostats-2021P_V2.xlsm | F59: =MLIST!H59 -> Web-Enabled Thermostats | H59: ='[15]SC New'!$C$10 -> 2.509148699 | I59: ='[15]SC Retro'!$J$156 -> 7.623439228 | AG59: C-SOff-Lgt-LPD Int-All-All-C | AH59: Commercial-Small Office-Heat | AI59: C-SOff-HVAC-ER-All-All-C
A60: =MLIST!A60 -> HVAC | B60: =MLIST!D60 -> ConnectedThermostats-Retro | C60: Com-ConnectedThermostats-2021P_V2.xlsm | F60: =MLIST!H60 -> Web-Enabled Thermostats | H60: ='[15]SC Retro'!$C$10 -> 10.90675108 | I60: ='[15]SC Retro'!$J$156 -> 7.623439228 | AG60: C-SOff-Lgt-LPD Int-All-All-C | AH60: Commercial-Small Office-Heat | AI60: C-SOff-HVAC-ER-All-All-C
A61: =MLIST!A61 -> HVAC | B61: =MLIST!D61 -> CircPumps-NR | C61: COM-CircPumps-2021P_V4.xlsm | F61: =MLIST!H61 -> Circulation Pump ECM and drive | H61: ='[16]SC-NR'!$C$10 -> 8.686282182 | AG61: C-Ret-Lgt-LPD Int-All-All-C | AH61: Commercial-Retail-Heat | AI61: C-Ret-HVAC-ER-All-All-C
A62: =MLIST!A62 -> HVAC | B62: =MLIST!D62 -> Circpumps-New | C62: COM-CircPumps-2021P_V4.xlsm | F62: =MLIST!H62 -> Circ Pump ECM and drive | H62: ='[16]SC-New'!$C$10 -> 6.85900227 | AG62: C-K12-Lgt-LPD Int-All-All-C | AH62: Commercial-School-Heat | AI62: C-Sch-HVAC-ER-All-All-C
A63: =MLIST!A63 -> HVAC | B63: =MLIST!D63 -> VRF-DOAS-New | C63: Com-VRF-DOAS-2021P_V1.xlsm | F63: =MLIST!H63 -> Variable Refrigerant Flow | H63: ='[17]SC New'!$C$10 -> 2.155903267 | AG63: C-Unv-Lgt-LPD Int-All-All-C | AH63: Commercial-college-Heat | AI63: C-Unv-HVAC-ER-All-All-C
A64: =MLIST!A64 -> HVAC | B64: =MLIST!D64 -> VRF-DOAS-NR | C64: Com-VRF-DOAS-2021P_V1.xlsm | F64: =MLIST!H64 -> Variable Refrigerant Flow | AG64: C-War-Lgt-LPD Int-All-All-C | AH64: Commercial-not-refrig-warehouse-Heat | AI64: C-War-HVAC-ER-All-All-C
A65: =MLIST!A65 -> HVAC | F65: =MLIST!H65 -> Evaporator Roof Top HVAC | AG65: C-Gro-Lgt-LPD Int-All-All-C | AH65: Commercial-Grocery-Heat | AI65: C-Gro-HVAC-ER-All-All-C
A66: =MLIST!A66 -> HVAC | B66: =MLIST!D66 -> HeatPumps-NR | C66: Com-HeatPumps-2021P_V2.xlsm | F66: Heat Pump Upgrade | H66: ='[18]SC NR'!$C$10 -> 5.390032586 | I66: ='[18]SC NR'!$J$179 -> 0.5113699224
A67: =MLIST!A67 -> HVAC | B67: =MLIST!D67 -> HeatPumps-New | C67: Com-HeatPumps-2021P_V2.xlsm | F67: Heat Pump Upgrade | H67: ='[18]SC New'!$C$10 -> 0.8872829684 | I67: ='[18]SC New'!$J$156 -> 0.06687942947
A68: =MLIST!A68 -> HVAC | B68: =MLIST!D68 -> VCHP-NR
A69: =MLIST!A69 -> HVAC | B69: =MLIST!D69 -> VCHP-New
A70: =MLIST!A70 -> HVAC | B70: =MLIST!D70 -> UnitaryAC-NR | C70: Com-UnitaryAC-2021P_V1.xlsm | H70: ='[19]SC NR'!$C$10 -> 41.8804345
A71: =MLIST!A71 -> HVAC | B71: =MLIST!D71 -> UnitaryAC-New | C71: Com-UnitaryAC-2021P_V1.xlsm | H71: ='[19]SC New'!$C$10 -> 10.10649895
A72: =MLIST!A72 -> HVAC
A73: =MLIST!A73 -> HVAC
A74: =MLIST!A74 -> HVAC | B74: =MLIST!D74 -> COM-PTHP-NR | C74: Com-PTHP-2021P_V1.xlsm | H74: ='[20]SC NR'!$C$10 -> 4.464752586
A75: =MLIST!A75 -> HVAC | B75: =MLIST!D75 -> COM-PTHP-New | C75: Com-PTHP-2021P_V1.xlsm | H75: ='[20]SC New'!$C$10 -> 0.9369458215
A76: =MLIST!A76 -> HVAC | B76: =MLIST!D76 -> COM-PTHP-Retro | C76: Com-PTHP-2021P_V1.xlsm | H76: ='[20]SC Retro'!$C$10 -> 15.74393182
A77: =MLIST!A77 -> HVAC
A78: =MLIST!A78 -> HVAC
A79: =MLIST!A79 -> HVAC | B79: =MLIST!D79 -> Secondary Glazing Systems-Retro | C79: Com-WindowsReto-2021P_V8.xlsx | F79: =MLIST!H79 -> Secondary Glazing Systems | G79: 2019-11-24 | H79: =INDEX('[21]SC-Retro SGS'!$E$284:$Y$284,MATCH(H$4,Year,FALSE)) -> 0.006273235919 | I79: =INDEX('[21]SC-Retro SGS'!$E$284:$Y$284,MATCH(I$4,Year,FALSE)) -> 0.01430943794 | AG79: C-Res-Lgt-LPD Int-All-All-C | AH79: Commercial-Resturant-Heat | AI79: C-Res-HVAC-ER-All-All-C
A80: =MLIST!A80 -> Lighting | B80: =MLIST!D80 -> LPD Package-New | C80: Com-LightingInterior-2021P_V7.xlsm | F80: =MLIST!H80 -> Lighting Power Density | G80: 2020-03-09 | H80: =INDEX('[22]SC-New'!$E$145:$X$145,MATCH(H$4,Year,FALSE)) -> 64.89818297 | I80: =INDEX('[22]SC-New'!$E$145:$X$145,MATCH(I$4,Year,FALSE)) -> 13.33140664 | AG80: C-Lod-Lgt-LPD Int-All-All-C | AH80: Commercial-Lodging-Heat | AI80: C-Lod-HVAC-ER-All-All-C
A81: =MLIST!A81 -> Lighting | B81: =MLIST!D81 -> LPD Package-NR | C81: Com-LightingInterior-2021P_V7.xlsm | F81: =MLIST!H81 -> Lighting Power Density | G81: 2020-03-09 | H81: =INDEX('[22]SC-NR'!$E$209:$X$209,MATCH(H$4,Year,FALSE)) -> 242.2972242 | I81: =INDEX('[22]SC-NR'!$E$209:$X$209,MATCH(I$4,Year,FALSE)) -> 73.69620537 | AG81: C-Hos-Lgt-LPD Int-All-All-C | AH81: Commercial-Healthcare-Heat | AI81: C-Hea-HVAC-ER-All-All-C
A82: =MLIST!A82 -> Lighting | B82: =MLIST!D82 -> LPD Package-Retro | C82: Com-LightingInterior-2021P_V7.xlsm | F82: =MLIST!H82 -> Lighting Power Density | G82: 2020-03-09 | H82: =INDEX('[22]SC-Retro'!$E$210:$X$210,MATCH(H$4,Year,FALSE)) -> 60.92734425 | I82: =INDEX('[22]SC-Retro'!$E$210:$X$210,MATCH(I$4,Year,FALSE)) -> 39.24820523 | AG82: C-Oth-Lgt-LPD Int-All-All-C | AH82: Commercial-Misc. Com-Heat | AI82: C-Misc-HVAC-ER-All-All-C
A83: =MLIST!A83 -> Lighting | B83: =MLIST!D83 -> Top Daylighting-New | F83: =MLIST!H83 -> Daylighting with Skylights | AG83: C-All-Lgt-LPD Int-All-All-E | AH83: Commercial-All Com-Heat | AI83: C-All-HVAC-ER-All-All-C
A84: =MLIST!A84 -> Lighting | B84: =MLIST!D84 -> Perimeter Daylighting Controls Advanced-New | F84: =MLIST!H84 -> Daylighting with Windows
A85: =MLIST!A85 -> Lighting | B85: =MLIST!D85 -> Perimeter Daylighting Controls Advanced-NR | F85: =MLIST!H85 -> Daylighting with Windows | AG85: Lighting Controls - Electric | AH85: Lighting Controls - Gas
A86: =MLIST!A86 -> Lighting | B86: =MLIST!D86 -> Lighting Controls Interior-New | C86: Com-InteriorLightingControls-2021P_V10.xlsx | F86: =MLIST!H86 -> Lighting Controls Interior | G86: 2019-11-22 | H86: 8.055497507 | I86: 0.8624242962 | AG86: C-LOff-Lgt-LPD Int-All-All-C | AH86: Commercial-large Office-Heat | AI86: C-LOff-HVAC-ER-All-All-C
A87: =MLIST!A87 -> Lighting | B87: =MLIST!D87 -> Lighting Controls Interior-NR | C87: Com-InteriorLightingControls-2021P_V10.xlsx | F87: =MLIST!H87 -> Lighting Controls Interior | G87: 2019-11-22 | AG87: C-SOff-Lgt-LPD Int-All-All-C | AH87: Commercial-Small Office-Heat | AI87: C-SOff-HVAC-ER-All-All-C
A88: =MLIST!A88 -> Lighting | B88: =MLIST!D88 -> Exterior Building Lighting-New | C88: Com-ExteriorLighting-2021P_V3.xlsm | F88: =MLIST!H88 -> Exterior Building Lighting | G88: 2019-11-12 | H88: =INDEX('[23]SC-New'!$E$150:$X$150,1,MATCH(H$4,Year,FALSE)) -> 6.96152179 | I88: =INDEX('[23]SC-New'!$E$150:$X$150,1,MATCH(I$4,Year,FALSE)) -> 1.557075271 | AG88: C-Ret-Lgt-LPD Int-All-All-C | AH88: Commercial-Retail-Heat | AI88: C-Ret-HVAC-ER-All-All-C
A89: =MLIST!A89 -> Lighting | B89: =MLIST!D89 -> Exterior Building Lighting-NR | C89: Com-ExteriorLighting-2021P_V3.xlsm | F89: =MLIST!H89 -> Exterior Building Lighting | G89: 2019-11-12 | H89: =INDEX('[23]SC-NR'!$E$204:$X$204,1,MATCH(H$4,Year,FALSE)) -> 26.64349161 | I89: =INDEX('[23]SC-NR'!$E$204:$X$204,1,MATCH(I$4,Year,FALSE)) -> 26.64349161 | AG89: C-K12-Lgt-LPD Int-All-All-C | AH89: Commercial-School-Heat | AI89: C-Sch-HVAC-ER-All-All-C
A90: =MLIST!A90 -> Lighting | B90: =MLIST!D90 -> Street and Roadway Lighting-New | C90: Com-Streetlight-2021P_V10.xlsx | F90: =MLIST!H90 -> Street and Roadway Lighting | G90: 2019-11-17 | H90: =INDEX('[24]SC-New'!$D$131:$Y$131,1,MATCH(H$4,Year,FALSE)) -> 0.1364489048 | I90: =INDEX('[24]SC-New'!$D$131:$Y$131,1,MATCH(I$4,Year,FALSE)) -> 0.03488931387 | AG90: C-Unv-Lgt-LPD Int-All-All-C | AH90: Commercial-college-Heat | AI90: C-Unv-HVAC-ER-All-All-C
A91: =MLIST!A91 -> Lighting | B91: =MLIST!D91 -> Street and Roadway Lighting-Retro | C91: Com-Streetlight-2021P_V10.xlsx | F91: =MLIST!H91 -> Street and Roadway Lighting | G91: 2019-11-17 | H91: =INDEX('[24]SC-NR'!$E$156:$Y$156,1,MATCH(H$4,Year,FALSE)) -> 16.34400378 | I91: =INDEX('[24]SC-NR'!$E$156:$Y$156,1,MATCH(I$4,Year,FALSE)) -> 4.503171506 | AG91: C-War-Lgt-LPD Int-All-All-C | AH91: Commercial-not-refrig-warehouse-Heat | AI91: C-War-HVAC-ER-All-All-C
A92: =MLIST!A92 -> Lighting | B92: =MLIST!D92 -> Parking Garage Lighting-New | C92: Com-ParkingGarageLighting-2021P_V9.xlsx | F92: =MLIST!H92 -> Parking Garage Lighting | G92: 2021-11-19 | AG92: C-Gro-Lgt-LPD Int-All-All-C | AH92: Commercial-Grocery-Heat | AI92: C-Gro-HVAC-ER-All-All-C
A93: =MLIST!A93 -> Lighting | B93: =MLIST!D93 -> Parking Garage Lighting-Retro | C93: Com-ParkingGarageLighting-2021P_V9.xlsx | F93: =MLIST!H93 -> Parking Garage Lighting | G93: 2021-11-19 | H93: =INDEX('[25]SC-Retro'!$E$151:$Y$151,1,MATCH(H$4,Year,FALSE)) -> 4.212305475 | I93: =INDEX('[25]SC-Retro'!$E$151:$Y$151,1,MATCH(I$4,Year,FALSE)) -> 4.212305475 | AG93: C-Res-Lgt-LPD Int-All-All-C | AH93: Commercial-Resturant-Heat | AI93: C-Res-HVAC-ER-All-All-C
A94: =MLIST!A94 -> Lighting | B94: =MLIST!D94 -> Bi-Level Stairwell Lighting-NR | C94: Com-Bi-Level Stairwell-2021P_V5.xlsx | F94: =MLIST!H94 -> Bi-Level Stairwell | G94: 2019-11-21 | H94: =INDEX('[26]SC-NR'!$E$162:$X$162,MATCH(H$4,Year,FALSE)) -> 7.437102176 | I94: =INDEX('[26]SC-NR'!$E$162:$X$162,MATCH(I$4,Year,FALSE)) -> 1.507160426 | AG94: C-Lod-Lgt-LPD Int-All-All-C | AH94: Commercial-Lodging-Heat | AI94: C-Lod-HVAC-ER-All-All-C
A95: =MLIST!A95 -> Lighting | B95: =MLIST!D95 -> Low Power LF Lamps-NR | F95: High Perf Low Power Fluorescent Lamp PPA | AG95: C-Hos-Lgt-LPD Int-All-All-C | AH95: Commercial-Healthcare-Heat | AI95: C-Hea-HVAC-ER-All-All-C
A96: =MLIST!A96 -> Lighting | B96: =MLIST!D96 -> LEC Exit Sign-New | C96: Com-ExitSign-2021P_V3.xlsx | F96: Light Emitting Capacitor Exit Sign | G96: 2019-11-22 | H96: =INDEX('[27]SC-New'!$D$134:$Y$134,1,MATCH(H$4,Year,FALSE)) -> 4.705622103 | I96: =INDEX('[27]SC-New'!$D$134:$Y$134,1,MATCH(I$4,Year,FALSE)) -> 0.5486521391 | AG96: C-Oth-Lgt-LPD Int-All-All-C | AH96: Commercial-Misc. Com-Heat | AI96: C-Misc-HVAC-ER-All-All-C
A97: =MLIST!A97 -> Lighting | B97: =MLIST!D97 -> LEC Exit Sign-NR | C97: Com-ExitSign-2021P_V3.xlsx | F97: Light Emitting Capacitor Exit Sign | G97: 2019-11-22 | H97: =INDEX('[27]SC-NR'!$E$165:$Y$165,1,MATCH(H$4,Year,FALSE)) -> 27.75501429 | I97: =INDEX('[27]SC-NR'!$E$165:$Y$165,1,MATCH(I$4,Year,FALSE)) -> 11.93839918 | AI97: C-All-HVAC-ER-All-All-C
A98: =MLIST!A98 -> Refrigeration | B98: =MLIST!D98 -> Commercial Ice Maker-NR | C98: Com-IceAndVending-2021P_V1.xlsm | F98: =MLIST!H98 -> 0 | H98: ='[28]SC-NR'!$Y$60 -> 3.88640643
A99: =MLIST!A99 -> Refrigeration | B99: =MLIST!D99 -> Commercial Beverage Vending Machine-NR | C99: Com-IceAndVending-2021P_V1.xlsm | F99: =MLIST!H99 -> 0 | H99: ='[28]SC-NR'!$Y$61 -> 10.22712767
A100: =MLIST!A100 -> Motors/Drives | B100: =MLIST!D100 -> Clean Water PUmps-Retro | C100: COM-PUMPS-2021P_V7xlsm | F100: =MLIST!H100 -> 0 | H100: ='[29]SC-Retro'!$C$10 -> 34.71652324
A101: =MLIST!A101 -> Electronics | B101: =MLIST!D101 -> Servers & Power Supplies-NR | F101: =MLIST!H101 -> 0 | H101: ='[30]SC-Retro'!$C$10 -> 1.167142925
A102: =MLIST!A102 -> Process Loads | B102: =MLIST!D102 -> Elevators-Retro | C102: Com-Elevator-2021P_V1.xlsx | F102: =MLIST!H102 -> 0
A103: =MLIST!A103 -> Motors/Drives | B103: =MLIST!D103 -> Clean Water Pumps-NR | C103: COM-PUMPS-2021P_V7xlsm | F103: Clean Water Pumps upgrade to VS | H103: ='[29]SC-NR'!$C$10 -> 48.23548787
A104: =MLIST!A104 -> Motors/Drives | B104: =MLIST!D104 -> Clean Water Pumps-New | C104: COM-PUMPS-2021P_V7xlsm | F104: Clean Water Pumps upgrade to VS | H104: ='[29]SC-NEW'!$C$10 -> 12.22331661
A105: =MLIST!A105 -> Process Loads | B105: =MLIST!D105 -> EBHeaterControl-Retro | C105: Com-EngBlockHeatCtrl_V1.xlsm | F105: =MLIST!H105 -> Engine Generator Block Heaters | H105: ='[31]SC Retro'!$C$10 -> 23.77222522
A106: =MLIST!A106 -> Refrigeration | B106: =MLIST!D106 -> GroceryRefrigeration-NR | C106: Com-Refrigeration-2021P_V6.xlsm | H106: ='[32]SC NR'!$C$10 -> 50.22448428
A107: =MLIST!A107 -> Refrigeration | B107: =MLIST!D107 -> GroceryRefrigeration-Retro | C107: Com-Refrigeration-2021P_V6.xlsm | F107: =MLIST!H107 -> Grocery Refrigeration Bundle | H107: ='[32]SC Retro'!$C$10 -> 147.0398903
A108: =MLIST!A108 -> Refrigeration | B108: =MLIST!D108 -> GroceryRefrigeration-New | C108: Com-Refrigeration-2021P_V6.xlsm | H108: ='[32]SC New'!$C$10 -> 7.902229354
A109: =MLIST!A109 -> Refrigeration
A110: =MLIST!A110 -> Refrigeration | B110: =MLIST!D110 -> Refrig-Freezer-NR | C110: Com-Refrig-Freeze_2021P_V1.xlsm | F110: =MLIST!H110 -> Appliances - Com Refrigerators and Freezers | H110: ='[33]SC-NR'!$C$10 -> 6.012683031
A111: =MLIST!A111 -> Refrigeration
A112: =MLIST!A112 -> Refrigeration | B112: =MLIST!D112 -> Water Cooler Controls-NR | C112: Com-WaterCooler-2021P_V6.xlsx | F112: =MLIST!H112 -> Water Cooler Controls | G112: 2019-11-23 | H112: =INDEX('[34]SC-NR'!$E$143:$Y$143,1,MATCH(H$4,Year,FALSE)) -> 12.4491564 | I112: =INDEX('[34]SC-NR'!$E$143:$Y$143,1,MATCH(I$4,Year,FALSE)) -> 2.602284002
A113: =MLIST!A113 -> Water Heating | B113: =MLIST!D113 -> HPWH ResType-New | F113: =MLIST!H113 -> Heat Pump Water Heater - small size
A114: =MLIST!A114 -> Water Heating | B114: =MLIST!D114 -> HPWH ResType-NR | F114: =MLIST!H114 -> Heat Pump Water Heater - small size
A115: =MLIST!A115 -> Water Heating | B115: =MLIST!D115 -> Washer-New | C115: Com-Washer-2021P_V1.xlsm | F115: =MLIST!H115 -> Appliances - Clothes Washers
A116: =MLIST!A116 -> Water Heating | B116: =MLIST!D116 -> Washer-NR | C116: Com-Washer-2021P_V1.xlsm | F116: =MLIST!H116 -> Appliances - Clothes Washers
A117: =MLIST!A117 -> Water Heating | B117: =MLIST!D117 -> Showerheads-NR | C117: Com-Showerheads-2021P_V1.xlsm | F117: =MLIST!H117 -> DHW - Showerheads
A118: =MLIST!A118 -> Water Heating | B118: =MLIST!D118 -> Showerheads-Retro | F118: =MLIST!H118 -> 0
G133: Compressed Air | H133: =SUMIF($A$12:$A$118,G133,$H$12:$H$119) -> 9.793882009
G134: Electronics | H134: =SUMIF($A$12:$A$118,G134,$H$12:$H$119) -> 78.46676498
G135: Food Preparation | H135: 29.76006964
G136: HVAC | H136: 364.2158179
G137: Lighting | H137: 470.373759
G138: Refrigeration | H138: 237.7419775
G139: Motors/Drives | H139: 95.17532773
G140: Process Loads | H140: 23.77222522
G141: Water Heating | H141: 0
H142: =SUM(H133:H141) -> 1309.299824
A175: Potential | B175: Measure | C175: Category
A176: 0.0005609490829 | B176: DHP-New | C176: DHP | F176: Ductless Heat Pump | H176: 0.0005609490829
A177: 18.77256281 | B177: DHP-Retro | C177: DHP | F177: Ductless Heat Pump | H177: 18.77256281
A178: 23.04190186 | B178: ARC-Retro | C178: ARC | F178: Advanced Rooftop Controller | H178: 23.04190186
A179: 2.529824077 | B179: Chiller-Upgrade-New | C179: Chiller-Upgrade | F179: Variable Speed Chiller | H179: 2.529824077
A180: 5.130830988 | B180: Chiller-Upgrade-NR | C180: Chiller-Upgrade | F180: Variable Speed Chiller | H180: 5.130830988
A181: 13.20437726 | B181: Chiller-System-Retro | C181: Chiller-System | F181: Chiller System Retrofit | H181: 13.20437726
A182: 45.2984592 | B182: Commercial EM-Retro | C182: Commercial EM | F182: Commercial Energy Management For Complex systems | H182: 45.2984592
A183: 95.71285863 | B183: Fans-NR | C183: Fans | H183: 95.71285863
A184: 25.45580434 | B184: Fans-New | C184: Fans | H184: 25.45580434
A185: 53.21051727 | B185: VHE-DOAS-Retro | C185: VHE-DOAS | H185: 53.21051727
A186: 22.74234225 | B186: VHE-DOAS-New | C186: fixed | H186: 22.74234225
A187: 31.13856548 | B187: Fans-Retro | C187: Fans | H187: 31.13856548
A188: 2.00293045 | B188: ConnectedThermostats-New | C188: ConnectedThermostats | F188: Web-Enabled Thermostats | H188: 2.00293045
A189: 11.75829391 | B189: ConnectedThermostats-Retro | C189: ConnectedThermostats | F189: Web-Enabled Thermostats | H189: 11.75829391
A190: 9.043137038 | B190: CircPumps-NR | C190: in water heating | F190: Circulation Pump ECM and drive | H190: 9.043137038 | K190: Row Labels | L190: Sum of Potential
A191: 7.262463364 | B191: Circpumps-New | C191: in water heating | F191: Circ Pump ECM and drive | H191: 7.262463364 | K191: ARC | L191: 23.04190186 | N191: 29.13344401 | O191: ARC
A192: 11.90341198 | B192: VRF-DOAS-New | C192: new | F192: Variable Refrigerant Flow | H192: 11.90341198 | K192: Chiller-System | L192: 13.20437726 | N192: 13.20437726 | O192: Chiller-System
A193: 18.98822374 | B193: VRF-DOAS-Retro | C193: new | F193: Variable Refrigerant Flow | H193: 18.98822374 | K193: Chiller-Upgrade | L193: 7.660655065 | N193: 7.660655065 | O193: Chiller-Upgrade
A194: 10.78006517 | B194: HeatPumps-NR | C194: HeatPumps | F194: Heat Pump Upgrade | H194: 10.78006517 | K194: Commercial EM | L194: 45.2984592 | N194: 45.2984592 | O194: Commercial EM
A195: 1.935890113 | B195: HeatPumps-New | C195: HeatPumps | F195: Heat Pump Upgrade | H195: 1.935890113 | K195: Com-PTHP | L195: 17.40941821 | N195: 16.51459872 | O195: Com-PTHP
A196: 25.08676917 | B196: UnitaryAC-NR | C196: UnitaryAC | H196: 25.08676917 | K196: ConnectedThermostats | L196: 13.76122436 | N196: 15.96685532 | O196: ConnectedThermostats
A197: 5.554346435 | B197: UnitaryAC-New | C197: UnitaryAC | H197: 5.554346435 | K197: DHP | L197: 18.77312376 | N197: 18.77312376 | O197: DHP
A198: 0.8948823897 | B198: COM-PTHP-NR | C198: Com-PTHP | H198: 0.8948823897 | K198: Fans | L198: 152.3072284 | N198: 152.3072284 | O198: Fans
A199: 0.9163246978 | B199: COM-PTHP-New | C199: Com-PTHP | H199: 0.9163246978 | K199: HeatPumps | L199: 12.71595528 | N199: 11.83998271 | O199: HeatPumps
A200: 15.59821112 | B200: COM-PTHP-Retro | C200: Com-PTHP | H200: 15.59821112 | K200: UnitaryAC | L200: 30.64111561 | N200: 13.69676129 | O200: UnitaryAC
A201: 36.42547613 | B201: Secondary Glazing Systems-Retro | H201: 0.3110366216 | K201: VHE-DOAS | L201: 53.21051727 | N201: 53.21051727 | O201: VHE-DOAS
H202: 16.33473319 | K202: (blank) | L202: 106.3650545
F203: Secondary Glazing Systems | G203: 43793 | H203: 36.42547613 | K203: Grand Total | L203: 494.3890308
A204: =SUBTOTAL(9,A176:A203)-A186-A201-A192-A193 -> 404.3295767
A208: 152.3072284 | B208: Fans
A209: 53.21051727 | B209: VHE-DOAS | C209: Missing new - FIXED
A210: 45.2984592 | B210: Commercial EM
A211: 29.13344401 | B211: ARC
A212: 18.77312376 | B212: DHP
A213: 16.51459872 | B213: Com-PTHP
A214: 15.96685532 | B214: ConnectedThermostats
A215: 13.69676129 | B215: UnitaryAC | C215: Missing some - old file
A216: 13.20437726 | B216: Chiller-System
A217: 11.83998271 | B217: HeatPumps
A218: 7.660655065 | B218: Chiller-Upgrade
A219: =SUBTOTAL(9,A208:A218) -> 377.6060031

Sheet APPLIC
A1: APPLIC | B1: Fraction of floorspace that measure is applicable to. | D1: =CELL("filename") -> Q:\Eighth Plan\Conservation Analysis\Global EE Inputs\Units Forecasts\[2021P Forecasts.xlsx]Ind Forecast (Base Case)
A3: Note that some measures have the applicability built into the workbook.
U6: =COLUMN()-1 -> 20 | V6: =COLUMN()-1 -> 21 | W6: =COLUMN()-1 -> 22
B7: =COLUMN()-1 -> 1 | C7: 2 | D7: 3 | E7: 4 | F7: 5 | G7: 6 | H7: 7 | I7: 8 | J7: 9 | K7: 10 | L7: 11 | M7: 12 | N7: 13 | O7: 14 | P7: 15 | Q7: 16 | R7: 17 | S7: 18 | T7: 19 | U7: 20
C10: Office | F10: Retail | J10: School | L10: Warehouse | M10: Grocery | O10: Restaurant | P10: Lodging | Q10: Health | S10: Assembly | T10: Other
A11: End Use | B11: Measure Index Name | C11: =OFFSET(Labels!$D$4,A7,0) -> Large Off | D11: =OFFSET(Labels!$D$4,B7,0) -> Medium Off | E11: =OFFSET(Labels!$D$4,C7,0) -> Small Off | F11: =OFFSET(Labels!$D$4,D7,0) -> Xlarge Ret | G11: =OFFSET(Labels!$D$4,E7,0) -> Large Ret | H11: =OFFSET(Labels!$D$4,F7,0) -> Medium Ret | I11: =OFFSET(Labels!$D$4,G7,0) -> Small Ret | J11: =OFFSET(Labels!$D$4,H7,0) -> School K-12 | K11: =OFFSET(Labels!$D$4,I7,0) -> University | L11: =OFFSET(Labels!$D$4,J7,0) -> Warehouse | M11: =OFFSET(Labels!$D$4,K7,0) -> Supermarket | N11: =OFFSET(Labels!$D$4,L7,0) -> MiniMart | O11: =OFFSET(Labels!$D$4,M7,0) -> Restaurant | P11: =OFFSET(Labels!$D$4,N7,0) -> Lodging | Q11: =OFFSET(Labels!$D$4,O7,0) -> Hospital | R11: =OFFSET(Labels!$D$4,P7,0) -> Residential Care | S11: =OFFSET(Labels!$D$4,Q7,0) -> Assembly | T11: =OFFSET(Labels!$D$4,R7,0) -> Other | U11: Non-Building Stock | V11: Source
A12: =MLIST!A12 -> Compressed Air | B12: =MLIST!D12 -> Compressors-New | C12: =FEAS!C12*(1-BASE!C12) -> 0.01 | D12: =FEAS!D12*(1-BASE!D12) -> 0.01 | E12: =FEAS!E12*(1-BASE!E12) -> 0.01 | F12: =FEAS!F12*(1-BASE!F12) -> 0.01 | G12: =FEAS!G12*(1-BASE!G12) -> 0.01 | H12: =FEAS!H12*(1-BASE!H12) -> 0.01 | I12: =FEAS!I12*(1-BASE!I12) -> 0.01 | J12: =FEAS!J12*(1-BASE!J12) -> 0.01 | K12: =FEAS!K12*(1-BASE!K12) -> 0.01 | L12: =FEAS!L12*(1-BASE!L12) -> 0.01 | M12: =FEAS!M12*(1-BASE!M12) -> 0.01 | N12: =FEAS!N12*(1-BASE!N12) -> 0.01 | O12: =FEAS!O12*(1-BASE!O12) -> 0.01 | P12: =FEAS!P12*(1-BASE!P12) -> 0.01 | Q12: =FEAS!Q12*(1-BASE!Q12) -> 0.01 | R12: =FEAS!R12*(1-BASE!R12) -> 0.01 | S12: =FEAS!S12*(1-BASE!S12) -> 0.01 | T12: =FEAS!T12*(1-BASE!T12) -> 0.01
A13: =MLIST!A13 -> Compressed Air | B13: =MLIST!D13 -> Compressors-NR | C13: =FEAS!C13*(1-C$12)*(1-BASE!C13) -> 0.0099 | D13: =FEAS!D13*(1-D$12)*(1-BASE!D13) -> 0.0099 | E13: =FEAS!E13*(1-E$12)*(1-BASE!E13) -> 0.0099 | F13: =FEAS!F13*(1-F$12)*(1-BASE!F13) -> 0.0099 | G13: =FEAS!G13*(1-G$12)*(1-BASE!G13) -> 0.0099 | H13: =FEAS!H13*(1-H$12)*(1-BASE!H13) -> 0.0099 | I13: =FEAS!I13*(1-I$12)*(1-BASE!I13) -> 0.0099 | J13: =FEAS!J13*(1-J$12)*(1-BASE!J13) -> 0.0099 | K13: =FEAS!K13*(1-K$12)*(1-BASE!K13) -> 0.0099 | L13: =FEAS!L13*(1-L$12)*(1-BASE!L13) -> 0.0099 | M13: =FEAS!M13*(1-M$12)*(1-BASE!M13) -> 0.0099 | N13: =FEAS!N13*(1-N$12)*(1-BASE!N13) -> 0.0099 | O13: =FEAS!O13*(1-O$12)*(1-BASE!O13) -> 0.0099 | P13: =FEAS!P13*(1-P$12)*(1-BASE!P13) -> 0.0099 | Q13: =FEAS!Q13*(1-Q$12)*(1-BASE!Q13) -> 0.0099 | R13: =FEAS!R13*(1-R$12)*(1-BASE!R13) -> 0.0099 | S13: =FEAS!S13*(1-S$12)*(1-BASE!S13) -> 0.0099 | T13: =FEAS!T13*(1-T$12)*(1-BASE!T13) -> 0.0099
A14: =MLIST!A14 -> Electronics | B14: =MLIST!D14 -> Laptop-NR | C14: =FEAS!C14*(1-BASE!C14) -> 1 | D14: =FEAS!D14*(1-BASE!D14) -> 1 | E14: =FEAS!E14*(1-BASE!E14) -> 1 | F14: =FEAS!F14*(1-BASE!F14) -> 1 | G14: =FEAS!G14*(1-BASE!G14) -> 1 | H14: =FEAS!H14*(1-BASE!H14) -> 1 | I14: =FEAS!I14*(1-BASE!I14) -> 1 | J14: =FEAS!J14*(1-BASE!J14) -> 1 | K14: =FEAS!K14*(1-BASE!K14) -> 1 | L14: =FEAS!L14*(1-BASE!L14) -> 1 | M14: =FEAS!M14*(1-BASE!M14) -> 1 | N14: =FEAS!N14*(1-BASE!N14) -> 1 | O14: =FEAS!O14*(1-BASE!O14) -> 1 | P14: =FEAS!P14*(1-BASE!P14) -> 1 | Q14: =FEAS!Q14*(1-BASE!Q14) -> 1 | R14: =FEAS!R14*(1-BASE!R14) -> 1 | S14: =FEAS!S14*(1-BASE!S14) -> 1 | T14: =FEAS!T14*(1-BASE!T14) -> 1 | U14: =FEAS!U14*(1-BASE!U14) -> 0.1
A15: =MLIST!A15 -> Electronics | B15: =MLIST!D15 -> PowerStrips-Retro | C15: =FEAS!C15*(1-BASE!C15) -> 0.75 | D15: =FEAS!D15*(1-BASE!D15) -> 0.75 | E15: =FEAS!E15*(1-BASE!E15) -> 0.75 | F15: =FEAS!F15*(1-BASE!F15) -> 0.75 | G15: =FEAS!G15*(1-BASE!G15) -> 0.75 | H15: =FEAS!H15*(1-BASE!H15) -> 0.75 | I15: =FEAS!I15*(1-BASE!I15) -> 0.75 | J15: =FEAS!J15*(1-BASE!J15) -> 0.75 | K15: =FEAS!K15*(1-BASE!K15) -> 0.75 | L15: =FEAS!L15*(1-BASE!L15) -> 0.75 | M15: =FEAS!M15*(1-BASE!M15) -> 0.75 | N15: =FEAS!N15*(1-BASE!N15) -> 0.75 | O15: =FEAS!O15*(1-BASE!O15) -> 0.75 | P15: =FEAS!P15*(1-BASE!P15) -> 0.75 | Q15: =FEAS!Q15*(1-BASE!Q15) -> 0.75 | R15: =FEAS!R15*(1-BASE!R15) -> 0.75 | S15: =FEAS!S15*(1-BASE!S15) -> 0.75 | T15: =FEAS!T15*(1-BASE!T15) -> 0.75 | V15: 75% is an estimate that assumes there are barriers for 25%
A16: =MLIST!A16 -> Electronics | B16: =MLIST!D16 -> PowerStrips-New | C16: =FEAS!C16*(1-BASE!C16) -> 0.75 | D16: =FEAS!D16*(1-BASE!D16) -> 0.75 | E16: =FEAS!E16*(1-BASE!E16) -> 0.75 | F16: =FEAS!F16*(1-BASE!F16) -> 0.75 | G16: =FEAS!G16*(1-BASE!G16) -> 0.75 | H16: =FEAS!H16*(1-BASE!H16) -> 0.75 | I16: =FEAS!I16*(1-BASE!I16) -> 0.75 | J16: =FEAS!J16*(1-BASE!J16) -> 0.75 | K16: =FEAS!K16*(1-BASE!K16) -> 0.75 | L16: =FEAS!L16*(1-BASE!L16) -> 0.75 | M16: =FEAS!M16*(1-BASE!M16) -> 0.75 | N16: =FEAS!N16*(1-BASE!N16) -> 0.75 | O16: =FEAS!O16*(1-BASE!O16) -> 0.75 | P16: =FEAS!P16*(1-BASE!P16) -> 0.75 | Q16: =FEAS!Q16*(1-BASE!Q16) -> 0.75 | R16: =FEAS!R16*(1-BASE!R16) -> 0.75 | S16: =FEAS!S16*(1-BASE!S16) -> 0.75 | T16: =FEAS!T16*(1-BASE!T16) -> 0.75
A17: =MLIST!A17 -> Electronics | B17: =MLIST!D17 -> Data Centers-NR | C17: =FEAS!C17*(1-BASE!C17) -> 0.01 | D17: =FEAS!D17*(1-BASE!D17) -> 0.01 | E17: =FEAS!E17*(1-BASE!E17) -> 0.01 | F17: =FEAS!F17*(1-BASE!F17) -> 0.01 | G17: =FEAS!G17*(1-BASE!G17) -> 0.01 | H17: =FEAS!H17*(1-BASE!H17) -> 0.01 | I17: =FEAS!I17*(1-BASE!I17) -> 0.01 | J17: =FEAS!J17*(1-BASE!J17) -> 0.01 | K17: =FEAS!K17*(1-BASE!K17) -> 0.01 | L17: =FEAS!L17*(1-BASE!L17) -> 0.01 | M17: =FEAS!M17*(1-BASE!M17) -> 0.01 | N17: =FEAS!N17*(1-BASE!N17) -> 0.01 | O17: =FEAS!O17*(1-BASE!O17) -> 0.01 | P17: =FEAS!P17*(1-BASE!P17) -> 0.01 | Q17: =FEAS!Q17*(1-BASE!Q17) -> 0.01 | R17: =FEAS!R17*(1-BASE!R17) -> 0.01 | S17: =FEAS!S17*(1-BASE!S17) -> 0.01 | T17: =FEAS!T17*(1-BASE!T17) -> 0.01 | U17: =FEAS!U17*(1-BASE!U17) -> 0.8
A18: =MLIST!A18 -> Electronics | B18: =MLIST!D18 -> Desktop-WA-NR | C18: =FEAS!C18*(1-BASE!C18) -> 1 | D18: =FEAS!D18*(1-BASE!D18) -> 1 | E18: =FEAS!E18*(1-BASE!E18) -> 1 | F18: =FEAS!F18*(1-BASE!F18) -> 1 | G18: =FEAS!G18*(1-BASE!G18) -> 1 | H18: =FEAS!H18*(1-BASE!H18) -> 1 | I18: =FEAS!I18*(1-BASE!I18) -> 1 | J18: =FEAS!J18*(1-BASE!J18) -> 1 | K18: =FEAS!K18*(1-BASE!K18) -> 1 | L18: =FEAS!L18*(1-BASE!L18) -> 1 | M18: =FEAS!M18*(1-BASE!M18) -> 1 | N18: =FEAS!N18*(1-BASE!N18) -> 1 | O18: =FEAS!O18*(1-BASE!O18) -> 1 | P18: =FEAS!P18*(1-BASE!P18) -> 1 | Q18: =FEAS!Q18*(1-BASE!Q18) -> 1 | R18: =FEAS!R18*(1-BASE!R18) -> 1 | S18: =FEAS!S18*(1-BASE!S18) -> 1 | T18: =FEAS!T18*(1-BASE!T18) -> 1 | U18: =FEAS!U18*(1-BASE!U18) -> 0.45
A19: =MLIST!A19 -> Electronics | B19: =MLIST!D19 -> Desktop-NR | C19: =FEAS!C19*(1-BASE!C19) -> 1 | D19: =FEAS!D19*(1-BASE!D19) -> 1 | E19: =FEAS!E19*(1-BASE!E19) -> 1 | F19: =FEAS!F19*(1-BASE!F19) -> 1 | G19: =FEAS!G19*(1-BASE!G19) -> 1 | H19: =FEAS!H19*(1-BASE!H19) -> 1 | I19: =FEAS!I19*(1-BASE!I19) -> 1 | J19: =FEAS!J19*(1-BASE!J19) -> 1 | K19: =FEAS!K19*(1-BASE!K19) -> 1 | L19: =FEAS!L19*(1-BASE!L19) -> 1 | M19: =FEAS!M19*(1-BASE!M19) -> 1 | N19: =FEAS!N19*(1-BASE!N19) -> 1 | O19: =FEAS!O19*(1-BASE!O19) -> 1 | P19: =FEAS!P19*(1-BASE!P19) -> 1 | Q19: =FEAS!Q19*(1-BASE!Q19) -> 1 | R19: =FEAS!R19*(1-BASE!R19) -> 1 | S19: =FEAS!S19*(1-BASE!S19) -> 1 | T19: =FEAS!T19*(1-BASE!T19) -> 1 | U19: =FEAS!U19*(1-BASE!U19) -> 0.25
A20: =MLIST!A20 -> Electronics | B20: =MLIST!D20 -> Laptop-WA-NR | C20: =FEAS!C20*(1-BASE!C20) -> 1 | D20: =FEAS!D20*(1-BASE!D20) -> 1 | E20: =FEAS!E20*(1-BASE!E20) -> 1 | F20: =FEAS!F20*(1-BASE!F20) -> 1 | G20: =FEAS!G20*(1-BASE!G20) -> 1 | H20: =FEAS!H20*(1-BASE!H20) -> 1 | I20: =FEAS!I20*(1-BASE!I20) -> 1 | J20: =FEAS!J20*(1-BASE!J20) -> 1 | K20: =FEAS!K20*(1-BASE!K20) -> 1 | L20: =FEAS!L20*(1-BASE!L20) -> 1 | M20: =FEAS!M20*(1-BASE!M20) -> 1 | N20: =FEAS!N20*(1-BASE!N20) -> 1 | O20: =FEAS!O20*(1-BASE!O20) -> 1 | P20: =FEAS!P20*(1-BASE!P20) -> 1 | Q20: =FEAS!Q20*(1-BASE!Q20) -> 1 | R20: =FEAS!R20*(1-BASE!R20) -> 1 | S20: =FEAS!S20*(1-BASE!S20) -> 1 | T20: =FEAS!T20*(1-BASE!T20) -> 1 | U20: =FEAS!U20*(1-BASE!U20) -> 0.25
A21: =MLIST!A21 -> Food Preparation | B21: =MLIST!D21 -> Pre-Rinse Spray Valve-Retro | C21: =FEAS!C21*(1-BASE!C21) -> 0 | D21: =FEAS!D21*(1-BASE!D21) -> 0 | E21: =FEAS!E21*(1-BASE!E21) -> 0 | F21: =FEAS!F21*(1-BASE!F21) -> 0 | G21: =FEAS!G21*(1-BASE!G21) -> 0 | H21: =FEAS!H21*(1-BASE!H21) -> 0 | I21: =FEAS!I21*(1-BASE!I21) -> 0 | J21: =FEAS!J21*(1-BASE!J21) -> 0 | K21: =FEAS!K21*(1-BASE!K21) -> 0 | L21: =FEAS!L21*(1-BASE!L21) -> 0 | M21: =FEAS!M21*(1-BASE!M21) -> 0 | N21: =FEAS!N21*(1-BASE!N21) -> 0 | O21: =FEAS!O21*(1-BASE!O21) -> 0 | P21: =FEAS!P21*(1-BASE!P21) -> 0 | Q21: =FEAS!Q21*(1-BASE!Q21) -> 0 | R21: =FEAS!R21*(1-BASE!R21) -> 0 | S21: =FEAS!S21*(1-BASE!S21) -> 0 | T21: =FEAS!T21*(1-BASE!T21) -> 0 | U21: =FEAS!U21*(1-BASE!U21) -> 0.86
A22: =MLIST!A22 -> Food Preparation | B22: =MLIST!D22 -> Steamer-NR | C22: =FEAS!C22*(1-BASE!C22) -> 0 | D22: =FEAS!D22*(1-BASE!D22) -> 0 | E22: =FEAS!E22*(1-BASE!E22) -> 0 | F22: =FEAS!F22*(1-BASE!F22) -> 0 | G22: =FEAS!G22*(1-BASE!G22) -> 0 | H22: =FEAS!H22*(1-BASE!H22) -> 0 | I22: =FEAS!I22*(1-BASE!I22) -> 0 | J22: =FEAS!J22*(1-BASE!J22) -> 0 | K22: =FEAS!K22*(1-BASE!K22) -> 0 | L22: =FEAS!L22*(1-BASE!L22) -> 0 | M22: =FEAS!M22*(1-BASE!M22) -> 0 | N22: =FEAS!N22*(1-BASE!N22) -> 0 | O22: =FEAS!O22*(1-BASE!O22) -> 0 | P22: =FEAS!P22*(1-BASE!P22) -> 0 | Q22: =FEAS!Q22*(1-BASE!Q22) -> 0 | R22: =FEAS!R22*(1-BASE!R22) -> 0 | S22: =FEAS!S22*(1-BASE!S22) -> 0 | T22: =FEAS!T22*(1-BASE!T22) -> 0 | U22: =FEAS!U22*(1-BASE!U22) -> 0
A23: =MLIST!A23 -> Food Preparation | B23: =MLIST!D23 -> Combo Oven-NR | C23: =FEAS!C23*(1-BASE!C23) -> 0 | D23: =FEAS!D23*(1-BASE!D23) -> 0 | E23: =FEAS!E23*(1-BASE!E23) -> 0 | F23: =FEAS!F23*(1-BASE!F23) -> 0 | G23: =FEAS!G23*(1-BASE!G23) -> 0 | H23: =FEAS!H23*(1-BASE!H23) -> 0 | I23: =FEAS!I23*(1-BASE!I23) -> 0 | J23: =FEAS!J23*(1-BASE!J23) -> 0 | K23: =FEAS!K23*(1-BASE!K23) -> 0 | L23: =FEAS!L23*(1-BASE!L23) -> 0 | M23: =FEAS!M23*(1-BASE!M23) -> 0 | N23: =FEAS!N23*(1-BASE!N23) -> 0 | O23: =FEAS!O23*(1-BASE!O23) -> 0 | P23: =FEAS!P23*(1-BASE!P23) -> 0 | Q23: =FEAS!Q23*(1-BASE!Q23) -> 0 | R23: =FEAS!R23*(1-BASE!R23) -> 0 | S23: =FEAS!S23*(1-BASE!S23) -> 0 | T23: =FEAS!T23*(1-BASE!T23) -> 0 | U23: =FEAS!U23*(1-BASE!U23) -> 0
A24: =MLIST!A24 -> Food Preparation | B24: =MLIST!D24 -> HFHC-NR | C24: =FEAS!C24*(1-BASE!C24) -> 0 | D24: =FEAS!D24*(1-BASE!D24) -> 0 | E24: =FEAS!E24*(1-BASE!E24) -> 0 | F24: =FEAS!F24*(1-BASE!F24) -> 0 | G24: =FEAS!G24*(1-BASE!G24) -> 0 | H24: =FEAS!H24*(1-BASE!H24) -> 0 | I24: =FEAS!I24*(1-BASE!I24) -> 0 | J24: =FEAS!J24*(1-BASE!J24) -> 0 | K24: =FEAS!K24*(1-BASE!K24) -> 0 | L24: =FEAS!L24*(1-BASE!L24) -> 0 | M24: =FEAS!M24*(1-BASE!M24) -> 0 | N24: =FEAS!N24*(1-BASE!N24) -> 0 | O24: =FEAS!O24*(1-BASE!O24) -> 0 | P24: =FEAS!P24*(1-BASE!P24) -> 0 | Q24: =FEAS!Q24*(1-BASE!Q24) -> 0 | R24: =FEAS!R24*(1-BASE!R24) -> 0 | S24: =FEAS!S24*(1-BASE!S24) -> 0 | T24: =FEAS!T24*(1-BASE!T24) -> 0 | U24: =FEAS!U24*(1-BASE!U24) -> 0
A25: =MLIST!A25 -> Food Preparation | B25: =MLIST!D25 -> Convection Oven-NR | C25: =FEAS!C25*(1-BASE!C25) -> 0 | D25: =FEAS!D25*(1-BASE!D25) -> 0 | E25: =FEAS!E25*(1-BASE!E25) -> 0 | F25: =FEAS!F25*(1-BASE!F25) -> 0 | G25: =FEAS!G25*(1-BASE!G25) -> 0 | H25: =FEAS!H25*(1-BASE!H25) -> 0 | I25: =FEAS!I25*(1-BASE!I25) -> 0 | J25: =FEAS!J25*(1-BASE!J25) -> 0 | K25: =FEAS!K25*(1-BASE!K25) -> 0 | L25: =FEAS!L25*(1-BASE!L25) -> 0 | M25: =FEAS!M25*(1-BASE!M25) -> 0 | N25: =FEAS!N25*(1-BASE!N25) -> 0 | O25: =FEAS!O25*(1-BASE!O25) -> 0 | P25: =FEAS!P25*(1-BASE!P25) -> 0 | Q25: =FEAS!Q25*(1-BASE!Q25) -> 0 | R25: =FEAS!R25*(1-BASE!R25) -> 0 | S25: =FEAS!S25*(1-BASE!S25) -> 0 | T25: =FEAS!T25*(1-BASE!T25) -> 0 | U25: =FEAS!U25*(1-BASE!U25) -> 0
A26: =MLIST!A26 -> Food Preparation | B26: =MLIST!D26 -> Fryer-NR | C26: =FEAS!C26*(1-BASE!C26) -> 0 | D26: =FEAS!D26*(1-BASE!D26) -> 0 | E26: =FEAS!E26*(1-BASE!E26) -> 0 | F26: =FEAS!F26*(1-BASE!F26) -> 0 | G26: =FEAS!G26*(1-BASE!G26) -> 0 | H26: =FEAS!H26*(1-BASE!H26) -> 0 | I26: =FEAS!I26*(1-BASE!I26) -> 0 | J26: =FEAS!J26*(1-BASE!J26) -> 0 | K26: =FEAS!K26*(1-BASE!K26) -> 0 | L26: =FEAS!L26*(1-BASE!L26) -> 0 | M26: =FEAS!M26*(1-BASE!M26) -> 0 | N26: =FEAS!N26*(1-BASE!N26) -> 0 | O26: =FEAS!O26*(1-BASE!O26) -> 0 | P26: =FEAS!P26*(1-BASE!P26) -> 0 | Q26: =FEAS!Q26*(1-BASE!Q26) -> 0 | R26: =FEAS!R26*(1-BASE!R26) -> 0 | S26: =FEAS!S26*(1-BASE!S26) -> 0 | T26: =FEAS!T26*(1-BASE!T26) -> 0 | U26: =FEAS!U26*(1-BASE!U26) -> 0
A27: =MLIST!A27 -> Food Preparation | B27: =MLIST!D27 -> Griddle-NR | C27: =FEAS!C27*(1-BASE!C27) -> 0 | D27: =FEAS!D27*(1-BASE!D27) -> 0 | E27: =FEAS!E27*(1-BASE!E27) -> 0 | F27: =FEAS!F27*(1-BASE!F27) -> 0 | G27: =FEAS!G27*(1-BASE!G27) -> 0 | H27: =FEAS!H27*(1-BASE!H27) -> 0 | I27: =FEAS!I27*(1-BASE!I27) -> 0 | J27: =FEAS!J27*(1-BASE!J27) -> 0 | K27: =FEAS!K27*(1-BASE!K27) -> 0 | L27: =FEAS!L27*(1-BASE!L27) -> 0 | M27: =FEAS!M27*(1-BASE!M27) -> 0 | N27: =FEAS!N27*(1-BASE!N27) -> 0 | O27: =FEAS!O27*(1-BASE!O27) -> 0 | P27: =FEAS!P27*(1-BASE!P27) -> 0 | Q27: =FEAS!Q27*(1-BASE!Q27) -> 0 | R27: =FEAS!R27*(1-BASE!R27) -> 0 | S27: =FEAS!S27*(1-BASE!S27) -> 0 | T27: =FEAS!T27*(1-BASE!T27) -> 0 | U27: =FEAS!U27*(1-BASE!U27) -> 0
A28: =MLIST!A28 -> Food Preparation | B28: =MLIST!D28 -> Overwrapper-NR | C28: =FEAS!C28*(1-BASE!C28) -> 0 | D28: =FEAS!D28*(1-BASE!D28) -> 0 | E28: =FEAS!E28*(1-BASE!E28) -> 0 | F28: =FEAS!F28*(1-BASE!F28) -> 0 | G28: =FEAS!G28*(1-BASE!G28) -> 0 | H28: =FEAS!H28*(1-BASE!H28) -> 0 | I28: =FEAS!I28*(1-BASE!I28) -> 0 | J28: =FEAS!J28*(1-BASE!J28) -> 0 | K28: =FEAS!K28*(1-BASE!K28) -> 0 | L28: =FEAS!L28*(1-BASE!L28) -> 0 | M28: =FEAS!M28*(1-BASE!M28) -> 0 | N28: =FEAS!N28*(1-BASE!N28) -> 0 | O28: =FEAS!O28*(1-BASE!O28) -> 0 | P28: =FEAS!P28*(1-BASE!P28) -> 0 | Q28: =FEAS!Q28*(1-BASE!Q28) -> 0 | R28: =FEAS!R28*(1-BASE!R28) -> 0 | S28: =FEAS!S28*(1-BASE!S28) -> 0 | T28: =FEAS!T28*(1-BASE!T28) -> 0 | U28: =FEAS!U28*(1-BASE!U28) -> 0
A29: =MLIST!A29 -> HVAC | B29: =MLIST!D29 -> DHP-New | C29: =FEAS!C29*(1-BASE!C29) -> 0 | D29: =FEAS!D29*(1-BASE!D29) -> 0 | E29: =E30 -> 0.2099385997 | F29: 0 | G29: 0 | H29: 0 | I29: 0.2209496178 | J29: 0.0003681042832 | K29: 0 | L29: 0.001018116637 | M29: 0 | N29: 0.1774139958 | O29: 0.02687489299 | P29: 0.004508599092 | Q29: 0 | R29: 6.749198558e-05 | S29: 0.001193417146 | T29: 0.007100666862
A30: =MLIST!A30 -> HVAC | B30: =MLIST!D30 -> DHP-Retro | C30: =FEAS!C30*(1-BASE!C30) -> 0 | D30: =FEAS!D30*(1-BASE!D30) -> 0 | E30: =FEAS!E30*(1-BASE!E30) -> 0.2099385997 | F30: =FEAS!F30*(1-BASE!F30) -> 0 | G30: =FEAS!G30*(1-BASE!G30) -> 0 | H30: =FEAS!H30*(1-BASE!H30) -> 0 | I30: =FEAS!I30*(1-BASE!I30) -> 0.2209496178 | J30: =FEAS!J30*(1-BASE!J30) -> 0.0003681042832 | K30: =FEAS!K30*(1-BASE!K30) -> 0 | L30: =FEAS!L30*(1-BASE!L30) -> 0.001018116637 | M30: =FEAS!M30*(1-BASE!M30) -> 0 | N30: =FEAS!N30*(1-BASE!N30) -> 0.1774139958 | O30: =FEAS!O30*(1-BASE!O30) -> 0.02687489299 | P30: =FEAS!P30*(1-BASE!P30) -> 0.004508599092 | Q30: =FEAS!Q30*(1-BASE!Q30) -> 0 | R30: =FEAS!R30*(1-BASE!R30) -> 6.749198558e-05 | S30: =FEAS!S30*(1-BASE!S30) -> 0.001193417146 | T30: =FEAS!T30*(1-BASE!T30) -> 0.007100666862
A31: =MLIST!A31 -> HVAC | B31: =MLIST!D31 -> Glass-New | C31: =FEAS!C31*(1-BASE!C31) -> 0 | D31: =FEAS!D31*(1-BASE!D31) -> 0 | E31: =FEAS!E31*(1-BASE!E31) -> 0 | F31: =FEAS!F31*(1-BASE!F31) -> 0 | G31: =FEAS!G31*(1-BASE!G31) -> 0 | H31: =FEAS!H31*(1-BASE!H31) -> 0 | I31: =FEAS!I31*(1-BASE!I31) -> 0 | J31: =FEAS!J31*(1-BASE!J31) -> 0 | K31: =FEAS!K31*(1-BASE!K31) -> 0 | L31: =FEAS!L31*(1-BASE!L31) -> 0 | M31: =FEAS!M31*(1-BASE!M31) -> 0 | N31: =FEAS!N31*(1-BASE!N31) -> 0 | O31: =FEAS!O31*(1-BASE!O31) -> 0 | P31: =FEAS!P31*(1-BASE!P31) -> 0 | Q31: =FEAS!Q31*(1-BASE!Q31) -> 0 | R31: =FEAS!R31*(1-BASE!R31) -> 0 | S31: =FEAS!S31*(1-BASE!S31) -> 0 | T31: =FEAS!T31*(1-BASE!T31) -> 0
A32: =MLIST!A32 -> HVAC | B32: =MLIST!D32 -> Glass-NR | C32: =FEAS!C32*(1-BASE!C32) -> 0 | D32: =FEAS!D32*(1-BASE!D32) -> 0 | E32: =FEAS!E32*(1-BASE!E32) -> 0 | F32: =FEAS!F32*(1-BASE!F32) -> 0 | G32: =FEAS!G32*(1-BASE!G32) -> 0 | H32: =FEAS!H32*(1-BASE!H32) -> 0 | I32: =FEAS!I32*(1-BASE!I32) -> 0 | J32: =FEAS!J32*(1-BASE!J32) -> 0 | K32: =FEAS!K32*(1-BASE!K32) -> 0 | L32: =FEAS!L32*(1-BASE!L32) -> 0 | M32: =FEAS!M32*(1-BASE!M32) -> 0 | N32: =FEAS!N32*(1-BASE!N32) -> 0 | O32: =FEAS!O32*(1-BASE!O32) -> 0 | P32: =FEAS!P32*(1-BASE!P32) -> 0 | Q32: =FEAS!Q32*(1-BASE!Q32) -> 0 | R32: =FEAS!R32*(1-BASE!R32) -> 0 | S32: =FEAS!S32*(1-BASE!S32) -> 0 | T32: =FEAS!T32*(1-BASE!T32) -> 0
A33: =MLIST!A33 -> HVAC | B33: =MLIST!D33 -> ARC-New | C33: =FEAS!C33*(1-BASE!C33) -> 0.001892675403 | D33: =FEAS!D33*(1-BASE!D33) -> 0.1471496529 | E33: =FEAS!E33*(1-BASE!E33) -> 0.1324068996 | F33: =FEAS!F33*(1-BASE!F33) -> 0.0007888545633 | G33: =FEAS!G33*(1-BASE!G33) -> 0 | H33: =FEAS!H33*(1-BASE!H33) -> 0.006255476247 | I33: =FEAS!I33*(1-BASE!I33) -> 0.07797222272 | J33: =FEAS!J33*(1-BASE!J33) -> 0.007296144525 | K33: =FEAS!K33*(1-BASE!K33) -> 0 | L33: =FEAS!L33*(1-BASE!L33) -> 0.005900284927 | M33: =FEAS!M33*(1-BASE!M33) -> 0.01400339006 | N33: =FEAS!N33*(1-BASE!N33) -> 0.09038650499 | O33: =FEAS!O33*(1-BASE!O33) -> 0.05594701727 | P33: =FEAS!P33*(1-BASE!P33) -> 0.06267689091 | Q33: =FEAS!Q33*(1-BASE!Q33) -> 0 | R33: =FEAS!R33*(1-BASE!R33) -> 0.02152551647 | S33: =FEAS!S33*(1-BASE!S33) -> 0.01968962823 | T33: =FEAS!T33*(1-BASE!T33) -> 0.01545024763
A34: =MLIST!A34 -> HVAC | B34: =MLIST!D34 -> ARC-NR | C34: =FEAS!C34*(1-BASE!C34) -> 0.95 | D34: =FEAS!D34*(1-BASE!D34) -> 0.95 | E34: =FEAS!E34*(1-BASE!E34) -> 0.95 | F34: =FEAS!F34*(1-BASE!F34) -> 0.95 | G34: =FEAS!G34*(1-BASE!G34) -> 0.95 | H34: =FEAS!H34*(1-BASE!H34) -> 0.95 | I34: =FEAS!I34*(1-BASE!I34) -> 0.95 | J34: =FEAS!J34*(1-BASE!J34) -> 0.95 | K34: =FEAS!K34*(1-BASE!K34) -> 0.95 | L34: =FEAS!L34*(1-BASE!L34) -> 0.95 | M34: =FEAS!M34*(1-BASE!M34) -> 0.95 | N34: =FEAS!N34*(1-BASE!N34) -> 0.95 | O34: =FEAS!O34*(1-BASE!O34) -> 0.95 | P34: =FEAS!P34*(1-BASE!P34) -> 0.95 | Q34: =FEAS!Q34*(1-BASE!Q34) -> 0.95 | R34: =FEAS!R34*(1-BASE!R34) -> 0.95 | S34: =FEAS!S34*(1-BASE!S34) -> 0.95 | T34: =FEAS!T34*(1-BASE!T34) -> 0.95
A35: =MLIST!A35 -> HVAC | B35: =MLIST!D35 -> ARC-Retro | C35: =FEAS!C35*(1-BASE!C35) -> 0.05965707533 | D35: =FEAS!D35*(1-BASE!D35) -> 0.4197969581 | E35: =FEAS!E35*(1-BASE!E35) -> 0.2289353295 | F35: =FEAS!F35*(1-BASE!F35) -> 0.6146642445 | G35: =FEAS!G35*(1-BASE!G35) -> 0.5420938872 | H35: =FEAS!H35*(1-BASE!H35) -> 0.3195335857 | I35: =FEAS!I35*(1-BASE!I35) -> 0.1952922171 | J35: =FEAS!J35*(1-BASE!J35) -> 0.1123086668 | K35: =FEAS!K35*(1-BASE!K35) -> 0.1075 | L35: =FEAS!L35*(1-BASE!L35) -> 0.05314425824 | M35: =FEAS!M35*(1-BASE!M35) -> 0.442586653 | N35: =FEAS!N35*(1-BASE!N35) -> 0.6262022257 | O35: =FEAS!O35*(1-BASE!O35) -> 0.7724375018 | P35: =FEAS!P35*(1-BASE!P35) -> 0.08896815219 | Q35: =FEAS!Q35*(1-BASE!Q35) -> 0.1375 | R35: =FEAS!R35*(1-BASE!R35) -> 0.1430728023 | S35: =FEAS!S35*(1-BASE!S35) -> 0.2452502121 | T35: =FEAS!T35*(1-BASE!T35) -> 0.09423526066
A36: =MLIST!A36 -> HVAC | B36: =MLIST!D36 -> Chiller-Upgrade-New | C36: =FEAS!C36*(1-BASE!C36) -> 0.8557203637 | D36: =FEAS!D36*(1-BASE!D36) -> 0.1261046949 | E36: =FEAS!E36*(1-BASE!E36) -> 0.01032468381 | F36: =FEAS!F36*(1-BASE!F36) -> 0.01699527846 | G36: =FEAS!G36*(1-BASE!G36) -> 0 | H36: =FEAS!H36*(1-BASE!H36) -> 0.01988827106 | I36: =FEAS!I36*(1-BASE!I36) -> 0 | J36: =FEAS!J36*(1-BASE!J36) -> 0.2738223538 | K36: =FEAS!K36*(1-BASE!K36) -> 0.252903316 | L36: =FEAS!L36*(1-BASE!L36) -> 0.003196963893 | M36: =FEAS!M36*(1-BASE!M36) -> 0.02178440909 | N36: =FEAS!N36*(1-BASE!N36) -> 0 | O36: =FEAS!O36*(1-BASE!O36) -> 0 | P36: =FEAS!P36*(1-BASE!P36) -> 0.2461095317 | Q36: =FEAS!Q36*(1-BASE!Q36) -> 0.679941047 | R36: =FEAS!R36*(1-BASE!R36) -> 0.1290021024 | S36: =FEAS!S36*(1-BASE!S36) -> 0.1835854544 | T36: =FEAS!T36*(1-BASE!T36) -> 0.2208510328
A37: =MLIST!A37 -> HVAC | B37: =MLIST!D37 -> Chiller-Upgrade-NR | C37: =FEAS!C37*(1-BASE!C37) -> 0.9032603839 | D37: =FEAS!D37*(1-BASE!D37) -> 0.1331105112 | E37: =FEAS!E37*(1-BASE!E37) -> 0.01089827735 | F37: =FEAS!F37*(1-BASE!F37) -> 0.0179394606 | G37: =FEAS!G37*(1-BASE!G37) -> 0 | H37: =FEAS!H37*(1-BASE!H37) -> 0.020993175 | I37: =FEAS!I37*(1-BASE!I37) -> 0 | J37: =FEAS!J37*(1-BASE!J37) -> 0.2890347068 | K37: =FEAS!K37*(1-BASE!K37) -> 0.2669535002 | L37: =FEAS!L37*(1-BASE!L37) -> 0.003374572998 | M37: =FEAS!M37*(1-BASE!M37) -> 0.02299465404 | N37: =FEAS!N37*(1-BASE!N37) -> 0 | O37: =FEAS!O37*(1-BASE!O37) -> 0 | P37: =FEAS!P37*(1-BASE!P37) -> 0.2597822835 | Q37: =FEAS!Q37*(1-BASE!Q37) -> 0.7177155496 | R37: =FEAS!R37*(1-BASE!R37) -> 0.1361688859 | S37: =FEAS!S37*(1-BASE!S37) -> 0.1937846464 | T37: =FEAS!T37*(1-BASE!T37) -> 0.2331205346
A38: =MLIST!A38 -> HVAC | B38: =MLIST!D38 -> Chiller-System-Retro | C38: =FEAS!C38*(1-BASE!C38) -> 0.9032603839 | D38: =FEAS!D38*(1-BASE!D38) -> 0.1331105112 | E38: =FEAS!E38*(1-BASE!E38) -> 0.01089827735 | F38: =FEAS!F38*(1-BASE!F38) -> 0.0179394606 | G38: =FEAS!G38*(1-BASE!G38) -> 0 | H38: =FEAS!H38*(1-BASE!H38) -> 0.020993175 | I38: =FEAS!I38*(1-BASE!I38) -> 0 | J38: =FEAS!J38*(1-BASE!J38) -> 0.2890347068 | K38: =FEAS!K38*(1-BASE!K38) -> 0.2669535002 | L38: =FEAS!L38*(1-BASE!L38) -> 0.003374572998 | M38: =FEAS!M38*(1-BASE!M38) -> 0.02299465404 | N38: =FEAS!N38*(1-BASE!N38) -> 0 | O38: =FEAS!O38*(1-BASE!O38) -> 0 | P38: =FEAS!P38*(1-BASE!P38) -> 0.2597822835 | Q38: =FEAS!Q38*(1-BASE!Q38) -> 0.7177155496 | R38: =FEAS!R38*(1-BASE!R38) -> 0.1361688859 | S38: =FEAS!S38*(1-BASE!S38) -> 0.1937846464 | T38: =FEAS!T38*(1-BASE!T38) -> 0.2331205346
A39: =MLIST!A39 -> HVAC | B39: =MLIST!D39 -> Fans-Retro | C39: =FEAS!C40*(1-BASE!C39) -> 1 | D39: =FEAS!D39*(1-BASE!D39) -> 1 | E39: =FEAS!E39*(1-BASE!E39) -> 1 | F39: =FEAS!F39*(1-BASE!F39) -> 1 | G39: =FEAS!G39*(1-BASE!G39) -> 1 | H39: =FEAS!H39*(1-BASE!H39) -> 1 | I39: =FEAS!I39*(1-BASE!I39) -> 1 | J39: =FEAS!J39*(1-BASE!J39) -> 1 | K39: =FEAS!K39*(1-BASE!K39) -> 1 | L39: =FEAS!L39*(1-BASE!L39) -> 1 | M39: =FEAS!M39*(1-BASE!M39) -> 1 | N39: =FEAS!N39*(1-BASE!N39) -> 1 | O39: =FEAS!O39*(1-BASE!O39) -> 1 | P39: =FEAS!P39*(1-BASE!P39) -> 1 | Q39: =FEAS!Q39*(1-BASE!Q39) -> 1 | R39: =FEAS!R39*(1-BASE!R39) -> 1 | S39: =FEAS!S39*(1-BASE!S39) -> 1 | T39: =FEAS!T39*(1-BASE!T39) -> 1
A40: =MLIST!A40 -> HVAC | B40: =MLIST!D40 -> Fans-NR | C40: =FEAS!C41*(1-BASE!C40) -> 1 | D40: =FEAS!D40*(1-BASE!D40) -> 1 | E40: =FEAS!E40*(1-BASE!E40) -> 1 | F40: =FEAS!F40*(1-BASE!F40) -> 1 | G40: =FEAS!G40*(1-BASE!G40) -> 1 | H40: =FEAS!H40*(1-BASE!H40) -> 1 | I40: =FEAS!I40*(1-BASE!I40) -> 1 | J40: =FEAS!J40*(1-BASE!J40) -> 1 | K40: =FEAS!K40*(1-BASE!K40) -> 1 | L40: =FEAS!L40*(1-BASE!L40) -> 1 | M40: =FEAS!M40*(1-BASE!M40) -> 1 | N40: =FEAS!N40*(1-BASE!N40) -> 1 | O40: =FEAS!O40*(1-BASE!O40) -> 1 | P40: =FEAS!P40*(1-BASE!P40) -> 1 | Q40: =FEAS!Q40*(1-BASE!Q40) -> 1 | R40: =FEAS!R40*(1-BASE!R40) -> 1 | S40: =FEAS!S40*(1-BASE!S40) -> 1 | T40: =FEAS!T40*(1-BASE!T40) -> 1
A41: =MLIST!A41 -> HVAC | B41: =MLIST!D41 -> Fans-New | C41: =FEAS!C41*(1-BASE!C41) -> 1 | D41: =FEAS!D41*(1-BASE!D41) -> 1 | E41: =FEAS!E41*(1-BASE!E41) -> 1 | F41: =FEAS!F41*(1-BASE!F41) -> 1 | G41: =FEAS!G41*(1-BASE!G41) -> 1 | H41: =FEAS!H41*(1-BASE!H41) -> 1 | I41: =FEAS!I41*(1-BASE!I41) -> 1 | J41: =FEAS!J41*(1-BASE!J41) -> 1 | K41: =FEAS!K41*(1-BASE!K41) -> 1 | L41: =FEAS!L41*(1-BASE!L41) -> 1 | M41: =FEAS!M41*(1-BASE!M41) -> 1 | N41: =FEAS!N41*(1-BASE!N41) -> 1 | O41: =FEAS!O41*(1-BASE!O41) -> 1 | P41: =FEAS!P41*(1-BASE!P41) -> 1 | Q41: =FEAS!Q41*(1-BASE!Q41) -> 1 | R41: =FEAS!R41*(1-BASE!R41) -> 1 | S41: =FEAS!S41*(1-BASE!S41) -> 1 | T41: =FEAS!T41*(1-BASE!T41) -> 1
A42: =MLIST!A42 -> HVAC | B42: =MLIST!D42 -> VHE-DOAS-NR | C42: =FEAS!C42*(1-BASE!C42) -> 0 | D42: =FEAS!D42*(1-BASE!D42) -> 0.3111679956 | E42: =FEAS!E42*(1-BASE!E42) -> 0.1007895659 | F42: =FEAS!F42*(1-BASE!F42) -> 0 | G42: =FEAS!G42*(1-BASE!G42) -> 0 | H42: =FEAS!H42*(1-BASE!H42) -> 0.224049562 | I42: =FEAS!I42*(1-BASE!I42) -> 0.02092920743 | J42: =FEAS!J42*(1-BASE!J42) -> 0.1188048962 | K42: =FEAS!K42*(1-BASE!K42) -> 0.0325 | L42: =FEAS!L42*(1-BASE!L42) -> 0 | M42: =FEAS!M42*(1-BASE!M42) -> 0 | N42: =FEAS!N42*(1-BASE!N42) -> 0 | O42: =FEAS!O42*(1-BASE!O42) -> 0 | P42: =FEAS!P42*(1-BASE!P42) -> 0.08114423974 | Q42: =FEAS!Q42*(1-BASE!Q42) -> 0 | R42: =FEAS!R42*(1-BASE!R42) -> 0.1122823565 | S42: =FEAS!S42*(1-BASE!S42) -> 0.08017663802 | T42: =FEAS!T42*(1-BASE!T42) -> 0.08036248059
A43: =MLIST!A43 -> HVAC | B43: =MLIST!D43 -> VHE-DOAS-New | C43: =FEAS!C43*(1-BASE!C43) -> 0 | D43: =FEAS!D43*(1-BASE!D43) -> 0.3111679956 | E43: =FEAS!E43*(1-BASE!E43) -> 0.1007895659 | F43: =FEAS!F43*(1-BASE!F43) -> 0 | G43: =FEAS!G43*(1-BASE!G43) -> 0 | H43: =FEAS!H43*(1-BASE!H43) -> 0.224049562 | I43: =FEAS!I43*(1-BASE!I43) -> 0.02092920743 | J43: =FEAS!J43*(1-BASE!J43) -> 0.1188048962 | K43: =FEAS!K43*(1-BASE!K43) -> 0.0325 | L43: =FEAS!L43*(1-BASE!L43) -> 0 | M43: =FEAS!M43*(1-BASE!M43) -> 0 | N43: =FEAS!N43*(1-BASE!N43) -> 0 | O43: =FEAS!O43*(1-BASE!O43) -> 0 | P43: =FEAS!P43*(1-BASE!P43) -> 0.08114423974 | Q43: =FEAS!Q43*(1-BASE!Q43) -> 0 | R43: =FEAS!R43*(1-BASE!R43) -> 0.1122823565 | S43: =FEAS!S43*(1-BASE!S43) -> 0.08017663802 | T43: =FEAS!T43*(1-BASE!T43) -> 0.08036248059
A44: =MLIST!A44 -> HVAC | B44: =MLIST!D44 -> -NR | C44: =FEAS!C44*(1-BASE!C44) -> 0 | D44: =FEAS!D44*(1-BASE!D44) -> 0 | E44: =FEAS!E44*(1-BASE!E44) -> 0 | F44: =FEAS!F44*(1-BASE!F44) -> 0 | G44: =FEAS!G44*(1-BASE!G44) -> 0 | H44: =FEAS!H44*(1-BASE!H44) -> 0 | I44: =FEAS!I44*(1-BASE!I44) -> 0 | J44: =FEAS!J44*(1-BASE!J44) -> 0 | K44: =FEAS!K44*(1-BASE!K44) -> 0 | L44: =FEAS!L44*(1-BASE!L44) -> 0 | M44: =FEAS!M44*(1-BASE!M44) -> 0 | N44: =FEAS!N44*(1-BASE!N44) -> 0 | O44: =FEAS!O44*(1-BASE!O44) -> 0 | P44: =FEAS!P44*(1-BASE!P44) -> 0 | Q44: =FEAS!Q44*(1-BASE!Q44) -> 0 | R44: =FEAS!R44*(1-BASE!R44) -> 0 | S44: =FEAS!S44*(1-BASE!S44) -> 0 | T44: =FEAS!T44*(1-BASE!T44) -> 0
A45: =MLIST!A45 -> HVAC | B45: =MLIST!D45 -> Commercial EM-New | C45: =FEAS!C45*(1-BASE!C45) -> 0.4767861043 | D45: =FEAS!D45*(1-BASE!D45) -> 0.08440818978 | E45: =FEAS!E45*(1-BASE!E45) -> 0 | F45: =FEAS!F45*(1-BASE!F45) -> 0.03625451791 | G45: =FEAS!G45*(1-BASE!G45) -> 0.2442164001 | H45: =FEAS!H45*(1-BASE!H45) -> 0.02322845862 | I45: =FEAS!I45*(1-BASE!I45) -> 0 | J45: =FEAS!J45*(1-BASE!J45) -> 0.2779904979 | K45: =FEAS!K45*(1-BASE!K45) -> 0.7464651417 | L45: =FEAS!L45*(1-BASE!L45) -> 0 | M45: =FEAS!M45*(1-BASE!M45) -> 0.06439861203 | N45: =FEAS!N45*(1-BASE!N45) -> 0 | O45: =FEAS!O45*(1-BASE!O45) -> 0.02068201858 | P45: =FEAS!P45*(1-BASE!P45) -> 0.0714202459 | Q45: =FEAS!Q45*(1-BASE!Q45) -> 0.8192610892 | R45: =FEAS!R45*(1-BASE!R45) -> 0.06964932362 | S45: =FEAS!S45*(1-BASE!S45) -> 0 | T45: =FEAS!T45*(1-BASE!T45) -> 0
A46: =MLIST!A46 -> HVAC | B46: =MLIST!D46 -> Commercial EM-Retro | C46: =FEAS!C46*(1-BASE!C46) -> 0.4767861043 | D46: =FEAS!D46*(1-BASE!D46) -> 0.08440818978 | E46: =FEAS!E46*(1-BASE!E46) -> 0 | F46: =FEAS!F46*(1-BASE!F46) -> 0.03625451791 | G46: =FEAS!G46*(1-BASE!G46) -> 0.2442164001 | H46: =FEAS!H46*(1-BASE!H46) -> 0.02322845862 | I46: =FEAS!I46*(1-BASE!I46) -> 0 | J46: =FEAS!J46*(1-BASE!J46) -> 0.2779904979 | K46: =FEAS!K46*(1-BASE!K46) -> 0.7464651417 | L46: =FEAS!L46*(1-BASE!L46) -> 0 | M46: =FEAS!M46*(1-BASE!M46) -> 0.06439861203 | N46: =FEAS!N46*(1-BASE!N46) -> 0 | O46: =FEAS!O46*(1-BASE!O46) -> 0.02068201858 | P46: =FEAS!P46*(1-BASE!P46) -> 0.0714202459 | Q46: =FEAS!Q46*(1-BASE!Q46) -> 0.8192610892 | R46: =FEAS!R46*(1-BASE!R46) -> 0.06964932362 | S46: =FEAS!S46*(1-BASE!S46) -> 0 | T46: =FEAS!T46*(1-BASE!T46) -> 0
A47: =MLIST!A47 -> HVAC | B47: =MLIST!D47 -> Economizer-Retro | C47: =FEAS!C47*(1-BASE!C47) -> 0.3777374266 | D47: =FEAS!D47*(1-BASE!D47) -> 0.2382664644 | E47: =FEAS!E47*(1-BASE!E47) -> 0.0555188847 | F47: =FEAS!F47*(1-BASE!F47) -> 0.353093811 | G47: =FEAS!G47*(1-BASE!G47) -> 0.1990756827 | H47: =FEAS!H47*(1-BASE!H47) -> 0.1551367019 | I47: =FEAS!I47*(1-BASE!I47) -> 0.01019791093 | J47: =FEAS!J47*(1-BASE!J47) -> 0.2808832417 | K47: =FEAS!K47*(1-BASE!K47) -> 0.2808832417 | L47: =FEAS!L47*(1-BASE!L47) -> 0.111249038 | M47: =FEAS!M47*(1-BASE!M47) -> 0.3136098441 | N47: =FEAS!N47*(1-BASE!N47) -> 0.1526448066 | O47: =FEAS!O47*(1-BASE!O47) -> 0.2465221303 | P47: =FEAS!P47*(1-BASE!P47) -> 0.07817573511 | Q47: =FEAS!Q47*(1-BASE!Q47) -> 0.3412413361 | R47: =FEAS!R47*(1-BASE!R47) -> 0.05904845474 | S47: =FEAS!S47*(1-BASE!S47) -> 0.2989492635 | T47: =FEAS!T47*(1-BASE!T47) -> 0.3149107007
A48: =MLIST!A48 -> HVAC | B48: =MLIST!D48 -> Demand Control Ventilation-New | C48: =FEAS!C48*(1-BASE!C48) -> 0 | D48: =FEAS!D48*(1-BASE!D48) -> 0 | E48: =FEAS!E48*(1-BASE!E48) -> 0 | F48: =FEAS!F48*(1-BASE!F48) -> 0 | G48: =FEAS!G48*(1-BASE!G48) -> 0 | H48: =FEAS!H48*(1-BASE!H48) -> 0 | I48: =FEAS!I48*(1-BASE!I48) -> 0 | J48: =FEAS!J48*(1-BASE!J48) -> 0 | K48: =FEAS!K48*(1-BASE!K48) -> 0 | L48: =FEAS!L48*(1-BASE!L48) -> 0 | M48: =FEAS!M48*(1-BASE!M48) -> 0 | N48: =FEAS!N48*(1-BASE!N48) -> 0 | O48: =FEAS!O48*(1-BASE!O48) -> 0 | P48: =FEAS!P48*(1-BASE!P48) -> 0 | Q48: =FEAS!Q48*(1-BASE!Q48) -> 0 | R48: =FEAS!R48*(1-BASE!R48) -> 0 | S48: =FEAS!S48*(1-BASE!S48) -> 0 | T48: =FEAS!T48*(1-BASE!T48) -> 0
A49: =MLIST!A49 -> HVAC | B49: =MLIST!D49 -> Demand Control Ventilation-NR | C49: =FEAS!C49*(1-BASE!C49) -> 0 | D49: =FEAS!D49*(1-BASE!D49) -> 0 | E49: =FEAS!E49*(1-BASE!E49) -> 0 | F49: =FEAS!F49*(1-BASE!F49) -> 0 | G49: =FEAS!G49*(1-BASE!G49) -> 0 | H49: =FEAS!H49*(1-BASE!H49) -> 0 | I49: =FEAS!I49*(1-BASE!I49) -> 0 | J49: =FEAS!J49*(1-BASE!J49) -> 0 | K49: =FEAS!K49*(1-BASE!K49) -> 0 | L49: =FEAS!L49*(1-BASE!L49) -> 0 | M49: =FEAS!M49*(1-BASE!M49) -> 0 | N49: =FEAS!N49*(1-BASE!N49) -> 0 | O49: =FEAS!O49*(1-BASE!O49) -> 0 | P49: =FEAS!P49*(1-BASE!P49) -> 0 | Q49: =FEAS!Q49*(1-BASE!Q49) -> 0 | R49: =FEAS!R49*(1-BASE!R49) -> 0 | S49: =FEAS!S49*(1-BASE!S49) -> 0 | T49: =FEAS!T49*(1-BASE!T49) -> 0
A50: =MLIST!A50 -> HVAC | B50: =MLIST!D50 -> Demand Control Ventilation-Retro | C50: =FEAS!C50*(1-BASE!C50) -> 0.1032697274 | D50: =FEAS!D50*(1-BASE!D50) -> 0.6220738254 | E50: =FEAS!E50*(1-BASE!E50) -> 0.7176412249 | F50: =FEAS!F50*(1-BASE!F50) -> 0.6493664317 | G50: =FEAS!G50*(1-BASE!G50) -> 0.3754791341 | H50: =FEAS!H50*(1-BASE!H50) -> 0.5186157836 | I50: =FEAS!I50*(1-BASE!I50) -> 0.4224831216 | J50: =FEAS!J50*(1-BASE!J50) -> 0.3230785716 | K50: =FEAS!K50*(1-BASE!K50) -> 0.1921304443 | L50: =FEAS!L50*(1-BASE!L50) -> 0.2114494607 | M50: =FEAS!M50*(1-BASE!M50) -> 0.4339055804 | N50: =FEAS!N50*(1-BASE!N50) -> 0.5749986904 | O50: =FEAS!O50*(1-BASE!O50) -> 0.4501828538 | P50: =FEAS!P50*(1-BASE!P50) -> 0.2420831348 | Q50: =FEAS!Q50*(1-BASE!Q50) -> 0.1266314534 | R50: =FEAS!R50*(1-BASE!R50) -> 0.3226231782 | S50: =FEAS!S50*(1-BASE!S50) -> 0.4707454367 | T50: =FEAS!T50*(1-BASE!T50) -> 0.3467169524
A51: =MLIST!A51 -> HVAC | B51: =MLIST!D51 -> DCV-Lab Hood-Retro | C51: =FEAS!C51*(1-BASE!C51) -> 0 | D51: =FEAS!D51*(1-BASE!D51) -> 0 | E51: =FEAS!E51*(1-BASE!E51) -> 0 | F51: =FEAS!F51*(1-BASE!F51) -> 0 | G51: =FEAS!G51*(1-BASE!G51) -> 0 | H51: =FEAS!H51*(1-BASE!H51) -> 0 | I51: =FEAS!I51*(1-BASE!I51) -> 0 | J51: =FEAS!J51*(1-BASE!J51) -> 0 | K51: =FEAS!K51*(1-BASE!K51) -> 0 | L51: =FEAS!L51*(1-BASE!L51) -> 0 | M51: =FEAS!M51*(1-BASE!M51) -> 0 | N51: =FEAS!N51*(1-BASE!N51) -> 0 | O51: =FEAS!O51*(1-BASE!O51) -> 0 | P51: =FEAS!P51*(1-BASE!P51) -> 0 | Q51: =FEAS!Q51*(1-BASE!Q51) -> 0 | R51: =FEAS!R51*(1-BASE!R51) -> 0 | S51: =FEAS!S51*(1-BASE!S51) -> 0 | T51: =FEAS!T51*(1-BASE!T51) -> 0 | U51: =FEAS!U51*(1-BASE!U51) -> 0.7
A52: =MLIST!A52 -> HVAC | B52: =MLIST!D52 -> DCV-Kitchen-Retro | C52: =FEAS!C52*(1-BASE!C52) -> 0 | D52: =FEAS!D52*(1-BASE!D52) -> 0 | E52: =FEAS!E52*(1-BASE!E52) -> 0 | F52: =FEAS!F52*(1-BASE!F52) -> 0 | G52: =FEAS!G52*(1-BASE!G52) -> 0 | H52: =FEAS!H52*(1-BASE!H52) -> 0 | I52: =FEAS!I52*(1-BASE!I52) -> 0 | J52: =FEAS!J52*(1-BASE!J52) -> 0 | K52: =FEAS!K52*(1-BASE!K52) -> 0 | L52: =FEAS!L52*(1-BASE!L52) -> 0 | M52: =FEAS!M52*(1-BASE!M52) -> 0 | N52: =FEAS!N52*(1-BASE!N52) -> 0 | O52: =FEAS!O52*(1-BASE!O52) -> 0 | P52: =FEAS!P52*(1-BASE!P52) -> 0 | Q52: =FEAS!Q52*(1-BASE!Q52) -> 0 | R52: =FEAS!R52*(1-BASE!R52) -> 0 | S52: =FEAS!S52*(1-BASE!S52) -> 0 | T52: =FEAS!T52*(1-BASE!T52) -> 0 | U52: =FEAS!U52*(1-BASE!U52) -> 0.4
A53: =MLIST!A53 -> HVAC | B53: =MLIST!D53 -> DCV-Parking Garage-Retro | C53: =FEAS!C53*(1-BASE!C53) -> 0 | D53: =FEAS!D53*(1-BASE!D53) -> 0 | E53: =FEAS!E53*(1-BASE!E53) -> 0 | F53: =FEAS!F53*(1-BASE!F53) -> 0 | G53: =FEAS!G53*(1-BASE!G53) -> 0 | H53: =FEAS!H53*(1-BASE!H53) -> 0 | I53: =FEAS!I53*(1-BASE!I53) -> 0 | J53: =FEAS!J53*(1-BASE!J53) -> 0 | K53: =FEAS!K53*(1-BASE!K53) -> 0 | L53: =FEAS!L53*(1-BASE!L53) -> 0 | M53: =FEAS!M53*(1-BASE!M53) -> 0 | N53: =FEAS!N53*(1-BASE!N53) -> 0 | O53: =FEAS!O53*(1-BASE!O53) -> 0 | P53: =FEAS!P53*(1-BASE!P53) -> 0 | Q53: =FEAS!Q53*(1-BASE!Q53) -> 0 | R53: =FEAS!R53*(1-BASE!R53) -> 0 | S53: =FEAS!S53*(1-BASE!S53) -> 0 | T53: =FEAS!T53*(1-BASE!T53) -> 0 | U53: =FEAS!U53*(1-BASE!U53) -> 0.65
A54: =MLIST!A54 -> HVAC | B54: =MLIST!D54 -> Weatherization - School-Retro | C54: =FEAS!C54*(1-BASE!C54) -> 0.01 | D54: =FEAS!D54*(1-BASE!D54) -> 0.01 | E54: =FEAS!E54*(1-BASE!E54) -> 0.01 | F54: =FEAS!F54*(1-BASE!F54) -> 0.01 | G54: =FEAS!G54*(1-BASE!G54) -> 0.01 | H54: =FEAS!H54*(1-BASE!H54) -> 0.01 | I54: =FEAS!I54*(1-BASE!I54) -> 0.01 | J54: =FEAS!J54*(1-BASE!J54) -> 0.01 | K54: =FEAS!K54*(1-BASE!K54) -> 0.01 | L54: =FEAS!L54*(1-BASE!L54) -> 0.01 | M54: =FEAS!M54*(1-BASE!M54) -> 0.01 | N54: =FEAS!N54*(1-BASE!N54) -> 0.01 | O54: =FEAS!O54*(1-BASE!O54) -> 0.01 | P54: =FEAS!P54*(1-BASE!P54) -> 0.01 | Q54: =FEAS!Q54*(1-BASE!Q54) -> 0.01 | R54: =FEAS!R54*(1-BASE!R54) -> 0.01 | S54: =FEAS!S54*(1-BASE!S54) -> 0.01 | T54: =FEAS!T54*(1-BASE!T54) -> 0.01
A55: =MLIST!A55 -> HVAC | B55: =MLIST!D55 -> Energy Recovery Ventilator-NR | C55: =FEAS!C55*(1-BASE!C55) -> 0.01 | D55: =FEAS!D55*(1-BASE!D55) -> 0.01 | E55: =FEAS!E55*(1-BASE!E55) -> 0.01 | F55: =FEAS!F55*(1-BASE!F55) -> 0.01 | G55: =FEAS!G55*(1-BASE!G55) -> 0.01 | H55: =FEAS!H55*(1-BASE!H55) -> 0.01 | I55: =FEAS!I55*(1-BASE!I55) -> 0.01 | J55: =FEAS!J55*(1-BASE!J55) -> 0.01 | K55: =FEAS!K55*(1-BASE!K55) -> 0.01 | L55: =FEAS!L55*(1-BASE!L55) -> 0.01 | M55: =FEAS!M55*(1-BASE!M55) -> 0.01 | N55: =FEAS!N55*(1-BASE!N55) -> 0.01 | O55: =FEAS!O55*(1-BASE!O55) -> 0.01 | P55: =FEAS!P55*(1-BASE!P55) -> 0.01 | Q55: =FEAS!Q55*(1-BASE!Q55) -> 0.01 | R55: =FEAS!R55*(1-BASE!R55) -> 0.01 | S55: =FEAS!S55*(1-BASE!S55) -> 0.01 | T55: =FEAS!T55*(1-BASE!T55) -> 0.01 | U55: =FEAS!U55*(1-BASE!U55) -> 0.1
A56: =MLIST!A56 -> HVAC | B56: =MLIST!D56 -> AC Heat Recovery for Water Heating-NR | C56: =FEAS!C56*(1-BASE!C56) -> 0.01 | D56: =FEAS!D56*(1-BASE!D56) -> 0.01 | E56: =FEAS!E56*(1-BASE!E56) -> 0.01 | F56: =FEAS!F56*(1-BASE!F56) -> 0.01 | G56: =FEAS!G56*(1-BASE!G56) -> 0.01 | H56: =FEAS!H56*(1-BASE!H56) -> 0.01 | I56: =FEAS!I56*(1-BASE!I56) -> 0.01 | J56: =FEAS!J56*(1-BASE!J56) -> 0.01 | K56: =FEAS!K56*(1-BASE!K56) -> 0.01 | L56: =FEAS!L56*(1-BASE!L56) -> 0.01 | M56: =FEAS!M56*(1-BASE!M56) -> 0.01 | N56: =FEAS!N56*(1-BASE!N56) -> 0.01 | O56: =FEAS!O56*(1-BASE!O56) -> 0.01 | P56: =FEAS!P56*(1-BASE!P56) -> 0.01 | Q56: =FEAS!Q56*(1-BASE!Q56) -> 0.01 | R56: =FEAS!R56*(1-BASE!R56) -> 0.01 | S56: =FEAS!S56*(1-BASE!S56) -> 0.01 | T56: =FEAS!T56*(1-BASE!T56) -> 0.01
A57: =MLIST!A57 -> HVAC | B57: =MLIST!D57 -> Room Occupancy Sensors in Lodging-Retro | C57: =FEAS!C57*(1-BASE!C57) -> 0.01 | D57: =FEAS!D57*(1-BASE!D57) -> 0.01 | E57: =FEAS!E57*(1-BASE!E57) -> 0.01 | F57: =FEAS!F57*(1-BASE!F57) -> 0.01 | G57: =FEAS!G57*(1-BASE!G57) -> 0.01 | H57: =FEAS!H57*(1-BASE!H57) -> 0.01 | I57: =FEAS!I57*(1-BASE!I57) -> 0.01 | J57: =FEAS!J57*(1-BASE!J57) -> 0.01 | K57: =FEAS!K57*(1-BASE!K57) -> 0.01 | L57: =FEAS!L57*(1-BASE!L57) -> 0.01 | M57: =FEAS!M57*(1-BASE!M57) -> 0.01 | N57: =FEAS!N57*(1-BASE!N57) -> 0.01 | O57: =FEAS!O57*(1-BASE!O57) -> 0.01 | P57: =FEAS!P57*(1-BASE!P57) -> 0.01 | Q57: =FEAS!Q57*(1-BASE!Q57) -> 0.01 | R57: =FEAS!R57*(1-BASE!R57) -> 0.01 | S57: =FEAS!S57*(1-BASE!S57) -> 0.01 | T57: =FEAS!T57*(1-BASE!T57) -> 0.01
A58: =MLIST!A58 -> HVAC | B58: =MLIST!D58 -> Pool Blankets-Retro | C58: =FEAS!C58*(1-BASE!C58) -> 0.01 | D58: =FEAS!D58*(1-BASE!D58) -> 0.01 | E58: =FEAS!E58*(1-BASE!E58) -> 0.01 | F58: =FEAS!F58*(1-BASE!F58) -> 0.01 | G58: =FEAS!G58*(1-BASE!G58) -> 0.01 | H58: =FEAS!H58*(1-BASE!H58) -> 0.01 | I58: =FEAS!I58*(1-BASE!I58) -> 0.01 | J58: =FEAS!J58*(1-BASE!J58) -> 0.01 | K58: =FEAS!K58*(1-BASE!K58) -> 0.01 | L58: =FEAS!L58*(1-BASE!L58) -> 0.01 | M58: =FEAS!M58*(1-BASE!M58) -> 0.01 | N58: =FEAS!N58*(1-BASE!N58) -> 0.01 | O58: =FEAS!O58*(1-BASE!O58) -> 0.01 | P58: =FEAS!P58*(1-BASE!P58) -> 0.01 | Q58: =FEAS!Q58*(1-BASE!Q58) -> 0.01 | R58: =FEAS!R58*(1-BASE!R58) -> 0.01 | S58: =FEAS!S58*(1-BASE!S58) -> 0.01 | T58: =FEAS!T58*(1-BASE!T58) -> 0.01
A59: =MLIST!A59 -> HVAC | B59: =MLIST!D59 -> ConnectedThermostats-New | C59: =FEAS!C59*(1-BASE!C59) -> 0 | D59: =FEAS!D59*(1-BASE!D59) -> 0.1793831706 | E59: =FEAS!E59*(1-BASE!E59) -> 0.4164830052 | F59: =FEAS!F59*(1-BASE!F59) -> 0 | G59: =FEAS!G59*(1-BASE!G59) -> 0 | H59: =FEAS!H59*(1-BASE!H59) -> 0.2084740461 | I59: =FEAS!I59*(1-BASE!I59) -> 0.2440129177 | J59: =FEAS!J59*(1-BASE!J59) -> 0.176932177 | K59: =FEAS!K59*(1-BASE!K59) -> 0 | L59: =FEAS!L59*(1-BASE!L59) -> 0.1330645195 | M59: =FEAS!M59*(1-BASE!M59) -> 0.1344451374 | N59: =FEAS!N59*(1-BASE!N59) -> 0.3385418038 | O59: =FEAS!O59*(1-BASE!O59) -> 0.09528077527 | P59: =FEAS!P59*(1-BASE!P59) -> 0 | Q59: =FEAS!Q59*(1-BASE!Q59) -> 0 | R59: =FEAS!R59*(1-BASE!R59) -> 0.06756016295 | S59: =FEAS!S59*(1-BASE!S59) -> 0.1843937799 | T59: =FEAS!T59*(1-BASE!T59) -> 0.1436723335
A60: =MLIST!A60 -> HVAC | B60: =MLIST!D60 -> ConnectedThermostats-Retro | C60: =FEAS!C60*(1-BASE!C60) -> 0 | D60: =FEAS!D60*(1-BASE!D60) -> 0.1793831706 | E60: =FEAS!E60*(1-BASE!E60) -> 0.4164830052 | F60: =FEAS!F60*(1-BASE!F60) -> 0 | G60: =FEAS!G60*(1-BASE!G60) -> 0 | H60: =FEAS!H60*(1-BASE!H60) -> 0.2084740461 | I60: =FEAS!I60*(1-BASE!I60) -> 0.2440129177 | J60: =FEAS!J60*(1-BASE!J60) -> 0.176932177 | K60: =FEAS!K60*(1-BASE!K60) -> 0 | L60: =FEAS!L60*(1-BASE!L60) -> 0.1330645195 | M60: =FEAS!M60*(1-BASE!M60) -> 0.1344451374 | N60: =FEAS!N60*(1-BASE!N60) -> 0.3385418038 | O60: =FEAS!O60*(1-BASE!O60) -> 0.09528077527 | P60: =FEAS!P60*(1-BASE!P60) -> 0 | Q60: =FEAS!Q60*(1-BASE!Q60) -> 0 | R60: =FEAS!R60*(1-BASE!R60) -> 0.06756016295 | S60: =FEAS!S60*(1-BASE!S60) -> 0.1843937799 | T60: =FEAS!T60*(1-BASE!T60) -> 0.1436723335
A61: =MLIST!A61 -> HVAC | B61: =MLIST!D61 -> CircPumps-NR | C61: =FEAS!C61*(1-BASE!C61) -> 1 | D61: =FEAS!D61*(1-BASE!D61) -> 1 | E61: =FEAS!E61*(1-BASE!E61) -> 1 | F61: =FEAS!F61*(1-BASE!F61) -> 1 | G61: =FEAS!G61*(1-BASE!G61) -> 1 | H61: =FEAS!H61*(1-BASE!H61) -> 1 | I61: =FEAS!I61*(1-BASE!I61) -> 1 | J61: =FEAS!J61*(1-BASE!J61) -> 1 | K61: =FEAS!K61*(1-BASE!K61) -> 1 | L61: =FEAS!L61*(1-BASE!L61) -> 1 | M61: =FEAS!M61*(1-BASE!M61) -> 1 | N61: =FEAS!N61*(1-BASE!N61) -> 1 | O61: =FEAS!O61*(1-BASE!O61) -> 1 | P61: =FEAS!P61*(1-BASE!P61) -> 1 | Q61: =FEAS!Q61*(1-BASE!Q61) -> 1 | R61: =FEAS!R61*(1-BASE!R61) -> 1 | S61: =FEAS!S61*(1-BASE!S61) -> 1 | T61: =FEAS!T61*(1-BASE!T61) -> 1
A62: =MLIST!A62 -> HVAC | B62: =MLIST!D62 -> Circpumps-New | C62: =FEAS!C62*(1-BASE!C62) -> 1 | D62: =FEAS!D62*(1-BASE!D62) -> 1 | E62: =FEAS!E62*(1-BASE!E62) -> 1 | F62: =FEAS!F62*(1-BASE!F62) -> 1 | G62: =FEAS!G62*(1-BASE!G62) -> 1 | H62: =FEAS!H62*(1-BASE!H62) -> 1 | I62: =FEAS!I62*(1-BASE!I62) -> 1 | J62: =FEAS!J62*(1-BASE!J62) -> 1 | K62: =FEAS!K62*(1-BASE!K62) -> 1 | L62: =FEAS!L62*(1-BASE!L62) -> 1 | M62: =FEAS!M62*(1-BASE!M62) -> 1 | N62: =FEAS!N62*(1-BASE!N62) -> 1 | O62: =FEAS!O62*(1-BASE!O62) -> 1 | P62: =FEAS!P62*(1-BASE!P62) -> 1 | Q62: =FEAS!Q62*(1-BASE!Q62) -> 1 | R62: =FEAS!R62*(1-BASE!R62) -> 1 | S62: =FEAS!S62*(1-BASE!S62) -> 1 | T62: =FEAS!T62*(1-BASE!T62) -> 1
A63: =MLIST!A63 -> HVAC | B63: =MLIST!D63 -> VRF-DOAS-New | C63: =FEAS!C63*(1-BASE!C63) -> 0.04802 | D63: =FEAS!D63*(1-BASE!D63) -> 0.76832 | E63: =FEAS!E63*(1-BASE!E63) -> 0.76832 | F63: =FEAS!F63*(1-BASE!F63) -> 0.2401 | G63: =FEAS!G63*(1-BASE!G63) -> 0.2401 | H63: =FEAS!H63*(1-BASE!H63) -> 0.2401 | I63: =FEAS!I63*(1-BASE!I63) -> 0.2401 | J63: =FEAS!J63*(1-BASE!J63) -> 0.76832 | K63: =FEAS!K63*(1-BASE!K63) -> 0.76832 | L63: =FEAS!L63*(1-BASE!L63) -> 0.009604 | M63: =FEAS!M63*(1-BASE!M63) -> 0.04802 | N63: =FEAS!N63*(1-BASE!N63) -> 0.04802 | O63: =FEAS!O63*(1-BASE!O63) -> 0.2401 | P63: =FEAS!P63*(1-BASE!P63) -> 0.67228 | Q63: =FEAS!Q63*(1-BASE!Q63) -> 0.04802 | R63: =FEAS!R63*(1-BASE!R63) -> 0.76832 | S63: =FEAS!S63*(1-BASE!S63) -> 0.2401 | T63: =FEAS!T63*(1-BASE!T63) -> 0.76832
A64: =MLIST!A64 -> HVAC | B64: =MLIST!D64 -> VRF-DOAS-NR | C64: =FEAS!C64*(1-BASE!C64) -> 0.02432374981 | D64: =FEAS!D64*(1-BASE!D64) -> 0.06810649947 | E64: =FEAS!E64*(1-BASE!E64) -> 0.06810649947 | F64: =FEAS!F64*(1-BASE!F64) -> 0.004851 | G64: =FEAS!G64*(1-BASE!G64) -> 0.067914 | H64: =FEAS!H64*(1-BASE!H64) -> 0.067914 | I64: =FEAS!I64*(1-BASE!I64) -> 0.024255 | J64: =FEAS!J64*(1-BASE!J64) -> 0.024255 | K64: =FEAS!K64*(1-BASE!K64) -> 0.024255 | L64: =FEAS!L64*(1-BASE!L64) -> 0.024255 | M64: =FEAS!M64*(1-BASE!M64) -> 0.067914 | N64: =FEAS!N64*(1-BASE!N64) -> 0.067914 | O64: =FEAS!O64*(1-BASE!O64) -> 0.0009702 | P64: =FEAS!P64*(1-BASE!P64) -> 0.004851 | Q64: =FEAS!Q64*(1-BASE!Q64) -> 0.004851 | R64: =FEAS!R64*(1-BASE!R64) -> 0.024255 | S64: =FEAS!S64*(1-BASE!S64) -> 0.067914 | T64: =FEAS!T64*(1-BASE!T64) -> 0.004851
A65: =MLIST!A65 -> HVAC | B65: =MLIST!D65 -> Evaporator Roof Top HVAC-Retro | C65: =FEAS!C65*(1-BASE!C65) -> 0.01 | D65: =FEAS!D65*(1-BASE!D65) -> 0.01 | E65: =FEAS!E65*(1-BASE!E65) -> 0.01 | F65: =FEAS!F65*(1-BASE!F65) -> 0.01 | G65: =FEAS!G65*(1-BASE!G65) -> 0.01 | H65: =FEAS!H65*(1-BASE!H65) -> 0.01 | I65: =FEAS!I65*(1-BASE!I65) -> 0.01 | J65: =FEAS!J65*(1-BASE!J65) -> 0.01 | K65: =FEAS!K65*(1-BASE!K65) -> 0.01 | L65: =FEAS!L65*(1-BASE!L65) -> 0.01 | M65: =FEAS!M65*(1-BASE!M65) -> 0.01 | N65: =FEAS!N65*(1-BASE!N65) -> 0.01 | O65: =FEAS!O65*(1-BASE!O65) -> 0.01 | P65: =FEAS!P65*(1-BASE!P65) -> 0.01 | Q65: =FEAS!Q65*(1-BASE!Q65) -> 0.01 | R65: =FEAS!R65*(1-BASE!R65) -> 0.01 | S65: =FEAS!S65*(1-BASE!S65) -> 0.01 | T65: =FEAS!T65*(1-BASE!T65) -> 0.01
A66: =MLIST!A66 -> HVAC | B66: =MLIST!D66 -> HeatPumps-NR | C66: =FEAS!C66*(1-BASE!C66) -> 0.0365425604 | D66: =FEAS!D66*(1-BASE!D66) -> 0.3951965539 | E66: =FEAS!E66*(1-BASE!E66) -> 0.3799524543 | F66: =FEAS!F66*(1-BASE!F66) -> 0.02170973846 | G66: =FEAS!G66*(1-BASE!G66) -> 0 | H66: =FEAS!H66*(1-BASE!H66) -> 0.1119700008 | I66: =FEAS!I66*(1-BASE!I66) -> 0.08867928921 | J66: =FEAS!J66*(1-BASE!J66) -> 0.03510317305 | K66: =FEAS!K66*(1-BASE!K66) -> 0.1 | L66: =FEAS!L66*(1-BASE!L66) -> 0.005999006346 | M66: =FEAS!M66*(1-BASE!M66) -> 0.2381477798 | N66: =FEAS!N66*(1-BASE!N66) -> 0.2665583838 | O66: =FEAS!O66*(1-BASE!O66) -> 0.1638837336 | P66: =FEAS!P66*(1-BASE!P66) -> 0.06881125232 | Q66: =FEAS!Q66*(1-BASE!Q66) -> 0.1 | R66: =FEAS!R66*(1-BASE!R66) -> 0.08209854133 | S66: =FEAS!S66*(1-BASE!S66) -> 0.09354174246 | T66: =FEAS!T66*(1-BASE!T66) -> 0.05259850406
A67: =MLIST!A67 -> HVAC | B67: =MLIST!D67 -> HeatPumps-New | C67: =FEAS!C67*(1-BASE!C67) -> 0.0365425604 | D67: =FEAS!D67*(1-BASE!D67) -> 0.3951965539 | E67: =FEAS!E67*(1-BASE!E67) -> 0.3799524543 | F67: =FEAS!F67*(1-BASE!F67) -> 0.02170973846 | G67: =FEAS!G67*(1-BASE!G67) -> 0 | H67: =FEAS!H67*(1-BASE!H67) -> 0.1119700008 | I67: =FEAS!I67*(1-BASE!I67) -> 0.08867928921 | J67: =FEAS!J67*(1-BASE!J67) -> 0.03510317305 | K67: =FEAS!K67*(1-BASE!K67) -> 0.1 | L67: =FEAS!L67*(1-BASE!L67) -> 0.005999006346 | M67: =FEAS!M67*(1-BASE!M67) -> 0.2381477798 | N67: =FEAS!N67*(1-BASE!N67) -> 0.2665583838 | O67: =FEAS!O67*(1-BASE!O67) -> 0.1638837336 | P67: =FEAS!P67*(1-BASE!P67) -> 0.06881125232 | Q67: =FEAS!Q67*(1-BASE!Q67) -> 0.1 | R67: =FEAS!R67*(1-BASE!R67) -> 0.08209854133 | S67: =FEAS!S67*(1-BASE!S67) -> 0.09354174246 | T67: =FEAS!T67*(1-BASE!T67) -> 0.05259850406
A68: =MLIST!A68 -> HVAC | B68: =MLIST!D68 -> VCHP-NR | C68: =FEAS!C68*(1-BASE!C68) -> 0.263645656 | D68: =FEAS!D68*(1-BASE!D68) -> 0.2531200663 | E68: =FEAS!E68*(1-BASE!E68) -> 0.3628856463 | F68: =FEAS!F68*(1-BASE!F68) -> 0.04970141534 | G68: =FEAS!G68*(1-BASE!G68) -> 0 | H68: =FEAS!H68*(1-BASE!H68) -> 0.07783148114 | I68: =FEAS!I68*(1-BASE!I68) -> 0.1919923357 | J68: =FEAS!J68*(1-BASE!J68) -> 0.07429862021 | K68: =FEAS!K68*(1-BASE!K68) -> 0.1 | L68: =FEAS!L68*(1-BASE!L68) -> 0.07113276908 | M68: =FEAS!M68*(1-BASE!M68) -> 0.07228468772 | N68: =FEAS!N68*(1-BASE!N68) -> 0.3244911537 | O68: =FEAS!O68*(1-BASE!O68) -> 0.1119872729 | P68: =FEAS!P68*(1-BASE!P68) -> 0.4465064517 | Q68: =FEAS!Q68*(1-BASE!Q68) -> 0.01 | R68: =FEAS!R68*(1-BASE!R68) -> 0.3801493341 | S68: =FEAS!S68*(1-BASE!S68) -> 0.1028479692 | T68: =FEAS!T68*(1-BASE!T68) -> 0.2080763159
A69: =MLIST!A69 -> HVAC | B69: =MLIST!D69 -> VCHP-New | C69: =FEAS!C69*(1-BASE!C69) -> 0.09748207502 | D69: =FEAS!D69*(1-BASE!D69) -> 0.01177337021 | E69: =FEAS!E69*(1-BASE!E69) -> 0.2776686868 | F69: =FEAS!F69*(1-BASE!F69) -> 0.1752085047 | G69: =FEAS!G69*(1-BASE!G69) -> 0.1492531034 | H69: =FEAS!H69*(1-BASE!H69) -> 0.01417560178 | I69: =FEAS!I69*(1-BASE!I69) -> 0.3530003533 | J69: =FEAS!J69*(1-BASE!J69) -> 0.2462298233 | K69: =FEAS!K69*(1-BASE!K69) -> 0.1107585529 | L69: =FEAS!L69*(1-BASE!L69) -> 0.1752085047 | M69: =FEAS!M69*(1-BASE!M69) -> 0.100063552 | N69: =FEAS!N69*(1-BASE!N69) -> 0.003791907327 | O69: =FEAS!O69*(1-BASE!O69) -> 0.06111857639 | P69: =FEAS!P69*(1-BASE!P69) -> 0.120405686 | Q69: =FEAS!Q69*(1-BASE!Q69) -> 0.1549592933 | R69: =FEAS!R69*(1-BASE!R69) -> 0.008634475721 | S69: =FEAS!S69*(1-BASE!S69) -> 0.008634475721 | T69: =FEAS!T69*(1-BASE!T69) -> 0.08132518538
A70: =MLIST!A70 -> HVAC | B70: =MLIST!D70 -> UnitaryAC-NR | C70: =FEAS!C70*(1-BASE!C70) -> 0.2662438592 | D70: =FEAS!D70*(1-BASE!D70) -> 0.4351915661 | E70: =FEAS!E70*(1-BASE!E70) -> 0.3547329345 | F70: =FEAS!F70*(1-BASE!F70) -> 0.7719723816 | G70: =FEAS!G70*(1-BASE!G70) -> 0.6748717918 | H70: =FEAS!H70*(1-BASE!H70) -> 0.494925842 | I70: =FEAS!I70*(1-BASE!I70) -> 0.1867460847 | J70: =FEAS!J70*(1-BASE!J70) -> 0.1965095582 | K70: =FEAS!K70*(1-BASE!K70) -> 0.1965095582 | L70: =FEAS!L70*(1-BASE!L70) -> 0.1246548661 | M70: =FEAS!M70*(1-BASE!M70) -> 0.6087077686 | N70: =FEAS!N70*(1-BASE!N70) -> 0.4691523749 | O70: =FEAS!O70*(1-BASE!O70) -> 0.6844173073 | P70: =FEAS!P70*(1-BASE!P70) -> 0.1420066557 | Q70: =FEAS!Q70*(1-BASE!Q70) -> 0.2575798869 | R70: =FEAS!R70*(1-BASE!R70) -> 0.2575798869 | S70: =FEAS!S70*(1-BASE!S70) -> 0.4170560816 | T70: =FEAS!T70*(1-BASE!T70) -> 0.3512814803
A71: =MLIST!A71 -> HVAC | B71: =MLIST!D71 -> UnitaryAC-New | C71: =FEAS!C71*(1-BASE!C71) -> 0.2662438592 | D71: =FEAS!D71*(1-BASE!D71) -> 0.4351915661 | E71: =FEAS!E71*(1-BASE!E71) -> 0.3547329345 | F71: =FEAS!F71*(1-BASE!F71) -> 0.7719723816 | G71: =FEAS!G71*(1-BASE!G71) -> 0.6748717918 | H71: =FEAS!H71*(1-BASE!H71) -> 0.494925842 | I71: =FEAS!I71*(1-BASE!I71) -> 0.1867460847 | J71: =FEAS!J71*(1-BASE!J71) -> 0.1965095582 | K71: =FEAS!K71*(1-BASE!K71) -> 0.1965095582 | L71: =FEAS!L71*(1-BASE!L71) -> 0.1246548661 | M71: =FEAS!M71*(1-BASE!M71) -> 0.6087077686 | N71: =FEAS!N71*(1-BASE!N71) -> 0.4691523749 | O71: =FEAS!O71*(1-BASE!O71) -> 0.6844173073 | P71: =FEAS!P71*(1-BASE!P71) -> 0.1420066557 | Q71: =FEAS!Q71*(1-BASE!Q71) -> 0.2575798869 | R71: =FEAS!R71*(1-BASE!R71) -> 0.2575798869 | S71: =FEAS!S71*(1-BASE!S71) -> 0.4170560816 | T71: =FEAS!T71*(1-BASE!T71) -> 0.3512814803
A72: =MLIST!A72 -> HVAC | B72: =MLIST!D72 -> Com-PTAC-NR | C72: =FEAS!C72*(1-BASE!C72) -> 0.01933399689 | D72: =FEAS!D72*(1-BASE!D72) -> 0.0538614402 | E72: =FEAS!E72*(1-BASE!E72) -> 0.08601065659 | F72: =FEAS!F72*(1-BASE!F72) -> 0 | G72: =FEAS!G72*(1-BASE!G72) -> 0 | H72: =FEAS!H72*(1-BASE!H72) -> 0 | I72: =FEAS!I72*(1-BASE!I72) -> 0.07329643531 | J72: =FEAS!J72*(1-BASE!J72) -> 0.01826494904 | K72: =FEAS!K72*(1-BASE!K72) -> 0.03614319464 | L72: =FEAS!L72*(1-BASE!L72) -> 0.02673439295 | M72: =FEAS!M72*(1-BASE!M72) -> 0 | N72: =FEAS!N72*(1-BASE!N72) -> 0.009210142821 | O72: =FEAS!O72*(1-BASE!O72) -> 0.01517794381 | P72: =FEAS!P72*(1-BASE!P72) -> 0.4058971316 | Q72: =FEAS!Q72*(1-BASE!Q72) -> 0.2694420505 | R72: =FEAS!R72*(1-BASE!R72) -> 0.2233585642 | S72: =FEAS!S72*(1-BASE!S72) -> 0.02622234876 | T72: =FEAS!T72*(1-BASE!T72) -> 0.06766297485
A73: =MLIST!A73 -> HVAC | B73: =MLIST!D73 -> Com-PTAC-New | C73: =FEAS!C73*(1-BASE!C73) -> 0.01933399689 | D73: =FEAS!D73*(1-BASE!D73) -> 0.0538614402 | E73: =FEAS!E73*(1-BASE!E73) -> 0.08601065659 | F73: =FEAS!F73*(1-BASE!F73) -> 0 | G73: =FEAS!G73*(1-BASE!G73) -> 0 | H73: =FEAS!H73*(1-BASE!H73) -> 0 | I73: =FEAS!I73*(1-BASE!I73) -> 0.07329643531 | J73: =FEAS!J73*(1-BASE!J73) -> 0.01826494904 | K73: =FEAS!K73*(1-BASE!K73) -> 0.03614319464 | L73: =FEAS!L73*(1-BASE!L73) -> 0.02673439295 | M73: =FEAS!M73*(1-BASE!M73) -> 0 | N73: =FEAS!N73*(1-BASE!N73) -> 0.009210142821 | O73: =FEAS!O73*(1-BASE!O73) -> 0.01517794381 | P73: =FEAS!P73*(1-BASE!P73) -> 0.4058971316 | Q73: =FEAS!Q73*(1-BASE!Q73) -> 0.2694420505 | R73: =FEAS!R73*(1-BASE!R73) -> 0.2233585642 | S73: =FEAS!S73*(1-BASE!S73) -> 0.02622234876 | T73: =FEAS!T73*(1-BASE!T73) -> 0.06766297485
A74: =MLIST!A74 -> HVAC | B74: =MLIST!D74 -> COM-PTHP-NR | C74: =FEAS!C74*(1-BASE!C74) -> 0.01933399689 | D74: =FEAS!D74*(1-BASE!D74) -> 0.0538614402 | E74: =FEAS!E74*(1-BASE!E74) -> 0.08601065659 | F74: =FEAS!F74*(1-BASE!F74) -> 0 | G74: =FEAS!G74*(1-BASE!G74) -> 0 | H74: =FEAS!H74*(1-BASE!H74) -> 0 | I74: =FEAS!I74*(1-BASE!I74) -> 0.07329643531 | J74: =FEAS!J74*(1-BASE!J74) -> 0.01826494904 | K74: =FEAS!K74*(1-BASE!K74) -> 0.03614319464 | L74: =FEAS!L74*(1-BASE!L74) -> 0.02673439295 | M74: =FEAS!M74*(1-BASE!M74) -> 0 | N74: =FEAS!N74*(1-BASE!N74) -> 0.009210142821 | O74: =FEAS!O74*(1-BASE!O74) -> 0.01517794381 | P74: =FEAS!P74*(1-BASE!P74) -> 0.4058971316 | Q74: =FEAS!Q74*(1-BASE!Q74) -> 0.2694420505 | R74: =FEAS!R74*(1-BASE!R74) -> 0.2233585642 | S74: =FEAS!S74*(1-BASE!S74) -> 0.02622234876 | T74: =FEAS!T74*(1-BASE!T74) -> 0.06766297485
A75: =MLIST!A75 -> HVAC | B75: =MLIST!D75 -> COM-PTHP-New | C75: =FEAS!C75*(1-BASE!C75) -> 0.01933399689 | D75: =FEAS!D75*(1-BASE!D75) -> 0.0538614402 | E75: =FEAS!E75*(1-BASE!E75) -> 0.08601065659 | F75: =FEAS!F75*(1-BASE!F75) -> 0 | G75: =FEAS!G75*(1-BASE!G75) -> 0 | H75: =FEAS!H75*(1-BASE!H75) -> 0 | I75: =FEAS!I75*(1-BASE!I75) -> 0.07329643531 | J75: =FEAS!J75*(1-BASE!J75) -> 0.01826494904 | K75: =FEAS!K75*(1-BASE!K75) -> 0.03614319464 | L75: =FEAS!L75*(1-BASE!L75) -> 0.02673439295 | M75: =FEAS!M75*(1-BASE!M75) -> 0 | N75: =FEAS!N75*(1-BASE!N75) -> 0.009210142821 | O75: =FEAS!O75*(1-BASE!O75) -> 0.01517794381 | P75: =FEAS!P75*(1-BASE!P75) -> 0.4058971316 | Q75: =FEAS!Q75*(1-BASE!Q75) -> 0.2694420505 | R75: =FEAS!R75*(1-BASE!R75) -> 0.2233585642 | S75: =FEAS!S75*(1-BASE!S75) -> 0.02622234876 | T75: =FEAS!T75*(1-BASE!T75) -> 0.06766297485
A76: =MLIST!A76 -> HVAC | B76: =MLIST!D76 -> COM-PTHP-Retro | C76: =FEAS!C76*(1-BASE!C76) -> 0.03866799378 | D76: =FEAS!D76*(1-BASE!D76) -> 0.1077228804 | E76: =FEAS!E76*(1-BASE!E76) -> 0.1720213132 | F76: =FEAS!F76*(1-BASE!F76) -> 0 | G76: =FEAS!G76*(1-BASE!G76) -> 0 | H76: =FEAS!H76*(1-BASE!H76) -> 0 | I76: =FEAS!I76*(1-BASE!I76) -> 0.1465928706 | J76: =FEAS!J76*(1-BASE!J76) -> 0.03652989807 | K76: =FEAS!K76*(1-BASE!K76) -> 0.07228638928 | L76: =FEAS!L76*(1-BASE!L76) -> 0.05346878591 | M76: =FEAS!M76*(1-BASE!M76) -> 0 | N76: =FEAS!N76*(1-BASE!N76) -> 0.01842028564 | O76: =FEAS!O76*(1-BASE!O76) -> 0.03035588763 | P76: =FEAS!P76*(1-BASE!P76) -> 0.8117942631 | Q76: =FEAS!Q76*(1-BASE!Q76) -> 0.5388841011 | R76: =FEAS!R76*(1-BASE!R76) -> 0.4467171285 | S76: =FEAS!S76*(1-BASE!S76) -> 0.05244469752 | T76: =FEAS!T76*(1-BASE!T76) -> 0.1353259497
A77: =MLIST!A77 -> HVAC | B77: =MLIST!D77 -> Com-DOAS-New | C77: =FEAS!C77*(1-BASE!C77) -> 0.263645656 | D77: =FEAS!D77*(1-BASE!D77) -> 0.2531200663 | E77: =FEAS!E77*(1-BASE!E77) -> 0.3628856463 | F77: =FEAS!F77*(1-BASE!F77) -> 0.04970141534 | G77: =FEAS!G77*(1-BASE!G77) -> 0 | H77: =FEAS!H77*(1-BASE!H77) -> 0.07783148114 | I77: =FEAS!I77*(1-BASE!I77) -> 0.1919923357 | J77: =FEAS!J77*(1-BASE!J77) -> 0.07429862021 | K77: =FEAS!K77*(1-BASE!K77) -> 0.1 | L77: =FEAS!L77*(1-BASE!L77) -> 0.07113276908 | M77: =FEAS!M77*(1-BASE!M77) -> 0.07228468772 | N77: =FEAS!N77*(1-BASE!N77) -> 0.3244911537 | O77: =FEAS!O77*(1-BASE!O77) -> 0.1119872729 | P77: =FEAS!P77*(1-BASE!P77) -> 0.4465064517 | Q77: =FEAS!Q77*(1-BASE!Q77) -> 0.01 | R77: =FEAS!R77*(1-BASE!R77) -> 0.3801493341 | S77: =FEAS!S77*(1-BASE!S77) -> 0.1028479692 | T77: =FEAS!T77*(1-BASE!T77) -> 0.2080763159
A78: =MLIST!A78 -> HVAC | B78: =MLIST!D78 -> Com-DOAS-Retro | C78: =FEAS!C78*(1-BASE!C78) -> 0.263645656 | D78: =FEAS!D78*(1-BASE!D78) -> 0.2531200663 | E78: =FEAS!E78*(1-BASE!E78) -> 0.3628856463 | F78: =FEAS!F78*(1-BASE!F78) -> 0.04970141534 | G78: =FEAS!G78*(1-BASE!G78) -> 0 | H78: =FEAS!H78*(1-BASE!H78) -> 0.07783148114 | I78: =FEAS!I78*(1-BASE!I78) -> 0.1919923357 | J78: =FEAS!J78*(1-BASE!J78) -> 0.07429862021 | K78: =FEAS!K78*(1-BASE!K78) -> 0.1 | L78: =FEAS!L78*(1-BASE!L78) -> 0.07113276908 | M78: =FEAS!M78*(1-BASE!M78) -> 0.07228468772 | N78: =FEAS!N78*(1-BASE!N78) -> 0.3244911537 | O78: =FEAS!O78*(1-BASE!O78) -> 0.1119872729 | P78: =FEAS!P78*(1-BASE!P78) -> 0.4465064517 | Q78: =FEAS!Q78*(1-BASE!Q78) -> 0.01 | R78: =FEAS!R78*(1-BASE!R78) -> 0.3801493341 | S78: =FEAS!S78*(1-BASE!S78) -> 0.1028479692 | T78: =FEAS!T78*(1-BASE!T78) -> 0.2080763159
A79: =MLIST!A79 -> HVAC | B79: =MLIST!D79 -> Secondary Glazing Systems-Retro | C79: =FEAS!C79*(1-BASE!C79) -> 0 | D79: =FEAS!D79*(1-BASE!D79) -> 0 | E79: =FEAS!E79*(1-BASE!E79) -> 0 | F79: =FEAS!F79*(1-BASE!F79) -> 0 | G79: =FEAS!G79*(1-BASE!G79) -> 0 | H79: =FEAS!H79*(1-BASE!H79) -> 0 | I79: =FEAS!I79*(1-BASE!I79) -> 0 | J79: =FEAS!J79*(1-BASE!J79) -> 0 | K79: =FEAS!K79*(1-BASE!K79) -> 0 | L79: =FEAS!L79*(1-BASE!L79) -> 0 | M79: =FEAS!M79*(1-BASE!M79) -> 0 | N79: =FEAS!N79*(1-BASE!N79) -> 0 | O79: =FEAS!O79*(1-BASE!O79) -> 0 | P79: =FEAS!P79*(1-BASE!P79) -> 0 | Q79: =FEAS!Q79*(1-BASE!Q79) -> 0 | R79: =FEAS!R79*(1-BASE!R79) -> 0 | S79: =FEAS!S79*(1-BASE!S79) -> 0 | T79: =FEAS!T79*(1-BASE!T79) -> 0
A80: =MLIST!A80 -> Lighting | B80: =MLIST!D80 -> LPD Package-New | C80: =FEAS!C80*(1-BASE!C80) -> 0 | D80: =FEAS!D80*(1-BASE!D80) -> 0 | E80: =FEAS!E80*(1-BASE!E80) -> 0 | F80: =FEAS!F80*(1-BASE!F80) -> 0 | G80: =FEAS!G80*(1-BASE!G80) -> 0 | H80: =FEAS!H80*(1-BASE!H80) -> 0 | I80: =FEAS!I80*(1-BASE!I80) -> 0 | J80: =FEAS!J80*(1-BASE!J80) -> 0 | K80: =FEAS!K80*(1-BASE!K80) -> 0 | L80: =FEAS!L80*(1-BASE!L80) -> 0 | M80: =FEAS!M80*(1-BASE!M80) -> 0 | N80: =FEAS!N80*(1-BASE!N80) -> 0 | O80: =FEAS!O80*(1-BASE!O80) -> 0 | P80: =FEAS!P80*(1-BASE!P80) -> 0 | Q80: =FEAS!Q80*(1-BASE!Q80) -> 0 | R80: =FEAS!R80*(1-BASE!R80) -> 0 | S80: =FEAS!S80*(1-BASE!S80) -> 0 | T80: =FEAS!T80*(1-BASE!T80) -> 0
A81: =MLIST!A81 -> Lighting | B81: =MLIST!D81 -> LPD Package-NR | C81: =FEAS!C81*(1-BASE!C81) -> 0 | D81: =FEAS!D81*(1-BASE!D81) -> 0 | E81: =FEAS!E81*(1-BASE!E81) -> 0 | F81: =FEAS!F81*(1-BASE!F81) -> 0 | G81: =FEAS!G81*(1-BASE!G81) -> 0 | H81: =FEAS!H81*(1-BASE!H81) -> 0 | I81: =FEAS!I81*(1-BASE!I81) -> 0 | J81: =FEAS!J81*(1-BASE!J81) -> 0 | K81: =FEAS!K81*(1-BASE!K81) -> 0 | L81: =FEAS!L81*(1-BASE!L81) -> 0 | M81: =FEAS!M81*(1-BASE!M81) -> 0 | N81: =FEAS!N81*(1-BASE!N81) -> 0 | O81: =FEAS!O81*(1-BASE!O81) -> 0 | P81: =FEAS!P81*(1-BASE!P81) -> 0 | Q81: =FEAS!Q81*(1-BASE!Q81) -> 0 | R81: =FEAS!R81*(1-BASE!R81) -> 0 | S81: =FEAS!S81*(1-BASE!S81) -> 0 | T81: =FEAS!T81*(1-BASE!T81) -> 0
A82: =MLIST!A82 -> Lighting | B82: =MLIST!D82 -> LPD Package-Retro | C82: =FEAS!C82*(1-BASE!C82) -> 0 | D82: =FEAS!D82*(1-BASE!D82) -> 0 | E82: =FEAS!E82*(1-BASE!E82) -> 0 | F82: =FEAS!F82*(1-BASE!F82) -> 0 | G82: =FEAS!G82*(1-BASE!G82) -> 0 | H82: =FEAS!H82*(1-BASE!H82) -> 0 | I82: =FEAS!I82*(1-BASE!I82) -> 0 | J82: =FEAS!J82*(1-BASE!J82) -> 0 | K82: =FEAS!K82*(1-BASE!K82) -> 0 | L82: =FEAS!L82*(1-BASE!L82) -> 0 | M82: =FEAS!M82*(1-BASE!M82) -> 0 | N82: =FEAS!N82*(1-BASE!N82) -> 0 | O82: =FEAS!O82*(1-BASE!O82) -> 0 | P82: =FEAS!P82*(1-BASE!P82) -> 0 | Q82: =FEAS!Q82*(1-BASE!Q82) -> 0 | R82: =FEAS!R82*(1-BASE!R82) -> 0 | S82: =FEAS!S82*(1-BASE!S82) -> 0 | T82: =FEAS!T82*(1-BASE!T82) -> 0
A83: =MLIST!A83 -> Lighting | B83: =MLIST!D83 -> Top Daylighting-New | C83: =FEAS!C83*(1-BASE!C83) -> 0 | D83: =FEAS!D83*(1-BASE!D83) -> 0 | E83: =FEAS!E83*(1-BASE!E83) -> 0 | F83: =FEAS!F83*(1-BASE!F83) -> 0 | G83: =FEAS!G83*(1-BASE!G83) -> 0 | H83: =FEAS!H83*(1-BASE!H83) -> 0 | I83: =FEAS!I83*(1-BASE!I83) -> 0 | J83: =FEAS!J83*(1-BASE!J83) -> 0 | K83: =FEAS!K83*(1-BASE!K83) -> 0 | L83: =FEAS!L83*(1-BASE!L83) -> 0 | M83: =FEAS!M83*(1-BASE!M83) -> 0 | N83: =FEAS!N83*(1-BASE!N83) -> 0 | O83: =FEAS!O83*(1-BASE!O83) -> 0 | P83: =FEAS!P83*(1-BASE!P83) -> 0 | Q83: =FEAS!Q83*(1-BASE!Q83) -> 0 | R83: =FEAS!R83*(1-BASE!R83) -> 0 | S83: =FEAS!S83*(1-BASE!S83) -> 0 | T83: =FEAS!T83*(1-BASE!T83) -> 0
A84: =MLIST!A84 -> Lighting | B84: =MLIST!D84 -> Perimeter Daylighting Controls Advanced-New | C84: =FEAS!C84*(1-BASE!C84) -> 0 | D84: =FEAS!D84*(1-BASE!D84) -> 0 | E84: =FEAS!E84*(1-BASE!E84) -> 0 | F84: =FEAS!F84*(1-BASE!F84) -> 0 | G84: =FEAS!G84*(1-BASE!G84) -> 0 | H84: =FEAS!H84*(1-BASE!H84) -> 0 | I84: =FEAS!I84*(1-BASE!I84) -> 0 | J84: =FEAS!J84*(1-BASE!J84) -> 0 | K84: =FEAS!K84*(1-BASE!K84) -> 0 | L84: =FEAS!L84*(1-BASE!L84) -> 0 | M84: =FEAS!M84*(1-BASE!M84) -> 0 | N84: =FEAS!N84*(1-BASE!N84) -> 0 | O84: =FEAS!O84*(1-BASE!O84) -> 0 | P84: =FEAS!P84*(1-BASE!P84) -> 0 | Q84: =FEAS!Q84*(1-BASE!Q84) -> 0 | R84: =FEAS!R84*(1-BASE!R84) -> 0 | S84: =FEAS!S84*(1-BASE!S84) -> 0 | T84: =FEAS!T84*(1-BASE!T84) -> 0
A85: =MLIST!A85 -> Lighting | B85: =MLIST!D85 -> Perimeter Daylighting Controls Advanced-NR | C85: =FEAS!C85*(1-BASE!C85) -> 0 | D85: =FEAS!D85*(1-BASE!D85) -> 0 | E85: =FEAS!E85*(1-BASE!E85) -> 0 | F85: =FEAS!F85*(1-BASE!F85) -> 0 | G85: =FEAS!G85*(1-BASE!G85) -> 0 | H85: =FEAS!H85*(1-BASE!H85) -> 0 | I85: =FEAS!I85*(1-BASE!I85) -> 0 | J85: =FEAS!J85*(1-BASE!J85) -> 0 | K85: =FEAS!K85*(1-BASE!K85) -> 0 | L85: =FEAS!L85*(1-BASE!L85) -> 0 | M85: =FEAS!M85*(1-BASE!M85) -> 0 | N85: =FEAS!N85*(1-BASE!N85) -> 0 | O85: =FEAS!O85*(1-BASE!O85) -> 0 | P85: =FEAS!P85*(1-BASE!P85) -> 0 | Q85: =FEAS!Q85*(1-BASE!Q85) -> 0 | R85: =FEAS!R85*(1-BASE!R85) -> 0 | S85: =FEAS!S85*(1-BASE!S85) -> 0 | T85: =FEAS!T85*(1-BASE!T85) -> 0
A86: =MLIST!A86 -> Lighting | B86: =MLIST!D86 -> Lighting Controls Interior-New | C86: =FEAS!C86*(1-BASE!C86) -> 0 | D86: =FEAS!D86*(1-BASE!D86) -> 0 | E86: =FEAS!E86*(1-BASE!E86) -> 0 | F86: =FEAS!F86*(1-BASE!F86) -> 0 | G86: =FEAS!G86*(1-BASE!G86) -> 0 | H86: =FEAS!H86*(1-BASE!H86) -> 0 | I86: =FEAS!I86*(1-BASE!I86) -> 0 | J86: =FEAS!J86*(1-BASE!J86) -> 0 | K86: =FEAS!K86*(1-BASE!K86) -> 0 | L86: =FEAS!L86*(1-BASE!L86) -> 0 | M86: =FEAS!M86*(1-BASE!M86) -> 0 | N86: =FEAS!N86*(1-BASE!N86) -> 0 | O86: =FEAS!O86*(1-BASE!O86) -> 0 | P86: =FEAS!P86*(1-BASE!P86) -> 0 | Q86: =FEAS!Q86*(1-BASE!Q86) -> 0 | R86: =FEAS!R86*(1-BASE!R86) -> 0 | S86: =FEAS!S86*(1-BASE!S86) -> 0 | T86: =FEAS!T86*(1-BASE!T86) -> 0
A87: =MLIST!A87 -> Lighting | B87: =MLIST!D87 -> Lighting Controls Interior-NR | C87: =FEAS!C87*(1-BASE!C87) -> 0 | D87: =FEAS!D87*(1-BASE!D87) -> 0 | E87: =FEAS!E87*(1-BASE!E87) -> 0 | F87: =FEAS!F87*(1-BASE!F87) -> 0 | G87: =FEAS!G87*(1-BASE!G87) -> 0 | H87: =FEAS!H87*(1-BASE!H87) -> 0 | I87: =FEAS!I87*(1-BASE!I87) -> 0 | J87: =FEAS!J87*(1-BASE!J87) -> 0 | K87: =FEAS!K87*(1-BASE!K87) -> 0 | L87: =FEAS!L87*(1-BASE!L87) -> 0 | M87: =FEAS!M87*(1-BASE!M87) -> 0 | N87: =FEAS!N87*(1-BASE!N87) -> 0 | O87: =FEAS!O87*(1-BASE!O87) -> 0 | P87: =FEAS!P87*(1-BASE!P87) -> 0 | Q87: =FEAS!Q87*(1-BASE!Q87) -> 0 | R87: =FEAS!R87*(1-BASE!R87) -> 0 | S87: =FEAS!S87*(1-BASE!S87) -> 0 | T87: =FEAS!T87*(1-BASE!T87) -> 0
A88: =MLIST!A88 -> Lighting | B88: =MLIST!D88 -> Exterior Building Lighting-New | C88: =FEAS!C88*(1-BASE!C88) -> 0 | D88: =FEAS!D88*(1-BASE!D88) -> 0 | E88: =FEAS!E88*(1-BASE!E88) -> 0 | F88: =FEAS!F88*(1-BASE!F88) -> 0 | G88: =FEAS!G88*(1-BASE!G88) -> 0 | H88: =FEAS!H88*(1-BASE!H88) -> 0 | I88: =FEAS!I88*(1-BASE!I88) -> 0 | J88: =FEAS!J88*(1-BASE!J88) -> 0 | K88: =FEAS!K88*(1-BASE!K88) -> 0 | L88: =FEAS!L88*(1-BASE!L88) -> 0 | M88: =FEAS!M88*(1-BASE!M88) -> 0 | N88: =FEAS!N88*(1-BASE!N88) -> 0 | O88: =FEAS!O88*(1-BASE!O88) -> 0 | P88: =FEAS!P88*(1-BASE!P88) -> 0 | Q88: =FEAS!Q88*(1-BASE!Q88) -> 0 | R88: =FEAS!R88*(1-BASE!R88) -> 0 | S88: =FEAS!S88*(1-BASE!S88) -> 0 | T88: =FEAS!T88*(1-BASE!T88) -> 0
A89: =MLIST!A89 -> Lighting | B89: =MLIST!D89 -> Exterior Building Lighting-NR | C89: =FEAS!C89*(1-BASE!C89) -> 0 | D89: =FEAS!D89*(1-BASE!D89) -> 0 | E89: =FEAS!E89*(1-BASE!E89) -> 0 | F89: =FEAS!F89*(1-BASE!F89) -> 0 | G89: =FEAS!G89*(1-BASE!G89) -> 0 | H89: =FEAS!H89*(1-BASE!H89) -> 0 | I89: =FEAS!I89*(1-BASE!I89) -> 0 | J89: =FEAS!J89*(1-BASE!J89) -> 0 | K89: =FEAS!K89*(1-BASE!K89) -> 0 | L89: =FEAS!L89*(1-BASE!L89) -> 0 | M89: =FEAS!M89*(1-BASE!M89) -> 0 | N89: =FEAS!N89*(1-BASE!N89) -> 0 | O89: =FEAS!O89*(1-BASE!O89) -> 0 | P89: =FEAS!P89*(1-BASE!P89) -> 0 | Q89: =FEAS!Q89*(1-BASE!Q89) -> 0 | R89: =FEAS!R89*(1-BASE!R89) -> 0 | S89: =FEAS!S89*(1-BASE!S89) -> 0 | T89: =FEAS!T89*(1-BASE!T89) -> 0
A90: =MLIST!A90 -> Lighting | B90: =MLIST!D90 -> Street and Roadway Lighting-New | C90: =FEAS!C90*(1-BASE!C90) -> 0 | D90: =FEAS!D90*(1-BASE!D90) -> 0 | E90: =FEAS!E90*(1-BASE!E90) -> 0 | F90: =FEAS!F90*(1-BASE!F90) -> 0 | G90: =FEAS!G90*(1-BASE!G90) -> 0 | H90: =FEAS!H90*(1-BASE!H90) -> 0 | I90: =FEAS!I90*(1-BASE!I90) -> 0 | J90: =FEAS!J90*(1-BASE!J90) -> 0 | K90: =FEAS!K90*(1-BASE!K90) -> 0 | L90: =FEAS!L90*(1-BASE!L90) -> 0 | M90: =FEAS!M90*(1-BASE!M90) -> 0 | N90: =FEAS!N90*(1-BASE!N90) -> 0 | O90: =FEAS!O90*(1-BASE!O90) -> 0 | P90: =FEAS!P90*(1-BASE!P90) -> 0 | Q90: =FEAS!Q90*(1-BASE!Q90) -> 0 | R90: =FEAS!R90*(1-BASE!R90) -> 0 | S90: =FEAS!S90*(1-BASE!S90) -> 0 | T90: =FEAS!T90*(1-BASE!T90) -> 0 | U90: =1-BASE!U90 -> 0.6
A91: =MLIST!A91 -> Lighting | B91: =MLIST!D91 -> Street and Roadway Lighting-Retro | C91: =FEAS!C91*(1-BASE!C91) -> 0 | D91: =FEAS!D91*(1-BASE!D91) -> 0 | E91: =FEAS!E91*(1-BASE!E91) -> 0 | F91: =FEAS!F91*(1-BASE!F91) -> 0 | G91: =FEAS!G91*(1-BASE!G91) -> 0 | H91: =FEAS!H91*(1-BASE!H91) -> 0 | I91: =FEAS!I91*(1-BASE!I91) -> 0 | J91: =FEAS!J91*(1-BASE!J91) -> 0 | K91: =FEAS!K91*(1-BASE!K91) -> 0 | L91: =FEAS!L91*(1-BASE!L91) -> 0 | M91: =FEAS!M91*(1-BASE!M91) -> 0 | N91: =FEAS!N91*(1-BASE!N91) -> 0 | O91: =FEAS!O91*(1-BASE!O91) -> 0 | P91: =FEAS!P91*(1-BASE!P91) -> 0 | Q91: =FEAS!Q91*(1-BASE!Q91) -> 0 | R91: =FEAS!R91*(1-BASE!R91) -> 0 | S91: =FEAS!S91*(1-BASE!S91) -> 0 | T91: =FEAS!T91*(1-BASE!T91) -> 0 | U91: 0.5
A92: =MLIST!A92 -> Lighting | B92: =MLIST!D92 -> Parking Garage Lighting-New | C92: =FEAS!C92*(1-BASE!C92) -> 0 | D92: =FEAS!D92*(1-BASE!D92) -> 0 | E92: =FEAS!E92*(1-BASE!E92) -> 0 | F92: =FEAS!F92*(1-BASE!F92) -> 0 | G92: =FEAS!G92*(1-BASE!G92) -> 0 | H92: =FEAS!H92*(1-BASE!H92) -> 0 | I92: =FEAS!I92*(1-BASE!I92) -> 0 | J92: =FEAS!J92*(1-BASE!J92) -> 0 | K92: =FEAS!K92*(1-BASE!K92) -> 0 | L92: =FEAS!L92*(1-BASE!L92) -> 0 | M92: =FEAS!M92*(1-BASE!M92) -> 0 | N92: =FEAS!N92*(1-BASE!N92) -> 0 | O92: =FEAS!O92*(1-BASE!O92) -> 0 | P92: =FEAS!P92*(1-BASE!P92) -> 0 | Q92: =FEAS!Q92*(1-BASE!Q92) -> 0 | R92: =FEAS!R92*(1-BASE!R92) -> 0 | S92: =FEAS!S92*(1-BASE!S92) -> 0 | T92: =FEAS!T92*(1-BASE!T92) -> 0
A93: =MLIST!A93 -> Lighting | B93: =MLIST!D93 -> Parking Garage Lighting-Retro | C93: =FEAS!C93*(1-BASE!C93) -> 0 | D93: =FEAS!D93*(1-BASE!D93) -> 0 | E93: =FEAS!E93*(1-BASE!E93) -> 0 | F93: =FEAS!F93*(1-BASE!F93) -> 0 | G93: =FEAS!G93*(1-BASE!G93) -> 0 | H93: =FEAS!H93*(1-BASE!H93) -> 0 | I93: =FEAS!I93*(1-BASE!I93) -> 0 | J93: =FEAS!J93*(1-BASE!J93) -> 0 | K93: =FEAS!K93*(1-BASE!K93) -> 0 | L93: =FEAS!L93*(1-BASE!L93) -> 0 | M93: =FEAS!M93*(1-BASE!M93) -> 0 | N93: =FEAS!N93*(1-BASE!N93) -> 0 | O93: =FEAS!O93*(1-BASE!O93) -> 0 | P93: =FEAS!P93*(1-BASE!P93) -> 0 | Q93: =FEAS!Q93*(1-BASE!Q93) -> 0 | R93: =FEAS!R93*(1-BASE!R93) -> 0 | S93: =FEAS!S93*(1-BASE!S93) -> 0 | T93: =FEAS!T93*(1-BASE!T93) -> 0
A94: =MLIST!A94 -> Lighting | B94: =MLIST!D94 -> Bi-Level Stairwell Lighting-NR | C94: =FEAS!C94*(1-BASE!C94) -> 0.01 | D94: =FEAS!D94*(1-BASE!D94) -> 0.01 | E94: =FEAS!E94*(1-BASE!E94) -> 0.01 | F94: =FEAS!F94*(1-BASE!F94) -> 0.01 | G94: =FEAS!G94*(1-BASE!G94) -> 0.01 | H94: =FEAS!H94*(1-BASE!H94) -> 0.01 | I94: =FEAS!I94*(1-BASE!I94) -> 0.01 | J94: =FEAS!J94*(1-BASE!J94) -> 0.01 | K94: =FEAS!K94*(1-BASE!K94) -> 0.01 | L94: =FEAS!L94*(1-BASE!L94) -> 0.01 | M94: =FEAS!M94*(1-BASE!M94) -> 0.01 | N94: =FEAS!N94*(1-BASE!N94) -> 0.01 | O94: =FEAS!O94*(1-BASE!O94) -> 0.01 | P94: =FEAS!P94*(1-BASE!P94) -> 0.01 | Q94: =FEAS!Q94*(1-BASE!Q94) -> 0.01 | R94: =FEAS!R94*(1-BASE!R94) -> 0.01 | S94: =FEAS!S94*(1-BASE!S94) -> 0.01 | T94: =FEAS!T94*(1-BASE!T94) -> 0.01
A95: =MLIST!A95 -> Lighting | B95: =MLIST!D95 -> Low Power LF Lamps-NR | C95: =FEAS!C95*(1-BASE!C95) -> 1 | D95: =FEAS!D95*(1-BASE!D95) -> 1 | E95: =FEAS!E95*(1-BASE!E95) -> 1 | F95: =FEAS!F95*(1-BASE!F95) -> 1 | G95: =FEAS!G95*(1-BASE!G95) -> 1 | H95: =FEAS!H95*(1-BASE!H95) -> 1 | I95: =FEAS!I95*(1-BASE!I95) -> 1 | J95: =FEAS!J95*(1-BASE!J95) -> 1 | K95: =FEAS!K95*(1-BASE!K95) -> 1 | L95: =FEAS!L95*(1-BASE!L95) -> 1 | M95: =FEAS!M95*(1-BASE!M95) -> 1 | N95: =FEAS!N95*(1-BASE!N95) -> 1 | O95: =FEAS!O95*(1-BASE!O95) -> 1 | P95: =FEAS!P95*(1-BASE!P95) -> 1 | Q95: =FEAS!Q95*(1-BASE!Q95) -> 1 | R95: =FEAS!R95*(1-BASE!R95) -> 1 | S95: =FEAS!S95*(1-BASE!S95) -> 1 | T95: =FEAS!T95*(1-BASE!T95) -> 1
A96: =MLIST!A96 -> Lighting | B96: =MLIST!D96 -> LEC Exit Sign-New
A97: =MLIST!A97 -> Lighting | B97: =MLIST!D97 -> LEC Exit Sign-NR
A98: =MLIST!A98 -> Refrigeration | B98: =MLIST!D98 -> Commercial Ice Maker-NR | C98: =FEAS!C98*(1-BASE!C98) -> 1 | D98: =FEAS!D98*(1-BASE!D98) -> 1 | E98: =FEAS!E98*(1-BASE!E98) -> 1 | F98: =FEAS!F98*(1-BASE!F98) -> 1 | G98: =FEAS!G98*(1-BASE!G98) -> 1 | H98: =FEAS!H98*(1-BASE!H98) -> 1 | I98: =FEAS!I98*(1-BASE!I98) -> 1 | J98: =FEAS!J98*(1-BASE!J98) -> 1 | K98: =FEAS!K98*(1-BASE!K98) -> 1 | L98: =FEAS!L98*(1-BASE!L98) -> 1 | M98: =FEAS!M98*(1-BASE!M98) -> 1 | N98: =FEAS!N98*(1-BASE!N98) -> 1 | O98: =FEAS!O98*(1-BASE!O98) -> 1 | P98: =FEAS!P98*(1-BASE!P98) -> 1 | Q98: =FEAS!Q98*(1-BASE!Q98) -> 1 | R98: =FEAS!R98*(1-BASE!R98) -> 1 | S98: =FEAS!S98*(1-BASE!S98) -> 1 | T98: =FEAS!T98*(1-BASE!T98) -> 1
A99: =MLIST!A99 -> Refrigeration | B99: =MLIST!D99 -> Commercial Beverage Vending Machine-NR | C99: =FEAS!C99*(1-BASE!C99) -> 1 | D99: =FEAS!D99*(1-BASE!D99) -> 1 | E99: =FEAS!E99*(1-BASE!E99) -> 1 | F99: =FEAS!F99*(1-BASE!F99) -> 1 | G99: =FEAS!G99*(1-BASE!G99) -> 1 | H99: =FEAS!H99*(1-BASE!H99) -> 1 | I99: =FEAS!I99*(1-BASE!I99) -> 1 | J99: =FEAS!J99*(1-BASE!J99) -> 1 | K99: =FEAS!K99*(1-BASE!K99) -> 1 | L99: =FEAS!L99*(1-BASE!L99) -> 1 | M99: =FEAS!M99*(1-BASE!M99) -> 1 | N99: =FEAS!N99*(1-BASE!N99) -> 1 | O99: =FEAS!O99*(1-BASE!O99) -> 1 | P99: =FEAS!P99*(1-BASE!P99) -> 1 | Q99: =FEAS!Q99*(1-BASE!Q99) -> 1 | R99: =FEAS!R99*(1-BASE!R99) -> 1 | S99: =FEAS!S99*(1-BASE!S99) -> 1 | T99: =FEAS!T99*(1-BASE!T99) -> 1
A100: =MLIST!A100 -> Motors/Drives | B100: =MLIST!D100 -> Clean Water PUmps-Retro | C100: =FEAS!C100*(1-BASE!C100) -> 1 | D100: =FEAS!D100*(1-BASE!D100) -> 1 | E100: =FEAS!E100*(1-BASE!E100) -> 1 | F100: =FEAS!F100*(1-BASE!F100) -> 1 | G100: =FEAS!G100*(1-BASE!G100) -> 1 | H100: =FEAS!H100*(1-BASE!H100) -> 1 | I100: =FEAS!I100*(1-BASE!I100) -> 1 | J100: =FEAS!J100*(1-BASE!J100) -> 1 | K100: =FEAS!K100*(1-BASE!K100) -> 1 | L100: =FEAS!L100*(1-BASE!L100) -> 1 | M100: =FEAS!M100*(1-BASE!M100) -> 1 | N100: =FEAS!N100*(1-BASE!N100) -> 1 | O100: =FEAS!O100*(1-BASE!O100) -> 1 | P100: =FEAS!P100*(1-BASE!P100) -> 1 | Q100: =FEAS!Q100*(1-BASE!Q100) -> 1 | R100: =FEAS!R100*(1-BASE!R100) -> 1 | S100: =FEAS!S100*(1-BASE!S100) -> 1 | T100: =FEAS!T100*(1-BASE!T100) -> 1
A101: =MLIST!A101 -> Electronics | B101: =MLIST!D101 -> Servers & Power Supplies-NR | C101: =FEAS!C101*(1-BASE!C101) -> 0.01 | D101: =FEAS!D101*(1-BASE!D101) -> 0.01 | E101: =FEAS!E101*(1-BASE!E101) -> 0.01 | F101: =FEAS!F101*(1-BASE!F101) -> 0.01 | G101: =FEAS!G101*(1-BASE!G101) -> 0.01 | H101: =FEAS!H101*(1-BASE!H101) -> 0.01 | I101: =FEAS!I101*(1-BASE!I101) -> 0.01 | J101: =FEAS!J101*(1-BASE!J101) -> 0.01 | K101: =FEAS!K101*(1-BASE!K101) -> 0.01 | L101: =FEAS!L101*(1-BASE!L101) -> 0.01 | M101: =FEAS!M101*(1-BASE!M101) -> 0.01 | N101: =FEAS!N101*(1-BASE!N101) -> 0.01 | O101: =FEAS!O101*(1-BASE!O101) -> 0.01 | P101: =FEAS!P101*(1-BASE!P101) -> 0.01 | Q101: =FEAS!Q101*(1-BASE!Q101) -> 0.01 | R101: =FEAS!R101*(1-BASE!R101) -> 0.01 | S101: =FEAS!S101*(1-BASE!S101) -> 0.01 | T101: =FEAS!T101*(1-BASE!T101) -> 0.01
A102: =MLIST!A102 -> Process Loads | B102: =MLIST!D102 -> Elevators-Retro | C102: =FEAS!C102*(1-BASE!C102) -> 0.01 | D102: =FEAS!D102*(1-BASE!D102) -> 0.01 | E102: =FEAS!E102*(1-BASE!E102) -> 0.01 | F102: =FEAS!F102*(1-BASE!F102) -> 0.01 | G102: =FEAS!G102*(1-BASE!G102) -> 0.01 | H102: =FEAS!H102*(1-BASE!H102) -> 0.01 | I102: =FEAS!I102*(1-BASE!I102) -> 0.01 | J102: =FEAS!J102*(1-BASE!J102) -> 0.01 | K102: =FEAS!K102*(1-BASE!K102) -> 0.01 | L102: =FEAS!L102*(1-BASE!L102) -> 0.01 | M102: =FEAS!M102*(1-BASE!M102) -> 0.01 | N102: =FEAS!N102*(1-BASE!N102) -> 0.01 | O102: =FEAS!O102*(1-BASE!O102) -> 0.01 | P102: =FEAS!P102*(1-BASE!P102) -> 0.01 | Q102: =FEAS!Q102*(1-BASE!Q102) -> 0.01 | R102: =FEAS!R102*(1-BASE!R102) -> 0.01 | S102: =FEAS!S102*(1-BASE!S102) -> 0.01 | T102: =FEAS!T102*(1-BASE!T102) -> 0.01
A103: =MLIST!A103 -> Motors/Drives | B103: =MLIST!D103 -> Clean Water Pumps-NR | C103: =FEAS!C103*(1-BASE!C103) -> 1 | D103: =FEAS!D103*(1-BASE!D103) -> 1 | E103: =FEAS!E103*(1-BASE!E103) -> 1 | F103: =FEAS!F103*(1-BASE!F103) -> 1 | G103: =FEAS!G103*(1-BASE!G103) -> 1 | H103: =FEAS!H103*(1-BASE!H103) -> 1 | I103: =FEAS!I103*(1-BASE!I103) -> 1 | J103: =FEAS!J103*(1-BASE!J103) -> 1 | K103: =FEAS!K103*(1-BASE!K103) -> 1 | L103: =FEAS!L103*(1-BASE!L103) -> 1 | M103: =FEAS!M103*(1-BASE!M103) -> 1 | N103: =FEAS!N103*(1-BASE!N103) -> 1 | O103: =FEAS!O103*(1-BASE!O103) -> 1 | P103: =FEAS!P103*(1-BASE!P103) -> 1 | Q103: =FEAS!Q103*(1-BASE!Q103) -> 1 | R103: =FEAS!R103*(1-BASE!R103) -> 1 | S103: =FEAS!S103*(1-BASE!S103) -> 1 | T103: =FEAS!T103*(1-BASE!T103) -> 1
A104: =MLIST!A104 -> Motors/Drives | B104: =MLIST!D104 -> Clean Water Pumps-New | C104: =FEAS!C104*(1-BASE!C104) -> 1 | D104: =FEAS!D104*(1-BASE!D104) -> 1 | E104: =FEAS!E104*(1-BASE!E104) -> 1 | F104: =FEAS!F104*(1-BASE!F104) -> 1 | G104: =FEAS!G104*(1-BASE!G104) -> 1 | H104: =FEAS!H104*(1-BASE!H104) -> 1 | I104: =FEAS!I104*(1-BASE!I104) -> 1 | J104: =FEAS!J104*(1-BASE!J104) -> 1 | K104: =FEAS!K104*(1-BASE!K104) -> 1 | L104: =FEAS!L104*(1-BASE!L104) -> 1 | M104: =FEAS!M104*(1-BASE!M104) -> 1 | N104: =FEAS!N104*(1-BASE!N104) -> 1 | O104: =FEAS!O104*(1-BASE!O104) -> 1 | P104: =FEAS!P104*(1-BASE!P104) -> 1 | Q104: =FEAS!Q104*(1-BASE!Q104) -> 1 | R104: =FEAS!R104*(1-BASE!R104) -> 1 | S104: =FEAS!S104*(1-BASE!S104) -> 1 | T104: =FEAS!T104*(1-BASE!T104) -> 1
A105: =MLIST!A105 -> Process Loads | B105: =MLIST!D105 -> EBHeaterControl-Retro | C105: =FEAS!C105*(1-BASE!C105) -> 0 | D105: =FEAS!D105*(1-BASE!D105) -> 0 | E105: =FEAS!E105*(1-BASE!E105) -> 0 | F105: =FEAS!F105*(1-BASE!F105) -> 0 | G105: =FEAS!G105*(1-BASE!G105) -> 0 | H105: =FEAS!H105*(1-BASE!H105) -> 0 | I105: =FEAS!I105*(1-BASE!I105) -> 0 | J105: =FEAS!J105*(1-BASE!J105) -> 0 | K105: =FEAS!K105*(1-BASE!K105) -> 0 | L105: =FEAS!L105*(1-BASE!L105) -> 0 | M105: =FEAS!M105*(1-BASE!M105) -> 0 | N105: =FEAS!N105*(1-BASE!N105) -> 0 | O105: =FEAS!O105*(1-BASE!O105) -> 0 | P105: =FEAS!P105*(1-BASE!P105) -> 0 | Q105: =FEAS!Q105*(1-BASE!Q105) -> 0 | R105: =FEAS!R105*(1-BASE!R105) -> 0 | S105: =FEAS!S105*(1-BASE!S105) -> 0 | T105: =FEAS!T105*(1-BASE!T105) -> 0
A106: =MLIST!A106 -> Refrigeration | B106: =MLIST!D106 -> GroceryRefrigeration-NR | C106: =FEAS!C106*(1-BASE!C106) -> 0.01 | D106: =FEAS!D106*(1-BASE!D106) -> 0.01 | E106: =FEAS!E106*(1-BASE!E106) -> 0.01 | F106: =FEAS!F106*(1-BASE!F106) -> 0.01 | G106: =FEAS!G106*(1-BASE!G106) -> 0.01 | H106: =FEAS!H106*(1-BASE!H106) -> 0.01 | I106: =FEAS!I106*(1-BASE!I106) -> 0.01 | J106: =FEAS!J106*(1-BASE!J106) -> 0.01 | K106: =FEAS!K106*(1-BASE!K106) -> 0.01 | L106: =FEAS!L106*(1-BASE!L106) -> 0.01 | M106: =FEAS!M106*(1-BASE!M106) -> 0.01 | N106: =FEAS!N106*(1-BASE!N106) -> 0.01 | O106: =FEAS!O106*(1-BASE!O106) -> 0.01 | P106: =FEAS!P106*(1-BASE!P106) -> 0.01 | Q106: =FEAS!Q106*(1-BASE!Q106) -> 0.01 | R106: =FEAS!R106*(1-BASE!R106) -> 0.01 | S106: =FEAS!S106*(1-BASE!S106) -> 0.01 | T106: =FEAS!T106*(1-BASE!T106) -> 0.01
A107: =MLIST!A107 -> Refrigeration | B107: =MLIST!D107 -> GroceryRefrigeration-Retro | C107: =FEAS!C107*(1-BASE!C107) -> 1 | D107: =FEAS!D107*(1-BASE!D107) -> 1 | E107: =FEAS!E107*(1-BASE!E107) -> 1 | F107: =FEAS!F107*(1-BASE!F107) -> 1 | G107: =FEAS!G107*(1-BASE!G107) -> 1 | H107: =FEAS!H107*(1-BASE!H107) -> 1 | I107: =FEAS!I107*(1-BASE!I107) -> 1 | J107: =FEAS!J107*(1-BASE!J107) -> 1 | K107: =FEAS!K107*(1-BASE!K107) -> 1 | L107: =FEAS!L107*(1-BASE!L107) -> 1 | M107: =FEAS!M107*(1-BASE!M107) -> 1 | N107: =FEAS!N107*(1-BASE!N107) -> 1 | O107: =FEAS!O107*(1-BASE!O107) -> 1 | P107: =FEAS!P107*(1-BASE!P107) -> 1 | Q107: =FEAS!Q107*(1-BASE!Q107) -> 1 | R107: =FEAS!R107*(1-BASE!R107) -> 1 | S107: =FEAS!S107*(1-BASE!S107) -> 1 | T107: =FEAS!T107*(1-BASE!T107) -> 1 | U107: =FEAS!U107*(1-BASE!U107) -> 1
A108: =MLIST!A108 -> Refrigeration | B108: =MLIST!D108 -> GroceryRefrigeration-New | C108: =FEAS!C108*(1-BASE!C108) -> 1 | D108: =FEAS!D108*(1-BASE!D108) -> 1 | E108: =FEAS!E108*(1-BASE!E108) -> 1 | F108: =FEAS!F108*(1-BASE!F108) -> 1 | G108: =FEAS!G108*(1-BASE!G108) -> 1 | H108: =FEAS!H108*(1-BASE!H108) -> 1 | I108: =FEAS!I108*(1-BASE!I108) -> 1 | J108: =FEAS!J108*(1-BASE!J108) -> 1 | K108: =FEAS!K108*(1-BASE!K108) -> 1 | L108: =FEAS!L108*(1-BASE!L108) -> 1 | M108: =FEAS!M108*(1-BASE!M108) -> 1 | N108: =FEAS!N108*(1-BASE!N108) -> 1 | O108: =FEAS!O108*(1-BASE!O108) -> 1 | P108: =FEAS!P108*(1-BASE!P108) -> 1 | Q108: =FEAS!Q108*(1-BASE!Q108) -> 1 | R108: =FEAS!R108*(1-BASE!R108) -> 1 | S108: =FEAS!S108*(1-BASE!S108) -> 1 | T108: =FEAS!T108*(1-BASE!T108) -> 1
A109: =MLIST!A109 -> Refrigeration | B109: =MLIST!D109 -> Packaged Refrigeration Equipment-New | C109: =FEAS!C109*(1-BASE!C109) -> 0 | D109: =FEAS!D109*(1-BASE!D109) -> 0 | E109: =FEAS!E109*(1-BASE!E109) -> 0 | F109: =FEAS!F109*(1-BASE!F109) -> 0 | G109: =FEAS!G109*(1-BASE!G109) -> 0 | H109: =FEAS!H109*(1-BASE!H109) -> 0 | I109: =FEAS!I109*(1-BASE!I109) -> 0 | J109: =FEAS!J109*(1-BASE!J109) -> 0 | K109: =FEAS!K109*(1-BASE!K109) -> 0 | L109: =FEAS!L109*(1-BASE!L109) -> 0 | M109: =FEAS!M109*(1-BASE!M109) -> 0 | N109: =FEAS!N109*(1-BASE!N109) -> 0 | O109: =FEAS!O109*(1-BASE!O109) -> 0 | P109: =FEAS!P109*(1-BASE!P109) -> 0 | Q109: =FEAS!Q109*(1-BASE!Q109) -> 0 | R109: =FEAS!R109*(1-BASE!R109) -> 0 | S109: =FEAS!S109*(1-BASE!S109) -> 0 | T109: =FEAS!T109*(1-BASE!T109) -> 0 | U109: =FEAS!U109*(1-BASE!U109) -> 0
A110: =MLIST!A110 -> Refrigeration | B110: =MLIST!D110 -> Refrig-Freezer-NR | C110: =FEAS!C110*(1-BASE!C110) -> 0.01 | D110: =FEAS!D110*(1-BASE!D110) -> 0.01 | E110: =FEAS!E110*(1-BASE!E110) -> 0.01 | F110: =FEAS!F110*(1-BASE!F110) -> 0.01 | G110: =FEAS!G110*(1-BASE!G110) -> 0.01 | H110: =FEAS!H110*(1-BASE!H110) -> 0.01 | I110: =FEAS!I110*(1-BASE!I110) -> 0.01 | J110: =FEAS!J110*(1-BASE!J110) -> 0.01 | K110: =FEAS!K110*(1-BASE!K110) -> 0.01 | L110: =FEAS!L110*(1-BASE!L110) -> 0.01 | M110: =FEAS!M110*(1-BASE!M110) -> 0.01 | N110: =FEAS!N110*(1-BASE!N110) -> 0.01 | O110: =FEAS!O110*(1-BASE!O110) -> 0.01 | P110: =FEAS!P110*(1-BASE!P110) -> 0.01 | Q110: =FEAS!Q110*(1-BASE!Q110) -> 0.01 | R110: =FEAS!R110*(1-BASE!R110) -> 0.01 | S110: =FEAS!S110*(1-BASE!S110) -> 0.01 | T110: =FEAS!T110*(1-BASE!T110) -> 0.01 | U110: =FEAS!U110*(1-BASE!U110) -> 
A111: =MLIST!A111 -> Refrigeration | B111: =MLIST!D111 -> Refrig-Freezer-New | C111: =FEAS!C111*(1-BASE!C111) -> 0.01 | D111: =FEAS!D111*(1-BASE!D111) -> 0.01 | E111: =FEAS!E111*(1-BASE!E111) -> 0.01 | F111: =FEAS!F111*(1-BASE!F111) -> 0.01 | G111: =FEAS!G111*(1-BASE!G111) -> 0.01 | H111: =FEAS!H111*(1-BASE!H111) -> 0.01 | I111: =FEAS!I111*(1-BASE!I111) -> 0.01 | J111: =FEAS!J111*(1-BASE!J111) -> 0.01 | K111: =FEAS!K111*(1-BASE!K111) -> 0.01 | L111: =FEAS!L111*(1-BASE!L111) -> 0.01 | M111: =FEAS!M111*(1-BASE!M111) -> 0.01 | N111: =FEAS!N111*(1-BASE!N111) -> 0.01 | O111: =FEAS!O111*(1-BASE!O111) -> 0.01 | P111: =FEAS!P111*(1-BASE!P111) -> 0.01 | Q111: =FEAS!Q111*(1-BASE!Q111) -> 0.01 | R111: =FEAS!R111*(1-BASE!R111) -> 0.01 | S111: =FEAS!S111*(1-BASE!S111) -> 0.01 | T111: =FEAS!T111*(1-BASE!T111) -> 0.01 | U111: =FEAS!U111*(1-BASE!U111) -> 
A112: =MLIST!A112 -> Refrigeration | B112: =MLIST!D112 -> Water Cooler Controls-NR | C112: =FEAS!C112*(1-BASE!C112) -> 0 | D112: =FEAS!D112*(1-BASE!D112) -> 0 | E112: =FEAS!E112*(1-BASE!E112) -> 0 | F112: =FEAS!F112*(1-BASE!F112) -> 0 | G112: =FEAS!G112*(1-BASE!G112) -> 0 | H112: =FEAS!H112*(1-BASE!H112) -> 0 | I112: =FEAS!I112*(1-BASE!I112) -> 0 | J112: =FEAS!J112*(1-BASE!J112) -> 0 | K112: =FEAS!K112*(1-BASE!K112) -> 0 | L112: =FEAS!L112*(1-BASE!L112) -> 0 | M112: =FEAS!M112*(1-BASE!M112) -> 0 | N112: =FEAS!N112*(1-BASE!N112) -> 0 | O112: =FEAS!O112*(1-BASE!O112) -> 0 | P112: =FEAS!P112*(1-BASE!P112) -> 0 | Q112: =FEAS!Q112*(1-BASE!Q112) -> 0 | R112: =FEAS!R112*(1-BASE!R112) -> 0 | S112: =FEAS!S112*(1-BASE!S112) -> 0 | T112: =FEAS!T112*(1-BASE!T112) -> 0 | U112: =FEAS!U112*(1-BASE!U112) -> 0
A113: =MLIST!A113 -> Water Heating | B113: =MLIST!D113 -> HPWH ResType-New | C113: =FEAS!C113*(1-BASE!C113) -> 1 | D113: =FEAS!D113*(1-BASE!D113) -> 1 | E113: =FEAS!E113*(1-BASE!E113) -> 1 | F113: =FEAS!F113*(1-BASE!F113) -> 1 | G113: =FEAS!G113*(1-BASE!G113) -> 1 | H113: =FEAS!H113*(1-BASE!H113) -> 1 | I113: =FEAS!I113*(1-BASE!I113) -> 1 | J113: =FEAS!J113*(1-BASE!J113) -> 1 | K113: =FEAS!K113*(1-BASE!K113) -> 1 | L113: =FEAS!L113*(1-BASE!L113) -> 1 | M113: =FEAS!M113*(1-BASE!M113) -> 1 | N113: =FEAS!N113*(1-BASE!N113) -> 1 | O113: =FEAS!O113*(1-BASE!O113) -> 1 | P113: =FEAS!P113*(1-BASE!P113) -> 1 | Q113: =FEAS!Q113*(1-BASE!Q113) -> 1 | R113: =FEAS!R113*(1-BASE!R113) -> 1 | S113: =FEAS!S113*(1-BASE!S113) -> 1 | T113: =FEAS!T113*(1-BASE!T113) -> 1 | U113: =FEAS!U113*(1-BASE!U113) -> 0
A114: =MLIST!A114 -> Water Heating | B114: =MLIST!D114 -> HPWH ResType-NR | C114: =FEAS!C114*(1-BASE!C114) -> 1 | D114: =FEAS!D114*(1-BASE!D114) -> 1 | E114: =FEAS!E114*(1-BASE!E114) -> 1 | F114: =FEAS!F114*(1-BASE!F114) -> 1 | G114: =FEAS!G114*(1-BASE!G114) -> 1 | H114: =FEAS!H114*(1-BASE!H114) -> 1 | I114: =FEAS!I114*(1-BASE!I114) -> 1 | J114: =FEAS!J114*(1-BASE!J114) -> 1 | K114: =FEAS!K114*(1-BASE!K114) -> 1 | L114: =FEAS!L114*(1-BASE!L114) -> 1 | M114: =FEAS!M114*(1-BASE!M114) -> 1 | N114: =FEAS!N114*(1-BASE!N114) -> 1 | O114: =FEAS!O114*(1-BASE!O114) -> 1 | P114: =FEAS!P114*(1-BASE!P114) -> 1 | Q114: =FEAS!Q114*(1-BASE!Q114) -> 1 | R114: =FEAS!R114*(1-BASE!R114) -> 1 | S114: =FEAS!S114*(1-BASE!S114) -> 1 | T114: =FEAS!T114*(1-BASE!T114) -> 1 | U114: =FEAS!U114*(1-BASE!U114) -> 
A115: =MLIST!A115 -> Water Heating | B115: =MLIST!D115 -> Washer-New | C115: =FEAS!C115*(1-BASE!C115) -> 1 | D115: =FEAS!D115*(1-BASE!D115) -> 1 | E115: =FEAS!E115*(1-BASE!E115) -> 1 | F115: =FEAS!F115*(1-BASE!F115) -> 1 | G115: =FEAS!G115*(1-BASE!G115) -> 1 | H115: =FEAS!H115*(1-BASE!H115) -> 1 | I115: =FEAS!I115*(1-BASE!I115) -> 1 | J115: =FEAS!J115*(1-BASE!J115) -> 1 | K115: =FEAS!K115*(1-BASE!K115) -> 1 | L115: =FEAS!L115*(1-BASE!L115) -> 1 | M115: =FEAS!M115*(1-BASE!M115) -> 1 | N115: =FEAS!N115*(1-BASE!N115) -> 1 | O115: =FEAS!O115*(1-BASE!O115) -> 1 | P115: =FEAS!P115*(1-BASE!P115) -> 1 | Q115: =FEAS!Q115*(1-BASE!Q115) -> 1 | R115: =FEAS!R115*(1-BASE!R115) -> 1 | S115: =FEAS!S115*(1-BASE!S115) -> 1 | T115: =FEAS!T115*(1-BASE!T115) -> 1 | U115: =FEAS!U115*(1-BASE!U115) -> 
A116: =MLIST!A116 -> Water Heating | B116: =MLIST!D116 -> Washer-NR | C116: =FEAS!C116*(1-BASE!C116) -> 0 | D116: =FEAS!D116*(1-BASE!D116) -> 0 | E116: =FEAS!E116*(1-BASE!E116) -> 0 | F116: =FEAS!F116*(1-BASE!F116) -> 0 | G116: =FEAS!G116*(1-BASE!G116) -> 0 | H116: =FEAS!H116*(1-BASE!H116) -> 0 | I116: =FEAS!I116*(1-BASE!I116) -> 0 | J116: =FEAS!J116*(1-BASE!J116) -> 0 | K116: =FEAS!K116*(1-BASE!K116) -> 0 | L116: =FEAS!L116*(1-BASE!L116) -> 0 | M116: =FEAS!M116*(1-BASE!M116) -> 0 | N116: =FEAS!N116*(1-BASE!N116) -> 0 | O116: =FEAS!O116*(1-BASE!O116) -> 0 | P116: =FEAS!P116*(1-BASE!P116) -> 0 | Q116: =FEAS!Q116*(1-BASE!Q116) -> 0 | R116: =FEAS!R116*(1-BASE!R116) -> 0 | S116: =FEAS!S116*(1-BASE!S116) -> 0 | T116: =FEAS!T116*(1-BASE!T116) -> 0 | U116: =FEAS!U116*(1-BASE!U116) -> 
A117: =MLIST!A117 -> Water Heating | B117: =MLIST!D117 -> Showerheads-NR | C117: =FEAS!C117*(1-BASE!C117) -> 0 | D117: =FEAS!D117*(1-BASE!D117) -> 0 | E117: =FEAS!E117*(1-BASE!E117) -> 0 | F117: =FEAS!F117*(1-BASE!F117) -> 0 | G117: =FEAS!G117*(1-BASE!G117) -> 0 | H117: =FEAS!H117*(1-BASE!H117) -> 0 | I117: =FEAS!I117*(1-BASE!I117) -> 0 | J117: =FEAS!J117*(1-BASE!J117) -> 0 | K117: =FEAS!K117*(1-BASE!K117) -> 0 | L117: =FEAS!L117*(1-BASE!L117) -> 0 | M117: =FEAS!M117*(1-BASE!M117) -> 0 | N117: =FEAS!N117*(1-BASE!N117) -> 0 | O117: =FEAS!O117*(1-BASE!O117) -> 0 | P117: =FEAS!P117*(1-BASE!P117) -> 0 | Q117: =FEAS!Q117*(1-BASE!Q117) -> 0 | R117: =FEAS!R117*(1-BASE!R117) -> 0 | S117: =FEAS!S117*(1-BASE!S117) -> 0 | T117: =FEAS!T117*(1-BASE!T117) -> 0 | U117: =FEAS!U117*(1-BASE!U117) -> 
A118: =MLIST!A118 -> Water Heating | B118: =MLIST!D118 -> Showerheads-Retro | C118: =FEAS!C118*(1-BASE!C118) -> 0.01 | D118: =FEAS!D118*(1-BASE!D118) -> 0.01 | E118: =FEAS!E118*(1-BASE!E118) -> 0.01 | F118: =FEAS!F118*(1-BASE!F118) -> 0.01 | G118: =FEAS!G118*(1-BASE!G118) -> 0.01 | H118: =FEAS!H118*(1-BASE!H118) -> 0.01 | I118: =FEAS!I118*(1-BASE!I118) -> 0.01 | J118: =FEAS!J118*(1-BASE!J118) -> 0.01 | K118: =FEAS!K118*(1-BASE!K118) -> 0.01 | L118: =FEAS!L118*(1-BASE!L118) -> 0.01 | M118: =FEAS!M118*(1-BASE!M118) -> 0.01 | N118: =FEAS!N118*(1-BASE!N118) -> 0.01 | O118: =FEAS!O118*(1-BASE!O118) -> 0.01 | P118: =FEAS!P118*(1-BASE!P118) -> 0.01 | Q118: =FEAS!Q118*(1-BASE!Q118) -> 0.01 | R118: =FEAS!R118*(1-BASE!R118) -> 0.01 | S118: =FEAS!S118*(1-BASE!S118) -> 0.01 | T118: =FEAS!T118*(1-BASE!T118) -> 0.01 | U118: =FEAS!U118*(1-BASE!U118) -> 
A119: =MLIST!A119 -> 0 | B119: =MLIST!D119 -> 0 | C119: =FEAS!C119*(1-BASE!C119) -> 0.75 | D119: =FEAS!D119*(1-BASE!D119) -> 0.75 | E119: =FEAS!E119*(1-BASE!E119) -> 0.75 | F119: =FEAS!F119*(1-BASE!F119) -> 0.75 | G119: =FEAS!G119*(1-BASE!G119) -> 0.75 | H119: =FEAS!H119*(1-BASE!H119) -> 0.75 | I119: =FEAS!I119*(1-BASE!I119) -> 0.75 | J119: =FEAS!J119*(1-BASE!J119) -> 0.75 | K119: =FEAS!K119*(1-BASE!K119) -> 0.75 | L119: =FEAS!L119*(1-BASE!L119) -> 0.75 | M119: =FEAS!M119*(1-BASE!M119) -> 0.75 | N119: =FEAS!N119*(1-BASE!N119) -> 0.75 | O119: =FEAS!O119*(1-BASE!O119) -> 0.75 | P119: =FEAS!P119*(1-BASE!P119) -> 0.75 | Q119: =FEAS!Q119*(1-BASE!Q119) -> 0.75 | R119: =FEAS!R119*(1-BASE!R119) -> 0.75 | S119: =FEAS!S119*(1-BASE!S119) -> 0.75 | T119: =FEAS!T119*(1-BASE!T119) -> 0.75 | U119: =FEAS!U119*(1-BASE!U119) -> 
A120: =MLIST!A120 -> 0 | B120: =MLIST!D120 -> 0 | C120: =FEAS!C120*(1-BASE!C120) -> 0.75 | D120: =FEAS!D120*(1-BASE!D120) -> 0.75 | E120: =FEAS!E120*(1-BASE!E120) -> 0.75 | F120: =FEAS!F120*(1-BASE!F120) -> 0.75 | G120: =FEAS!G120*(1-BASE!G120) -> 0.75 | H120: =FEAS!H120*(1-BASE!H120) -> 0.75 | I120: =FEAS!I120*(1-BASE!I120) -> 0.75 | J120: =FEAS!J120*(1-BASE!J120) -> 0.75 | K120: =FEAS!K120*(1-BASE!K120) -> 0.75 | L120: =FEAS!L120*(1-BASE!L120) -> 0.75 | M120: =FEAS!M120*(1-BASE!M120) -> 0.75 | N120: =FEAS!N120*(1-BASE!N120) -> 0.75 | O120: =FEAS!O120*(1-BASE!O120) -> 0.75 | P120: =FEAS!P120*(1-BASE!P120) -> 0.75 | Q120: =FEAS!Q120*(1-BASE!Q120) -> 0.75 | R120: =FEAS!R120*(1-BASE!R120) -> 0.75 | S120: =FEAS!S120*(1-BASE!S120) -> 0.75 | T120: =FEAS!T120*(1-BASE!T120) -> 0.75 | U120: =FEAS!U121*(1-BASE!U120) -> 
A121: Whole Bldg/Meter Level | B121: Ultra Low Energy Building-New | C121: 0 | D121: 0 | E121: 0 | F121: 0 | G121: 0 | H121: 0 | I121: 0 | J121: 0 | K121: 0 | L121: 0 | M121: 0 | N121: 0 | O121: 0 | P121: 0 | Q121: 0 | R121: 0 | S121: 0 | T121: 0 | X121: 0 | Y121: 0 | Z121: 0 | AA121: 0 | AB121: 0 | AC121: 0 | AD121: 0 | AE121: 0 | AF121: 0 | AG121: 0 | AH121: 0 | AI121: 0 | AJ121: 0 | AK121: 0 | AL121: 0 | AM121: 0 | AN121: 0 | AO121: 0 | AP121: 0

Sheet BASE
A1: BASE | B1: Baseline fraction of floorspace that is assumed to adopt measure in forecast.
C7: 2 | D7: =C7+1 -> 3 | E7: =D7+1 -> 4 | F7: 5 | G7: 6 | H7: 7 | I7: 8 | J7: 9 | K7: 10 | L7: 11 | M7: 12 | N7: 13 | O7: 14 | P7: 15 | Q7: 16 | R7: 17 | S7: 18 | T7: 19 | U7: 20
C10: =APPLIC!C10 -> Office | F10: Retail | J10: School | L10: Warehouse | M10: Grocery | O10: Restaurant | P10: Lodging | Q10: Health | S10: =S11 -> Assembly | T10: =T11 -> Other
A11: MEAS ID | B11: Measure Index Name | C11: =APPLIC!C11 -> Large Off | D11: =APPLIC!D11 -> Medium Off | E11: =APPLIC!E11 -> Small Off | F11: =APPLIC!F11 -> Xlarge Ret | G11: =APPLIC!G11 -> Large Ret | H11: =APPLIC!H11 -> Medium Ret | I11: =APPLIC!I11 -> Small Ret | J11: =APPLIC!J11 -> School K-12 | K11: =APPLIC!K11 -> University | L11: =APPLIC!L11 -> Warehouse | M11: =APPLIC!M11 -> Supermarket | N11: =APPLIC!N11 -> MiniMart | O11: =APPLIC!O11 -> Restaurant | P11: =APPLIC!P11 -> Lodging | Q11: =APPLIC!Q11 -> Hospital | R11: =APPLIC!R11 -> Residential Care | S11: =APPLIC!S11 -> Assembly | T11: =APPLIC!T11 -> Other | U11: Non-Building Stock | V11: Source | W11: Lookup Value
B12: =MLIST!D12 -> Compressors-New | C12: 0 | D12: 0 | E12: 0 | F12: 0 | G12: 0 | H12: 0 | I12: 0 | J12: 0 | K12: 0 | L12: 0 | M12: 0 | N12: 0 | O12: 0 | P12: 0 | Q12: 0 | R12: 0 | S12: 0 | T12: 0
B13: =MLIST!D13 -> Compressors-NR | C13: 0 | D13: 0 | E13: 0 | F13: 0 | G13: 0 | H13: 0 | I13: 0 | J13: 0 | K13: 0 | L13: 0 | M13: 0 | N13: 0 | O13: 0 | P13: 0 | Q13: 0 | R13: 0 | S13: 0 | T13: 0
B14: =MLIST!D14 -> Laptop-NR | C14: 0 | D14: 0 | E14: 0 | F14: 0 | G14: 0 | H14: 0 | I14: 0 | J14: 0 | K14: 0 | L14: 0 | M14: 0 | N14: 0 | O14: 0 | P14: 0 | Q14: 0 | R14: 0 | S14: 0 | T14: 0 | U14: 0.9 | V14: NEEA Sales data
B15: =MLIST!D15 -> PowerStrips-Retro | C15: 0 | D15: 0 | E15: 0 | F15: 0 | G15: 0 | H15: 0 | I15: 0 | J15: 0 | K15: 0 | L15: 0 | M15: 0 | N15: 0 | O15: 0 | P15: 0 | Q15: 0 | R15: 0 | S15: 0 | T15: 0
B16: =MLIST!D16 -> PowerStrips-New | C16: 0 | D16: 0 | E16: 0 | F16: 0 | G16: 0 | H16: 0 | I16: 0 | J16: 0 | K16: 0 | L16: 0 | M16: 0 | N16: 0 | O16: 0 | P16: 0 | Q16: 0 | R16: 0 | S16: 0 | T16: 0
B17: =MLIST!D17 -> Data Centers-NR | C17: 0 | D17: 0 | E17: 0 | F17: 0 | G17: 0 | H17: 0 | I17: 0 | J17: 0 | K17: 0 | L17: 0 | M17: 0 | N17: 0 | O17: 0 | P17: 0 | Q17: 0 | R17: 0 | S17: 0 | T17: 0 | U17: 0.2 | V17: ESTAR Server 9% (+), Virtualization 20%
B18: =MLIST!D18 -> Desktop-WA-NR | C18: 0 | D18: 0 | E18: 0 | F18: 0 | G18: 0 | H18: 0 | I18: 0 | J18: 0 | K18: 0 | L18: 0 | M18: 0 | N18: 0 | O18: 0 | P18: 0 | Q18: 0 | R18: 0 | S18: 0 | T18: 0 | U18: 0.55 | V18: ENERGY STAR USD Summary Report _2013
B19: =MLIST!D19 -> Desktop-NR | C19: 0 | D19: 0 | E19: 0 | F19: 0 | G19: 0 | H19: 0 | I19: 0 | J19: 0 | K19: 0 | L19: 0 | M19: 0 | N19: 0 | O19: 0 | P19: 0 | Q19: 0 | R19: 0 | S19: 0 | T19: 0 | U19: 0.75 | V19: NEEA Sales data
B20: =MLIST!D20 -> Laptop-WA-NR | C20: 0 | D20: 0 | E20: 0 | F20: 0 | G20: 0 | H20: 0 | I20: 0 | J20: 0 | K20: 0 | L20: 0 | M20: 0 | N20: 0 | O20: 0 | P20: 0 | Q20: 0 | R20: 0 | S20: 0 | T20: 0 | U20: 0.75
B21: =MLIST!D21 -> Pre-Rinse Spray Valve-Retro | C21: 0 | D21: 0 | E21: 0 | F21: 0 | G21: 0 | H21: 0 | I21: 0 | J21: 0 | K21: 0 | L21: 0 | M21: 0 | N21: 0 | O21: 0 | P21: 0 | Q21: 0 | R21: 0 | S21: 0 | T21: 0 | U21: 0.14 | V21: 6 going on 7 plus CBSA
B22: =MLIST!D22 -> Steamer-NR | C22: 0 | D22: 0 | E22: 0 | F22: 0 | G22: 0 | H22: 0 | I22: 0 | J22: 0 | K22: 0 | L22: 0 | M22: 0 | N22: 0 | O22: 0 | P22: 0 | Q22: 0 | R22: 0 | S22: 0 | T22: 0 | U22: 0.39 | V22: EPA Energy Star 2011
B23: =MLIST!D23 -> Combo Oven-NR | C23: 0 | D23: 0 | E23: 0 | F23: 0 | G23: 0 | H23: 0 | I23: 0 | J23: 0 | K23: 0 | L23: 0 | M23: 0 | N23: 0 | O23: 0 | P23: 0 | Q23: 0 | R23: 0 | S23: 0 | T23: 0
B24: =MLIST!D24 -> HFHC-NR | C24: 0 | D24: 0 | E24: 0 | F24: 0 | G24: 0 | H24: 0 | I24: 0 | J24: 0 | K24: 0 | L24: 0 | M24: 0 | N24: 0 | O24: 0 | P24: 0 | Q24: 0 | R24: 0 | S24: 0 | T24: 0
B25: =MLIST!D25 -> Convection Oven-NR | C25: 0 | D25: 0 | E25: 0 | F25: 0 | G25: 0 | H25: 0 | I25: 0 | J25: 0 | K25: 0 | L25: 0 | M25: 0 | N25: 0 | O25: 0 | P25: 0 | Q25: 0 | R25: 0 | S25: 0 | T25: 0
B26: =MLIST!D26 -> Fryer-NR | C26: 0 | D26: 0 | E26: 0 | F26: 0 | G26: 0 | H26: 0 | I26: 0 | J26: 0 | K26: 0 | L26: 0 | M26: 0 | N26: 0 | O26: 0 | P26: 0 | Q26: 0 | R26: 0 | S26: 0 | T26: 0
B27: =MLIST!D27 -> Griddle-NR | C27: 0 | D27: 0 | E27: 0 | F27: 0 | G27: 0 | H27: 0 | I27: 0 | J27: 0 | K27: 0 | L27: 0 | M27: 0 | N27: 0 | O27: 0 | P27: 0 | Q27: 0 | R27: 0 | S27: 0 | T27: 0
B28: =MLIST!D28 -> Overwrapper-NR | C28: 0 | D28: 0 | E28: 0 | F28: 0 | G28: 0 | H28: 0 | I28: 0 | J28: 0 | K28: 0 | L28: 0 | M28: 0 | N28: 0 | O28: 0 | P28: 0 | Q28: 0 | R28: 0 | S28: 0 | T28: 0
B29: =MLIST!D29 -> DHP-New | C29: 0 | D29: 0 | E29: 0 | F29: 0 | G29: 0 | H29: 0 | I29: 0 | J29: 0 | K29: 0 | L29: 0 | M29: 0 | N29: 0 | O29: 0 | P29: 0 | Q29: 0 | R29: 0 | S29: 0 | T29: 0 | U29: 0
B30: =MLIST!D30 -> DHP-Retro | C30: 0 | D30: 0 | E30: 0 | F30: 0 | G30: 0 | H30: 0 | I30: 0 | J30: 0 | K30: 0 | L30: 0 | M30: 0 | N30: 0 | O30: 0 | P30: 0 | Q30: 0 | R30: 0 | S30: 0 | T30: 0 | U30: 0
B31: =MLIST!D31 -> Glass-New | C31: 0.304 | D31: 0.2104 | E31: 0.2176 | F31: 0.38244 | G31: 0.38183 | H31: 0.21683 | I31: 0.45625 | J31: 0.1434 | K31: 0.208 | L31: 0.47245 | M31: 0.21212 | N31: 0.22062 | O31: 0.225000056 | P31: 0.25225 | Q31: 0.1974 | R31: 0.2585 | S31: 0.2 | T31: 0.2314 | U31: 0
B32: =MLIST!D32 -> Glass-NR | C32: 0.304 | D32: 0.2104 | E32: 0.2176 | F32: 0.38244 | G32: 0.38183 | H32: 0.21683 | I32: 0.45625 | J32: 0.1434 | K32: 0.208 | L32: 0.47245 | M32: 0.21212 | N32: 0.22062 | O32: 0.225000056 | P32: 0.25225 | Q32: 0.1974 | R32: 0.2585 | S32: 0.2 | T32: 0.2314 | U32: 0
B33: =MLIST!D33 -> ARC-New | C33: 0 | D33: 0 | E33: 0 | F33: 0 | G33: 0 | H33: 0 | I33: 0 | J33: 0 | K33: 0 | L33: 0 | M33: 0 | N33: 0 | O33: 0 | P33: 0 | Q33: 0 | R33: 0 | S33: 0 | T33: 0 | U33: 0 | V33: Assume 10% more in new than exising
B34: =MLIST!D34 -> ARC-NR | C34: 0.05 | D34: 0.05 | E34: 0.05 | F34: 0.05 | G34: 0.05 | H34: 0.05 | I34: 0.05 | J34: 0.05 | K34: 0.05 | L34: 0.05 | M34: 0.05 | N34: 0.05 | O34: 0.05 | P34: 0.05 | Q34: 0.05 | R34: 0.05 | S34: 0.05 | T34: 0.05 | U34: 0
B35: =MLIST!D35 -> ARC-Retro | C35: 0 | D35: 0 | E35: 0 | F35: 0 | G35: 0 | H35: 0 | I35: 0 | J35: 0 | K35: 0 | L35: 0 | M35: 0 | N35: 0 | O35: 0 | P35: 0 | Q35: 0 | R35: 0 | S35: 0 | T35: 0 | U35: 0
B36: =MLIST!D36 -> Chiller-Upgrade-New | C36: 0.1 | D36: 0.1 | E36: 0.1 | F36: 0.1 | G36: 0.1 | H36: 0.1 | I36: 0.1 | J36: 0.1 | K36: 0.1 | L36: 0.1 | M36: 0.1 | N36: 0.1 | O36: 0.1 | P36: 0.1 | Q36: 0.1 | R36: 0.1 | S36: 0.1 | T36: 0.1 | U36: 0
B37: =MLIST!D37 -> Chiller-Upgrade-NR | C37: 0.05 | D37: 0.05 | E37: 0.05 | F37: 0.05 | G37: 0.05 | H37: 0.05 | I37: 0.05 | J37: 0.05 | K37: 0.05 | L37: 0.05 | M37: 0.05 | N37: 0.05 | O37: 0.05 | P37: 0.05 | Q37: 0.05 | R37: 0.05 | S37: 0.05 | T37: 0.05 | U37: 0
B38: =MLIST!D38 -> Chiller-System-Retro | C38: 0.05 | D38: 0.05 | E38: 0.05 | F38: 0.05 | G38: 0.05 | H38: 0.05 | I38: 0.05 | J38: 0.05 | K38: 0.05 | L38: 0.05 | M38: 0.05 | N38: 0.05 | O38: 0.05 | P38: 0.05 | Q38: 0.05 | R38: 0.05 | S38: 0.05 | T38: 0.05 | U38: 0
B39: =MLIST!D39 -> Fans-Retro | C39: 0 | D39: 0 | E39: 0 | F39: 0 | G39: 0 | H39: 0 | I39: 0 | J39: 0 | K39: 0 | L39: 0 | M39: 0 | N39: 0 | O39: 0 | P39: 0 | Q39: 0 | R39: 0 | S39: 0 | T39: 0 | V39: Accounting for Achievments - See Com-EM workbook
B40: =MLIST!D40 -> Fans-NR | C40: 0 | D40: 0 | E40: 0 | F40: 0 | G40: 0 | H40: 0 | I40: 0 | J40: 0 | K40: 0 | L40: 0 | M40: 0 | N40: 0 | O40: 0 | P40: 0 | Q40: 0 | R40: 0 | S40: 0 | T40: 0
B41: =MLIST!D41 -> Fans-New | C41: 0 | D41: 0 | E41: 0 | F41: 0 | G41: 0 | H41: 0 | I41: 0 | J41: 0 | K41: 0 | L41: 0 | M41: 0 | N41: 0 | O41: 0 | P41: 0 | Q41: 0 | R41: 0 | S41: 0 | T41: 0
B42: =MLIST!D42 -> VHE-DOAS-NR | C42: 0 | D42: 0 | E42: 0 | F42: 0 | G42: 0 | H42: 0 | I42: 0 | J42: 0 | K42: 0 | L42: 0 | M42: 0 | N42: 0 | O42: 0 | P42: 0 | Q42: 0 | R42: 0 | S42: 0 | T42: 0
B43: =MLIST!D43 -> VHE-DOAS-New | C43: 0 | D43: 0 | E43: 0 | F43: 0 | G43: 0 | H43: 0 | I43: 0 | J43: 0 | K43: 0 | L43: 0 | M43: 0 | N43: 0 | O43: 0 | P43: 0 | Q43: 0 | R43: 0 | S43: 0 | T43: 0
B44: =MLIST!D44 -> -NR | C44: 0 | D44: 0 | E44: 0 | F44: 0 | G44: 0 | H44: 0 | I44: 0 | J44: 0 | K44: 0 | L44: 0 | M44: 0 | N44: 0 | O44: 0 | P44: 0 | Q44: 0 | R44: 0 | S44: 0 | T44: 0
B45: =MLIST!D45 -> Commercial EM-New | C45: 0.04 | D45: 0.04 | E45: 0.04 | F45: 0.04 | G45: 0.04 | H45: 0.04 | I45: 0.04 | J45: 0.04 | K45: 0.04 | L45: 0.04 | M45: 0.04 | N45: 0.04 | O45: 0.04 | P45: 0.04 | Q45: 0.04 | R45: 0.04 | S45: 0.04 | T45: 0.04 | U45: 0
B46: =MLIST!D46 -> Commercial EM-Retro | C46: 0.04 | D46: 0.04 | E46: 0.04 | F46: 0.04 | G46: 0.04 | H46: 0.04 | I46: 0.04 | J46: 0.04 | K46: 0.04 | L46: 0.04 | M46: 0.04 | N46: 0.04 | O46: 0.04 | P46: 0.04 | Q46: 0.04 | R46: 0.04 | S46: 0.04 | T46: 0.04 | U46: 0
B47: =MLIST!D47 -> Economizer-Retro | C47: 0.4 | D47: 0.25 | E47: 0.25 | F47: 0.4 | G47: 0.25 | H47: 0.25 | I47: 0.25 | J47: 0.4 | K47: 0.4 | L47: 0.25 | M47: 0.4 | N47: 0.25 | O47: 0.25 | P47: 0.25 | Q47: 0.4 | R47: 0.25 | S47: 0.25 | T47: 0.25 | U47: 0
B48: =MLIST!D48 -> Demand Control Ventilation-New | C48: 0 | D48: 0 | E48: 0 | F48: 0.2 | G48: 0 | H48: 0 | I48: 0 | J48: 0 | K48: 0 | L48: 0 | M48: 0 | N48: 0 | O48: 0 | P48: 0 | Q48: 0 | R48: 0 | S48: 0 | T48: 0 | U48: 0
B49: =MLIST!D49 -> Demand Control Ventilation-NR | C49: 0 | D49: 0 | E49: 0 | F49: 0 | G49: 0 | H49: 0 | I49: 0 | J49: 0 | K49: 0 | L49: 0 | M49: 0 | N49: 0 | O49: 0 | P49: 0 | Q49: 0 | R49: 0 | S49: 0 | T49: 0 | U49: 0
B50: =MLIST!D50 -> Demand Control Ventilation-Retro | C50: 0.2941784143 | D50: 0.1660053024 | E50: 0.0237376639 | F50: 0.2230071516 | G50: 0.1974179265 | H50: 0.04274076275 | I50: 0.01359721457 | J50: 0.3265989179 | K50: 0.1362289603 | L50: 0.1218122947 | M50: 0.01504311947 | N50: 0.1371895224 | O50: 0.1371411316 | P50: 0.03812536265 | Q50: 0.1362289603 | R50: 0.09238129912 | S50: 0.224588689 | T50: 0.2786891723 | U50: 0
B51: =MLIST!D51 -> DCV-Lab Hood-Retro | C51: 0 | D51: 0 | E51: 0 | F51: 0 | G51: 0 | H51: 0 | I51: 0 | J51: 0 | K51: 0 | L51: 0 | M51: 0 | N51: 0 | O51: 0 | P51: 0 | Q51: 0 | R51: 0 | S51: 0 | T51: 0 | U51: 0.3 | W51: 0.2941784143
B52: =MLIST!D52 -> DCV-Kitchen-Retro | C52: 0 | D52: 0 | E52: 0 | F52: 0 | G52: 0 | H52: 0 | I52: 0 | J52: 0 | K52: 0 | L52: 0 | M52: 0 | N52: 0 | O52: 0 | P52: 0 | Q52: 0 | R52: 0 | S52: 0 | T52: 0 | U52: 0.6 | W52: 0.1660053024
B53: =MLIST!D53 -> DCV-Parking Garage-Retro | C53: 0 | D53: 0 | E53: 0 | F53: 0 | G53: 0 | H53: 0 | I53: 0 | J53: 0 | K53: 0 | L53: 0 | M53: 0 | N53: 0 | O53: 0 | P53: 0 | Q53: 0 | R53: 0 | S53: 0 | T53: 0 | U53: 0.35 | W53: 0.0237376639
B54: =MLIST!D54 -> Weatherization - School-Retro | C54: 0 | D54: 0 | E54: 0 | F54: 0 | G54: 0 | H54: 0 | I54: 0 | J54: 0 | K54: 0 | L54: 0 | M54: 0 | N54: 0 | O54: 0 | P54: 0 | Q54: 0 | R54: 0 | S54: 0 | T54: 0 | W54: 0.2230071516
B55: =MLIST!D55 -> Energy Recovery Ventilator-NR | C55: 0 | D55: 0 | E55: 0 | F55: 0 | G55: 0 | H55: 0 | I55: 0 | J55: 0 | K55: 0 | L55: 0 | M55: 0 | N55: 0 | O55: 0 | P55: 0 | Q55: 0 | R55: 0 | S55: 0 | T55: 0 | U55: 0.9 | V55: NEEA Sales data | W55: 0.1974179265
B56: =MLIST!D56 -> AC Heat Recovery for Water Heating-NR | C56: 0 | D56: 0 | E56: 0 | F56: 0 | G56: 0 | H56: 0 | I56: 0 | J56: 0 | K56: 0 | L56: 0 | M56: 0 | N56: 0 | O56: 0 | P56: 0 | Q56: 0 | R56: 0 | S56: 0 | T56: 0 | W56: 0.04274076275
B57: =MLIST!D57 -> Room Occupancy Sensors in Lodging-Retro | C57: 0 | D57: 0 | E57: 0 | F57: 0 | G57: 0 | H57: 0 | I57: 0 | J57: 0 | K57: 0 | L57: 0 | M57: 0 | N57: 0 | O57: 0 | P57: 0 | Q57: 0 | R57: 0 | S57: 0 | T57: 0 | W57: 0.01359721457
B58: =MLIST!D58 -> Pool Blankets-Retro | C58: 0 | D58: 0 | E58: 0 | F58: 0 | G58: 0 | H58: 0 | I58: 0 | J58: 0 | K58: 0 | L58: 0 | M58: 0 | N58: 0 | O58: 0 | P58: 0 | Q58: 0 | R58: 0 | S58: 0 | T58: 0 | W58: 0.1218122947
B59: =MLIST!D59 -> ConnectedThermostats-New | C59: 0 | D59: 0 | E59: 0 | F59: 0 | G59: 0 | H59: 0 | I59: 0 | J59: 0 | K59: 0 | L59: 0 | M59: 0 | N59: 0 | O59: 0 | P59: 0 | Q59: 0 | R59: 0 | S59: 0 | T59: 0 | W59: 0.01504311947
B60: =MLIST!D60 -> ConnectedThermostats-Retro | C60: 0 | D60: 0 | E60: 0 | F60: 0 | G60: 0 | H60: 0 | I60: 0 | J60: 0 | K60: 0 | L60: 0 | M60: 0 | N60: 0 | O60: 0 | P60: 0 | Q60: 0 | R60: 0 | S60: 0 | T60: 0 | W60: 0.01504311947
B61: =MLIST!D61 -> CircPumps-NR | C61: 0 | D61: 0 | E61: 0 | F61: 0 | G61: 0 | H61: 0 | I61: 0 | J61: 0 | K61: 0 | L61: 0 | M61: 0 | N61: 0 | O61: 0 | P61: 0 | Q61: 0 | R61: 0 | S61: 0 | T61: 0 | W61: 0.1371895224
B62: =MLIST!D62 -> Circpumps-New | C62: 0 | D62: 0 | E62: 0 | F62: 0 | G62: 0 | H62: 0 | I62: 0 | J62: 0 | K62: 0 | L62: 0 | M62: 0 | N62: 0 | O62: 0 | P62: 0 | Q62: 0 | R62: 0 | S62: 0 | T62: 0 | W62: 0.1371411316
B63: =MLIST!D63 -> VRF-DOAS-New | C63: 0.02 | D63: 0.02 | E63: 0.02 | F63: 0.02 | G63: 0.02 | H63: 0.02 | I63: 0.02 | J63: 0.02 | K63: 0.02 | L63: 0.02 | M63: 0.02 | N63: 0.02 | O63: 0.02 | P63: 0.02 | Q63: 0.02 | R63: 0.02 | S63: 0.02 | T63: 0.02 | V63: US saturation 2% | W63: 0.03812536265
B64: =MLIST!D64 -> VRF-DOAS-NR | C64: 0.02 | D64: 0.02 | E64: 0.02 | F64: 0.02 | G64: 0.02 | H64: 0.02 | I64: 0.02 | J64: 0.02 | K64: 0.02 | L64: 0.02 | M64: 0.02 | N64: 0.02 | O64: 0.02 | P64: 0.02 | Q64: 0.02 | R64: 0.02 | S64: 0.02 | T64: 0.02 | W64: 0.1362289603
B65: =MLIST!D65 -> Evaporator Roof Top HVAC-Retro | C65: 0 | D65: 0 | E65: 0 | F65: 0 | G65: 0 | H65: 0 | I65: 0 | J65: 0 | K65: 0 | L65: 0 | M65: 0 | N65: 0 | O65: 0 | P65: 0 | Q65: 0 | R65: 0 | S65: 0 | T65: 0 | W65: 0.09238129912
B66: =MLIST!D66 -> HeatPumps-NR | C66: 0 | D66: 0 | E66: 0 | F66: 0 | G66: 0 | H66: 0 | I66: 0 | J66: 0 | K66: 0 | L66: 0 | M66: 0 | N66: 0 | O66: 0 | P66: 0 | Q66: 0 | R66: 0 | S66: 0 | T66: 0 | W66: 0.09238129912
B67: =MLIST!D67 -> HeatPumps-New | C67: 0 | D67: 0 | E67: 0 | F67: 0 | G67: 0 | H67: 0 | I67: 0 | J67: 0 | K67: 0 | L67: 0 | M67: 0 | N67: 0 | O67: 0 | P67: 0 | Q67: 0 | R67: 0 | S67: 0 | T67: 0 | W67: 0.09238129912
B68: =MLIST!D68 -> VCHP-NR | C68: 0 | D68: 0 | E68: 0 | F68: 0 | G68: 0 | H68: 0 | I68: 0 | J68: 0 | K68: 0 | L68: 0 | M68: 0 | N68: 0 | O68: 0 | P68: 0 | Q68: 0 | R68: 0 | S68: 0 | T68: 0 | W68: 0.09238129912
B69: =MLIST!D69 -> VCHP-New | C69: 0 | D69: 0 | E69: 0 | F69: 0 | G69: 0 | H69: 0 | I69: 0 | J69: 0 | K69: 0 | L69: 0 | M69: 0 | N69: 0 | O69: 0 | P69: 0 | Q69: 0 | R69: 0 | S69: 0 | T69: 0 | W69: 0.09238129912
B70: =MLIST!D70 -> UnitaryAC-NR | C70: 0 | D70: 0 | E70: 0 | F70: 0 | G70: 0 | H70: 0 | I70: 0 | J70: 0 | K70: 0 | L70: 0 | M70: 0 | N70: 0 | O70: 0 | P70: 0 | Q70: 0 | R70: 0 | S70: 0 | T70: 0 | W70: 0.09238129912
B71: =MLIST!D71 -> UnitaryAC-New | C71: 0 | D71: 0 | E71: 0 | F71: 0 | G71: 0 | H71: 0 | I71: 0 | J71: 0 | K71: 0 | L71: 0 | M71: 0 | N71: 0 | O71: 0 | P71: 0 | Q71: 0 | R71: 0 | S71: 0 | T71: 0 | W71: 0.09238129912
B72: =MLIST!D72 -> Com-PTAC-NR | C72: 0.5 | D72: 0.5 | E72: 0.5 | F72: 0.5 | G72: 0.5 | H72: 0.5 | I72: 0.5 | J72: 0.5 | K72: 0.5 | L72: 0.5 | M72: 0.5 | N72: 0.5 | O72: 0.5 | P72: 0.5 | Q72: 0.5 | R72: 0.5 | S72: 0.5 | T72: 0.5 | U72: Assume 50/50 split between PTAC and PTHP | W72: 0.09238129912
B73: =MLIST!D73 -> Com-PTAC-New | C73: 0.5 | D73: 0.5 | E73: 0.5 | F73: 0.5 | G73: 0.5 | H73: 0.5 | I73: 0.5 | J73: 0.5 | K73: 0.5 | L73: 0.5 | M73: 0.5 | N73: 0.5 | O73: 0.5 | P73: 0.5 | Q73: 0.5 | R73: 0.5 | S73: 0.5 | T73: 0.5 | U73: Assume 50/50 split between PTAC and PTHP | W73: 0.09238129912
B74: =MLIST!D74 -> COM-PTHP-NR | C74: 0.5 | D74: 0.5 | E74: 0.5 | F74: 0.5 | G74: 0.5 | H74: 0.5 | I74: 0.5 | J74: 0.5 | K74: 0.5 | L74: 0.5 | M74: 0.5 | N74: 0.5 | O74: 0.5 | P74: 0.5 | Q74: 0.5 | R74: 0.5 | S74: 0.5 | T74: 0.5 | U74: Assume 50/50 split between PTAC and PTHP
B75: =MLIST!D75 -> COM-PTHP-New | C75: 0.5 | D75: 0.5 | E75: 0.5 | F75: 0.5 | G75: 0.5 | H75: 0.5 | I75: 0.5 | J75: 0.5 | K75: 0.5 | L75: 0.5 | M75: 0.5 | N75: 0.5 | O75: 0.5 | P75: 0.5 | Q75: 0.5 | R75: 0.5 | S75: 0.5 | T75: 0.5 | U75: Assume 50/50 split between PTAC and PTHP
B76: =MLIST!D76 -> COM-PTHP-Retro | C76: 0 | D76: 0 | E76: 0 | F76: 0 | G76: 0 | H76: 0 | I76: 0 | J76: 0 | K76: 0 | L76: 0 | M76: 0 | N76: 0 | O76: 0 | P76: 0 | Q76: 0 | R76: 0 | S76: 0 | T76: 0
B77: =MLIST!D77 -> Com-DOAS-New | C77: 0 | D77: 0 | E77: 0 | F77: 0 | G77: 0 | H77: 0 | I77: 0 | J77: 0 | K77: 0 | L77: 0 | M77: 0 | N77: 0 | O77: 0 | P77: 0 | Q77: 0 | R77: 0 | S77: 0 | T77: 0 | W77: 0.09238129912
B78: =MLIST!D78 -> Com-DOAS-Retro | C78: 0 | D78: 0 | E78: 0 | F78: 0 | G78: 0 | H78: 0 | I78: 0 | J78: 0 | K78: 0 | L78: 0 | M78: 0 | N78: 0 | O78: 0 | P78: 0 | Q78: 0 | R78: 0 | S78: 0 | T78: 0 | W78: 0.09238129912
B79: =MLIST!D79 -> Secondary Glazing Systems-Retro | C79: 0 | D79: 0 | E79: 0 | F79: 0 | G79: 0 | H79: 0 | I79: 0 | J79: 0 | K79: 0 | L79: 0 | M79: 0 | N79: 0 | O79: 0 | P79: 0 | Q79: 0 | R79: 0 | S79: 0 | T79: 0 | U79: 0 | V79: Baseline saturation in measure workbook. Multiple measures | W79: 0.224588689
B80: =MLIST!D80 -> LPD Package-New | C80: 0 | D80: 0 | E80: 0 | F80: 0 | G80: 0 | H80: 0 | I80: 0 | J80: 0 | K80: 0 | L80: 0 | M80: 0 | N80: 0 | O80: 0 | P80: 0 | Q80: 0 | R80: 0 | S80: 0 | T80: 0 | U80: 0 | V80: Baseline saturation in measure workbook. Multiple measures | W80: 0.2786891723
B81: =MLIST!D81 -> LPD Package-NR | C81: 0 | D81: 0 | E81: 0 | F81: 0 | G81: 0 | H81: 0 | I81: 0 | J81: 0 | K81: 0 | L81: 0 | M81: 0 | N81: 0 | O81: 0 | P81: 0 | Q81: 0 | R81: 0 | S81: 0 | T81: 0 | U81: 0 | V81: Baseline saturation in measure workbook. Multiple measures | W81: 0.2230071516
B82: =MLIST!D82 -> LPD Package-Retro | C82: 0 | D82: 0 | E82: 0 | F82: 0 | G82: 0 | H82: 0 | I82: 0 | J82: 0 | K82: 0 | L82: 0 | M82: 0 | N82: 0 | O82: 0 | P82: 0 | Q82: 0 | R82: 0 | S82: 0 | T82: 0 | U82: 0 | V82: Baseline saturation in measure workbook. Multiple measures | W82: 0.3265989179
B83: =MLIST!D83 -> Top Daylighting-New | C83: 0 | D83: 0.02 | E83: 0.03 | F83: 0.3 | G83: 0.1 | H83: 0 | I83: 0 | J83: 0.2 | K83: 0.1 | L83: 0.1 | M83: 0.1 | N83: 0 | O83: 0 | P83: 0 | Q83: 0 | R83: 0.02 | S83: 0 | T83: 0.02 | U83: 0 | W83: 0.1218122947
B84: =MLIST!D84 -> Perimeter Daylighting Controls Advanced-New | C84: 0.2 | D84: 0.2 | E84: 0.1 | F84: 0 | G84: 0 | H84: 0 | I84: 0 | J84: 0.7 | K84: 0.2 | L84: 0 | M84: 0 | N84: 0 | O84: 0 | P84: 0 | Q84: 0 | R84: 0.05 | S84: 0.05 | T84: 0.05 | U84: 0 | W84: 0.1748864119
B85: =MLIST!D85 -> Perimeter Daylighting Controls Advanced-NR | C85: 0.1 | D85: 0.1 | E85: 0.05 | F85: 0 | G85: 0 | H85: 0 | I85: 0 | J85: 0.3 | K85: 0.2 | L85: 0 | M85: 0 | N85: 0 | O85: 0 | P85: 0 | Q85: 0 | R85: 0.05 | S85: 0.05 | T85: 0.05 | U85: 0
B86: =MLIST!D86 -> Lighting Controls Interior-New | C86: 0.1 | D86: 0.05 | E86: 0.03 | F86: 0.7 | G86: 0.5 | H86: 0.3 | I86: 0.5 | J86: 0.2 | K86: 0.2 | L86: 0.2 | M86: 0.7 | N86: 0.5 | O86: 0.05 | P86: 0.05 | Q86: 0.2 | R86: 0.2 | S86: 0.1 | T86: 0.1 | U86: 0
B87: =MLIST!D87 -> Lighting Controls Interior-NR | C87: 0.1 | D87: 0.05 | E87: 0.03 | F87: 0.5 | G87: 0.3 | H87: 0.2 | I87: 0.3 | J87: 0.2 | K87: 0.2 | L87: 0.1 | M87: 0.5 | N87: 0.3 | O87: 0.05 | P87: 0.05 | Q87: 0.1 | R87: 0.1 | S87: 0.1 | T87: 0.1 | U87: 0
B88: =MLIST!D88 -> Exterior Building Lighting-New | C88: 0 | D88: 0 | E88: 0 | F88: 0 | G88: 0 | H88: 0 | I88: 0 | J88: 0 | K88: 0 | L88: 0 | M88: 0 | N88: 0 | O88: 0 | P88: 0 | Q88: 0 | R88: 0 | S88: 0 | T88: 0 | U88: 0 | V88: Baseline saturation in measure workbook. Source (DOE 2014)
B89: =MLIST!D89 -> Exterior Building Lighting-NR | C89: 0 | D89: 0 | E89: 0 | F89: 0 | G89: 0 | H89: 0 | I89: 0 | J89: 0 | K89: 0 | L89: 0 | M89: 0 | N89: 0 | O89: 0 | P89: 0 | Q89: 0 | R89: 0 | S89: 0 | T89: 0 | U89: 0 | V89: Baseline saturation in measure workbook. Source (DOE 2014)
B90: =MLIST!D90 -> Street and Roadway Lighting-New | C90: 0 | D90: 0 | E90: 0 | F90: 0 | G90: 0 | H90: 0 | I90: 0 | J90: 0 | K90: 0 | L90: 0 | M90: 0 | N90: 0 | O90: 0 | P90: 0 | Q90: 0 | R90: 0 | S90: 0 | T90: 0 | U90: 0.4 | V90: Baseline saturation in measure workbook. Source (DOE 2014)
B91: =MLIST!D91 -> Street and Roadway Lighting-Retro | C91: 0 | D91: 0 | E91: 0 | F91: 0 | G91: 0 | H91: 0 | I91: 0 | J91: 0 | K91: 0 | L91: 0 | M91: 0 | N91: 0 | O91: 0 | P91: 0 | Q91: 0 | R91: 0 | S91: 0 | T91: 0 | U91: 0 | V91: Baseline saturation in measure workbook. Source (DOE 2014)
B92: =MLIST!D92 -> Parking Garage Lighting-New | C92: 0.2 | D92: 0.2 | E92: 0.2 | F92: 0.2 | G92: 0.2 | H92: 0.2 | I92: 0.2 | J92: 0.2 | K92: 0.2 | L92: 0.2 | M92: 0.2 | N92: 0.2 | O92: 0.2 | P92: 0.2 | Q92: 0.2 | R92: 0.2 | S92: 0.2 | T92: 0.2
B93: =MLIST!D93 -> Parking Garage Lighting-Retro | C93: 0.01 | D93: 0.01 | E93: 0.01 | F93: 0.01 | G93: 0.01 | H93: 0.01 | I93: 0.01 | J93: 0.01 | K93: 0.01 | L93: 0.01 | M93: 0.01 | N93: 0.01 | O93: 0.01 | P93: 0.01 | Q93: 0.01 | R93: 0.01 | S93: 0.01 | T93: 0.01 | U93: 0.01
B94: =MLIST!D94 -> Bi-Level Stairwell Lighting-NR | C94: 0 | D94: 0 | E94: 0 | F94: 0 | G94: 0 | H94: 0 | I94: 0 | J94: 0 | K94: 0 | L94: 0 | M94: 0 | N94: 0 | O94: 0 | P94: 0 | Q94: 0 | R94: 0 | S94: 0 | T94: 0
B95: =MLIST!D95 -> Low Power LF Lamps-NR | C95: 0 | D95: 0 | E95: 0 | F95: 0 | G95: 0 | H95: 0 | I95: 0 | J95: 0 | K95: 0 | L95: 0 | M95: 0 | N95: 0 | O95: 0 | P95: 0 | Q95: 0 | R95: 0 | S95: 0 | T95: 0 | V95: In workbook. Uses market average mix of lpow watt from sales data
B96: =MLIST!D96 -> LEC Exit Sign-New
B97: =MLIST!D97 -> LEC Exit Sign-NR
B98: =MLIST!D98 -> Commercial Ice Maker-NR | C98: 0 | D98: 0 | E98: 0 | F98: 0 | G98: 0 | H98: 0 | I98: 0 | J98: 0 | K98: 0 | L98: 0 | M98: 0 | N98: 0 | O98: 0 | P98: 0 | Q98: 0 | R98: 0 | S98: 0 | T98: 0 | U98: 0
B99: =MLIST!D99 -> Commercial Beverage Vending Machine-NR | C99: 0 | D99: 0 | E99: 0 | F99: 0 | G99: 0 | H99: 0 | I99: 0 | J99: 0 | K99: 0 | L99: 0 | M99: 0 | N99: 0 | O99: 0 | P99: 0 | Q99: 0 | R99: 0 | S99: 0 | T99: 0 | U99: 0
B100: =MLIST!D100 -> Clean Water PUmps-Retro | C100: 0 | D100: 0 | E100: 0 | F100: 0 | G100: 0 | H100: 0 | I100: 0 | J100: 0 | K100: 0 | L100: 0 | M100: 0 | N100: 0 | O100: 0 | P100: 0 | Q100: 0 | R100: 0 | S100: 0 | T100: 0
B101: =MLIST!D101 -> Servers & Power Supplies-NR | C101: 0 | D101: 0 | E101: 0 | F101: 0 | G101: 0 | H101: 0 | I101: 0 | J101: 0 | K101: 0 | L101: 0 | M101: 0 | N101: 0 | O101: 0 | P101: 0 | Q101: 0 | R101: 0 | S101: 0 | T101: 0
B102: =MLIST!D102 -> Elevators-Retro | C102: 0 | D102: 0 | E102: 0 | F102: 0 | G102: 0 | H102: 0 | I102: 0 | J102: 0 | K102: 0 | L102: 0 | M102: 0 | N102: 0 | O102: 0 | P102: 0 | Q102: 0 | R102: 0 | S102: 0 | T102: 0
B103: =MLIST!D103 -> Clean Water Pumps-NR | C103: 0 | D103: 0 | E103: 0 | F103: 0 | G103: 0 | H103: 0 | I103: 0 | J103: 0 | K103: 0 | L103: 0 | M103: 0 | N103: 0 | O103: 0 | P103: 0 | Q103: 0 | R103: 0 | S103: 0 | T103: 0
B104: =MLIST!D104 -> Clean Water Pumps-New | C104: 0 | D104: 0 | E104: 0 | F104: 0 | G104: 0 | H104: 0 | I104: 0 | J104: 0 | K104: 0 | L104: 0 | M104: 0 | N104: 0 | O104: 0 | P104: 0 | Q104: 0 | R104: 0 | S104: 0 | T104: 0
B105: =MLIST!D105 -> EBHeaterControl-Retro | C105: 0 | D105: 0 | E105: 0 | F105: 0 | G105: 0 | H105: 0 | I105: 0 | J105: 0 | K105: 0 | L105: 0 | M105: 0 | N105: 0 | O105: 0 | P105: 0 | Q105: 0 | R105: 0 | S105: 0 | T105: 0
B106: =MLIST!D106 -> GroceryRefrigeration-NR | C106: 0 | D106: 0 | E106: 0 | F106: 0 | G106: 0 | H106: 0 | I106: 0 | J106: 0 | K106: 0 | L106: 0 | M106: 0 | N106: 0 | O106: 0 | P106: 0 | Q106: 0 | R106: 0 | S106: 0 | T106: 0
B107: =MLIST!D107 -> GroceryRefrigeration-Retro | C107: 0 | D107: 0 | E107: 0 | F107: 0 | G107: 0 | H107: 0 | I107: 0 | J107: 0 | K107: 0 | L107: 0 | M107: 0 | N107: 0 | O107: 0 | P107: 0 | Q107: 0 | R107: 0 | S107: 0 | T107: 0 | U107: 0
B108: =MLIST!D108 -> GroceryRefrigeration-New | C108: 0 | D108: 0 | E108: 0 | F108: 0 | G108: 0 | H108: 0 | I108: 0 | J108: 0 | K108: 0 | L108: 0 | M108: 0 | N108: 0 | O108: 0 | P108: 0 | Q108: 0 | R108: 0 | S108: 0 | T108: 0
B109: =MLIST!D109 -> Packaged Refrigeration Equipment-New | C109: 0 | D109: 0 | E109: 0 | F109: 0 | G109: 0 | H109: 0 | I109: 0 | J109: 0 | K109: 0 | L109: 0 | M109: 0 | N109: 0 | O109: 0 | P109: 0 | Q109: 0 | R109: 0 | S109: 0 | T109: 0 | U109: 0.05
B110: =MLIST!D110 -> Refrig-Freezer-NR | C110: 0 | D110: 0 | E110: 0 | F110: 0 | G110: 0 | H110: 0 | I110: 0 | J110: 0 | K110: 0 | L110: 0 | M110: 0 | N110: 0 | O110: 0 | P110: 0 | Q110: 0 | R110: 0 | S110: 0 | T110: 0
B111: =MLIST!D111 -> Refrig-Freezer-New | C111: 0 | D111: 0 | E111: 0 | F111: 0 | G111: 0 | H111: 0 | I111: 0 | J111: 0 | K111: 0 | L111: 0 | M111: 0 | N111: 0 | O111: 0 | P111: 0 | Q111: 0 | R111: 0 | S111: 0 | T111: 0
B112: =MLIST!D112 -> Water Cooler Controls-NR | C112: 0 | D112: 0 | E112: 0 | F112: 0 | G112: 0 | H112: 0 | I112: 0 | J112: 0 | K112: 0 | L112: 0 | M112: 0 | N112: 0 | O112: 0 | P112: 0 | Q112: 0 | R112: 0 | S112: 0 | T112: 0 | U112: 0 | V112: Baseline saturation in measure workbook. Multiple measures
B113: =MLIST!D113 -> HPWH ResType-New | C113: 0 | D113: 0 | E113: 0 | F113: 0 | G113: 0 | H113: 0 | I113: 0 | J113: 0 | K113: 0 | L113: 0 | M113: 0 | N113: 0 | O113: 0 | P113: 0 | Q113: 0 | R113: 0 | S113: 0 | T113: 0 | U113: 0.1
B114: =MLIST!D114 -> HPWH ResType-NR | C114: 0 | D114: 0 | E114: 0 | F114: 0 | G114: 0 | H114: 0 | I114: 0 | J114: 0 | K114: 0 | L114: 0 | M114: 0 | N114: 0 | O114: 0 | P114: 0 | Q114: 0 | R114: 0 | S114: 0 | T114: 0
B115: =MLIST!D115 -> Washer-New | C115: 0 | D115: 0 | E115: 0 | F115: 0 | G115: 0 | H115: 0 | I115: 0 | J115: 0 | K115: 0 | L115: 0 | M115: 0 | N115: 0 | O115: 0 | P115: 0 | Q115: 0 | R115: 0 | S115: 0 | T115: 0
B116: =MLIST!D116 -> Washer-NR | C116: 0 | D116: 0 | E116: 0 | F116: 0 | G116: 0 | H116: 0 | I116: 0 | J116: 0 | K116: 0 | L116: 0 | M116: 0 | N116: 0 | O116: 0 | P116: 0 | Q116: 0 | R116: 0 | S116: 0 | T116: 0
B117: =MLIST!D117 -> Showerheads-NR | C117: 0.2 | D117: 0.2 | E117: 0.2 | F117: 0.2 | G117: 0.2 | H117: 0.2 | I117: 0.2 | J117: 0.2 | K117: 0.2 | L117: 0.2 | M117: 0.2 | N117: 0.2 | O117: 0.2 | P117: 0.2 | Q117: 0.2 | R117: 0.2 | S117: 0.2 | T117: 0.2
B118: =MLIST!D118 -> Showerheads-Retro | C118: 0 | D118: 0 | E118: 0 | F118: 0 | G118: 0 | H118: 0 | I118: 0 | J118: 0 | K118: 0 | L118: 0 | M118: 0 | N118: 0 | O118: 0 | P118: 0 | Q118: 0 | R118: 0 | S118: 0 | T118: 0
B119: =MLIST!D119 -> 0 | C119: 0 | D119: 0 | E119: 0 | F119: 0 | G119: 0 | H119: 0 | I119: 0 | J119: 0 | K119: 0 | L119: 0 | M119: 0 | N119: 0 | O119: 0 | P119: 0 | Q119: 0 | R119: 0 | S119: 0 | T119: 0
B120: =MLIST!D120 -> 0 | C120: 0 | D120: 0 | E120: 0 | F120: 0 | G120: 0 | H120: 0 | I120: 0 | J120: 0 | K120: 0 | L120: 0 | M120: 0 | N120: 0 | O120: 0 | P120: 0 | Q120: 0 | R120: 0 | S120: 0 | T120: 0
B121: =MLIST!D121 -> 0 | C121: 0.08 | D121: 0.04 | E121: 0 | F121: 0.08 | G121: 0 | H121: 0 | I121: 0.02 | J121: 0.3 | K121: 0.15 | L121: 0 | M121: 0 | N121: 0 | O121: 0 | P121: 0.02 | Q121: 0.1 | R121: 0.05 | S121: 0.02 | T121: 0.02 | U121: 0

Sheet FEAS
A1: FEAS
C5: 1 | D5: =C5+1 -> 2 | E5: 3 | F5: 4 | G5: 5 | H5: 6 | I5: 7 | J5: 8 | K5: 9 | L5: 10 | M5: 11 | N5: 12 | O5: 13 | P5: 14 | Q5: 15 | R5: 16 | S5: 17 | T5: 18 | U5: 19
C6: =COLUMN()-1 -> 2 | D6: 3 | E6: 4 | F6: 5 | G6: 6 | H6: 7 | I6: 8 | J6: 9 | K6: 10 | L6: 11 | M6: 12 | N6: 13 | O6: 14 | P6: 15 | Q6: 16 | R6: 17 | S6: 18 | T6: 19 | U6: 20
B7: =COLUMN()-1 -> 1 | C7: Factor One: Technical Achievability
C10: =APPLIC!C10 -> Office | D10: =APPLIC!D10 -> 0 | E10: =APPLIC!E10 -> 0 | F10: =APPLIC!F10 -> Retail | G10: =APPLIC!G10 -> 0 | H10: =APPLIC!H10 -> 0 | I10: =APPLIC!I10 -> 0 | J10: =APPLIC!J10 -> School | K10: =APPLIC!K10 -> 0 | L10: =APPLIC!L10 -> Warehouse | M10: =APPLIC!M10 -> Grocery | N10: =APPLIC!N10 -> 0 | O10: =APPLIC!O10 -> Restaurant | P10: =APPLIC!P10 -> Lodging | Q10: =APPLIC!Q10 -> Health | R10: =APPLIC!R10 -> 0 | S10: =APPLIC!S10 -> Assembly | T10: =APPLIC!T10 -> Other | U10: =APPLIC!U10 -> 0
A11: End Use | B11: Measure Index Name | C11: =APPLIC!C11 -> Large Off | D11: =APPLIC!D11 -> Medium Off | E11: =APPLIC!E11 -> Small Off | F11: =APPLIC!F11 -> Xlarge Ret | G11: =APPLIC!G11 -> Large Ret | H11: =APPLIC!H11 -> Medium Ret | I11: =APPLIC!I11 -> Small Ret | J11: =APPLIC!J11 -> School K-12 | K11: =APPLIC!K11 -> University | L11: =APPLIC!L11 -> Warehouse | M11: =APPLIC!M11 -> Supermarket | N11: =APPLIC!N11 -> MiniMart | O11: =APPLIC!O11 -> Restaurant | P11: =APPLIC!P11 -> Lodging | Q11: =APPLIC!Q11 -> Hospital | R11: =APPLIC!R11 -> Residential Care | S11: =APPLIC!S11 -> Assembly | T11: =APPLIC!T11 -> Other | U11: =APPLIC!U11 -> Non-Building Stock | V11: Source | AA11: New Construction | AB11: Assumption: Either VRF + Lighting is applied to new buildings, OR the Ultra Low Energy Building Measure is applies. Use these to eliminate overlap
A12: =MLIST!A12 -> Compressed Air | B12: =MLIST!D12 -> Compressors-New | C12: 0.01 | D12: 0.01 | E12: 0.01 | F12: 0.01 | G12: 0.01 | H12: 0.01 | I12: 0.01 | J12: 0.01 | K12: 0.01 | L12: 0.01 | M12: 0.01 | N12: 0.01 | O12: 0.01 | P12: 0.01 | Q12: 0.01 | R12: 0.01 | S12: 0.01 | T12: 0.01 | U12: 0.01 | AA12: Applicability Matrix | AC12: VRF | AD12: Lighting | AF12: ULEB
A13: =MLIST!A13 -> Compressed Air | B13: =MLIST!D13 -> Compressors-NR | C13: 0.01 | D13: 0.01 | E13: 0.01 | F13: 0.01 | G13: 0.01 | H13: 0.01 | I13: 0.01 | J13: 0.01 | K13: 0.01 | L13: 0.01 | M13: 0.01 | N13: 0.01 | O13: 0.01 | P13: 0.01 | Q13: 0.01 | R13: 0.01 | S13: 0.01 | T13: 0.01 | U13: 0.01 | AB13: Large Off | AC13: 0.05 | AF13: =1-AC13 -> 0.95
A14: =MLIST!A14 -> Electronics | B14: =MLIST!D14 -> Laptop-NR | C14: 1 | D14: 1 | E14: 1 | F14: 1 | G14: 1 | H14: 1 | I14: 1 | J14: 1 | K14: 1 | L14: 1 | M14: 1 | N14: 1 | O14: 1 | P14: 1 | Q14: 1 | R14: 1 | S14: 1 | T14: 1 | U14: 1 | AB14: Small Off | AC14: 0.8 | AF14: =1-AC14 -> 0.2
A15: =MLIST!A15 -> Electronics | B15: =MLIST!D15 -> PowerStrips-Retro | C15: 0.75 | D15: 0.75 | E15: 0.75 | F15: 0.75 | G15: 0.75 | H15: 0.75 | I15: 0.75 | J15: 0.75 | K15: 0.75 | L15: 0.75 | M15: 0.75 | N15: 0.75 | O15: 0.75 | P15: 0.75 | Q15: 0.75 | R15: 0.75 | S15: 0.75 | T15: 0.75 | U15: 1 | AB15: Xlarge Ret | AC15: 0.25 | AF15: 0.75
A16: =MLIST!A16 -> Electronics | B16: =MLIST!D16 -> PowerStrips-New | C16: 0.75 | D16: 0.75 | E16: 0.75 | F16: 0.75 | G16: 0.75 | H16: 0.75 | I16: 0.75 | J16: 0.75 | K16: 0.75 | L16: 0.75 | M16: 0.75 | N16: 0.75 | O16: 0.75 | P16: 0.75 | Q16: 0.75 | R16: 0.75 | S16: 0.75 | T16: 0.75
A17: =MLIST!A17 -> Electronics | B17: =MLIST!D17 -> Data Centers-NR | C17: 0.01 | D17: 0.01 | E17: 0.01 | F17: 0.01 | G17: 0.01 | H17: 0.01 | I17: 0.01 | J17: 0.01 | K17: 0.01 | L17: 0.01 | M17: 0.01 | N17: 0.01 | O17: 0.01 | P17: 0.01 | Q17: 0.01 | R17: 0.01 | S17: 0.01 | T17: 0.01 | U17: 1 | AB17: Large Ret | AC17: 0.25 | AF17: 0.75
A18: =MLIST!A18 -> Electronics | B18: =MLIST!D18 -> Desktop-WA-NR | C18: 1 | D18: 1 | E18: 1 | F18: 1 | G18: 1 | H18: 1 | I18: 1 | J18: 1 | K18: 1 | L18: 1 | M18: 1 | N18: 1 | O18: 1 | P18: 1 | Q18: 1 | R18: 1 | S18: 1 | T18: 1 | U18: 1 | AB18: Medium Ret | AC18: 0.25 | AF18: 0.75
A19: =MLIST!A19 -> Electronics | B19: =MLIST!D19 -> Desktop-NR | C19: 1 | D19: 1 | E19: 1 | F19: 1 | G19: 1 | H19: 1 | I19: 1 | J19: 1 | K19: 1 | L19: 1 | M19: 1 | N19: 1 | O19: 1 | P19: 1 | Q19: 1 | R19: 1 | S19: 1 | T19: 1 | U19: 1 | AB19: Small Ret | AC19: 0.25 | AF19: 0.75
A20: =MLIST!A20 -> Electronics | B20: =MLIST!D20 -> Laptop-WA-NR | C20: 1 | D20: 1 | E20: 1 | F20: 1 | G20: 1 | H20: 1 | I20: 1 | J20: 1 | K20: 1 | L20: 1 | M20: 1 | N20: 1 | O20: 1 | P20: 1 | Q20: 1 | R20: 1 | S20: 1 | T20: 1 | U20: 1
A21: =MLIST!A21 -> Food Preparation | B21: =MLIST!D21 -> Pre-Rinse Spray Valve-Retro | C21: 0 | D21: 0 | E21: 0 | F21: 0 | G21: 0 | H21: 0 | I21: 0 | J21: 0 | K21: 0 | L21: 0 | M21: 0 | N21: 0 | O21: 0 | P21: 0 | Q21: 0 | R21: 0 | S21: 0 | T21: 0 | U21: 1 | AB21: School K-12 | AC21: 0.8 | AF21: 0.2
A22: =MLIST!A22 -> Food Preparation | B22: =MLIST!D22 -> Steamer-NR | C22: 0 | D22: 0 | E22: 0 | F22: 0 | G22: 0 | H22: 0 | I22: 0 | J22: 0 | K22: 0 | L22: 0 | M22: 0 | N22: 0 | O22: 0 | P22: 0 | Q22: 0 | R22: 0 | S22: 0 | T22: 0 | AB22: University | AC22: 0.8 | AF22: 0.2
A23: =MLIST!A23 -> Food Preparation | B23: =MLIST!D23 -> Combo Oven-NR | C23: 0 | D23: 0 | E23: 0 | F23: 0 | G23: 0 | H23: 0 | I23: 0 | J23: 0 | K23: 0 | L23: 0 | M23: 0 | N23: 0 | O23: 0 | P23: 0 | Q23: 0 | R23: 0 | S23: 0 | T23: 0
A24: =MLIST!A24 -> Food Preparation | B24: =MLIST!D24 -> HFHC-NR | C24: 0 | D24: 0 | E24: 0 | F24: 0 | G24: 0 | H24: 0 | I24: 0 | J24: 0 | K24: 0 | L24: 0 | M24: 0 | N24: 0 | O24: 0 | P24: 0 | Q24: 0 | R24: 0 | S24: 0 | T24: 0
A25: =MLIST!A25 -> Food Preparation | B25: =MLIST!D25 -> Convection Oven-NR | C25: 0 | D25: 0 | E25: 0 | F25: 0 | G25: 0 | H25: 0 | I25: 0 | J25: 0 | K25: 0 | L25: 0 | M25: 0 | N25: 0 | O25: 0 | P25: 0 | Q25: 0 | R25: 0 | S25: 0 | T25: 0
A26: =MLIST!A26 -> Food Preparation | B26: =MLIST!D26 -> Fryer-NR | C26: 0 | D26: 0 | E26: 0 | F26: 0 | G26: 0 | H26: 0 | I26: 0 | J26: 0 | K26: 0 | L26: 0 | M26: 0 | N26: 0 | O26: 0 | P26: 0 | Q26: 0 | R26: 0 | S26: 0 | T26: 0
A27: =MLIST!A27 -> Food Preparation | B27: =MLIST!D27 -> Griddle-NR | C27: 0 | D27: 0 | E27: 0 | F27: 0 | G27: 0 | H27: 0 | I27: 0 | J27: 0 | K27: 0 | L27: 0 | M27: 0 | N27: 0 | O27: 0 | P27: 0 | Q27: 0 | R27: 0 | S27: 0 | T27: 0
A28: =MLIST!A28 -> Food Preparation | B28: =MLIST!D28 -> Overwrapper-NR | C28: 0 | D28: 0 | E28: 0 | F28: 0 | G28: 0 | H28: 0 | I28: 0 | J28: 0 | K28: 0 | L28: 0 | M28: 0 | N28: 0 | O28: 0 | P28: 0 | Q28: 0 | R28: 0 | S28: 0 | T28: 0
A29: =MLIST!A29 -> HVAC | B29: =MLIST!D29 -> DHP-New | C29: =C30 -> 0 | D29: =D30 -> 0 | E29: 0.2099385997 | F29: 0 | G29: 0 | H29: 0 | I29: 0.2209496178 | J29: 0.0003681042832 | K29: 0 | L29: 0.001018116637 | M29: 0 | N29: 0.1774139958 | O29: 0.02687489299 | P29: 0.004508599092 | Q29: 0 | R29: 6.749198558e-05 | S29: 0.001193417146 | T29: 0.007100666862 | U29: 0 | AB29: Warehouse | AC29: 0.01 | AF29: 0.99
A30: =MLIST!A30 -> HVAC | B30: =MLIST!D30 -> DHP-Retro | C30: =CHAR!C107 -> 0 | D30: =CHAR!D107 -> 0 | E30: =CHAR!E107 -> 0.2099385997 | F30: =CHAR!F107 -> 0 | G30: =CHAR!G107 -> 0 | H30: =CHAR!H107 -> 0 | I30: =CHAR!I107 -> 0.2209496178 | J30: =CHAR!J107 -> 0.0003681042832 | K30: =CHAR!K107 -> 0 | L30: =CHAR!L107 -> 0.001018116637 | M30: =CHAR!M107 -> 0 | N30: =CHAR!N107 -> 0.1774139958 | O30: =CHAR!O107 -> 0.02687489299 | P30: =CHAR!P107 -> 0.004508599092 | Q30: =CHAR!Q107 -> 0 | R30: =CHAR!R107 -> 6.749198558e-05 | S30: =CHAR!S107 -> 0.001193417146 | T30: =CHAR!T107 -> 0.007100666862 | U30: 0 | AB30: Supermarket | AC30: 0.05 | AF30: 0.95
A31: =MLIST!A31 -> HVAC | B31: =MLIST!D31 -> Glass-New | C31: 0 | D31: 0 | E31: 0 | F31: 0 | G31: 0 | H31: 0 | I31: 0 | J31: 0 | K31: 0 | L31: 0 | M31: 0 | N31: 0 | O31: 0 | P31: 0 | Q31: 0 | R31: 0 | S31: 0 | T31: 0 | U31: 0 | AB31: MiniMart | AC31: 0.05 | AF31: 0.95
A32: =MLIST!A32 -> HVAC | B32: =MLIST!D32 -> Glass-NR | C32: 0 | D32: 0 | E32: 0 | F32: 0 | G32: 0 | H32: 0 | I32: 0 | J32: 0 | K32: 0 | L32: 0 | M32: 0 | N32: 0 | O32: 0 | P32: 0 | Q32: 0 | R32: 0 | S32: 0 | T32: 0 | U32: 0 | AB32: Restaurant | AC32: 0.25 | AF32: 0.75
A33: =MLIST!A33 -> HVAC | B33: =MLIST!D33 -> ARC-New | C33: =CHAR!C57 -> 0.001892675403 | D33: =CHAR!D57 -> 0.1471496529 | E33: =CHAR!E57 -> 0.1324068996 | F33: =CHAR!F57 -> 0.0007888545633 | G33: =CHAR!G57 -> 0 | H33: =CHAR!H57 -> 0.006255476247 | I33: =CHAR!I57 -> 0.07797222272 | J33: =CHAR!J57 -> 0.007296144525 | K33: =CHAR!K57 -> 0 | L33: =CHAR!L57 -> 0.005900284927 | M33: =CHAR!M57 -> 0.01400339006 | N33: =CHAR!N57 -> 0.09038650499 | O33: =CHAR!O57 -> 0.05594701727 | P33: =CHAR!P57 -> 0.06267689091 | Q33: =CHAR!Q57 -> 0 | R33: =CHAR!R57 -> 0.02152551647 | S33: =CHAR!S57 -> 0.01968962823 | T33: =CHAR!T57 -> 0.01545024763 | U33: 0 | V33: Assume same as retro | AB33: Hospital | AC33: 0.05 | AF33: 0.95
A34: =MLIST!A34 -> HVAC | B34: =MLIST!D34 -> ARC-NR | C34: 1 | D34: 1 | E34: 1 | F34: 1 | G34: 1 | H34: 1 | I34: 1 | J34: 1 | K34: 1 | L34: 1 | M34: 1 | N34: 1 | O34: 1 | P34: 1 | Q34: 1 | R34: 1 | S34: 1 | T34: 1 | U34: 0 | AB34: Residential Care | AC34: 0.8 | AF34: 0.2
A35: =MLIST!A35 -> HVAC | B35: =MLIST!D35 -> ARC-Retro | C35: =CHAR!C104 -> 0.05965707533 | D35: =CHAR!D104 -> 0.4197969581 | E35: =CHAR!E104 -> 0.2289353295 | F35: =CHAR!F104 -> 0.6146642445 | G35: =CHAR!G104 -> 0.5420938872 | H35: =CHAR!H104 -> 0.3195335857 | I35: =CHAR!I104 -> 0.1952922171 | J35: =CHAR!J104 -> 0.1123086668 | K35: =CHAR!K104 -> 0.1075 | L35: =CHAR!L104 -> 0.05314425824 | M35: =CHAR!M104 -> 0.442586653 | N35: =CHAR!N104 -> 0.6262022257 | O35: =CHAR!O104 -> 0.7724375018 | P35: =CHAR!P104 -> 0.08896815219 | Q35: =CHAR!Q104 -> 0.1375 | R35: =CHAR!R104 -> 0.1430728023 | S35: =CHAR!S104 -> 0.2452502121 | T35: =CHAR!T104 -> 0.09423526066 | U35: 0 | V35: Share of rooftop systems with correct control type | AB35: Assembly | AC35: 0.25 | AF35: 0.75
A36: =MLIST!A36 -> HVAC | B36: =MLIST!D36 -> Chiller-Upgrade-New | C36: 0.9508004041 | D36: 0.1401163276 | E36: 0.0114718709 | F36: 0.01888364273 | G36: 0 | H36: 0.02209807895 | I36: 0 | J36: 0.3042470598 | K36: 0.2810036845 | L36: 0.003552182103 | M36: 0.02420489899 | N36: 0 | O36: 0 | P36: 0.2734550352 | Q36: 0.7554900522 | R36: 0.1433356694 | S36: 0.2039838383 | T36: 0.2453900364 | U36: 0 | AB36: Other | AC36: 0.8 | AF36: 0.2
A37: =MLIST!A37 -> HVAC | B37: =MLIST!D37 -> Chiller-Upgrade-NR | C37: 0.9508004041 | D37: 0.1401163276 | E37: 0.0114718709 | F37: 0.01888364273 | G37: 0 | H37: 0.02209807895 | I37: 0 | J37: 0.3042470598 | K37: 0.2810036845 | L37: 0.003552182103 | M37: 0.02420489899 | N37: 0 | O37: 0 | P37: 0.2734550352 | Q37: 0.7554900522 | R37: 0.1433356694 | S37: 0.2039838383 | T37: 0.2453900364 | U37: 0 | V37: CBSA/CADMUS
A38: =MLIST!A38 -> HVAC | B38: =MLIST!D38 -> Chiller-System-Retro | C38: 0.9508004041 | D38: 0.1401163276 | E38: 0.0114718709 | F38: 0.01888364273 | G38: 0 | H38: 0.02209807895 | I38: 0 | J38: 0.3042470598 | K38: 0.2810036845 | L38: 0.003552182103 | M38: 0.02420489899 | N38: 0 | O38: 0 | P38: 0.2734550352 | Q38: 0.7554900522 | R38: 0.1433356694 | S38: 0.2039838383 | T38: 0.2453900364 | U38: 0
A39: =MLIST!A39 -> HVAC | B39: =MLIST!D39 -> Fans-Retro | C39: 1 | D39: 1 | E39: 1 | F39: 1 | G39: 1 | H39: 1 | I39: 1 | J39: 1 | K39: 1 | L39: 1 | M39: 1 | N39: 1 | O39: 1 | P39: 1 | Q39: 1 | R39: 1 | S39: 1 | T39: 1 | U39: 0.01 | AB39: =30%*0.33 -> 0.099
A40: =MLIST!A40 -> HVAC | B40: =MLIST!D40 -> Fans-NR | C40: 1 | D40: 1 | E40: 1 | F40: 1 | G40: 1 | H40: 1 | I40: 1 | J40: 1 | K40: 1 | L40: 1 | M40: 1 | N40: 1 | O40: 1 | P40: 1 | Q40: 1 | R40: 1 | S40: 1 | T40: 1
A41: =MLIST!A41 -> HVAC | B41: =MLIST!D41 -> Fans-New | C41: 1 | D41: 1 | E41: 1 | F41: 1 | G41: 1 | H41: 1 | I41: 1 | J41: 1 | K41: 1 | L41: 1 | M41: 1 | N41: 1 | O41: 1 | P41: 1 | Q41: 1 | R41: 1 | S41: 1 | T41: 1
A42: =MLIST!A42 -> HVAC | B42: =MLIST!D42 -> VHE-DOAS-NR | C42: =CHAR!C109 -> 0 | D42: =CHAR!D109 -> 0.3111679956 | E42: =CHAR!E109 -> 0.1007895659 | F42: =CHAR!F109 -> 0 | G42: =CHAR!G109 -> 0 | H42: =CHAR!H109 -> 0.224049562 | I42: =CHAR!I109 -> 0.02092920743 | J42: =CHAR!J109 -> 0.1188048962 | K42: =CHAR!K109 -> 0.0325 | L42: =CHAR!L109 -> 0 | M42: =CHAR!M109 -> 0 | N42: =CHAR!N109 -> 0 | O42: =CHAR!O109 -> 0 | P42: =CHAR!P109 -> 0.08114423974 | Q42: =CHAR!Q109 -> 0 | R42: =CHAR!R109 -> 0.1122823565 | S42: =CHAR!S109 -> 0.08017663802 | T42: =CHAR!T109 -> 0.08036248059 | V42: The NEEA report only covers retail office, and schools
A43: =MLIST!A43 -> HVAC | B43: =MLIST!D43 -> VHE-DOAS-New | C43: =C42 -> 0 | D43: =D42 -> 0.3111679956 | E43: 0.1007895659 | F43: 0 | G43: 0 | H43: 0.224049562 | I43: 0.02092920743 | J43: 0.1188048962 | K43: 0.0325 | L43: 0 | M43: 0 | N43: 0 | O43: 0 | P43: 0.08114423974 | Q43: 0 | R43: 0.1122823565 | S43: 0.08017663802 | T43: 0.08036248059
A44: =MLIST!A44 -> HVAC | B44: =MLIST!D44 -> -NR | C44: 0 | D44: =C44 -> 0 | E44: =D44 -> 0 | F44: 0 | G44: 0 | H44: 0 | I44: 0 | J44: 0 | K44: 0 | L44: 0 | M44: 0 | N44: 0 | O44: 0 | P44: 0 | Q44: 0 | R44: 0 | S44: 0 | T44: 0
A45: =MLIST!A45 -> HVAC | B45: =MLIST!D45 -> Commercial EM-New | C45: =C46 -> 0.496652192 | D45: =D46 -> 0.08792519768 | E45: 0 | F45: 0.03776512282 | G45: 0.2543920835 | H45: 0.02419631106 | I45: 0 | J45: 0.2895734353 | K45: 0.7775678559 | L45: 0 | M45: 0.06708188754 | N45: 0 | O45: 0.02154376936 | P45: 0.07439608947 | Q45: 0.8533969679 | R45: 0.07255137877 | S45: 0 | T45: 0 | U45: 0 | AA45: Large Off | AB45: 0.00495
A46: =MLIST!A46 -> HVAC | B46: =MLIST!D46 -> Commercial EM-Retro | C46: =CHAR!C$106 -> 0.496652192 | D46: =CHAR!D$106 -> 0.08792519768 | E46: =CHAR!E$106 -> 0 | F46: =CHAR!F$106 -> 0.03776512282 | G46: =CHAR!G$106 -> 0.2543920835 | H46: =CHAR!H$106 -> 0.02419631106 | I46: =CHAR!I$106 -> 0 | J46: =CHAR!J$106 -> 0.2895734353 | K46: =CHAR!K$106 -> 0.7775678559 | L46: =CHAR!L$106 -> 0 | M46: =CHAR!M$106 -> 0.06708188754 | N46: =CHAR!N$106 -> 0 | O46: =CHAR!O$106 -> 0.02154376936 | P46: =CHAR!P$106 -> 0.07439608947 | Q46: =CHAR!Q$106 -> 0.8533969679 | R46: =CHAR!R$106 -> 0.07255137877 | S46: =CHAR!S$106 -> 0 | T46: =CHAR!T$106 -> 0 | U46: 0 | AA46: Medium Off | AB46: 0.0693
A47: =MLIST!A47 -> HVAC | B47: =MLIST!D47 -> Economizer-Retro | C47: =CHAR!C89 -> 0.6295623777 | D47: =CHAR!D89 -> 0.3176886192 | E47: =CHAR!E89 -> 0.0740251796 | F47: =CHAR!F89 -> 0.5884896851 | G47: =CHAR!G89 -> 0.2654342436 | H47: =CHAR!H89 -> 0.2068489358 | I47: =CHAR!I89 -> 0.01359721457 | J47: =CHAR!J89 -> 0.4681387362 | K47: =CHAR!K89 -> 0.4681387362 | L47: =CHAR!L89 -> 0.1483320506 | M47: =CHAR!M89 -> 0.5226830736 | N47: =CHAR!N89 -> 0.2035264088 | O47: =CHAR!O89 -> 0.3286961737 | P47: =CHAR!P89 -> 0.1042343135 | Q47: =CHAR!Q89 -> 0.5687355601 | R47: =CHAR!R89 -> 0.07873127299 | S47: =CHAR!S89 -> 0.3985990181 | T47: =CHAR!T89 -> 0.4198809343 | U47: 0 | AA47: Small Off | AB47: 0.0693
A48: =MLIST!A48 -> HVAC | B48: =MLIST!D48 -> Demand Control Ventilation-New | C48: 0 | D48: 0 | E48: 0 | F48: 0 | G48: 0 | H48: 0 | I48: 0 | J48: 0 | K48: 0 | L48: 0 | M48: 0 | N48: 0 | O48: 0 | P48: 0 | Q48: 0 | R48: 0 | S48: 0 | T48: 0 | U48: 0 | AA48: Xlarge Ret | AB48: 0.02475
A49: =MLIST!A49 -> HVAC | B49: =MLIST!D49 -> Demand Control Ventilation-NR | C49: 0 | D49: 0 | E49: 0 | F49: 0 | G49: 0 | H49: 0 | I49: 0 | J49: 0 | K49: 0 | L49: 0 | M49: 0 | N49: 0 | O49: 0 | P49: 0 | Q49: 0 | R49: 0 | S49: 0 | T49: 0 | U49: 0 | AA49: Large Ret | AB49: 0.02475
A50: =MLIST!A50 -> HVAC | B50: =MLIST!D50 -> Demand Control Ventilation-Retro | C50: 0.146311376 | D50: 0.7458966192 | E50: 0.7350905574 | F50: 0.8357431256 | G50: 0.4678389245 | H50: 0.5417715113 | I50: 0.4283069025 | J50: 0.4797713877 | K50: 0.2224321441 | L50: 0.2407793453 | M50: 0.4405325644 | N50: 0.6664252525 | O50: 0.5217340521 | P50: 0.2516784677 | Q50: 0.1466030321 | R50: 0.3554611401 | S50: 0.6070912689 | T50: 0.4806762065 | U50: 0.4895981056 | V50: From CBSA | AA50: Medium Ret | AB50: 0.02475
A51: =MLIST!A51 -> HVAC | B51: =MLIST!D51 -> DCV-Lab Hood-Retro | C51: 0 | D51: 0 | E51: 0 | F51: 0 | G51: 0 | H51: 0 | I51: 0 | J51: 0 | K51: 0 | L51: 0 | M51: 0 | N51: 0 | O51: 0 | P51: 0 | Q51: 0 | R51: 0 | S51: 0 | T51: 0 | U51: 1 | AA51: Small Ret | AB51: 0.02475
A52: =MLIST!A52 -> HVAC | B52: =MLIST!D52 -> DCV-Kitchen-Retro | C52: 0 | D52: 0 | E52: 0 | F52: 0 | G52: 0 | H52: 0 | I52: 0 | J52: 0 | K52: 0 | L52: 0 | M52: 0 | N52: 0 | O52: 0 | P52: 0 | Q52: 0 | R52: 0 | S52: 0 | T52: 0 | U52: 1 | AA52: School K-12 | AB52: 0.0693
A53: =MLIST!A53 -> HVAC | B53: =MLIST!D53 -> DCV-Parking Garage-Retro | C53: 0 | D53: 0 | E53: 0 | F53: 0 | G53: 0 | H53: 0 | I53: 0 | J53: 0 | K53: 0 | L53: 0 | M53: 0 | N53: 0 | O53: 0 | P53: 0 | Q53: 0 | R53: 0 | S53: 0 | T53: 0 | U53: 1 | AA53: University | AB53: 0.0693
A54: =MLIST!A54 -> HVAC | B54: =MLIST!D54 -> Weatherization - School-Retro | C54: 0.01 | D54: 0.01 | E54: 0.01 | F54: 0.01 | G54: 0.01 | H54: 0.01 | I54: 0.01 | J54: 0.01 | K54: 0.01 | L54: 0.01 | M54: 0.01 | N54: 0.01 | O54: 0.01 | P54: 0.01 | Q54: 0.01 | R54: 0.01 | S54: 0.01 | T54: 0.01 | U54: 0.01 | AA54: Warehouse | AB54: 0.00099
A55: =MLIST!A55 -> HVAC | B55: =MLIST!D55 -> Energy Recovery Ventilator-NR | C55: 0.01 | D55: 0.01 | E55: 0.01 | F55: 0.01 | G55: 0.01 | H55: 0.01 | I55: 0.01 | J55: 0.01 | K55: 0.01 | L55: 0.01 | M55: 0.01 | N55: 0.01 | O55: 0.01 | P55: 0.01 | Q55: 0.01 | R55: 0.01 | S55: 0.01 | T55: 0.01 | U55: 1 | AA55: Supermarket | AB55: 0.00495
A56: =MLIST!A56 -> HVAC | B56: =MLIST!D56 -> AC Heat Recovery for Water Heating-NR | C56: 0.01 | D56: 0.01 | E56: 0.01 | F56: 0.01 | G56: 0.01 | H56: 0.01 | I56: 0.01 | J56: 0.01 | K56: 0.01 | L56: 0.01 | M56: 0.01 | N56: 0.01 | O56: 0.01 | P56: 0.01 | Q56: 0.01 | R56: 0.01 | S56: 0.01 | T56: 0.01 | U56: 0.01 | AA56: MiniMart | AB56: 0.00495
A57: =MLIST!A57 -> HVAC | B57: =MLIST!D57 -> Room Occupancy Sensors in Lodging-Retro | C57: 0.01 | D57: 0.01 | E57: 0.01 | F57: 0.01 | G57: 0.01 | H57: 0.01 | I57: 0.01 | J57: 0.01 | K57: 0.01 | L57: 0.01 | M57: 0.01 | N57: 0.01 | O57: 0.01 | P57: 0.01 | Q57: 0.01 | R57: 0.01 | S57: 0.01 | T57: 0.01 | U57: 0.01 | AA57: Restaurant | AB57: 0.02475
A58: =MLIST!A58 -> HVAC | B58: =MLIST!D58 -> Pool Blankets-Retro | C58: 0.01 | D58: 0.01 | E58: 0.01 | F58: 0.01 | G58: 0.01 | H58: 0.01 | I58: 0.01 | J58: 0.01 | K58: 0.01 | L58: 0.01 | M58: 0.01 | N58: 0.01 | O58: 0.01 | P58: 0.01 | Q58: 0.01 | R58: 0.01 | S58: 0.01 | T58: 0.01 | U58: 0.01 | AA58: Residential Care | AB58: 0.0693
A59: =MLIST!A59 -> HVAC | B59: =MLIST!D59 -> ConnectedThermostats-New | C59: =CHAR!C105 -> 0 | D59: =CHAR!D105 -> 0.1793831706 | E59: =CHAR!E105 -> 0.4164830052 | F59: =CHAR!F105 -> 0 | G59: =CHAR!G105 -> 0 | H59: =CHAR!H105 -> 0.2084740461 | I59: =CHAR!I105 -> 0.2440129177 | J59: =CHAR!J105 -> 0.176932177 | K59: =CHAR!K105 -> 0 | L59: =CHAR!L105 -> 0.1330645195 | M59: =CHAR!M105 -> 0.1344451374 | N59: =CHAR!N105 -> 0.3385418038 | O59: =CHAR!O105 -> 0.09528077527 | P59: =CHAR!P105 -> 0 | Q59: =CHAR!Q105 -> 0 | R59: =CHAR!R105 -> 0.06756016295 | S59: =CHAR!S105 -> 0.1843937799 | T59: =CHAR!T105 -> 0.1436723335 | AA59: Assembly | AB59: 0.02475
A60: =MLIST!A60 -> HVAC | B60: =MLIST!D60 -> ConnectedThermostats-Retro | C60: =CHAR!C105 -> 0 | D60: =CHAR!D105 -> 0.1793831706 | E60: =CHAR!E105 -> 0.4164830052 | F60: =CHAR!F105 -> 0 | G60: =CHAR!G105 -> 0 | H60: =CHAR!H105 -> 0.2084740461 | I60: =CHAR!I105 -> 0.2440129177 | J60: =CHAR!J105 -> 0.176932177 | K60: =CHAR!K105 -> 0 | L60: =CHAR!L105 -> 0.1330645195 | M60: =CHAR!M105 -> 0.1344451374 | N60: =CHAR!N105 -> 0.3385418038 | O60: =CHAR!O105 -> 0.09528077527 | P60: =CHAR!P105 -> 0 | Q60: =CHAR!Q105 -> 0 | R60: =CHAR!R105 -> 0.06756016295 | S60: =CHAR!S105 -> 0.1843937799 | T60: =CHAR!T105 -> 0.1436723335 | AA60: Assembly | AB60: 0.02475
A61: =MLIST!A61 -> HVAC | B61: =MLIST!D61 -> CircPumps-NR | C61: 1 | D61: 1 | E61: 1 | F61: 1 | G61: 1 | H61: 1 | I61: 1 | J61: 1 | K61: 1 | L61: 1 | M61: 1 | N61: 1 | O61: 1 | P61: 1 | Q61: 1 | R61: 1 | S61: 1 | T61: 1 | U61: 1 | V61: These are handled in the CircPump workbooks | AA61: Other | AB61: 0.0693
A62: =MLIST!A62 -> HVAC | B62: =MLIST!D62 -> Circpumps-New | C62: 1 | D62: 1 | E62: 1 | F62: 1 | G62: 1 | H62: 1 | I62: 1 | J62: 1 | K62: 1 | L62: 1 | M62: 1 | N62: 1 | O62: 1 | P62: 1 | Q62: 1 | R62: 1 | S62: 1 | T62: 1 | U62: 1 | V62: These are handled in the CircPump workbooks
A63: =MLIST!A63 -> HVAC | B63: =MLIST!D63 -> VRF-DOAS-New | C63: =CHAR!C54 -> 0.049 | D63: =CHAR!D54 -> 0.784 | E63: =CHAR!E54 -> 0.784 | F63: =CHAR!F54 -> 0.245 | G63: =CHAR!G54 -> 0.245 | H63: =CHAR!H54 -> 0.245 | I63: =CHAR!I54 -> 0.245 | J63: =CHAR!J54 -> 0.784 | K63: =CHAR!K54 -> 0.784 | L63: =CHAR!L54 -> 0.0098 | M63: =CHAR!M54 -> 0.049 | N63: =CHAR!N54 -> 0.049 | O63: =CHAR!O54 -> 0.245 | P63: =CHAR!P54 -> 0.686 | Q63: =CHAR!Q54 -> 0.049 | R63: =CHAR!R54 -> 0.784 | S63: =CHAR!S54 -> 0.245 | T63: =CHAR!T54 -> 0.784 | U63: 0
A64: =MLIST!A64 -> HVAC | B64: =MLIST!D64 -> VRF-DOAS-NR | C64: =CHAR!C102 -> 0.02482015287 | D64: =CHAR!D102 -> 0.06949642803 | E64: =CHAR!E102 -> 0.06949642803 | F64: =CHAR!F102 -> 0.00495 | G64: =CHAR!G102 -> 0.0693 | H64: =CHAR!H102 -> 0.0693 | I64: =CHAR!I102 -> 0.02475 | J64: =CHAR!J102 -> 0.02475 | K64: =CHAR!K102 -> 0.02475 | L64: =CHAR!L102 -> 0.02475 | M64: =CHAR!M102 -> 0.0693 | N64: =CHAR!N102 -> 0.0693 | O64: =CHAR!O102 -> 0.00099 | P64: =CHAR!P102 -> 0.00495 | Q64: =CHAR!Q102 -> 0.00495 | R64: =CHAR!R102 -> 0.02475 | S64: =CHAR!S102 -> 0.0693 | T64: =CHAR!T102 -> 0.00495 | U64: 0.01
A65: =MLIST!A65 -> HVAC | B65: =MLIST!D65 -> Evaporator Roof Top HVAC-Retro | C65: 0.01 | D65: 0.01 | E65: 0.01 | F65: 0.01 | G65: 0.01 | H65: 0.01 | I65: 0.01 | J65: 0.01 | K65: 0.01 | L65: 0.01 | M65: 0.01 | N65: 0.01 | O65: 0.01 | P65: 0.01 | Q65: 0.01 | R65: 0.01 | S65: 0.01 | T65: 0.01 | U65: 0.01
A66: =MLIST!A66 -> HVAC | B66: =MLIST!D66 -> HeatPumps-NR | C66: =CHAR!C110 -> 0.0365425604 | D66: =CHAR!D110 -> 0.3951965539 | E66: =CHAR!E110 -> 0.3799524543 | F66: =CHAR!F110 -> 0.02170973846 | G66: =CHAR!G110 -> 0 | H66: =CHAR!H110 -> 0.1119700008 | I66: =CHAR!I110 -> 0.08867928921 | J66: =CHAR!J110 -> 0.03510317305 | K66: =CHAR!K110 -> 0.1 | L66: =CHAR!L110 -> 0.005999006346 | M66: =CHAR!M110 -> 0.2381477798 | N66: =CHAR!N110 -> 0.2665583838 | O66: =CHAR!O110 -> 0.1638837336 | P66: =CHAR!P110 -> 0.06881125232 | Q66: =CHAR!Q110 -> 0.1 | R66: =CHAR!R110 -> 0.08209854133 | S66: =CHAR!S110 -> 0.09354174246 | T66: =CHAR!T110 -> 0.05259850406 | U66: 0.01
A67: =MLIST!A67 -> HVAC | B67: =MLIST!D67 -> HeatPumps-New | C67: =CHAR!C110 -> 0.0365425604 | D67: =CHAR!D110 -> 0.3951965539 | E67: =CHAR!E110 -> 0.3799524543 | F67: =CHAR!F110 -> 0.02170973846 | G67: =CHAR!G110 -> 0 | H67: =CHAR!H110 -> 0.1119700008 | I67: =CHAR!I110 -> 0.08867928921 | J67: =CHAR!J110 -> 0.03510317305 | K67: =CHAR!K110 -> 0.1 | L67: =CHAR!L110 -> 0.005999006346 | M67: =CHAR!M110 -> 0.2381477798 | N67: =CHAR!N110 -> 0.2665583838 | O67: =CHAR!O110 -> 0.1638837336 | P67: =CHAR!P110 -> 0.06881125232 | Q67: =CHAR!Q110 -> 0.1 | R67: =CHAR!R110 -> 0.08209854133 | S67: =CHAR!S110 -> 0.09354174246 | T67: =CHAR!T110 -> 0.05259850406 | U67: 0.01
A68: =MLIST!A68 -> HVAC | B68: =MLIST!D68 -> VCHP-NR | C68: =CHAR!C69 -> 0.263645656 | D68: =CHAR!D69 -> 0.2531200663 | E68: =CHAR!E69 -> 0.3628856463 | F68: =CHAR!F69 -> 0.04970141534 | G68: =CHAR!G69 -> 0 | H68: =CHAR!H69 -> 0.07783148114 | I68: =CHAR!I69 -> 0.1919923357 | J68: =CHAR!J69 -> 0.07429862021 | K68: =CHAR!K69 -> 0.1 | L68: =CHAR!L69 -> 0.07113276908 | M68: =CHAR!M69 -> 0.07228468772 | N68: =CHAR!N69 -> 0.3244911537 | O68: =CHAR!O69 -> 0.1119872729 | P68: =CHAR!P69 -> 0.4465064517 | Q68: =CHAR!Q69 -> 0.01 | R68: =CHAR!R69 -> 0.3801493341 | S68: =CHAR!S69 -> 0.1028479692 | T68: =CHAR!T69 -> 0.2080763159 | U68: 0.01
A69: =MLIST!A69 -> HVAC | B69: =MLIST!D69 -> VCHP-New | C69: =CHAR!C21 -> 0.09748207502 | D69: =CHAR!D21 -> 0.01177337021 | E69: =CHAR!E21 -> 0.2776686868 | F69: =CHAR!F21 -> 0.1752085047 | G69: =CHAR!G21 -> 0.1492531034 | H69: =CHAR!H21 -> 0.01417560178 | I69: =CHAR!I21 -> 0.3530003533 | J69: =CHAR!J21 -> 0.2462298233 | K69: =CHAR!K21 -> 0.1107585529 | L69: =CHAR!L21 -> 0.1752085047 | M69: =CHAR!M21 -> 0.100063552 | N69: =CHAR!N21 -> 0.003791907327 | O69: =CHAR!O21 -> 0.06111857639 | P69: =CHAR!P21 -> 0.120405686 | Q69: =CHAR!Q21 -> 0.1549592933 | R69: =CHAR!R21 -> 0.008634475721 | S69: =CHAR!S21 -> 0.008634475721 | T69: =CHAR!T21 -> 0.08132518538 | U69: 0.01
A70: =MLIST!A70 -> HVAC | B70: =MLIST!D70 -> UnitaryAC-NR | C70: =CHAR!C108 -> 0.2662438592 | D70: =CHAR!D108 -> 0.4351915661 | E70: =CHAR!E108 -> 0.3547329345 | F70: =CHAR!F108 -> 0.7719723816 | G70: =CHAR!G108 -> 0.6748717918 | H70: =CHAR!H108 -> 0.494925842 | I70: =CHAR!I108 -> 0.1867460847 | J70: =CHAR!J108 -> 0.1965095582 | K70: =CHAR!K108 -> 0.1965095582 | L70: =CHAR!L108 -> 0.1246548661 | M70: =CHAR!M108 -> 0.6087077686 | N70: =CHAR!N108 -> 0.4691523749 | O70: =CHAR!O108 -> 0.6844173073 | P70: =CHAR!P108 -> 0.1420066557 | Q70: =CHAR!Q108 -> 0.2575798869 | R70: =CHAR!R108 -> 0.2575798869 | S70: =CHAR!S108 -> 0.4170560816 | T70: =CHAR!T108 -> 0.3512814803 | U70: 0.01
A71: =MLIST!A71 -> HVAC | B71: =MLIST!D71 -> UnitaryAC-New | C71: =C70 -> 0.2662438592 | D71: =D70 -> 0.4351915661 | E71: 0.3547329345 | F71: 0.7719723816 | G71: 0.6748717918 | H71: 0.494925842 | I71: 0.1867460847 | J71: 0.1965095582 | K71: 0.1965095582 | L71: 0.1246548661 | M71: 0.6087077686 | N71: 0.4691523749 | O71: 0.6844173073 | P71: 0.1420066557 | Q71: 0.2575798869 | R71: 0.2575798869 | S71: 0.4170560816 | T71: 0.3512814803 | U71: 0.01
A72: =MLIST!A72 -> HVAC | B72: =MLIST!D72 -> Com-PTAC-NR | C72: =CHAR!C103 -> 0.03866799378 | D72: =CHAR!D103 -> 0.1077228804 | E72: =CHAR!E103 -> 0.1720213132 | F72: =CHAR!F103 -> 0 | G72: =CHAR!G103 -> 0 | H72: =CHAR!H103 -> 0 | I72: =CHAR!I103 -> 0.1465928706 | J72: =CHAR!J103 -> 0.03652989807 | K72: =CHAR!K103 -> 0.07228638928 | L72: =CHAR!L103 -> 0.05346878591 | M72: =CHAR!M103 -> 0 | N72: =CHAR!N103 -> 0.01842028564 | O72: =CHAR!O103 -> 0.03035588763 | P72: =CHAR!P103 -> 0.8117942631 | Q72: =CHAR!Q103 -> 0.5388841011 | R72: =CHAR!R103 -> 0.4467171285 | S72: =CHAR!S103 -> 0.05244469752 | T72: =CHAR!T103 -> 0.1353259497 | U72: 0.01
A73: =MLIST!A73 -> HVAC | B73: =MLIST!D73 -> Com-PTAC-New | C73: =C$72 -> 0.03866799378 | D73: =D$72 -> 0.1077228804 | E73: 0.1720213132 | F73: 0 | G73: 0 | H73: 0 | I73: 0.1465928706 | J73: 0.03652989807 | K73: 0.07228638928 | L73: 0.05346878591 | M73: 0 | N73: 0.01842028564 | O73: 0.03035588763 | P73: 0.8117942631 | Q73: 0.5388841011 | R73: 0.4467171285 | S73: 0.05244469752 | T73: 0.1353259497 | U73: 0.01
A74: =MLIST!A74 -> HVAC | B74: =MLIST!D74 -> COM-PTHP-NR | C74: =C$72 -> 0.03866799378 | D74: 0.1077228804 | E74: 0.1720213132 | F74: 0 | G74: 0 | H74: 0 | I74: 0.1465928706 | J74: 0.03652989807 | K74: 0.07228638928 | L74: 0.05346878591 | M74: 0 | N74: 0.01842028564 | O74: 0.03035588763 | P74: 0.8117942631 | Q74: 0.5388841011 | R74: 0.4467171285 | S74: 0.05244469752 | T74: 0.1353259497 | U74: 0.01
A75: =MLIST!A75 -> HVAC | B75: =MLIST!D75 -> COM-PTHP-New | C75: 0.03866799378 | D75: 0.1077228804 | E75: 0.1720213132 | F75: 0 | G75: 0 | H75: 0 | I75: 0.1465928706 | J75: 0.03652989807 | K75: 0.07228638928 | L75: 0.05346878591 | M75: 0 | N75: 0.01842028564 | O75: 0.03035588763 | P75: 0.8117942631 | Q75: 0.5388841011 | R75: 0.4467171285 | S75: 0.05244469752 | T75: 0.1353259497 | U75: 0.01
A76: =MLIST!A76 -> HVAC | B76: =MLIST!D76 -> COM-PTHP-Retro | C76: 0.03866799378 | D76: 0.1077228804 | E76: 0.1720213132 | F76: 0 | G76: 0 | H76: 0 | I76: 0.1465928706 | J76: 0.03652989807 | K76: 0.07228638928 | L76: 0.05346878591 | M76: 0 | N76: 0.01842028564 | O76: 0.03035588763 | P76: 0.8117942631 | Q76: 0.5388841011 | R76: 0.4467171285 | S76: 0.05244469752 | T76: 0.1353259497 | U76: 0.01
A77: =MLIST!A77 -> HVAC | B77: =MLIST!D77 -> Com-DOAS-New | C77: 0.263645656 | D77: 0.2531200663 | E77: 0.3628856463 | F77: 0.04970141534 | G77: 0 | H77: 0.07783148114 | I77: 0.1919923357 | J77: 0.07429862021 | K77: 0.1 | L77: 0.07113276908 | M77: 0.07228468772 | N77: 0.3244911537 | O77: 0.1119872729 | P77: 0.4465064517 | Q77: 0.01 | R77: 0.3801493341 | S77: 0.1028479692 | T77: 0.2080763159 | U77: 0.01
A78: =MLIST!A78 -> HVAC | B78: =MLIST!D78 -> Com-DOAS-Retro | C78: 0.263645656 | D78: 0.2531200663 | E78: 0.3628856463 | F78: 0.04970141534 | G78: 0 | H78: 0.07783148114 | I78: 0.1919923357 | J78: 0.07429862021 | K78: 0.1 | L78: 0.07113276908 | M78: 0.07228468772 | N78: 0.3244911537 | O78: 0.1119872729 | P78: 0.4465064517 | Q78: 0.01 | R78: 0.3801493341 | S78: 0.1028479692 | T78: 0.2080763159 | U78: 0.01
A79: =MLIST!A79 -> HVAC | B79: =MLIST!D79 -> Secondary Glazing Systems-Retro | C79: 0 | D79: 0 | E79: 0 | F79: 0 | G79: 0 | H79: 0 | I79: 0 | J79: 0 | K79: 0 | L79: 0 | M79: 0 | N79: 0 | O79: 0 | P79: 0 | Q79: 0 | R79: 0 | S79: 0 | T79: 0 | U79: 0 | V79: Technical Achievability in measure workbook. Multiple measures
A80: =MLIST!A80 -> Lighting | B80: =MLIST!D80 -> LPD Package-New | C80: 0 | D80: 0 | E80: 0 | F80: 0 | G80: 0 | H80: 0 | I80: 0 | J80: 0 | K80: 0 | L80: 0 | M80: 0 | N80: 0 | O80: 0 | P80: 0 | Q80: 0 | R80: 0 | S80: 0 | T80: 0 | U80: 0 | V80: Technical Achievability in measure workbook. Multiple measures
A81: =MLIST!A81 -> Lighting | B81: =MLIST!D81 -> LPD Package-NR | C81: 0 | D81: 0 | E81: 0 | F81: 0 | G81: 0 | H81: 0 | I81: 0 | J81: 0 | K81: 0 | L81: 0 | M81: 0 | N81: 0 | O81: 0 | P81: 0 | Q81: 0 | R81: 0 | S81: 0 | T81: 0 | U81: 0 | V81: Technical Achievability in measure workbook. Multiple measures
A82: =MLIST!A82 -> Lighting | B82: =MLIST!D82 -> LPD Package-Retro | C82: 0 | D82: 0 | E82: 0 | F82: 0 | G82: 0 | H82: 0 | I82: 0 | J82: 0 | K82: 0 | L82: 0 | M82: 0 | N82: 0 | O82: 0 | P82: 0 | Q82: 0 | R82: 0 | S82: 0 | T82: 0 | U82: 0 | V82: Technical Achievability in measure workbook. Multiple measures
A83: =MLIST!A83 -> Lighting | B83: =MLIST!D83 -> Top Daylighting-New | C83: 0 | D83: 0 | E83: 0 | F83: 0 | G83: 0 | H83: 0 | I83: 0 | J83: 0 | K83: 0 | L83: 0 | M83: 0 | N83: 0 | O83: 0 | P83: 0 | Q83: 0 | R83: 0 | S83: 0 | T83: 0 | U83: 0
A84: =MLIST!A84 -> Lighting | B84: =MLIST!D84 -> Perimeter Daylighting Controls Advanced-New | C84: 0 | D84: 0 | E84: 0 | F84: 0 | G84: 0 | H84: 0 | I84: 0 | J84: 0 | K84: 0 | L84: 0 | M84: 0 | N84: 0 | O84: 0 | P84: 0 | Q84: 0 | R84: 0 | S84: 0 | T84: 0 | U84: 0
A85: =MLIST!A85 -> Lighting | B85: =MLIST!D85 -> Perimeter Daylighting Controls Advanced-NR | C85: 0 | D85: 0 | E85: 0 | F85: 0 | G85: 0 | H85: 0 | I85: 0 | J85: 0 | K85: 0 | L85: 0 | M85: 0 | N85: 0 | O85: 0 | P85: 0 | Q85: 0 | R85: 0 | S85: 0 | T85: 0 | U85: 0
A86: =MLIST!A86 -> Lighting | B86: =MLIST!D86 -> Lighting Controls Interior-New | C86: 0 | D86: 0 | E86: 0 | F86: 0 | G86: 0 | H86: 0 | I86: 0 | J86: 0 | K86: 0 | L86: 0 | M86: 0 | N86: 0 | O86: 0 | P86: 0 | Q86: 0 | R86: 0 | S86: 0 | T86: 0 | U86: 0
A87: =MLIST!A87 -> Lighting | B87: =MLIST!D87 -> Lighting Controls Interior-NR | C87: 0 | D87: 0 | E87: 0 | F87: 0 | G87: 0 | H87: 0 | I87: 0 | J87: 0 | K87: 0 | L87: 0 | M87: 0 | N87: 0 | O87: 0 | P87: 0 | Q87: 0 | R87: 0 | S87: 0 | T87: 0 | U87: 0
A88: =MLIST!A88 -> Lighting | B88: =MLIST!D88 -> Exterior Building Lighting-New | C88: 0 | D88: 0 | E88: 0 | F88: 0 | G88: 0 | H88: 0 | I88: 0 | J88: 0 | K88: 0 | L88: 0 | M88: 0 | N88: 0 | O88: 0 | P88: 0 | Q88: 0 | R88: 0 | S88: 0 | T88: 0 | U88: 0 | V88: Technical Achievability in measure workbook. Multiple measures
A89: =MLIST!A89 -> Lighting | B89: =MLIST!D89 -> Exterior Building Lighting-NR | C89: 0 | D89: 0 | E89: 0 | F89: 0 | G89: 0 | H89: 0 | I89: 0 | J89: 0 | K89: 0 | L89: 0 | M89: 0 | N89: 0 | O89: 0 | P89: 0 | Q89: 0 | R89: 0 | S89: 0 | T89: 0 | U89: 0 | V89: Technical Achievability in measure workbook. Multiple measures
A90: =MLIST!A90 -> Lighting | B90: =MLIST!D90 -> Street and Roadway Lighting-New | C90: 0 | D90: 0 | E90: 0 | F90: 0 | G90: 0 | H90: 0 | I90: 0 | J90: 0 | K90: 0 | L90: 0 | M90: 0 | N90: 0 | O90: 0 | P90: 0 | Q90: 0 | R90: 0 | S90: 0 | T90: 0 | U90: 0 | V90: Technical Achievability in measure workbook. Multiple measures
A91: =MLIST!A91 -> Lighting | B91: =MLIST!D91 -> Street and Roadway Lighting-Retro | C91: 0 | D91: 0 | E91: 0 | F91: 0 | G91: 0 | H91: 0 | I91: 0 | J91: 0 | K91: 0 | L91: 0 | M91: 0 | N91: 0 | O91: 0 | P91: 0 | Q91: 0 | R91: 0 | S91: 0 | T91: 0 | U91: 0 | V91: Technical Achievability in measure workbook. Multiple measures
A92: =MLIST!A92 -> Lighting | B92: =MLIST!D92 -> Parking Garage Lighting-New | C92: 0 | D92: 0 | E92: 0 | F92: 0 | G92: 0 | H92: 0 | I92: 0 | J92: 0 | K92: 0 | L92: 0 | M92: 0 | N92: 0 | O92: 0 | P92: 0 | Q92: 0 | R92: 0 | S92: 0 | T92: 0 | U92: 0
A93: =MLIST!A93 -> Lighting | B93: =MLIST!D93 -> Parking Garage Lighting-Retro | C93: 0 | D93: 0 | E93: 0 | F93: 0 | G93: 0 | H93: 0 | I93: 0 | J93: 0 | K93: 0 | L93: 0 | M93: 0 | N93: 0 | O93: 0 | P93: 0 | Q93: 0 | R93: 0 | S93: 0 | T93: 0 | U93: 0 | V93: Technical Achievability in measure workbook. Multiple measures
A94: =MLIST!A95 -> Lighting | B94: =MLIST!D95 -> Low Power LF Lamps-NR | C94: 0.01 | D94: 0.01 | E94: 0.01 | F94: 0.01 | G94: 0.01 | H94: 0.01 | I94: 0.01 | J94: 0.01 | K94: 0.01 | L94: 0.01 | M94: 0.01 | N94: 0.01 | O94: 0.01 | P94: 0.01 | Q94: 0.01 | R94: 0.01 | S94: 0.01 | T94: 0.01 | U94: 0.01
A95: =MLIST!A96 -> Lighting | B95: =MLIST!D96 -> LEC Exit Sign-New | C95: 1 | D95: 1 | E95: 1 | F95: 1 | G95: 1 | H95: 1 | I95: 1 | J95: 1 | K95: 1 | L95: 1 | M95: 1 | N95: 1 | O95: 1 | P95: 1 | Q95: 1 | R95: 1 | S95: 1 | T95: 1
A96: =MLIST!A97 -> Lighting | B96: =MLIST!D97 -> LEC Exit Sign-NR
A97: =MLIST!A94 -> Lighting | B97: =MLIST!D94 -> Bi-Level Stairwell Lighting-NR
A98: =MLIST!A98 -> Refrigeration | B98: =MLIST!D98 -> Commercial Ice Maker-NR | C98: 1 | D98: 1 | E98: 1 | F98: 1 | G98: 1 | H98: 1 | I98: 1 | J98: 1 | K98: 1 | L98: 1 | M98: 1 | N98: 1 | O98: 1 | P98: 1 | Q98: 1 | R98: 1 | S98: 1 | T98: 1 | U98: 0 | V98: Applicability built into savings values; see measure workbook
A99: =MLIST!A99 -> Refrigeration | B99: =MLIST!D99 -> Commercial Beverage Vending Machine-NR | C99: 1 | D99: 1 | E99: 1 | F99: 1 | G99: 1 | H99: 1 | I99: 1 | J99: 1 | K99: 1 | L99: 1 | M99: 1 | N99: 1 | O99: 1 | P99: 1 | Q99: 1 | R99: 1 | S99: 1 | T99: 1 | U99: 0
A100: =MLIST!A100 -> Motors/Drives | B100: =MLIST!D100 -> Clean Water PUmps-Retro | C100: 1 | D100: 1 | E100: 1 | F100: 1 | G100: 1 | H100: 1 | I100: 1 | J100: 1 | K100: 1 | L100: 1 | M100: 1 | N100: 1 | O100: 1 | P100: 1 | Q100: 1 | R100: 1 | S100: 1 | T100: 1 | U100: 1
A101: =MLIST!A101 -> Electronics | B101: =MLIST!D101 -> Servers & Power Supplies-NR | C101: 0.01 | D101: 0.01 | E101: 0.01 | F101: 0.01 | G101: 0.01 | H101: 0.01 | I101: 0.01 | J101: 0.01 | K101: 0.01 | L101: 0.01 | M101: 0.01 | N101: 0.01 | O101: 0.01 | P101: 0.01 | Q101: 0.01 | R101: 0.01 | S101: 0.01 | T101: 0.01 | U101: 0.01
A102: =MLIST!A102 -> Process Loads | B102: =MLIST!D102 -> Elevators-Retro | C102: 0.01 | D102: 0.01 | E102: 0.01 | F102: 0.01 | G102: 0.01 | H102: 0.01 | I102: 0.01 | J102: 0.01 | K102: 0.01 | L102: 0.01 | M102: 0.01 | N102: 0.01 | O102: 0.01 | P102: 0.01 | Q102: 0.01 | R102: 0.01 | S102: 0.01 | T102: 0.01 | U102: 0.01
A103: =MLIST!A103 -> Motors/Drives | B103: =MLIST!D103 -> Clean Water Pumps-NR | C103: 1 | D103: 1 | E103: 1 | F103: 1 | G103: 1 | H103: 1 | I103: 1 | J103: 1 | K103: 1 | L103: 1 | M103: 1 | N103: 1 | O103: 1 | P103: 1 | Q103: 1 | R103: 1 | S103: 1 | T103: 1 | U103: 1
A104: =MLIST!A104 -> Motors/Drives | B104: =MLIST!D104 -> Clean Water Pumps-New | C104: 1 | D104: 1 | E104: 1 | F104: 1 | G104: 1 | H104: 1 | I104: 1 | J104: 1 | K104: 1 | L104: 1 | M104: 1 | N104: 1 | O104: 1 | P104: 1 | Q104: 1 | R104: 1 | S104: 1 | T104: 1 | U104: 1
A105: =MLIST!A105 -> Process Loads | B105: =MLIST!D105 -> EBHeaterControl-Retro | C105: 0 | D105: 0 | E105: 0 | F105: 0 | G105: 0 | H105: 0 | I105: 0 | J105: 0 | K105: 0 | L105: 0 | M105: 0 | N105: 0 | O105: 0 | P105: 0 | Q105: 0 | R105: 0 | S105: 0 | T105: 0 | U105: 0
A106: =MLIST!A106 -> Refrigeration | B106: GroceryRefrigeration | C106: 0.01 | D106: 0.01 | E106: 0.01 | F106: 0.01 | G106: 0.01 | H106: 0.01 | I106: 0.01 | J106: 0.01 | K106: 0.01 | L106: 0.01 | M106: 0.01 | N106: 0.01 | O106: 0.01 | P106: 0.01 | Q106: 0.01 | R106: 0.01 | S106: 0.01 | T106: 0.01 | U106: 0.01
A107: =MLIST!A107 -> Refrigeration | B107: =MLIST!D107 -> GroceryRefrigeration-Retro | C107: 1 | D107: 1 | E107: 1 | F107: 1 | G107: 1 | H107: 1 | I107: 1 | J107: 1 | K107: 1 | L107: 1 | M107: 1 | N107: 1 | O107: 1 | P107: 1 | Q107: 1 | R107: 1 | S107: 1 | T107: 1 | U107: 1
A108: =MLIST!A108 -> Refrigeration | B108: =MLIST!D108 -> GroceryRefrigeration-New | C108: 1 | D108: 1 | E108: 1 | F108: 1 | G108: 1 | H108: 1 | I108: 1 | J108: 1 | K108: 1 | L108: 1 | M108: 1 | N108: 1 | O108: 1 | P108: 1 | Q108: 1 | R108: 1 | S108: 1 | T108: 1 | U108: 1
A109: =MLIST!A109 -> Refrigeration | B109: =MLIST!D109 -> Packaged Refrigeration Equipment-New | C109: 0 | D109: 0 | E109: 0 | F109: 0 | G109: 0 | H109: 0 | I109: 0 | J109: 0 | K109: 0 | L109: 0 | M109: 0 | N109: 0 | O109: 0 | P109: 0 | Q109: 0 | R109: 0 | S109: 0 | T109: 0 | U109: 0
A110: =MLIST!A110 -> Refrigeration | B110: =MLIST!D110 -> Refrig-Freezer-NR | C110: 0.01 | D110: 0.01 | E110: 0.01 | F110: 0.01 | G110: 0.01 | H110: 0.01 | I110: 0.01 | J110: 0.01 | K110: 0.01 | L110: 0.01 | M110: 0.01 | N110: 0.01 | O110: 0.01 | P110: 0.01 | Q110: 0.01 | R110: 0.01 | S110: 0.01 | T110: 0.01 | U110: 0.01
A111: =MLIST!A111 -> Refrigeration | B111: =MLIST!D111 -> Refrig-Freezer-New | C111: 0.01 | D111: 0.01 | E111: 0.01 | F111: 0.01 | G111: 0.01 | H111: 0.01 | I111: 0.01 | J111: 0.01 | K111: 0.01 | L111: 0.01 | M111: 0.01 | N111: 0.01 | O111: 0.01 | P111: 0.01 | Q111: 0.01 | R111: 0.01 | S111: 0.01 | T111: 0.01 | U111: 0.01
A112: =MLIST!A112 -> Refrigeration | B112: =MLIST!D112 -> Water Cooler Controls-NR | C112: 0 | D112: 0 | E112: 0 | F112: 0 | G112: 0 | H112: 0 | I112: 0 | J112: 0 | K112: 0 | L112: 0 | M112: 0 | N112: 0 | O112: 0 | P112: 0 | Q112: 0 | R112: 0 | S112: 0 | T112: 0 | U112: 0 | V112: Technical Achievability in measure workbook. Multiple measures
A113: =MLIST!A113 -> Water Heating | B113: =MLIST!D113 -> HPWH ResType-New | C113: 1 | D113: 1 | E113: 1 | F113: 1 | G113: 1 | H113: 1 | I113: 1 | J113: 1 | K113: 1 | L113: 1 | M113: 1 | N113: 1 | O113: 1 | P113: 1 | Q113: 1 | R113: 1 | S113: 1 | T113: 1 | U113: 0 | V113: Applicability handled in the measure workbook
A114: =MLIST!A114 -> Water Heating | B114: =MLIST!D114 -> HPWH ResType-NR | C114: 1 | D114: 1 | E114: 1 | F114: 1 | G114: 1 | H114: 1 | I114: 1 | J114: 1 | K114: 1 | L114: 1 | M114: 1 | N114: 1 | O114: 1 | P114: 1 | Q114: 1 | R114: 1 | S114: 1 | T114: 1 | U114: 0 | V114: Applicability handled in the measure workbook
A115: =MLIST!A115 -> Water Heating | B115: =MLIST!D115 -> Washer-New | C115: 1 | D115: 1 | E115: 1 | F115: 1 | G115: 1 | H115: 1 | I115: 1 | J115: 1 | K115: 1 | L115: 1 | M115: 1 | N115: 1 | O115: 1 | P115: 1 | Q115: 1 | R115: 1 | S115: 1 | T115: 1 | U115: 1
A116: =MLIST!A116 -> Water Heating | B116: =MLIST!D116 -> Washer-NR | C116: 0 | D116: 0 | E116: 0 | F116: 0 | G116: 0 | H116: 0 | I116: 0 | J116: 0 | K116: 0 | L116: 0 | M116: 0 | N116: 0 | O116: 0 | P116: 0 | Q116: 0 | R116: 0 | S116: 0 | T116: 0 | U116: 0
A117: =MLIST!A117 -> Water Heating | B117: =MLIST!D117 -> Showerheads-NR | C117: 0 | D117: 0 | E117: 0 | F117: 0 | G117: 0 | H117: 0 | I117: 0 | J117: 0 | K117: 0 | L117: 0 | M117: 0 | N117: 0 | O117: 0 | P117: 0 | Q117: 0 | R117: 0 | S117: 0 | T117: 0 | U117: 0
A118: =MLIST!A118 -> Water Heating | B118: =MLIST!D118 -> Showerheads-Retro | C118: 0.01 | D118: 0.01 | E118: 0.01 | F118: 0.01 | G118: 0.01 | H118: 0.01 | I118: 0.01 | J118: 0.01 | K118: 0.01 | L118: 0.01 | M118: 0.01 | N118: 0.01 | O118: 0.01 | P118: 0.01 | Q118: 0.01 | R118: 0.01 | S118: 0.01 | T118: 0.01 | U118: 0.01
A119: =MLIST!A119 -> 0 | B119: =MLIST!D119 -> 0 | C119: 0.75 | D119: 0.75 | E119: 0.75 | F119: 0.75 | G119: 0.75 | H119: 0.75 | I119: 0.75 | J119: 0.75 | K119: 0.75 | L119: 0.75 | M119: 0.75 | N119: 0.75 | O119: 0.75 | P119: 0.75 | Q119: 0.75 | R119: 0.75 | S119: 0.75 | T119: 0.75 | U119: 0
A120: =MLIST!A120 -> 0 | B120: =MLIST!D120 -> 0 | C120: 0.75 | D120: 0.75 | E120: 0.75 | F120: 0.75 | G120: 0.75 | H120: 0.75 | I120: 0.75 | J120: 0.75 | K120: 0.75 | L120: 0.75 | M120: 0.75 | N120: 0.75 | O120: 0.75 | P120: 0.75 | Q120: 0.75 | R120: 0.75 | S120: 0.75 | T120: 0.75 | U120: 0
A121: =MLIST!A121 -> 0 | B121: =MLIST!D121 -> 0 | C121: 0 | D121: 0 | E121: 0 | F121: 0 | G121: 0 | H121: 0 | I121: 0 | J121: 0 | K121: 0 | L121: 0 | M121: 0 | N121: 0 | O121: 0 | P121: 0 | Q121: 0 | R121: 0 | S121: 0 | T121: 0 | U121: 0

Sheet STOCK
A1: STOCK | B1: Vintage Cohort for floorspace stock to which measure characteristics are applicable
B4: This tab is a carryover from previous plans. Not sure how much it is being used. Changed PRE2013 to "Existing" and Post2013 to "New"
C10: Office | F10: Retail | J10: School | L10: Warehouse | M10: Grocery | O10: Restaurant | P10: Lodging | Q10: Health | S10: =S11 -> Assembly | T10: =T11 -> Other
A11: M BUNDLE ID | B11: Measure Index Name | C11: =BASE!C11 -> Large Off | D11: =BASE!D11 -> Medium Off | E11: =BASE!E11 -> Small Off | F11: =BASE!F11 -> Xlarge Ret | G11: =BASE!G11 -> Large Ret | H11: =BASE!H11 -> Medium Ret | I11: =BASE!I11 -> Small Ret | J11: =BASE!J11 -> School K-12 | K11: =BASE!K11 -> University | L11: =BASE!L11 -> Warehouse | M11: =BASE!M11 -> Supermarket | N11: =BASE!N11 -> MiniMart | O11: =BASE!O11 -> Restaurant | P11: =BASE!P11 -> Lodging | Q11: =BASE!Q11 -> Hospital | R11: =BASE!R11 -> Residential Care | S11: =APPLIC!S11 -> Assembly | T11: =APPLIC!T11 -> Other | U11: Non-Building Stock
B12: =MLIST!D12 -> Compressors-New | C12: =$W12 -> Existing | D12: Existing | E12: Existing | F12: Existing | G12: Existing | H12: Existing | I12: Existing | J12: Existing | K12: Existing | L12: Existing | M12: =$W12 -> Existing | N12: Existing | O12: Existing | P12: Existing | Q12: Existing | R12: Existing | S12: Existing | T12: Existing | W12: Existing | X12: =MLIST!C12 -> New | Y12: =IF(X12="Retro","_PRE2013","POST2013") -> POST2013
B13: =MLIST!D13 -> Compressors-NR | C13: Existing | D13: Existing | E13: Existing | F13: Existing | G13: Existing | H13: Existing | I13: Existing | J13: Existing | K13: Existing | L13: Existing | M13: Existing | N13: Existing | O13: Existing | P13: Existing | Q13: Existing | R13: Existing | S13: Existing | T13: Existing | W13: Existing | X13: =MLIST!C13 -> NR | Y13: =IF(X13="Retro","_PRE2013","POST2013") -> POST2013
B14: =MLIST!D14 -> Laptop-NR | C14: Existing | D14: Existing | E14: Existing | F14: Existing | G14: Existing | H14: Existing | I14: Existing | J14: Existing | K14: Existing | L14: Existing | M14: Existing | N14: Existing | O14: Existing | P14: Existing | Q14: Existing | R14: Existing | S14: Existing | T14: Existing | W14: Existing | X14: =MLIST!C14 -> NR | Y14: POST2013
B15: =MLIST!D15 -> PowerStrips-Retro | C15: Existing | D15: Existing | E15: Existing | F15: Existing | G15: Existing | H15: Existing | I15: Existing | J15: Existing | K15: Existing | L15: Existing | M15: Existing | N15: Existing | O15: Existing | P15: Existing | Q15: Existing | R15: Existing | S15: Existing | T15: Existing | W15: Existing | X15: =MLIST!C15 -> Retro | Y15: _PRE2013
B16: =MLIST!D16 -> PowerStrips-New | C16: New | D16: New | E16: New | F16: New | G16: New | H16: New | I16: New | J16: New | K16: New | L16: New | M16: New | N16: New | O16: New | P16: New | Q16: New | R16: New | S16: New | T16: New
B17: =MLIST!D17 -> Data Centers-NR | C17: Existing | D17: Existing | E17: Existing | F17: Existing | G17: Existing | H17: Existing | I17: Existing | J17: Existing | K17: Existing | L17: Existing | M17: Existing | N17: Existing | O17: Existing | P17: Existing | Q17: Existing | R17: Existing | S17: Existing | T17: Existing | W17: Existing | X17: =MLIST!C17 -> NR | Y17: POST2013
B18: =MLIST!D18 -> Desktop-WA-NR | C18: =$W18 -> Existing | D18: Existing | E18: Existing | F18: Existing | G18: Existing | H18: Existing | I18: =$W18 -> Existing | J18: Existing | K18: Existing | L18: Existing | M18: Existing | N18: Existing | O18: Existing | P18: Existing | Q18: Existing | R18: Existing | S18: Existing | T18: Existing | W18: Existing | X18: =MLIST!C18 -> NR | Y18: POST2013
B19: =MLIST!D19 -> Desktop-NR | C19: =$W19 -> Existing | D19: Existing | E19: Existing | F19: Existing | G19: Existing | H19: Existing | I19: Existing | J19: Existing | K19: Existing | L19: Existing | M19: Existing | N19: Existing | O19: Existing | P19: Existing | Q19: Existing | R19: Existing | S19: Existing | T19: Existing | W19: Existing | X19: =MLIST!C19 -> NR | Y19: POST2013
B20: =MLIST!D20 -> Laptop-WA-NR | C20: Existing | D20: Existing | E20: Existing | F20: Existing | G20: Existing | H20: Existing | I20: Existing | J20: Existing | K20: Existing | L20: Existing | M20: Existing | N20: Existing | O20: Existing | P20: Existing | Q20: Existing | R20: Existing | S20: =$W20 -> Existing | T20: Existing | W20: Existing | X20: =MLIST!C20 -> NR
B21: =MLIST!D21 -> Pre-Rinse Spray Valve-Retro | C21: Existing | D21: Existing | E21: Existing | F21: Existing | G21: Existing | H21: Existing | I21: Existing | J21: Existing | K21: Existing | L21: Existing | M21: Existing | N21: Existing | O21: Existing | P21: Existing | Q21: Existing | R21: Existing | S21: Existing | T21: Existing | W21: Existing | X21: =MLIST!C21 -> Retro | Y21: _PRE2013
B22: =MLIST!D22 -> Steamer-NR | C22: New | D22: New | E22: New | F22: New | G22: New | H22: New | I22: New | J22: New | K22: New | L22: New | M22: New | N22: New | O22: New | P22: New | Q22: New | R22: New | S22: New | T22: New | W22: New | X22: =MLIST!C22 -> NR | Y22: POST2013
B23: =MLIST!D23 -> Combo Oven-NR | C23: New | D23: New | E23: New | F23: New | G23: New | H23: New | I23: New | J23: New | K23: New | L23: New | M23: New | N23: New | O23: New | P23: New | Q23: New | R23: New | S23: =$W23 -> New | T23: New | W23: New | X23: =MLIST!C23 -> NR | Y23: =IF(X23="Retro","_PRE2013","POST2013") -> POST2013
B24: =MLIST!D24 -> HFHC-NR | C24: New | D24: New | E24: New | F24: New | G24: New | H24: New | I24: New | J24: New | K24: New | L24: New | M24: New | N24: New | O24: New | P24: New | Q24: New | R24: New | S24: New | T24: New | W24: New | X24: =MLIST!C24 -> NR | Y24: POST2013
B25: =MLIST!D25 -> Convection Oven-NR | C25: New | D25: New | E25: New | F25: New | G25: New | H25: New | I25: New | J25: New | K25: New | L25: New | M25: New | N25: New | O25: New | P25: New | Q25: New | R25: New | S25: New | T25: New | W25: New | X25: =MLIST!C25 -> NR | Y25: POST2013
B26: =MLIST!D26 -> Fryer-NR | C26: New | D26: New | E26: New | F26: New | G26: New | H26: New | I26: New | J26: New | K26: New | L26: New | M26: New | N26: New | O26: New | P26: New | Q26: New | R26: New | S26: New | T26: New | W26: New | X26: =MLIST!C26 -> NR | Y26: POST2013
B27: =MLIST!D27 -> Griddle-NR | C27: New | D27: New | E27: New | F27: New | G27: New | H27: New | I27: New | J27: New | K27: New | L27: New | M27: New | N27: New | O27: New | P27: New | Q27: New | R27: New | S27: New | T27: New | W27: New | X27: =MLIST!C27 -> NR | Y27: POST2013
B28: =MLIST!D28 -> Overwrapper-NR | C28: New | D28: New | E28: New | F28: New | G28: New | H28: New | I28: New | J28: New | K28: New | L28: New | M28: New | N28: New | O28: New | P28: New | Q28: New | R28: New | S28: New | T28: New | W28: New | X28: =MLIST!C28 -> NR | Y28: POST2013
B29: =MLIST!D29 -> DHP-New | C29: New | D29: New | E29: New | F29: New | G29: New | H29: New | I29: New | J29: New | K29: New | L29: New | M29: New | N29: New | O29: New | P29: New | Q29: New | R29: New | S29: New | T29: New | W29: New | X29: =MLIST!C29 -> New | Y29: POST2013
B30: =MLIST!D30 -> DHP-Retro | C30: New | D30: New | E30: New | F30: New | G30: New | H30: New | I30: New | J30: New | K30: New | L30: New | M30: New | N30: New | O30: New | P30: New | Q30: New | R30: New | S30: New | T30: New | W30: New | X30: =MLIST!C30 -> Retro | Y30: _PRE2013
B31: =MLIST!D31 -> Glass-New | C31: New | D31: New | E31: New | F31: New | G31: New | H31: New | I31: New | J31: New | K31: New | L31: New | M31: New | N31: New | O31: New | P31: New | Q31: New | R31: New | S31: New | T31: New | W31: New | X31: =MLIST!C31 -> New | Y31: POST2013
B32: =MLIST!D32 -> Glass-NR | C32: New | D32: New | E32: New | F32: New | G32: New | H32: New | I32: New | J32: New | K32: New | L32: New | M32: New | N32: New | O32: New | P32: New | Q32: New | R32: New | S32: New | T32: New | W32: New | X32: =MLIST!C32 -> NR | Y32: POST2013
B33: =MLIST!D33 -> ARC-New | C33: New | D33: New | E33: New | F33: New | G33: New | H33: New | I33: New | J33: New | K33: New | L33: New | M33: New | N33: New | O33: New | P33: New | Q33: New | R33: New | S33: New | T33: New | W33: New | X33: =MLIST!C33 -> New | Y33: POST2013
B34: =MLIST!D34 -> ARC-NR | C34: New | D34: New | E34: New | F34: New | G34: New | H34: New | I34: New | J34: New | K34: New | L34: New | M34: New | N34: New | O34: New | P34: New | Q34: New | R34: New | S34: New | T34: New | W34: New | X34: =MLIST!C34 -> NR | Y34: POST2013
B35: =MLIST!D35 -> ARC-Retro | C35: Existing | D35: Existing | E35: Existing | F35: Existing | G35: Existing | H35: Existing | I35: Existing | J35: Existing | K35: Existing | L35: Existing | M35: Existing | N35: Existing | O35: Existing | P35: Existing | Q35: Existing | R35: Existing | S35: Existing | T35: Existing | W35: Existing | X35: =MLIST!C35 -> Retro | Y35: _PRE2013
B36: =MLIST!D36 -> Chiller-Upgrade-New | C36: New | D36: New | E36: New | F36: New | G36: New | H36: New | I36: New | J36: New | K36: New | L36: New | M36: New | N36: New | O36: New | P36: New | Q36: New | R36: New | S36: New | T36: New | W36: New | X36: =MLIST!C36 -> New | Y36: POST2013
B37: =MLIST!D37 -> Chiller-Upgrade-NR | C37: New | D37: New | E37: New | F37: New | G37: New | H37: New | I37: New | J37: New | K37: New | L37: New | M37: New | N37: New | O37: New | P37: New | Q37: New | R37: New | S37: New | T37: New | W37: New | X37: =MLIST!C37 -> NR | Y37: POST2013
B38: =MLIST!D38 -> Chiller-System-Retro | C38: New | D38: New | E38: New | F38: New | G38: New | H38: New | I38: New | J38: New | K38: New | L38: New | M38: New | N38: New | O38: New | P38: New | Q38: New | R38: New | S38: =$W38 -> New | T38: New | W38: New | X38: =MLIST!C38 -> Retro | Y38: _PRE2013
B39: =MLIST!D39 -> Fans-Retro | C39: Existing | D39: =$W39 -> Existing | E39: Existing | F39: Existing | G39: Existing | H39: Existing | I39: Existing | J39: Existing | K39: Existing | L39: Existing | M39: Existing | N39: Existing | O39: Existing | P39: Existing | Q39: Existing | R39: Existing | S39: Existing | T39: Existing | W39: Existing | X39: =MLIST!C39 -> Retro | Y39: _PRE2013
B40: =MLIST!D40 -> Fans-NR
B41: =MLIST!D41 -> Fans-New
B42: =MLIST!D42 -> VHE-DOAS-NR | C42: Existing | D42: Existing | E42: Existing | F42: Existing | G42: Existing | H42: Existing | I42: Existing | J42: Existing | K42: Existing | L42: Existing | M42: Existing | N42: Existing | O42: Existing | P42: Existing | Q42: Existing | R42: Existing | S42: =$W42 -> Existing | T42: Existing | W42: Existing | X42: Retro | Y42: _PRE2013
B43: =MLIST!D43 -> VHE-DOAS-New | C43: New | D43: New | E43: New | F43: New | G43: New | H43: New | I43: New | J43: New | K43: New | L43: New | M43: New | N43: New | O43: New | P43: New | Q43: New | R43: New | S43: New | T43: New | W43: New | X43: NR | Y43: POST2013
B44: =MLIST!D44 -> -NR | C44: New | D44: New | E44: New | F44: New | G44: New | H44: New | I44: New | J44: New | K44: New | L44: New | M44: New | N44: New | O44: New | P44: New | Q44: New | R44: New | S44: New | T44: New | W44: New | X44: NEw | Y44: POST2013
B45: =MLIST!D45 -> Commercial EM-New | C45: New | D45: New | E45: New | F45: New | G45: New | H45: New | I45: New | J45: New | K45: New | L45: New | M45: New | N45: New | O45: New | P45: New | Q45: New | R45: New | S45: New | T45: New | W45: New | X45: =MLIST!C45 -> New | Y45: POST2013
B46: =MLIST!D46 -> Commercial EM-Retro | C46: New | D46: New | E46: New | F46: New | G46: New | H46: New | I46: New | J46: New | K46: New | L46: New | M46: New | N46: New | O46: New | P46: New | Q46: New | R46: New | S46: New | T46: New | W46: New | X46: =MLIST!C46 -> Retro | Y46: _PRE2013
B47: =MLIST!D47 -> Economizer-Retro | C47: New | D47: New | E47: New | F47: New | G47: New | H47: New | I47: New | J47: New | K47: New | L47: New | M47: New | N47: New | O47: New | P47: New | Q47: New | R47: New | S47: New | T47: New | W47: New | X47: =MLIST!C47 -> Retro | Y47: _PRE2013
B48: =MLIST!D48 -> Demand Control Ventilation-New | C48: New | D48: New | E48: New | F48: New | G48: New | H48: New | I48: New | J48: New | K48: New | L48: New | M48: New | N48: New | O48: New | P48: New | Q48: New | R48: New | S48: New | T48: New | W48: New | X48: =MLIST!C48 -> New | Y48: POST2013
B49: =MLIST!D49 -> Demand Control Ventilation-NR | C49: New | D49: New | E49: New | F49: New | G49: New | H49: New | I49: New | J49: New | K49: New | L49: New | M49: New | N49: New | O49: New | P49: New | Q49: New | R49: New | S49: New | T49: New | W49: New | X49: =MLIST!C49 -> NR | Y49: POST2013
B50: =MLIST!D50 -> Demand Control Ventilation-Retro | C50: Existing | D50: Existing | E50: Existing | F50: Existing | G50: Existing | H50: Existing | I50: Existing | J50: Existing | K50: Existing | L50: Existing | M50: Existing | N50: Existing | O50: Existing | P50: Existing | Q50: Existing | R50: Existing | S50: Existing | T50: Existing | W50: Existing | X50: =MLIST!C50 -> Retro | Y50: _PRE2013
B51: =MLIST!D51 -> DCV-Lab Hood-Retro | C51: New | D51: New | E51: New | F51: New | G51: New | H51: New | I51: New | J51: New | K51: New | L51: New | M51: New | N51: New | O51: New | P51: New | Q51: New | R51: New | S51: New | T51: New | W51: New | X51: =MLIST!C51 -> Retro | Y51: _PRE2013
B52: =MLIST!D52 -> DCV-Kitchen-Retro | C52: Existing | D52: Existing | E52: Existing | F52: Existing | G52: Existing | H52: Existing | I52: Existing | J52: Existing | K52: Existing | L52: Existing | M52: Existing | N52: Existing | O52: Existing | P52: Existing | Q52: Existing | R52: Existing | S52: Existing | T52: Existing | W52: Existing | X52: =MLIST!C52 -> Retro | Y52: _PRE2013
B53: =MLIST!D53 -> DCV-Parking Garage-Retro | C53: Existing | D53: Existing | E53: Existing | F53: Existing | G53: Existing | H53: Existing | I53: Existing | J53: Existing | K53: Existing | L53: Existing | M53: Existing | N53: Existing | O53: Existing | P53: Existing | Q53: Existing | R53: Existing | S53: Existing | T53: Existing | W53: Existing | X53: =MLIST!C53 -> Retro | Y53: _PRE2013
B54: =MLIST!D54 -> Weatherization - School-Retro | C54: Existing | D54: Existing | E54: Existing | F54: Existing | G54: Existing | H54: Existing | I54: Existing | J54: Existing | K54: Existing | L54: Existing | M54: Existing | N54: Existing | O54: Existing | P54: Existing | Q54: Existing | R54: Existing | S54: Existing | T54: Existing | W54: Existing | X54: =MLIST!C54 -> Retro | Y54: _PRE2013
B55: =MLIST!D55 -> Energy Recovery Ventilator-NR | C55: New | D55: New | E55: New | F55: New | G55: New | H55: New | I55: New | J55: New | K55: New | L55: New | M55: New | N55: New | O55: New | P55: New | Q55: New | R55: New | S55: New | T55: New | W55: New | X55: =MLIST!C55 -> NR | Y55: POST2013
B56: =MLIST!D56 -> AC Heat Recovery for Water Heating-NR | C56: New | D56: New | E56: New | F56: New | G56: New | H56: New | I56: New | J56: New | K56: New | L56: New | M56: New | N56: New | O56: New | P56: New | Q56: New | R56: New | S56: New | T56: New | W56: New | X56: =MLIST!C56 -> NR | Y56: POST2013
B57: =MLIST!D57 -> Room Occupancy Sensors in Lodging-Retro | C57: Existing | D57: Existing | E57: Existing | F57: Existing | G57: Existing | H57: Existing | I57: Existing | J57: Existing | K57: Existing | L57: Existing | M57: Existing | N57: Existing | O57: Existing | P57: Existing | Q57: Existing | R57: Existing | S57: Existing | T57: Existing | W57: Existing | X57: =MLIST!C57 -> Retro | Y57: _PRE2013
B58: =MLIST!D58 -> Pool Blankets-Retro | C58: =$W58 -> Existing | D58: =$W58 -> Existing | E58: Existing | F58: Existing | G58: Existing | H58: Existing | I58: Existing | J58: Existing | K58: Existing | L58: Existing | M58: Existing | N58: Existing | O58: Existing | P58: Existing | Q58: Existing | R58: Existing | S58: Existing | T58: Existing | W58: Existing | X58: =MLIST!C58 -> Retro | Y58: _PRE2013
B59: =MLIST!D59 -> ConnectedThermostats-New | C59: Existing | D59: Existing | E59: Existing | F59: Existing | G59: Existing | H59: Existing | I59: Existing | J59: Existing | K59: Existing | L59: Existing | M59: Existing | N59: Existing | O59: Existing | P59: Existing | Q59: Existing | R59: Existing | S59: Existing | T59: Existing | W59: Existing | X59: =MLIST!C59 -> New | Y59: =IF(X59="Retro","_PRE2013","POST2013") -> POST2013
B60: =MLIST!D60 -> ConnectedThermostats-Retro | C60: Existing | D60: Existing | E60: Existing | F60: Existing | G60: Existing | H60: Existing | I60: Existing | J60: Existing | K60: Existing | L60: Existing | M60: Existing | N60: Existing | O60: Existing | P60: Existing | Q60: Existing | R60: Existing | S60: Existing | T60: Existing | W60: Existing | X60: =MLIST!C60 -> Retro | Y60: _PRE2013
B61: =MLIST!D61 -> CircPumps-NR | C61: NR | D61: NR | E61: NR | F61: NR | G61: NR | H61: NR | I61: NR | J61: NR | K61: NR | L61: NR | M61: NR | N61: NR | O61: NR | P61: NR | Q61: NR | R61: NR | S61: NR | T61: NR | W61: NR | X61: =MLIST!C61 -> NR | Y61: POST2013
B62: =MLIST!D62 -> Circpumps-New | C62: New | D62: New | E62: New | F62: New | G62: New | H62: New | I62: New | J62: New | K62: New | L62: New | M62: New | N62: New | O62: New | P62: New | Q62: New | R62: New | S62: New | T62: New | W62: New | X62: =MLIST!C62 -> New | Y62: POST2013
B63: =MLIST!D63 -> VRF-DOAS-New | C63: Existing | D63: Existing | E63: Existing | F63: Existing | G63: Existing | H63: Existing | I63: Existing | J63: Existing | K63: Existing | L63: Existing | M63: Existing | N63: Existing | O63: Existing | P63: Existing | Q63: Existing | R63: Existing | S63: Existing | T63: Existing | W63: Existing | X63: =MLIST!C63 -> New | Y63: POST2013
B64: =MLIST!D64 -> VRF-DOAS-NR | C64: Existing | D64: Existing | E64: Existing | F64: Existing | G64: Existing | H64: Existing | I64: Existing | J64: Existing | K64: Existing | L64: Existing | M64: Existing | N64: Existing | O64: Existing | P64: Existing | Q64: Existing | R64: Existing | S64: Existing | T64: Existing | W64: Existing | X64: =MLIST!C64 -> NR | Y64: POST2013
B65: =MLIST!D65 -> Evaporator Roof Top HVAC-Retro | C65: Existing | D65: Existing | E65: Existing | F65: Existing | G65: Existing | H65: Existing | I65: Existing | J65: Existing | K65: Existing | L65: Existing | M65: Existing | N65: Existing | O65: Existing | P65: Existing | Q65: Existing | R65: Existing | S65: Existing | T65: Existing | W65: Existing | X65: =MLIST!C65 -> Retro | Y65: _PRE2013
B66: =MLIST!D66 -> HeatPumps-NR | C66: Existing | D66: Existing | E66: Existing | F66: Existing | G66: Existing | H66: Existing | I66: Existing | J66: Existing | K66: Existing | L66: Existing | M66: Existing | N66: Existing | O66: Existing | P66: Existing | Q66: Existing | R66: Existing | S66: Existing | T66: Existing | W66: Existing | X66: =MLIST!C66 -> NR | Y66: =IF(X66="Retro","_PRE2013","POST2013") -> POST2013
B67: =MLIST!D67 -> HeatPumps-New | C67: Existing | D67: Existing | E67: Existing | F67: Existing | G67: Existing | H67: Existing | I67: Existing | J67: Existing | K67: Existing | L67: Existing | M67: Existing | N67: Existing | O67: Existing | P67: Existing | Q67: Existing | R67: Existing | S67: Existing | T67: Existing | W67: Existing | X67: =MLIST!C67 -> New | Y67: POST2013
B68: =MLIST!D68 -> VCHP-NR | C68: Existing | D68: Existing | E68: Existing | F68: Existing | G68: Existing | H68: Existing | I68: Existing | J68: Existing | K68: Existing | L68: Existing | M68: Existing | N68: Existing | O68: Existing | P68: Existing | Q68: Existing | R68: Existing | S68: Existing | T68: Existing | W68: Existing | X68: =MLIST!C68 -> NR | Y68: =IF(X68="Retro","_PRE2013","POST2013") -> POST2013
B69: =MLIST!D69 -> VCHP-New | C69: Existing | D69: Existing | E69: Existing | F69: Existing | G69: Existing | H69: Existing | I69: Existing | J69: Existing | K69: Existing | L69: Existing | M69: Existing | N69: Existing | O69: Existing | P69: Existing | Q69: Existing | R69: Existing | S69: =$W69 -> Existing | T69: Existing | W69: Existing | X69: =MLIST!C69 -> New | Y69: POST2013
B70: =MLIST!D70 -> UnitaryAC-NR | C70: Existing | D70: Existing | E70: Existing | F70: Existing | G70: Existing | H70: Existing | I70: Existing | J70: Existing | K70: Existing | L70: Existing | M70: Existing | N70: Existing | O70: Existing | P70: Existing | Q70: Existing | R70: Existing | S70: Existing | T70: Existing | W70: Existing | X70: =MLIST!C70 -> NR | Y70: POST2013
B71: =MLIST!D71 -> UnitaryAC-New | C71: Existing | D71: Existing | E71: Existing | F71: Existing | G71: Existing | H71: Existing | I71: Existing | J71: Existing | K71: Existing | L71: Existing | M71: Existing | N71: Existing | O71: Existing | P71: Existing | Q71: Existing | R71: Existing | S71: Existing | T71: Existing | W71: Existing | X71: =MLIST!C71 -> New | Y71: POST2013
B72: =MLIST!D72 -> Com-PTAC-NR | C72: Existing | D72: Existing | E72: Existing | F72: Existing | G72: Existing | H72: Existing | I72: Existing | J72: Existing | K72: Existing | L72: Existing | M72: Existing | N72: Existing | O72: Existing | P72: Existing | Q72: Existing | R72: Existing | S72: Existing | T72: Existing | W72: Existing | X72: =MLIST!C72 -> NR | Y72: =IF(X72="Retro","_PRE2013","POST2013") -> POST2013
B73: =MLIST!D73 -> Com-PTAC-New | C73: Existing | D73: Existing | E73: Existing | F73: Existing | G73: Existing | H73: Existing | I73: Existing | J73: Existing | K73: Existing | L73: Existing | M73: Existing | N73: Existing | O73: Existing | P73: Existing | Q73: Existing | R73: Existing | S73: Existing | T73: Existing | W73: Existing | X73: =MLIST!C73 -> New | Y73: POST2013
B74: COM-PTHP | C74: NR | D74: 0
B75: COM-PTHP | C75: New | D75: 0
B76: COM-PTHP | C76: Retro | D76: 0
B77: =MLIST!D77 -> Com-DOAS-New | C77: Existing | D77: Existing | E77: Existing | F77: Existing | G77: Existing | H77: Existing | I77: Existing | J77: Existing | K77: Existing | L77: Existing | M77: Existing | N77: Existing | O77: Existing | P77: Existing | Q77: Existing | R77: Existing | S77: Existing | T77: Existing | W77: Existing | X77: =MLIST!C77 -> New | Y77: POST2013
B78: =MLIST!D78 -> Com-DOAS-Retro | C78: Existing | D78: Existing | E78: Existing | F78: Existing | G78: Existing | H78: Existing | I78: Existing | J78: Existing | K78: Existing | L78: Existing | M78: Existing | N78: Existing | O78: Existing | P78: Existing | Q78: Existing | R78: Existing | S78: Existing | T78: Existing | W78: Existing | X78: =MLIST!C78 -> Retro | Y78: _PRE2013
B79: =MLIST!D79 -> Secondary Glazing Systems-Retro | C79: Existing | D79: Existing | E79: Existing | F79: Existing | G79: Existing | H79: Existing | I79: Existing | J79: Existing | K79: Existing | L79: Existing | M79: Existing | N79: Existing | O79: Existing | P79: Existing | Q79: Existing | R79: Existing | S79: Existing | T79: Existing | W79: Existing | X79: =MLIST!C79 -> Retro | Y79: _PRE2013
B80: =MLIST!D80 -> LPD Package-New | C80: New | D80: New | E80: New | F80: New | G80: New | H80: New | I80: New | J80: New | K80: New | L80: New | M80: New | N80: New | O80: New | P80: New | Q80: New | R80: New | S80: New | T80: New | W80: New | X80: =MLIST!C80 -> New | Y80: POST2013
B81: =MLIST!D81 -> LPD Package-NR | C81: Existing | D81: Existing | E81: Existing | F81: Existing | G81: Existing | H81: Existing | I81: Existing | J81: Existing | K81: Existing | L81: Existing | M81: Existing | N81: Existing | O81: Existing | P81: Existing | Q81: Existing | R81: Existing | S81: Existing | T81: Existing | W81: Existing | X81: =MLIST!C81 -> NR | Y81: _PRE2013
B82: =MLIST!D82 -> LPD Package-Retro | C82: Existing | D82: Existing | E82: Existing | F82: Existing | G82: Existing | H82: Existing | I82: =$W82 -> Existing | J82: Existing | K82: Existing | L82: Existing | M82: Existing | N82: Existing | O82: Existing | P82: Existing | Q82: Existing | R82: Existing | S82: Existing | T82: Existing | W82: Existing | X82: =MLIST!C82 -> Retro | Y82: _PRE2013
B83: =MLIST!D83 -> Top Daylighting-New | C83: New | D83: New | E83: New | F83: New | G83: New | H83: New | I83: New | J83: New | K83: New | L83: New | M83: New | N83: New | O83: New | P83: New | Q83: New | R83: New | S83: New | T83: New | W83: New | X83: =MLIST!C83 -> New | Y83: POST2013
B84: =MLIST!D84 -> Perimeter Daylighting Controls Advanced-New | C84: New | D84: New | E84: New | F84: New | G84: New | H84: New | I84: New | J84: New | K84: New | L84: New | M84: New | N84: New | O84: New | P84: New | Q84: New | R84: New | S84: New | T84: New | W84: New | X84: =MLIST!C84 -> New | Y84: POST2013
B85: =MLIST!D85 -> Perimeter Daylighting Controls Advanced-NR | C85: New | D85: New | E85: New | F85: New | G85: New | H85: New | I85: New | J85: New | K85: New | L85: New | M85: New | N85: New | O85: New | P85: New | Q85: New | R85: New | S85: New | T85: New | W85: New | X85: =MLIST!C85 -> NR | Y85: POST2013
B86: =MLIST!D86 -> Lighting Controls Interior-New | C86: New | D86: =$W86 -> New | E86: New | F86: New | G86: New | H86: New | I86: New | J86: New | K86: New | L86: New | M86: New | N86: New | O86: New | P86: New | Q86: New | R86: New | S86: New | T86: New | W86: New | X86: =MLIST!C86 -> New | Y86: POST2013
B87: =MLIST!D87 -> Lighting Controls Interior-NR | C87: Existing | D87: Existing | E87: Existing | F87: Existing | G87: Existing | H87: Existing | I87: Existing | J87: Existing | K87: Existing | L87: Existing | M87: Existing | N87: Existing | O87: Existing | P87: Existing | Q87: Existing | R87: Existing | S87: Existing | T87: Existing | W87: Existing | X87: =MLIST!C87 -> NR | Y87: _PRE2013
B88: =MLIST!D88 -> Exterior Building Lighting-New | C88: New | D88: New | E88: =$W88 -> New | F88: New | G88: New | H88: New | I88: New | J88: New | K88: New | L88: New | M88: New | N88: New | O88: New | P88: New | Q88: New | R88: New | S88: =$W88 -> New | T88: New | W88: New | X88: =MLIST!C88 -> New | Y88: POST2013
B89: =MLIST!D89 -> Exterior Building Lighting-NR | C89: New | D89: New | E89: New | F89: New | G89: New | H89: New | I89: New | J89: New | K89: New | L89: New | M89: New | N89: New | O89: New | P89: New | Q89: New | R89: New | S89: New | T89: New | W89: New | X89: =MLIST!C89 -> NR | Y89: POST2013
B90: =MLIST!D90 -> Street and Roadway Lighting-New | C90: New | D90: New | E90: New | F90: New | G90: New | H90: New | I90: New | J90: New | K90: New | L90: New | M90: New | N90: New | O90: New | P90: New | Q90: New | R90: New | S90: New | T90: New | W90: New | X90: =MLIST!C90 -> New | Y90: POST2013
B91: =MLIST!D91 -> Street and Roadway Lighting-Retro | C91: New | D91: New | E91: New | F91: New | G91: New | H91: New | I91: New | J91: New | K91: New | L91: New | M91: New | N91: New | O91: New | P91: New | Q91: New | R91: New | S91: New | T91: New | W91: New | X91: =MLIST!C91 -> Retro | Y91: _PRE2013
B92: =MLIST!D92 -> Parking Garage Lighting-New | C92: New | D92: New | E92: New | F92: New | G92: New | H92: New | I92: New | J92: New | K92: New | L92: New | M92: New | N92: New | O92: New | P92: New | Q92: New | R92: New | S92: New | T92: New | W92: New | X92: =MLIST!C92 -> New | Y92: POST2013
B93: =MLIST!D93 -> Parking Garage Lighting-Retro | C93: New | D93: New | E93: New | F93: New | G93: New | H93: New | I93: New | J93: New | K93: New | L93: New | M93: New | N93: New | O93: New | P93: New | Q93: New | R93: New | S93: New | T93: New | W93: New | X93: =MLIST!C93 -> Retro | Y93: _PRE2013
B94: =MLIST!D95 -> Low Power LF Lamps-NR | C94: =$W94 -> Existing | D94: =$W94 -> Existing | W94: Existing | X94: Retro | Y94: =IF(X94="Retro","_PRE2013","POST2013") -> _PRE2013
B95: =MLIST!D96 -> LEC Exit Sign-New | C95: =$W95 -> New | D95: New | W95: New | X95: =MLIST!C95 -> NR | Y95: =IF(X95="Retro","_PRE2013","POST2013") -> POST2013
B96: =MLIST!D97 -> LEC Exit Sign-NR | C96: New | D96: New | W96: New | X96: =MLIST!C96 -> New | Y96: POST2013
B97: =MLIST!D94 -> Bi-Level Stairwell Lighting-NR | C97: Existing | D97: Existing | E97: Existing | F97: Existing | G97: Existing | H97: Existing | I97: Existing | J97: Existing | K97: Existing | L97: Existing | M97: Existing | N97: Existing | O97: Existing | P97: Existing | Q97: Existing | R97: Existing | S97: Existing | T97: Existing | W97: Existing | X97: =MLIST!C94 -> NR | Y97: POST2013
B98: =MLIST!D98 -> Commercial Ice Maker-NR | C98: New | D98: New | E98: New | F98: New | G98: New | H98: New | I98: New | J98: New | K98: New | L98: New | M98: New | N98: New | O98: New | P98: New | Q98: New | R98: New | S98: New | T98: New | W98: New | X98: =MLIST!C98 -> NR | Y98: POST2013
B99: =MLIST!D99 -> Commercial Beverage Vending Machine-NR | C99: New | D99: New | E99: New | F99: New | G99: New | H99: New | I99: New | J99: New | K99: New | L99: New | M99: New | N99: New | O99: New | P99: New | Q99: New | R99: New | S99: New | T99: New | W99: New | X99: =MLIST!C99 -> NR | Y99: POST2013
B100: =MLIST!D100 -> Clean Water PUmps-Retro | C100: Existing | D100: Existing | E100: Existing | F100: Existing | G100: Existing | H100: Existing | I100: Existing | J100: Existing | K100: Existing | L100: Existing | M100: Existing | N100: Existing | O100: Existing | P100: Existing | Q100: Existing | R100: Existing | S100: Existing | T100: Existing | W100: Existing | X100: =MLIST!C100 -> Retro | Y100: _PRE2013
B101: =MLIST!D101 -> Servers & Power Supplies-NR | C101: Existing | D101: =$W101 -> Existing | E101: Existing | F101: Existing | G101: Existing | H101: Existing | I101: Existing | J101: Existing | K101: Existing | L101: Existing | M101: Existing | N101: Existing | O101: Existing | P101: Existing | Q101: Existing | R101: Existing | S101: Existing | T101: Existing | W101: Existing | X101: =MLIST!C101 -> NR | Y101: POST2013
B102: =MLIST!D102 -> Elevators-Retro | C102: New | D102: New | E102: New | F102: New | G102: New | H102: New | I102: New | J102: New | K102: New | L102: New | M102: New | N102: New | O102: New | P102: New | Q102: New | R102: New | S102: New | T102: New | W102: New | X102: =MLIST!C102 -> Retro | Y102: =IF(X102="Retro","_PRE2013","POST2013") -> _PRE2013
B103: =MLIST!D103 -> Clean Water Pumps-NR | C103: Existing | D103: Existing | E103: Existing | F103: Existing | G103: Existing | H103: Existing | I103: Existing | J103: Existing | K103: Existing | L103: Existing | M103: Existing | N103: Existing | O103: Existing | P103: Existing | Q103: Existing | R103: Existing | S103: Existing | T103: Existing | W103: Existing | X103: =MLIST!C103 -> NR
B104: =MLIST!D104 -> Clean Water Pumps-New | C104: New | D104: New | E104: =$W104 -> New | F104: New | G104: New | H104: New | I104: New | J104: New | K104: New | L104: New | M104: New | N104: New | O104: New | P104: New | Q104: New | R104: New | S104: New | T104: =$W104 -> New | W104: New | X104: =MLIST!C104 -> New
B105: =MLIST!D105 -> EBHeaterControl-Retro | C105: Existing | D105: =$W105 -> Existing | E105: Existing | F105: Existing | G105: Existing | H105: Existing | I105: Existing | J105: Existing | K105: Existing | L105: Existing | M105: Existing | N105: Existing | O105: Existing | P105: Existing | Q105: Existing | R105: Existing | S105: Existing | T105: Existing | W105: Existing | X105: =MLIST!C105 -> Retro | Y105: _PRE2013
B106: GroceryRefrigeration | C106: NR | D106: =$W106 -> NR | E106: NR | F106: NR | G106: NR | H106: NR | I106: NR | J106: NR | K106: NR | L106: NR | M106: NR | N106: NR | O106: NR | P106: NR | Q106: NR | R106: NR | S106: NR | T106: NR | W106: NR
B107: =MLIST!D107 -> GroceryRefrigeration-Retro | C107: Existing | D107: Existing | E107: Existing | F107: Existing | G107: Existing | H107: Existing | I107: Existing | J107: Existing | K107: Existing | L107: Existing | M107: Existing | N107: Existing | O107: Existing | P107: Existing | Q107: Existing | R107: Existing | S107: Existing | T107: Existing | W107: Existing | X107: =MLIST!C107 -> Retro | Y107: _PRE2013
B108: =MLIST!D108 -> GroceryRefrigeration-New | C108: New | D108: New | E108: New | F108: New | G108: New | H108: New | I108: New | J108: New | K108: New | L108: New | M108: New | N108: New | O108: New | P108: New | Q108: New | R108: New | S108: New | T108: New | W108: New
B109: =MLIST!D109 -> Packaged Refrigeration Equipment-New | C109: New | D109: New | E109: New | F109: New | G109: New | H109: New | I109: New | J109: New | K109: New | L109: New | M109: New | N109: New | O109: New | P109: New | Q109: New | R109: New | S109: New | T109: New | W109: New | X109: =MLIST!C109 -> New | Y109: POST2013
B110: =MLIST!D110 -> Refrig-Freezer-NR | C110: =$W110 -> New | D110: New | E110: New | F110: New | G110: New | H110: New | I110: New | J110: New | K110: New | L110: New | M110: New | N110: New | O110: New | P110: New | Q110: New | R110: New | S110: New | T110: New | W110: New | X110: =MLIST!C110 -> NR | Y110: POST2013
B111: =MLIST!D111 -> Refrig-Freezer-New | C111: New | D111: New | E111: New | F111: New | G111: New | H111: New | I111: New | J111: New | K111: New | L111: New | M111: New | N111: New | O111: New | P111: New | Q111: New | R111: New | S111: New | T111: New | W111: New | X111: =MLIST!C111 -> New | Y111: POST2013
B112: =MLIST!D112 -> Water Cooler Controls-NR | C112: Existing | D112: Existing | E112: Existing | F112: Existing | G112: Existing | H112: Existing | I112: Existing | J112: Existing | K112: Existing | L112: Existing | M112: Existing | N112: Existing | O112: Existing | P112: Existing | Q112: Existing | R112: Existing | S112: Existing | T112: Existing | W112: Existing | X112: =MLIST!C112 -> NR | Y112: POST2013
B113: =MLIST!D113 -> HPWH ResType-New | C113: New | D113: New | E113: New | F113: New | G113: New | H113: New | I113: New | J113: New | K113: New | L113: New | M113: New | N113: New | O113: New | P113: New | Q113: New | R113: New | S113: New | T113: New | W113: New | X113: =MLIST!C113 -> New | Y113: POST2013
B114: =MLIST!D114 -> HPWH ResType-NR | C114: Existing | D114: Existing | E114: Existing | F114: Existing | G114: Existing | H114: Existing | I114: Existing | J114: Existing | K114: Existing | L114: Existing | M114: Existing | N114: Existing | O114: Existing | P114: Existing | Q114: Existing | R114: Existing | S114: Existing | T114: Existing | W114: Existing | X114: =MLIST!C114 -> NR | Y114: POST2013
B116: =MLIST!D116 -> Washer-NR | C116: New | D116: New | E116: New | F116: New | G116: New | H116: New | I116: New | J116: New | K116: New | L116: New | M116: New | N116: New | O116: New | P116: New | Q116: New | R116: New | S116: New | T116: New | W116: New | X116: =MLIST!C116 -> NR | Y116: POST2013
B117: =MLIST!D117 -> Showerheads-NR | C117: Existing | D117: Existing | E117: Existing | F117: Existing | G117: Existing | H117: Existing | I117: Existing | J117: Existing | K117: Existing | L117: Existing | M117: Existing | N117: Existing | O117: Existing | P117: Existing | Q117: Existing | R117: Existing | S117: Existing | T117: Existing | W117: Existing | X117: =MLIST!C117 -> NR | Y117: POST2013
B118: =MLIST!D118 -> Showerheads-Retro | C118: New | D118: New | E118: New | F118: New | G118: New | H118: New | I118: New | J118: New | K118: New | L118: New | M118: New | N118: New | O118: New | P118: New | Q118: New | R118: New | S118: New | T118: New | W118: New | X118: =MLIST!C118 -> Retro | Y118: _PRE2013
B119: =MLIST!D119 -> 0 | C119: Existing | D119: Existing | E119: Existing | F119: Existing | G119: Existing | H119: Existing | I119: Existing | J119: Existing | K119: Existing | L119: Existing | M119: Existing | N119: Existing | O119: Existing | P119: Existing | Q119: Existing | R119: Existing | S119: Existing | T119: Existing | W119: Existing | X119: =MLIST!C119 -> 0 | Y119: POST2013
B120: =MLIST!D120 -> 0 | C120: Existing | D120: Existing | E120: Existing | F120: Existing | G120: Existing | H120: Existing | I120: Existing | J120: Existing | K120: Existing | L120: Existing | M120: Existing | N120: Existing | O120: Existing | P120: Existing | Q120: Existing | R120: Existing | S120: Existing | T120: Existing | W120: Existing | X120: =MLIST!C120 -> 0 | Y120: POST2013
B121: =MLIST!D121 -> 0 | C121: New | D121: New | E121: New | F121: New | G121: New | H121: New | I121: New | J121: New | K121: New | L121: New | M121: New | N121: New | O121: New | P121: New | Q121: New | R121: New | S121: New | T121: New | W121: New | X121: =MLIST!C121 -> 0 | Y121: POST2013

Sheet TURN
A1: TURN | B1: Natural Replacement (NR) Rate, Fraction of Applicable Measure-Specific Equipment in Existing Stock that is Replaced Annually, making the measure applicable at incremental costs and savings similar to New applications.
A2: =COLUMN() -> 1 | B2: =COLUMN() -> 2 | C2: =COLUMN() -> 3 | D2: =COLUMN() -> 4 | E2: =COLUMN() -> 5 | F2: =COLUMN() -> 6 | G2: =COLUMN() -> 7 | H2: =COLUMN() -> 8 | I2: =COLUMN() -> 9 | J2: =COLUMN() -> 10 | K2: =COLUMN() -> 11 | L2: =COLUMN() -> 12 | M2: =COLUMN() -> 13 | N2: =COLUMN() -> 14 | O2: =COLUMN() -> 15 | P2: =COLUMN() -> 16 | Q2: =COLUMN() -> 17 | R2: =COLUMN() -> 18 | S2: =COLUMN() -> 19 | T2: =COLUMN() -> 20 | U2: =COLUMN() -> 21
C6: 0.09803893072 | D6: 0.03709455218 | E6: 0.04977412199 | F6: 0.03139632724 | G6: 0.08552666904 | H6: 0.02138166726 | I6: 0.04376693293 | J6: 0.08385341249 | K6: 0.04214116962 | L6: 0.1179971004 | M6: 0.02220827137 | N6: 0.006473603239 | O6: 0.01694333298 | P6: 0.06042786208 | Q6: 0.02232916094 | R6: 0.04792390203 | S6: 0.07164887786 | T6: 0.1410741056
C10: Office | F10: Retail | J10: School | L10: Warehouse | M10: Grocery | O10: Restaurant | P10: Lodging | Q10: Health | S10: =S11 -> Assembly | T10: =T11 -> Other | U10: Non-Building Applications
A11: M BUNDLE ID | B11: Measure Index Name | C11: =APPLIC!C11 -> Large Off | D11: =APPLIC!D11 -> Medium Off | E11: =APPLIC!E11 -> Small Off | F11: =APPLIC!F11 -> Xlarge Ret | G11: =APPLIC!G11 -> Large Ret | H11: =APPLIC!H11 -> Medium Ret | I11: =APPLIC!I11 -> Small Ret | J11: =APPLIC!J11 -> School K-12 | K11: =APPLIC!K11 -> University | L11: =APPLIC!L11 -> Warehouse | M11: =APPLIC!M11 -> Supermarket | N11: =APPLIC!N11 -> MiniMart | O11: =APPLIC!O11 -> Restaurant | P11: =APPLIC!P11 -> Lodging | Q11: =APPLIC!Q11 -> Hospital | R11: =APPLIC!R11 -> Residential Care | S11: =APPLIC!S11 -> Assembly | T11: =APPLIC!T11 -> Other | U11: =APPLIC!U11 -> Non-Building Stock | V11: Data Source
B12: =MLIST!D12 -> Compressors-New
A13: =SUMPRODUCT(C6:T6,C13:T13) -> 0 | B13: =MLIST!D13 -> Compressors-NR
B14: =MLIST!D14 -> Laptop-NR | U14: =1/4 -> 0.25
B15: =MLIST!D15 -> PowerStrips-Retro | U15: 0.2
B16: =MLIST!D16 -> PowerStrips-New | U16: 0.2
B17: =MLIST!D17 -> Data Centers-NR | U17: 0.2
B18: =MLIST!D18 -> Desktop-WA-NR | U18: =1/5 -> 0.2
B19: =MLIST!D19 -> Desktop-NR | U19: =1/5 -> 0.2
B20: =MLIST!D20 -> Laptop-WA-NR | U20: =1/4 -> 0.25
B21: =MLIST!D21 -> Pre-Rinse Spray Valve-Retro | U21: 0.2
B22: =MLIST!D22 -> Steamer-NR | U22: =1/X23 -> 0.1388888889 | W22: Cooking-Steamer | X22: 7.2
B23: =MLIST!D23 -> Combo Oven-NR | U23: =1/X26 -> 0.1388888889 | W23: Steamer Water Treatment | X23: 7.2
B24: =MLIST!D24 -> HFHC-NR | U24: =1/X28 -> 0.09615384615 | W24: Cooking-Convection Oven | X24: 7.6
B25: =MLIST!D25 -> Convection Oven-NR | U25: =1/X24 -> 0.1315789474 | W25: Cooking-Fryer | X25: 5.6
B26: =MLIST!D26 -> Fryer-NR | U26: =1/X25 -> 0.1785714286 | W26: Cooking-ComboOven | X26: 7.2
B27: =MLIST!D27 -> Griddle-NR | U27: =1/X29 -> 0.08333333333 | W27: Combo Oven Water Treatment | X27: 7.2
B28: =MLIST!D28 -> Overwrapper-NR | U28: =1/X30 -> 0.1 | W28: Cooking-HFHC | X28: 10.4
B29: =MLIST!D29 -> DHP-New | C29: =1/30 -> 0.03333333333 | D29: =1/25 -> 0.04 | E29: =1/20 -> 0.05 | F29: 0.05 | G29: 0.05 | H29: 0.05 | I29: =1/30 -> 0.03333333333 | J29: 0.03333333333 | K29: 0.03333333333 | L29: =1/20 -> 0.05 | M29: =1/20 -> 0.05 | N29: =1/20 -> 0.05 | O29: 0.05 | P29: 0.05 | Q29: =1/25 -> 0.04 | R29: 0.04 | S29: 0.04 | T29: 0.04 | V29: 20, 25 or 30 year equipment life | W29: Cooking-Griddle | X29: 12
B30: =MLIST!D30 -> DHP-Retro | C30: =1/30 -> 0.03333333333 | D30: =1/25 -> 0.04 | E30: 0.05 | F30: 0.05 | G30: 0.05 | H30: 0.05 | I30: 0.03333333333 | J30: 0.03333333333 | K30: 0.03333333333 | L30: =1/20 -> 0.05 | M30: =1/20 -> 0.05 | N30: 0.05 | O30: 0.05 | P30: 0.05 | Q30: 0.04 | R30: 0.04 | S30: 0.04 | T30: 0.04 | V30: 20, 25 or 30 year equipment life | W30: Machine Savings | X30: 10
B31: =MLIST!D31 -> Glass-New | W31: Heating Savings | X31: 10
B32: =MLIST!D32 -> Glass-NR | C32: =1/40 -> 0.025 | D32: =1/40 -> 0.025 | E32: 0.025 | F32: 0.025 | G32: 0.025 | H32: 0.025 | I32: 0.025 | J32: 0.025 | K32: 0.025 | L32: 0.025 | M32: 0.025 | N32: 0.025 | O32: 0.025 | P32: 0.025 | Q32: 0.025 | R32: 0.025 | S32: 0.025 | T32: 0.025 | U32: 0.025 | V32: 40 years | W32: Cooling Savings | X32: 10
B33: =MLIST!D33 -> ARC-New | C33: =1/15 -> 0.06666666667 | D33: =1/15 -> 0.06666666667 | E33: 0.06666666667 | F33: 0.06666666667 | G33: 0.06666666667 | H33: 0.06666666667 | I33: 0.06666666667 | J33: 0.06666666667 | K33: 0.06666666667 | L33: 0.06666666667 | M33: 0.06666666667 | N33: 0.06666666667 | O33: 0.06666666667 | P33: 0.06666666667 | Q33: 0.06666666667 | R33: 0.06666666667 | S33: 0.06666666667 | T33: 0.06666666667
B34: =MLIST!D34 -> ARC-NR
B35: =MLIST!D35 -> ARC-Retro | C35: =1/15 -> 0.06666666667 | D35: 0.06666666667 | E35: 0.06666666667 | F35: 0.06666666667 | G35: 0.06666666667 | H35: 0.06666666667 | I35: 0.06666666667 | J35: 0.06666666667 | K35: 0.06666666667 | L35: 0.06666666667 | M35: 0.06666666667 | N35: 0.06666666667 | O35: 0.06666666667 | P35: 0.06666666667 | Q35: 0.06666666667 | R35: 0.06666666667 | S35: 0.06666666667 | T35: 0.06666666667
B36: =MLIST!D36 -> Chiller-Upgrade-New
B37: =MLIST!D37 -> Chiller-Upgrade-NR
B38: =MLIST!D38 -> Chiller-System-Retro
B39: =MLIST!D39 -> Fans-Retro | C39: 0.15 | D39: 0.15 | E39: 0.15 | F39: 0.15 | G39: 0.15 | H39: 0.15 | I39: 0.15 | J39: 0.15 | K39: 0.15 | L39: 0.15 | M39: 0.15 | N39: 0.15 | O39: 0.15 | P39: 0.15 | Q39: 0.15 | R39: 0.15 | S39: 0.15 | T39: 0.15
B40: =MLIST!D40 -> Fans-NR
B41: =MLIST!D41 -> Fans-New
B42: =MLIST!D42 -> VHE-DOAS-NR
B43: =MLIST!D43 -> VHE-DOAS-New
B44: =MLIST!D44 -> -NR
B45: =MLIST!D45 -> Commercial EM-New
B46: =MLIST!D46 -> Commercial EM-Retro
B47: =MLIST!D47 -> Economizer-Retro
B48: =MLIST!D48 -> Demand Control Ventilation-New
B49: =MLIST!D49 -> Demand Control Ventilation-NR
B50: =MLIST!D50 -> Demand Control Ventilation-Retro
B51: =MLIST!D51 -> DCV-Lab Hood-Retro | C51: 0.06 | D51: 0.06 | E51: 0.06 | F51: 0.06 | G51: 0.06 | H51: 0.06 | I51: 0.06 | J51: 0.06 | K51: 0.06 | L51: 0.06 | M51: 0.06 | N51: 0.06 | O51: 0.06 | P51: 0.06 | Q51: 0.06 | R51: 0.06 | S51: 0.06 | T51: 0.06 | U51: 0.06
B52: =MLIST!D52 -> DCV-Kitchen-Retro
B53: =MLIST!D53 -> DCV-Parking Garage-Retro
B54: =MLIST!D54 -> Weatherization - School-Retro
B55: =MLIST!D55 -> Energy Recovery Ventilator-NR | U55: =1/4 -> 0.25
B56: =MLIST!D56 -> AC Heat Recovery for Water Heating-NR
B57: =MLIST!D57 -> Room Occupancy Sensors in Lodging-Retro
B58: =MLIST!D58 -> Pool Blankets-Retro
B59: =MLIST!D59 -> ConnectedThermostats-New
B60: =MLIST!D60 -> ConnectedThermostats-Retro
B61: =MLIST!D61 -> CircPumps-NR
B62: =MLIST!D62 -> Circpumps-New
B63: =MLIST!D63 -> VRF-DOAS-New
B64: =MLIST!D64 -> VRF-DOAS-NR
B65: =MLIST!D65 -> Evaporator Roof Top HVAC-Retro
B66: =MLIST!D66 -> HeatPumps-NR
B67: =MLIST!D67 -> HeatPumps-New
B68: =MLIST!D68 -> VCHP-NR
B69: =MLIST!D69 -> VCHP-New
B70: =MLIST!D70 -> UnitaryAC-NR
B71: =MLIST!D71 -> UnitaryAC-New
B72: =MLIST!D72 -> Com-PTAC-NR
B73: =MLIST!D73 -> Com-PTAC-New
B74: =MLIST!D74 -> COM-PTHP-NR
B75: =MLIST!D75 -> COM-PTHP-New
B76: =MLIST!D76 -> COM-PTHP-Retro
B77: =MLIST!D77 -> Com-DOAS-New
B78: =MLIST!D78 -> Com-DOAS-Retro
B79: =MLIST!D79 -> Secondary Glazing Systems-Retro
B80: =MLIST!D80 -> LPD Package-New
B81: =MLIST!D81 -> LPD Package-NR
B82: =MLIST!D82 -> LPD Package-Retro
B83: =MLIST!D83 -> Top Daylighting-New
B84: =MLIST!D84 -> Perimeter Daylighting Controls Advanced-New
B85: =MLIST!D85 -> Perimeter Daylighting Controls Advanced-NR
B86: =MLIST!D86 -> Lighting Controls Interior-New
B87: =MLIST!D87 -> Lighting Controls Interior-NR | C87: 0.06 | D87: 0.06 | E87: 0.06 | F87: 0.06 | G87: 0.06 | H87: 0.06 | I87: 0.06 | J87: 0.06 | K87: 0.06 | L87: 0.06 | M87: 0.06 | N87: 0.06 | O87: 0.06 | P87: 0.06 | Q87: 0.06 | R87: 0.06 | S87: 0.06 | T87: 0.06 | V87: Fixture or Ballast Replacement Cycle
B88: =MLIST!D88 -> Exterior Building Lighting-New | U88: =1/5 -> 0.2 | V88: 8-Year Cycle for new Exterior based on CP mix LED/HID
B89: =MLIST!D89 -> Exterior Building Lighting-NR | U89: =1/5 -> 0.2 | V89: 8-Year Cycle for new Exterior based on CP mix LED/HID
B90: =MLIST!D90 -> Street and Roadway Lighting-New | U90: =1/5 -> 0.2 | V90: Five year cycle for streetlight relamp (DOE & Tariffs for HPS)
B91: =MLIST!D91 -> Street and Roadway Lighting-Retro | U91: =1/5 -> 0.2 | V91: Five year cycle for streetlight relamp (DOE & Tariffs for HPS)
B92: =MLIST!D92 -> Parking Garage Lighting-New | U92: 0.2 | V92: 5-year cycle (lamp cycle) for luminiares requiring bucket truck.
B93: =MLIST!D93 -> Parking Garage Lighting-Retro | C93: 0 | D93: 0 | E93: 0 | F93: 0 | G93: 0 | H93: 0 | I93: 0 | J93: 0 | K93: 0 | L93: 0 | M93: 0 | N93: 0 | O93: 0 | P93: 0 | Q93: 0 | R93: 0 | S93: 0 | T93: 0 | U93: 0.2 | V93: 5-year cycle (lamp cycle) for luminiares requiring bucket truck.
B94: =MLIST!D94 -> Bi-Level Stairwell Lighting-NR | C94: 0 | D94: 0 | E94: 0 | F94: 0 | G94: 0 | H94: 0 | I94: 0 | J94: 0 | K94: 0 | L94: 0 | M94: 0 | N94: 0 | O94: 0 | P94: 0 | Q94: 0 | R94: 0 | S94: 0 | T94: 0
B95: =MLIST!D95 -> Low Power LF Lamps-NR
B96: =MLIST!D96 -> LEC Exit Sign-New
B97: =MLIST!D97 -> LEC Exit Sign-NR
B98: =MLIST!D98 -> Commercial Ice Maker-NR
B99: =MLIST!D99 -> Commercial Beverage Vending Machine-NR
B100: =MLIST!D100 -> Clean Water PUmps-Retro
B101: =MLIST!D101 -> Servers & Power Supplies-NR
B102: =MLIST!D102 -> Elevators-Retro
B103: =MLIST!D103 -> Clean Water Pumps-NR
B104: =MLIST!D104 -> Clean Water Pumps-New
B105: =MLIST!D105 -> EBHeaterControl-Retro
B106: GroceryRefrigeration
B107: =MLIST!D107 -> GroceryRefrigeration-Retro
B108: =MLIST!D108 -> GroceryRefrigeration-New
B109: =MLIST!D109 -> Packaged Refrigeration Equipment-New
B110: =MLIST!D110 -> Refrig-Freezer-NR | U110: =1/10 -> 0.1
B111: =MLIST!D111 -> Refrig-Freezer-New | U111: =1/10 -> 0.1
B112: =MLIST!D112 -> Water Cooler Controls-NR
B113: =MLIST!D113 -> HPWH ResType-New | U113: 0.07692307692 | V113: From HPWH Residential
B114: =MLIST!D114 -> HPWH ResType-NR
B115: =MLIST!D115 -> Washer-New
B116: =MLIST!D116 -> Washer-NR
B117: =MLIST!D117 -> Showerheads-NR
B118: =MLIST!D118 -> Showerheads-Retro

Sheet ACHIEV
A1: ACHIEV | B1: Connects ramp rates to Measure Index. Max achievable rate is entered into the last column
A2: =FILES!H4 -> 2041
B8: 1 | C8: 2 | D8: 3 | E8: 4 | F8: 5 | G8: 6 | H8: 7 | I8: 8 | J8: 9 | K8: 10 | L8: 11 | M8: 12 | N8: 13 | O8: 14 | P8: 15 | Q8: 16 | R8: 17 | S8: 18 | T8: 19 | U8: 20 | V8: 21 | W8: 22 | X8: 23
A11: End Use | B11: Measure Index Name | C11: Ramp | D11: =ACHIEV!A2-20+1 -> 2022 | E11: =D11+1 -> 2023 | F11: =E11+1 -> 2024 | G11: 2025 | H11: 2026 | I11: 2027 | J11: 2028 | K11: 2029 | L11: 2030 | M11: 2031 | N11: 2032 | O11: 2033 | P11: 2034 | Q11: 2035 | R11: 2036 | S11: 2037 | T11: 2038 | U11: 2039 | V11: 2040 | W11: 2041 | X11: MAX
A12: =MLIST!A12 -> Compressed Air | B12: =MLIST!D12 -> Compressors-New | C12: LOEven20 | D12: =IF(ISBLANK($C12),"",VLOOKUP($C12,RAMP!$C$1:$X$20,D$11-$D$11+2,FALSE)) -> 0.05 | E12: =IF(ISBLANK($C12),"",VLOOKUP($C12,RAMP!$C$1:$X$20,E$11-$D$11+2,FALSE)) -> 0.1 | F12: =IF(ISBLANK($C12),"",VLOOKUP($C12,RAMP!$C$1:$X$20,F$11-$D$11+2,FALSE)) -> 0.15 | G12: =IF(ISBLANK($C12),"",VLOOKUP($C12,RAMP!$C$1:$X$20,G$11-$D$11+2,FALSE)) -> 0.2 | H12: =IF(ISBLANK($C12),"",VLOOKUP($C12,RAMP!$C$1:$X$20,H$11-$D$11+2,FALSE)) -> 0.25 | I12: =IF(ISBLANK($C12),"",VLOOKUP($C12,RAMP!$C$1:$X$20,I$11-$D$11+2,FALSE)) -> 0.3 | J12: =IF(ISBLANK($C12),"",VLOOKUP($C12,RAMP!$C$1:$X$20,J$11-$D$11+2,FALSE)) -> 0.35 | K12: =IF(ISBLANK($C12),"",VLOOKUP($C12,RAMP!$C$1:$X$20,K$11-$D$11+2,FALSE)) -> 0.4 | L12: =IF(ISBLANK($C12),"",VLOOKUP($C12,RAMP!$C$1:$X$20,L$11-$D$11+2,FALSE)) -> 0.45 | M12: =IF(ISBLANK($C12),"",VLOOKUP($C12,RAMP!$C$1:$X$20,M$11-$D$11+2,FALSE)) -> 0.5 | N12: =IF(ISBLANK($C12),"",VLOOKUP($C12,RAMP!$C$1:$X$20,N$11-$D$11+2,FALSE)) -> 0.55 | O12: =IF(ISBLANK($C12),"",VLOOKUP($C12,RAMP!$C$1:$X$20,O$11-$D$11+2,FALSE)) -> 0.6 | P12: =IF(ISBLANK($C12),"",VLOOKUP($C12,RAMP!$C$1:$X$20,P$11-$D$11+2,FALSE)) -> 0.65 | Q12: =IF(ISBLANK($C12),"",VLOOKUP($C12,RAMP!$C$1:$X$20,Q$11-$D$11+2,FALSE)) -> 0.7 | R12: =IF(ISBLANK($C12),"",VLOOKUP($C12,RAMP!$C$1:$X$20,R$11-$D$11+2,FALSE)) -> 0.75 | S12: =IF(ISBLANK($C12),"",VLOOKUP($C12,RAMP!$C$1:$X$20,S$11-$D$11+2,FALSE)) -> 0.8 | T12: =IF(ISBLANK($C12),"",VLOOKUP($C12,RAMP!$C$1:$X$20,T$11-$D$11+2,FALSE)) -> 0.85 | U12: =IF(ISBLANK($C12),"",VLOOKUP($C12,RAMP!$C$1:$X$20,U$11-$D$11+2,FALSE)) -> 0.9 | V12: =IF(ISBLANK($C12),"",VLOOKUP($C12,RAMP!$C$1:$X$20,V$11-$D$11+2,FALSE)) -> 0.95 | W12: =IF(ISBLANK($C12),"",VLOOKUP($C12,RAMP!$C$1:$X$20,W$11-$D$11+2,FALSE)) -> 1 | X12: 0.85
A13: =MLIST!A13 -> Compressed Air | B13: =MLIST!D13 -> Compressors-NR | C13: LOEven20 | D13: =IF(ISBLANK($C13),"",VLOOKUP($C13,RAMP!$C$1:$X$20,D$11-$D$11+2,FALSE)) -> 0.05 | E13: =IF(ISBLANK($C13),"",VLOOKUP($C13,RAMP!$C$1:$X$20,E$11-$D$11+2,FALSE)) -> 0.1 | F13: =IF(ISBLANK($C13),"",VLOOKUP($C13,RAMP!$C$1:$X$20,F$11-$D$11+2,FALSE)) -> 0.15 | G13: =IF(ISBLANK($C13),"",VLOOKUP($C13,RAMP!$C$1:$X$20,G$11-$D$11+2,FALSE)) -> 0.2 | H13: =IF(ISBLANK($C13),"",VLOOKUP($C13,RAMP!$C$1:$X$20,H$11-$D$11+2,FALSE)) -> 0.25 | I13: =IF(ISBLANK($C13),"",VLOOKUP($C13,RAMP!$C$1:$X$20,I$11-$D$11+2,FALSE)) -> 0.3 | J13: =IF(ISBLANK($C13),"",VLOOKUP($C13,RAMP!$C$1:$X$20,J$11-$D$11+2,FALSE)) -> 0.35 | K13: =IF(ISBLANK($C13),"",VLOOKUP($C13,RAMP!$C$1:$X$20,K$11-$D$11+2,FALSE)) -> 0.4 | L13: =IF(ISBLANK($C13),"",VLOOKUP($C13,RAMP!$C$1:$X$20,L$11-$D$11+2,FALSE)) -> 0.45 | M13: =IF(ISBLANK($C13),"",VLOOKUP($C13,RAMP!$C$1:$X$20,M$11-$D$11+2,FALSE)) -> 0.5 | N13: =IF(ISBLANK($C13),"",VLOOKUP($C13,RAMP!$C$1:$X$20,N$11-$D$11+2,FALSE)) -> 0.55 | O13: =IF(ISBLANK($C13),"",VLOOKUP($C13,RAMP!$C$1:$X$20,O$11-$D$11+2,FALSE)) -> 0.6 | P13: =IF(ISBLANK($C13),"",VLOOKUP($C13,RAMP!$C$1:$X$20,P$11-$D$11+2,FALSE)) -> 0.65 | Q13: =IF(ISBLANK($C13),"",VLOOKUP($C13,RAMP!$C$1:$X$20,Q$11-$D$11+2,FALSE)) -> 0.7 | R13: =IF(ISBLANK($C13),"",VLOOKUP($C13,RAMP!$C$1:$X$20,R$11-$D$11+2,FALSE)) -> 0.75 | S13: =IF(ISBLANK($C13),"",VLOOKUP($C13,RAMP!$C$1:$X$20,S$11-$D$11+2,FALSE)) -> 0.8 | T13: =IF(ISBLANK($C13),"",VLOOKUP($C13,RAMP!$C$1:$X$20,T$11-$D$11+2,FALSE)) -> 0.85 | U13: =IF(ISBLANK($C13),"",VLOOKUP($C13,RAMP!$C$1:$X$20,U$11-$D$11+2,FALSE)) -> 0.9 | V13: =IF(ISBLANK($C13),"",VLOOKUP($C13,RAMP!$C$1:$X$20,V$11-$D$11+2,FALSE)) -> 0.95 | W13: =IF(ISBLANK($C13),"",VLOOKUP($C13,RAMP!$C$1:$X$20,W$11-$D$11+2,FALSE)) -> 1 | X13: 0.85
A14: =MLIST!A14 -> Electronics | B14: =MLIST!D14 -> Laptop-NR | C14: LO50Fast | D14: =IF(ISBLANK($C14),"",VLOOKUP($C14,RAMP!$C$1:$X$20,D$11-$D$11+2,FALSE)) -> 0.45 | E14: =IF(ISBLANK($C14),"",VLOOKUP($C14,RAMP!$C$1:$X$20,E$11-$D$11+2,FALSE)) -> 0.66 | F14: =IF(ISBLANK($C14),"",VLOOKUP($C14,RAMP!$C$1:$X$20,F$11-$D$11+2,FALSE)) -> 0.8 | G14: =IF(ISBLANK($C14),"",VLOOKUP($C14,RAMP!$C$1:$X$20,G$11-$D$11+2,FALSE)) -> 0.89 | H14: =IF(ISBLANK($C14),"",VLOOKUP($C14,RAMP!$C$1:$X$20,H$11-$D$11+2,FALSE)) -> 0.9495403626 | I14: =IF(ISBLANK($C14),"",VLOOKUP($C14,RAMP!$C$1:$X$20,I$11-$D$11+2,FALSE)) -> 0.9793105439 | J14: =IF(ISBLANK($C14),"",VLOOKUP($C14,RAMP!$C$1:$X$20,J$11-$D$11+2,FALSE)) -> 0.9925417356 | K14: =IF(ISBLANK($C14),"",VLOOKUP($C14,RAMP!$C$1:$X$20,K$11-$D$11+2,FALSE)) -> 0.9978342123 | L14: =IF(ISBLANK($C14),"",VLOOKUP($C14,RAMP!$C$1:$X$20,L$11-$D$11+2,FALSE)) -> 0.9997587493 | M14: =IF(ISBLANK($C14),"",VLOOKUP($C14,RAMP!$C$1:$X$20,M$11-$D$11+2,FALSE)) -> 1 | N14: =IF(ISBLANK($C14),"",VLOOKUP($C14,RAMP!$C$1:$X$20,N$11-$D$11+2,FALSE)) -> 1 | O14: =IF(ISBLANK($C14),"",VLOOKUP($C14,RAMP!$C$1:$X$20,O$11-$D$11+2,FALSE)) -> 1 | P14: =IF(ISBLANK($C14),"",VLOOKUP($C14,RAMP!$C$1:$X$20,P$11-$D$11+2,FALSE)) -> 1 | Q14: =IF(ISBLANK($C14),"",VLOOKUP($C14,RAMP!$C$1:$X$20,Q$11-$D$11+2,FALSE)) -> 1 | R14: =IF(ISBLANK($C14),"",VLOOKUP($C14,RAMP!$C$1:$X$20,R$11-$D$11+2,FALSE)) -> 1 | S14: =IF(ISBLANK($C14),"",VLOOKUP($C14,RAMP!$C$1:$X$20,S$11-$D$11+2,FALSE)) -> 1 | T14: =IF(ISBLANK($C14),"",VLOOKUP($C14,RAMP!$C$1:$X$20,T$11-$D$11+2,FALSE)) -> 1 | U14: =IF(ISBLANK($C14),"",VLOOKUP($C14,RAMP!$C$1:$X$20,U$11-$D$11+2,FALSE)) -> 1 | V14: =IF(ISBLANK($C14),"",VLOOKUP($C14,RAMP!$C$1:$X$20,V$11-$D$11+2,FALSE)) -> 1 | W14: =IF(ISBLANK($C14),"",VLOOKUP($C14,RAMP!$C$1:$X$20,W$11-$D$11+2,FALSE)) -> 1 | X14: 1
A15: =MLIST!A15 -> Electronics | B15: =MLIST!D15 -> PowerStrips-Retro | C15: RetroEven20 | D15: =IF(ISBLANK($C15),"",VLOOKUP($C15,RAMP!$C$1:$X$20,D$11-$D$11+2,FALSE)) -> 0.05 | E15: =IF(ISBLANK($C15),"",VLOOKUP($C15,RAMP!$C$1:$X$20,E$11-$D$11+2,FALSE)) -> 0.05 | F15: =IF(ISBLANK($C15),"",VLOOKUP($C15,RAMP!$C$1:$X$20,F$11-$D$11+2,FALSE)) -> 0.05 | G15: =IF(ISBLANK($C15),"",VLOOKUP($C15,RAMP!$C$1:$X$20,G$11-$D$11+2,FALSE)) -> 0.05 | H15: =IF(ISBLANK($C15),"",VLOOKUP($C15,RAMP!$C$1:$X$20,H$11-$D$11+2,FALSE)) -> 0.05 | I15: =IF(ISBLANK($C15),"",VLOOKUP($C15,RAMP!$C$1:$X$20,I$11-$D$11+2,FALSE)) -> 0.05 | J15: =IF(ISBLANK($C15),"",VLOOKUP($C15,RAMP!$C$1:$X$20,J$11-$D$11+2,FALSE)) -> 0.05 | K15: =IF(ISBLANK($C15),"",VLOOKUP($C15,RAMP!$C$1:$X$20,K$11-$D$11+2,FALSE)) -> 0.05 | L15: =IF(ISBLANK($C15),"",VLOOKUP($C15,RAMP!$C$1:$X$20,L$11-$D$11+2,FALSE)) -> 0.05 | M15: =IF(ISBLANK($C15),"",VLOOKUP($C15,RAMP!$C$1:$X$20,M$11-$D$11+2,FALSE)) -> 0.05 | N15: =IF(ISBLANK($C15),"",VLOOKUP($C15,RAMP!$C$1:$X$20,N$11-$D$11+2,FALSE)) -> 0.05 | O15: =IF(ISBLANK($C15),"",VLOOKUP($C15,RAMP!$C$1:$X$20,O$11-$D$11+2,FALSE)) -> 0.05 | P15: =IF(ISBLANK($C15),"",VLOOKUP($C15,RAMP!$C$1:$X$20,P$11-$D$11+2,FALSE)) -> 0.05 | Q15: =IF(ISBLANK($C15),"",VLOOKUP($C15,RAMP!$C$1:$X$20,Q$11-$D$11+2,FALSE)) -> 0.05 | R15: =IF(ISBLANK($C15),"",VLOOKUP($C15,RAMP!$C$1:$X$20,R$11-$D$11+2,FALSE)) -> 0.05 | S15: =IF(ISBLANK($C15),"",VLOOKUP($C15,RAMP!$C$1:$X$20,S$11-$D$11+2,FALSE)) -> 0.05 | T15: =IF(ISBLANK($C15),"",VLOOKUP($C15,RAMP!$C$1:$X$20,T$11-$D$11+2,FALSE)) -> 0.05 | U15: =IF(ISBLANK($C15),"",VLOOKUP($C15,RAMP!$C$1:$X$20,U$11-$D$11+2,FALSE)) -> 0.05 | V15: =IF(ISBLANK($C15),"",VLOOKUP($C15,RAMP!$C$1:$X$20,V$11-$D$11+2,FALSE)) -> 0.05 | W15: =IF(ISBLANK($C15),"",VLOOKUP($C15,RAMP!$C$1:$X$20,W$11-$D$11+2,FALSE)) -> 0.05 | X15: 0.85
A16: =MLIST!A16 -> Electronics | B16: =MLIST!D16 -> PowerStrips-New | C16: LOEven20 | D16: =IF(ISBLANK($C16),"",VLOOKUP($C16,RAMP!$C$1:$X$20,D$11-$D$11+2,FALSE)) -> 0.05 | E16: =IF(ISBLANK($C16),"",VLOOKUP($C16,RAMP!$C$1:$X$20,E$11-$D$11+2,FALSE)) -> 0.1 | F16: =IF(ISBLANK($C16),"",VLOOKUP($C16,RAMP!$C$1:$X$20,F$11-$D$11+2,FALSE)) -> 0.15 | G16: =IF(ISBLANK($C16),"",VLOOKUP($C16,RAMP!$C$1:$X$20,G$11-$D$11+2,FALSE)) -> 0.2 | H16: =IF(ISBLANK($C16),"",VLOOKUP($C16,RAMP!$C$1:$X$20,H$11-$D$11+2,FALSE)) -> 0.25 | I16: =IF(ISBLANK($C16),"",VLOOKUP($C16,RAMP!$C$1:$X$20,I$11-$D$11+2,FALSE)) -> 0.3 | J16: =IF(ISBLANK($C16),"",VLOOKUP($C16,RAMP!$C$1:$X$20,J$11-$D$11+2,FALSE)) -> 0.35 | K16: =IF(ISBLANK($C16),"",VLOOKUP($C16,RAMP!$C$1:$X$20,K$11-$D$11+2,FALSE)) -> 0.4 | L16: =IF(ISBLANK($C16),"",VLOOKUP($C16,RAMP!$C$1:$X$20,L$11-$D$11+2,FALSE)) -> 0.45 | M16: =IF(ISBLANK($C16),"",VLOOKUP($C16,RAMP!$C$1:$X$20,M$11-$D$11+2,FALSE)) -> 0.5 | N16: =IF(ISBLANK($C16),"",VLOOKUP($C16,RAMP!$C$1:$X$20,N$11-$D$11+2,FALSE)) -> 0.55 | O16: =IF(ISBLANK($C16),"",VLOOKUP($C16,RAMP!$C$1:$X$20,O$11-$D$11+2,FALSE)) -> 0.6 | P16: =IF(ISBLANK($C16),"",VLOOKUP($C16,RAMP!$C$1:$X$20,P$11-$D$11+2,FALSE)) -> 0.65 | Q16: =IF(ISBLANK($C16),"",VLOOKUP($C16,RAMP!$C$1:$X$20,Q$11-$D$11+2,FALSE)) -> 0.7 | R16: =IF(ISBLANK($C16),"",VLOOKUP($C16,RAMP!$C$1:$X$20,R$11-$D$11+2,FALSE)) -> 0.75 | S16: =IF(ISBLANK($C16),"",VLOOKUP($C16,RAMP!$C$1:$X$20,S$11-$D$11+2,FALSE)) -> 0.8 | T16: =IF(ISBLANK($C16),"",VLOOKUP($C16,RAMP!$C$1:$X$20,T$11-$D$11+2,FALSE)) -> 0.85 | U16: =IF(ISBLANK($C16),"",VLOOKUP($C16,RAMP!$C$1:$X$20,U$11-$D$11+2,FALSE)) -> 0.9 | V16: =IF(ISBLANK($C16),"",VLOOKUP($C16,RAMP!$C$1:$X$20,V$11-$D$11+2,FALSE)) -> 0.95 | W16: =IF(ISBLANK($C16),"",VLOOKUP($C16,RAMP!$C$1:$X$20,W$11-$D$11+2,FALSE)) -> 1 | X16: 0.85
A17: =MLIST!A17 -> Electronics | B17: =MLIST!D17 -> Data Centers-NR | C17: LOEven20 | D17: =IF(ISBLANK($C17),"",VLOOKUP($C17,RAMP!$C$1:$X$20,D$11-$D$11+2,FALSE)) -> 0.05 | E17: =IF(ISBLANK($C17),"",VLOOKUP($C17,RAMP!$C$1:$X$20,E$11-$D$11+2,FALSE)) -> 0.1 | F17: =IF(ISBLANK($C17),"",VLOOKUP($C17,RAMP!$C$1:$X$20,F$11-$D$11+2,FALSE)) -> 0.15 | G17: =IF(ISBLANK($C17),"",VLOOKUP($C17,RAMP!$C$1:$X$20,G$11-$D$11+2,FALSE)) -> 0.2 | H17: =IF(ISBLANK($C17),"",VLOOKUP($C17,RAMP!$C$1:$X$20,H$11-$D$11+2,FALSE)) -> 0.25 | I17: =IF(ISBLANK($C17),"",VLOOKUP($C17,RAMP!$C$1:$X$20,I$11-$D$11+2,FALSE)) -> 0.3 | J17: =IF(ISBLANK($C17),"",VLOOKUP($C17,RAMP!$C$1:$X$20,J$11-$D$11+2,FALSE)) -> 0.35 | K17: =IF(ISBLANK($C17),"",VLOOKUP($C17,RAMP!$C$1:$X$20,K$11-$D$11+2,FALSE)) -> 0.4 | L17: =IF(ISBLANK($C17),"",VLOOKUP($C17,RAMP!$C$1:$X$20,L$11-$D$11+2,FALSE)) -> 0.45 | M17: =IF(ISBLANK($C17),"",VLOOKUP($C17,RAMP!$C$1:$X$20,M$11-$D$11+2,FALSE)) -> 0.5 | N17: =IF(ISBLANK($C17),"",VLOOKUP($C17,RAMP!$C$1:$X$20,N$11-$D$11+2,FALSE)) -> 0.55 | O17: =IF(ISBLANK($C17),"",VLOOKUP($C17,RAMP!$C$1:$X$20,O$11-$D$11+2,FALSE)) -> 0.6 | P17: =IF(ISBLANK($C17),"",VLOOKUP($C17,RAMP!$C$1:$X$20,P$11-$D$11+2,FALSE)) -> 0.65 | Q17: =IF(ISBLANK($C17),"",VLOOKUP($C17,RAMP!$C$1:$X$20,Q$11-$D$11+2,FALSE)) -> 0.7 | R17: =IF(ISBLANK($C17),"",VLOOKUP($C17,RAMP!$C$1:$X$20,R$11-$D$11+2,FALSE)) -> 0.75 | S17: =IF(ISBLANK($C17),"",VLOOKUP($C17,RAMP!$C$1:$X$20,S$11-$D$11+2,FALSE)) -> 0.8 | T17: =IF(ISBLANK($C17),"",VLOOKUP($C17,RAMP!$C$1:$X$20,T$11-$D$11+2,FALSE)) -> 0.85 | U17: =IF(ISBLANK($C17),"",VLOOKUP($C17,RAMP!$C$1:$X$20,U$11-$D$11+2,FALSE)) -> 0.9 | V17: =IF(ISBLANK($C17),"",VLOOKUP($C17,RAMP!$C$1:$X$20,V$11-$D$11+2,FALSE)) -> 0.95 | W17: =IF(ISBLANK($C17),"",VLOOKUP($C17,RAMP!$C$1:$X$20,W$11-$D$11+2,FALSE)) -> 1 | X17: 0.85
A18: =MLIST!A18 -> Electronics | B18: =MLIST!D18 -> Desktop-WA-NR | C18: LO50Fast | D18: =IF(ISBLANK($C18),"",VLOOKUP($C18,RAMP!$C$1:$X$20,D$11-$D$11+2,FALSE)) -> 0.45 | E18: =IF(ISBLANK($C18),"",VLOOKUP($C18,RAMP!$C$1:$X$20,E$11-$D$11+2,FALSE)) -> 0.66 | F18: =IF(ISBLANK($C18),"",VLOOKUP($C18,RAMP!$C$1:$X$20,F$11-$D$11+2,FALSE)) -> 0.8 | G18: =IF(ISBLANK($C18),"",VLOOKUP($C18,RAMP!$C$1:$X$20,G$11-$D$11+2,FALSE)) -> 0.89 | H18: =IF(ISBLANK($C18),"",VLOOKUP($C18,RAMP!$C$1:$X$20,H$11-$D$11+2,FALSE)) -> 0.9495403626 | I18: =IF(ISBLANK($C18),"",VLOOKUP($C18,RAMP!$C$1:$X$20,I$11-$D$11+2,FALSE)) -> 0.9793105439 | J18: =IF(ISBLANK($C18),"",VLOOKUP($C18,RAMP!$C$1:$X$20,J$11-$D$11+2,FALSE)) -> 0.9925417356 | K18: =IF(ISBLANK($C18),"",VLOOKUP($C18,RAMP!$C$1:$X$20,K$11-$D$11+2,FALSE)) -> 0.9978342123 | L18: =IF(ISBLANK($C18),"",VLOOKUP($C18,RAMP!$C$1:$X$20,L$11-$D$11+2,FALSE)) -> 0.9997587493 | M18: =IF(ISBLANK($C18),"",VLOOKUP($C18,RAMP!$C$1:$X$20,M$11-$D$11+2,FALSE)) -> 1 | N18: =IF(ISBLANK($C18),"",VLOOKUP($C18,RAMP!$C$1:$X$20,N$11-$D$11+2,FALSE)) -> 1 | O18: =IF(ISBLANK($C18),"",VLOOKUP($C18,RAMP!$C$1:$X$20,O$11-$D$11+2,FALSE)) -> 1 | P18: =IF(ISBLANK($C18),"",VLOOKUP($C18,RAMP!$C$1:$X$20,P$11-$D$11+2,FALSE)) -> 1 | Q18: =IF(ISBLANK($C18),"",VLOOKUP($C18,RAMP!$C$1:$X$20,Q$11-$D$11+2,FALSE)) -> 1 | R18: =IF(ISBLANK($C18),"",VLOOKUP($C18,RAMP!$C$1:$X$20,R$11-$D$11+2,FALSE)) -> 1 | S18: =IF(ISBLANK($C18),"",VLOOKUP($C18,RAMP!$C$1:$X$20,S$11-$D$11+2,FALSE)) -> 1 | T18: =IF(ISBLANK($C18),"",VLOOKUP($C18,RAMP!$C$1:$X$20,T$11-$D$11+2,FALSE)) -> 1 | U18: =IF(ISBLANK($C18),"",VLOOKUP($C18,RAMP!$C$1:$X$20,U$11-$D$11+2,FALSE)) -> 1 | V18: =IF(ISBLANK($C18),"",VLOOKUP($C18,RAMP!$C$1:$X$20,V$11-$D$11+2,FALSE)) -> 1 | W18: =IF(ISBLANK($C18),"",VLOOKUP($C18,RAMP!$C$1:$X$20,W$11-$D$11+2,FALSE)) -> 1 | X18: 1
A19: =MLIST!A19 -> Electronics | B19: =MLIST!D19 -> Desktop-NR | C19: LO50Fast | D19: =IF(ISBLANK($C19),"",VLOOKUP($C19,RAMP!$C$1:$X$20,D$11-$D$11+2,FALSE)) -> 0.45 | E19: =IF(ISBLANK($C19),"",VLOOKUP($C19,RAMP!$C$1:$X$20,E$11-$D$11+2,FALSE)) -> 0.66 | F19: =IF(ISBLANK($C19),"",VLOOKUP($C19,RAMP!$C$1:$X$20,F$11-$D$11+2,FALSE)) -> 0.8 | G19: =IF(ISBLANK($C19),"",VLOOKUP($C19,RAMP!$C$1:$X$20,G$11-$D$11+2,FALSE)) -> 0.89 | H19: =IF(ISBLANK($C19),"",VLOOKUP($C19,RAMP!$C$1:$X$20,H$11-$D$11+2,FALSE)) -> 0.9495403626 | I19: =IF(ISBLANK($C19),"",VLOOKUP($C19,RAMP!$C$1:$X$20,I$11-$D$11+2,FALSE)) -> 0.9793105439 | J19: =IF(ISBLANK($C19),"",VLOOKUP($C19,RAMP!$C$1:$X$20,J$11-$D$11+2,FALSE)) -> 0.9925417356 | K19: =IF(ISBLANK($C19),"",VLOOKUP($C19,RAMP!$C$1:$X$20,K$11-$D$11+2,FALSE)) -> 0.9978342123 | L19: =IF(ISBLANK($C19),"",VLOOKUP($C19,RAMP!$C$1:$X$20,L$11-$D$11+2,FALSE)) -> 0.9997587493 | M19: =IF(ISBLANK($C19),"",VLOOKUP($C19,RAMP!$C$1:$X$20,M$11-$D$11+2,FALSE)) -> 1 | N19: =IF(ISBLANK($C19),"",VLOOKUP($C19,RAMP!$C$1:$X$20,N$11-$D$11+2,FALSE)) -> 1 | O19: =IF(ISBLANK($C19),"",VLOOKUP($C19,RAMP!$C$1:$X$20,O$11-$D$11+2,FALSE)) -> 1 | P19: =IF(ISBLANK($C19),"",VLOOKUP($C19,RAMP!$C$1:$X$20,P$11-$D$11+2,FALSE)) -> 1 | Q19: =IF(ISBLANK($C19),"",VLOOKUP($C19,RAMP!$C$1:$X$20,Q$11-$D$11+2,FALSE)) -> 1 | R19: =IF(ISBLANK($C19),"",VLOOKUP($C19,RAMP!$C$1:$X$20,R$11-$D$11+2,FALSE)) -> 1 | S19: =IF(ISBLANK($C19),"",VLOOKUP($C19,RAMP!$C$1:$X$20,S$11-$D$11+2,FALSE)) -> 1 | T19: =IF(ISBLANK($C19),"",VLOOKUP($C19,RAMP!$C$1:$X$20,T$11-$D$11+2,FALSE)) -> 1 | U19: =IF(ISBLANK($C19),"",VLOOKUP($C19,RAMP!$C$1:$X$20,U$11-$D$11+2,FALSE)) -> 1 | V19: =IF(ISBLANK($C19),"",VLOOKUP($C19,RAMP!$C$1:$X$20,V$11-$D$11+2,FALSE)) -> 1 | W19: =IF(ISBLANK($C19),"",VLOOKUP($C19,RAMP!$C$1:$X$20,W$11-$D$11+2,FALSE)) -> 1 | X19: 1
A20: =MLIST!A20 -> Electronics | B20: =MLIST!D20 -> Laptop-WA-NR | C20: LO50Fast | D20: =IF(ISBLANK($C20),"",VLOOKUP($C20,RAMP!$C$1:$X$20,D$11-$D$11+2,FALSE)) -> 0.45 | E20: =IF(ISBLANK($C20),"",VLOOKUP($C20,RAMP!$C$1:$X$20,E$11-$D$11+2,FALSE)) -> 0.66 | F20: =IF(ISBLANK($C20),"",VLOOKUP($C20,RAMP!$C$1:$X$20,F$11-$D$11+2,FALSE)) -> 0.8 | G20: =IF(ISBLANK($C20),"",VLOOKUP($C20,RAMP!$C$1:$X$20,G$11-$D$11+2,FALSE)) -> 0.89 | H20: =IF(ISBLANK($C20),"",VLOOKUP($C20,RAMP!$C$1:$X$20,H$11-$D$11+2,FALSE)) -> 0.9495403626 | I20: =IF(ISBLANK($C20),"",VLOOKUP($C20,RAMP!$C$1:$X$20,I$11-$D$11+2,FALSE)) -> 0.9793105439 | J20: =IF(ISBLANK($C20),"",VLOOKUP($C20,RAMP!$C$1:$X$20,J$11-$D$11+2,FALSE)) -> 0.9925417356 | K20: =IF(ISBLANK($C20),"",VLOOKUP($C20,RAMP!$C$1:$X$20,K$11-$D$11+2,FALSE)) -> 0.9978342123 | L20: =IF(ISBLANK($C20),"",VLOOKUP($C20,RAMP!$C$1:$X$20,L$11-$D$11+2,FALSE)) -> 0.9997587493 | M20: =IF(ISBLANK($C20),"",VLOOKUP($C20,RAMP!$C$1:$X$20,M$11-$D$11+2,FALSE)) -> 1 | N20: =IF(ISBLANK($C20),"",VLOOKUP($C20,RAMP!$C$1:$X$20,N$11-$D$11+2,FALSE)) -> 1 | O20: =IF(ISBLANK($C20),"",VLOOKUP($C20,RAMP!$C$1:$X$20,O$11-$D$11+2,FALSE)) -> 1 | P20: =IF(ISBLANK($C20),"",VLOOKUP($C20,RAMP!$C$1:$X$20,P$11-$D$11+2,FALSE)) -> 1 | Q20: =IF(ISBLANK($C20),"",VLOOKUP($C20,RAMP!$C$1:$X$20,Q$11-$D$11+2,FALSE)) -> 1 | R20: =IF(ISBLANK($C20),"",VLOOKUP($C20,RAMP!$C$1:$X$20,R$11-$D$11+2,FALSE)) -> 1 | S20: =IF(ISBLANK($C20),"",VLOOKUP($C20,RAMP!$C$1:$X$20,S$11-$D$11+2,FALSE)) -> 1 | T20: =IF(ISBLANK($C20),"",VLOOKUP($C20,RAMP!$C$1:$X$20,T$11-$D$11+2,FALSE)) -> 1 | U20: =IF(ISBLANK($C20),"",VLOOKUP($C20,RAMP!$C$1:$X$20,U$11-$D$11+2,FALSE)) -> 1 | V20: =IF(ISBLANK($C20),"",VLOOKUP($C20,RAMP!$C$1:$X$20,V$11-$D$11+2,FALSE)) -> 1 | W20: =IF(ISBLANK($C20),"",VLOOKUP($C20,RAMP!$C$1:$X$20,W$11-$D$11+2,FALSE)) -> 1 | X20: 1
A21: =MLIST!A21 -> Food Preparation | B21: =MLIST!D21 -> Pre-Rinse Spray Valve-Retro | C21: Retro12Med | D21: =IF(ISBLANK($C21),"",VLOOKUP($C21,RAMP!$C$1:$X$20,D$11-$D$11+2,FALSE)) -> 0.1093745947 | E21: =IF(ISBLANK($C21),"",VLOOKUP($C21,RAMP!$C$1:$X$20,E$11-$D$11+2,FALSE)) -> 0.1093745947 | F21: =IF(ISBLANK($C21),"",VLOOKUP($C21,RAMP!$C$1:$X$20,F$11-$D$11+2,FALSE)) -> 0.1093745947 | G21: =IF(ISBLANK($C21),"",VLOOKUP($C21,RAMP!$C$1:$X$20,G$11-$D$11+2,FALSE)) -> 0.1093745947 | H21: =IF(ISBLANK($C21),"",VLOOKUP($C21,RAMP!$C$1:$X$20,H$11-$D$11+2,FALSE)) -> 0.1093745947 | I21: =IF(ISBLANK($C21),"",VLOOKUP($C21,RAMP!$C$1:$X$20,I$11-$D$11+2,FALSE)) -> 0.09843713521 | J21: =IF(ISBLANK($C21),"",VLOOKUP($C21,RAMP!$C$1:$X$20,J$11-$D$11+2,FALSE)) -> 0.07874970817 | K21: =IF(ISBLANK($C21),"",VLOOKUP($C21,RAMP!$C$1:$X$20,K$11-$D$11+2,FALSE)) -> 0.06299976654 | L21: =IF(ISBLANK($C21),"",VLOOKUP($C21,RAMP!$C$1:$X$20,L$11-$D$11+2,FALSE)) -> 0.05039981323 | M21: =IF(ISBLANK($C21),"",VLOOKUP($C21,RAMP!$C$1:$X$20,M$11-$D$11+2,FALSE)) -> 0.04031985058 | N21: =IF(ISBLANK($C21),"",VLOOKUP($C21,RAMP!$C$1:$X$20,N$11-$D$11+2,FALSE)) -> 0.03225588047 | O21: =IF(ISBLANK($C21),"",VLOOKUP($C21,RAMP!$C$1:$X$20,O$11-$D$11+2,FALSE)) -> 0.02580470437 | P21: =IF(ISBLANK($C21),"",VLOOKUP($C21,RAMP!$C$1:$X$20,P$11-$D$11+2,FALSE)) -> 0.0206437635 | Q21: =IF(ISBLANK($C21),"",VLOOKUP($C21,RAMP!$C$1:$X$20,Q$11-$D$11+2,FALSE)) -> 0.0165150108 | R21: =IF(ISBLANK($C21),"",VLOOKUP($C21,RAMP!$C$1:$X$20,R$11-$D$11+2,FALSE)) -> 0.01321200864 | S21: =IF(ISBLANK($C21),"",VLOOKUP($C21,RAMP!$C$1:$X$20,S$11-$D$11+2,FALSE)) -> 0.01056960691 | T21: =IF(ISBLANK($C21),"",VLOOKUP($C21,RAMP!$C$1:$X$20,T$11-$D$11+2,FALSE)) -> 7.209282379e-05 | U21: =IF(ISBLANK($C21),"",VLOOKUP($C21,RAMP!$C$1:$X$20,U$11-$D$11+2,FALSE)) -> 2.574743707e-05 | V21: =IF(ISBLANK($C21),"",VLOOKUP($C21,RAMP!$C$1:$X$20,V$11-$D$11+2,FALSE)) -> 8.777535365e-06 | W21: =IF(ISBLANK($C21),"",VLOOKUP($C21,RAMP!$C$1:$X$20,W$11-$D$11+2,FALSE)) -> 2.862239793e-06 | X21: 0.85
A22: =MLIST!A22 -> Food Preparation | B22: =MLIST!D22 -> Steamer-NR | C22: LO12Med | D22: =IF(ISBLANK($C22),"",VLOOKUP($C22,RAMP!$C$1:$X$20,D$11-$D$11+2,FALSE)) -> 0.1093745947 | E22: =IF(ISBLANK($C22),"",VLOOKUP($C22,RAMP!$C$1:$X$20,E$11-$D$11+2,FALSE)) -> 0.2187491894 | F22: =IF(ISBLANK($C22),"",VLOOKUP($C22,RAMP!$C$1:$X$20,F$11-$D$11+2,FALSE)) -> 0.328123784 | G22: =IF(ISBLANK($C22),"",VLOOKUP($C22,RAMP!$C$1:$X$20,G$11-$D$11+2,FALSE)) -> 0.4374983787 | H22: =IF(ISBLANK($C22),"",VLOOKUP($C22,RAMP!$C$1:$X$20,H$11-$D$11+2,FALSE)) -> 0.5468729734 | I22: =IF(ISBLANK($C22),"",VLOOKUP($C22,RAMP!$C$1:$X$20,I$11-$D$11+2,FALSE)) -> 0.6453101086 | J22: =IF(ISBLANK($C22),"",VLOOKUP($C22,RAMP!$C$1:$X$20,J$11-$D$11+2,FALSE)) -> 0.7240598168 | K22: =IF(ISBLANK($C22),"",VLOOKUP($C22,RAMP!$C$1:$X$20,K$11-$D$11+2,FALSE)) -> 0.7870595833 | L22: =IF(ISBLANK($C22),"",VLOOKUP($C22,RAMP!$C$1:$X$20,L$11-$D$11+2,FALSE)) -> 0.8374593966 | M22: =IF(ISBLANK($C22),"",VLOOKUP($C22,RAMP!$C$1:$X$20,M$11-$D$11+2,FALSE)) -> 0.8777792471 | N22: =IF(ISBLANK($C22),"",VLOOKUP($C22,RAMP!$C$1:$X$20,N$11-$D$11+2,FALSE)) -> 0.9100351276 | O22: =IF(ISBLANK($C22),"",VLOOKUP($C22,RAMP!$C$1:$X$20,O$11-$D$11+2,FALSE)) -> 0.935839832 | P22: =IF(ISBLANK($C22),"",VLOOKUP($C22,RAMP!$C$1:$X$20,P$11-$D$11+2,FALSE)) -> 0.9564835955 | Q22: =IF(ISBLANK($C22),"",VLOOKUP($C22,RAMP!$C$1:$X$20,Q$11-$D$11+2,FALSE)) -> 0.9729986063 | R22: =IF(ISBLANK($C22),"",VLOOKUP($C22,RAMP!$C$1:$X$20,R$11-$D$11+2,FALSE)) -> 0.9862106149 | S22: =IF(ISBLANK($C22),"",VLOOKUP($C22,RAMP!$C$1:$X$20,S$11-$D$11+2,FALSE)) -> 0.9967802218 | T22: =IF(ISBLANK($C22),"",VLOOKUP($C22,RAMP!$C$1:$X$20,T$11-$D$11+2,FALSE)) -> 0.9968523147 | U22: =IF(ISBLANK($C22),"",VLOOKUP($C22,RAMP!$C$1:$X$20,U$11-$D$11+2,FALSE)) -> 0.9968780621 | V22: =IF(ISBLANK($C22),"",VLOOKUP($C22,RAMP!$C$1:$X$20,V$11-$D$11+2,FALSE)) -> 0.9968868396 | W22: =IF(ISBLANK($C22),"",VLOOKUP($C22,RAMP!$C$1:$X$20,W$11-$D$11+2,FALSE)) -> 0.9968897019 | X22: 0.85
A23: =MLIST!A23 -> Food Preparation | B23: =MLIST!D23 -> Combo Oven-NR | C23: LO5Med | D23: =IF(ISBLANK($C23),"",VLOOKUP($C23,RAMP!$C$1:$X$20,D$11-$D$11+2,FALSE)) -> 0.043 | E23: =IF(ISBLANK($C23),"",VLOOKUP($C23,RAMP!$C$1:$X$20,E$11-$D$11+2,FALSE)) -> 0.09579714228 | F23: =IF(ISBLANK($C23),"",VLOOKUP($C23,RAMP!$C$1:$X$20,F$11-$D$11+2,FALSE)) -> 0.1604053937 | G23: =IF(ISBLANK($C23),"",VLOOKUP($C23,RAMP!$C$1:$X$20,G$11-$D$11+2,FALSE)) -> 0.2354053937 | H23: =IF(ISBLANK($C23),"",VLOOKUP($C23,RAMP!$C$1:$X$20,H$11-$D$11+2,FALSE)) -> 0.3209523912 | I23: =IF(ISBLANK($C23),"",VLOOKUP($C23,RAMP!$C$1:$X$20,I$11-$D$11+2,FALSE)) -> 0.4209671143 | J23: =IF(ISBLANK($C23),"",VLOOKUP($C23,RAMP!$C$1:$X$20,J$11-$D$11+2,FALSE)) -> 0.5306848186 | K23: =IF(ISBLANK($C23),"",VLOOKUP($C23,RAMP!$C$1:$X$20,K$11-$D$11+2,FALSE)) -> 0.6427692037 | L23: =IF(ISBLANK($C23),"",VLOOKUP($C23,RAMP!$C$1:$X$20,L$11-$D$11+2,FALSE)) -> 0.7483952854 | M23: =IF(ISBLANK($C23),"",VLOOKUP($C23,RAMP!$C$1:$X$20,M$11-$D$11+2,FALSE)) -> 0.8391898494 | N23: =IF(ISBLANK($C23),"",VLOOKUP($C23,RAMP!$C$1:$X$20,N$11-$D$11+2,FALSE)) -> 0.9094505163 | O23: =IF(ISBLANK($C23),"",VLOOKUP($C23,RAMP!$C$1:$X$20,O$11-$D$11+2,FALSE)) -> 0.9576688768 | P23: =IF(ISBLANK($C23),"",VLOOKUP($C23,RAMP!$C$1:$X$20,P$11-$D$11+2,FALSE)) -> 0.9865231114 | Q23: =IF(ISBLANK($C23),"",VLOOKUP($C23,RAMP!$C$1:$X$20,Q$11-$D$11+2,FALSE)) -> 1 | R23: =IF(ISBLANK($C23),"",VLOOKUP($C23,RAMP!$C$1:$X$20,R$11-$D$11+2,FALSE)) -> 1 | S23: =IF(ISBLANK($C23),"",VLOOKUP($C23,RAMP!$C$1:$X$20,S$11-$D$11+2,FALSE)) -> 1 | T23: =IF(ISBLANK($C23),"",VLOOKUP($C23,RAMP!$C$1:$X$20,T$11-$D$11+2,FALSE)) -> 1 | U23: =IF(ISBLANK($C23),"",VLOOKUP($C23,RAMP!$C$1:$X$20,U$11-$D$11+2,FALSE)) -> 1 | V23: =IF(ISBLANK($C23),"",VLOOKUP($C23,RAMP!$C$1:$X$20,V$11-$D$11+2,FALSE)) -> 1 | W23: =IF(ISBLANK($C23),"",VLOOKUP($C23,RAMP!$C$1:$X$20,W$11-$D$11+2,FALSE)) -> 1 | X23: 0.85
A24: =MLIST!A24 -> Food Preparation | B24: =MLIST!D24 -> HFHC-NR | C24: LO5Med | D24: =IF(ISBLANK($C24),"",VLOOKUP($C24,RAMP!$C$1:$X$20,D$11-$D$11+2,FALSE)) -> 0.043 | E24: =IF(ISBLANK($C24),"",VLOOKUP($C24,RAMP!$C$1:$X$20,E$11-$D$11+2,FALSE)) -> 0.09579714228 | F24: =IF(ISBLANK($C24),"",VLOOKUP($C24,RAMP!$C$1:$X$20,F$11-$D$11+2,FALSE)) -> 0.1604053937 | G24: =IF(ISBLANK($C24),"",VLOOKUP($C24,RAMP!$C$1:$X$20,G$11-$D$11+2,FALSE)) -> 0.2354053937 | H24: =IF(ISBLANK($C24),"",VLOOKUP($C24,RAMP!$C$1:$X$20,H$11-$D$11+2,FALSE)) -> 0.3209523912 | I24: =IF(ISBLANK($C24),"",VLOOKUP($C24,RAMP!$C$1:$X$20,I$11-$D$11+2,FALSE)) -> 0.4209671143 | J24: =IF(ISBLANK($C24),"",VLOOKUP($C24,RAMP!$C$1:$X$20,J$11-$D$11+2,FALSE)) -> 0.5306848186 | K24: =IF(ISBLANK($C24),"",VLOOKUP($C24,RAMP!$C$1:$X$20,K$11-$D$11+2,FALSE)) -> 0.6427692037 | L24: =IF(ISBLANK($C24),"",VLOOKUP($C24,RAMP!$C$1:$X$20,L$11-$D$11+2,FALSE)) -> 0.7483952854 | M24: =IF(ISBLANK($C24),"",VLOOKUP($C24,RAMP!$C$1:$X$20,M$11-$D$11+2,FALSE)) -> 0.8391898494 | N24: =IF(ISBLANK($C24),"",VLOOKUP($C24,RAMP!$C$1:$X$20,N$11-$D$11+2,FALSE)) -> 0.9094505163 | O24: =IF(ISBLANK($C24),"",VLOOKUP($C24,RAMP!$C$1:$X$20,O$11-$D$11+2,FALSE)) -> 0.9576688768 | P24: =IF(ISBLANK($C24),"",VLOOKUP($C24,RAMP!$C$1:$X$20,P$11-$D$11+2,FALSE)) -> 0.9865231114 | Q24: =IF(ISBLANK($C24),"",VLOOKUP($C24,RAMP!$C$1:$X$20,Q$11-$D$11+2,FALSE)) -> 1 | R24: =IF(ISBLANK($C24),"",VLOOKUP($C24,RAMP!$C$1:$X$20,R$11-$D$11+2,FALSE)) -> 1 | S24: =IF(ISBLANK($C24),"",VLOOKUP($C24,RAMP!$C$1:$X$20,S$11-$D$11+2,FALSE)) -> 1 | T24: =IF(ISBLANK($C24),"",VLOOKUP($C24,RAMP!$C$1:$X$20,T$11-$D$11+2,FALSE)) -> 1 | U24: =IF(ISBLANK($C24),"",VLOOKUP($C24,RAMP!$C$1:$X$20,U$11-$D$11+2,FALSE)) -> 1 | V24: =IF(ISBLANK($C24),"",VLOOKUP($C24,RAMP!$C$1:$X$20,V$11-$D$11+2,FALSE)) -> 1 | W24: =IF(ISBLANK($C24),"",VLOOKUP($C24,RAMP!$C$1:$X$20,W$11-$D$11+2,FALSE)) -> 1 | X24: 0.85
A25: =MLIST!A25 -> Food Preparation | B25: =MLIST!D25 -> Convection Oven-NR | C25: LO5Med | D25: =IF(ISBLANK($C25),"",VLOOKUP($C25,RAMP!$C$1:$X$20,D$11-$D$11+2,FALSE)) -> 0.043 | E25: =IF(ISBLANK($C25),"",VLOOKUP($C25,RAMP!$C$1:$X$20,E$11-$D$11+2,FALSE)) -> 0.09579714228 | F25: =IF(ISBLANK($C25),"",VLOOKUP($C25,RAMP!$C$1:$X$20,F$11-$D$11+2,FALSE)) -> 0.1604053937 | G25: =IF(ISBLANK($C25),"",VLOOKUP($C25,RAMP!$C$1:$X$20,G$11-$D$11+2,FALSE)) -> 0.2354053937 | H25: =IF(ISBLANK($C25),"",VLOOKUP($C25,RAMP!$C$1:$X$20,H$11-$D$11+2,FALSE)) -> 0.3209523912 | I25: =IF(ISBLANK($C25),"",VLOOKUP($C25,RAMP!$C$1:$X$20,I$11-$D$11+2,FALSE)) -> 0.4209671143 | J25: =IF(ISBLANK($C25),"",VLOOKUP($C25,RAMP!$C$1:$X$20,J$11-$D$11+2,FALSE)) -> 0.5306848186 | K25: =IF(ISBLANK($C25),"",VLOOKUP($C25,RAMP!$C$1:$X$20,K$11-$D$11+2,FALSE)) -> 0.6427692037 | L25: =IF(ISBLANK($C25),"",VLOOKUP($C25,RAMP!$C$1:$X$20,L$11-$D$11+2,FALSE)) -> 0.7483952854 | M25: =IF(ISBLANK($C25),"",VLOOKUP($C25,RAMP!$C$1:$X$20,M$11-$D$11+2,FALSE)) -> 0.8391898494 | N25: =IF(ISBLANK($C25),"",VLOOKUP($C25,RAMP!$C$1:$X$20,N$11-$D$11+2,FALSE)) -> 0.9094505163 | O25: =IF(ISBLANK($C25),"",VLOOKUP($C25,RAMP!$C$1:$X$20,O$11-$D$11+2,FALSE)) -> 0.9576688768 | P25: =IF(ISBLANK($C25),"",VLOOKUP($C25,RAMP!$C$1:$X$20,P$11-$D$11+2,FALSE)) -> 0.9865231114 | Q25: =IF(ISBLANK($C25),"",VLOOKUP($C25,RAMP!$C$1:$X$20,Q$11-$D$11+2,FALSE)) -> 1 | R25: =IF(ISBLANK($C25),"",VLOOKUP($C25,RAMP!$C$1:$X$20,R$11-$D$11+2,FALSE)) -> 1 | S25: =IF(ISBLANK($C25),"",VLOOKUP($C25,RAMP!$C$1:$X$20,S$11-$D$11+2,FALSE)) -> 1 | T25: =IF(ISBLANK($C25),"",VLOOKUP($C25,RAMP!$C$1:$X$20,T$11-$D$11+2,FALSE)) -> 1 | U25: =IF(ISBLANK($C25),"",VLOOKUP($C25,RAMP!$C$1:$X$20,U$11-$D$11+2,FALSE)) -> 1 | V25: =IF(ISBLANK($C25),"",VLOOKUP($C25,RAMP!$C$1:$X$20,V$11-$D$11+2,FALSE)) -> 1 | W25: =IF(ISBLANK($C25),"",VLOOKUP($C25,RAMP!$C$1:$X$20,W$11-$D$11+2,FALSE)) -> 1 | X25: 0.85
A26: =MLIST!A26 -> Food Preparation | B26: =MLIST!D26 -> Fryer-NR | C26: LO12Med | D26: =IF(ISBLANK($C26),"",VLOOKUP($C26,RAMP!$C$1:$X$20,D$11-$D$11+2,FALSE)) -> 0.1093745947 | E26: =IF(ISBLANK($C26),"",VLOOKUP($C26,RAMP!$C$1:$X$20,E$11-$D$11+2,FALSE)) -> 0.2187491894 | F26: =IF(ISBLANK($C26),"",VLOOKUP($C26,RAMP!$C$1:$X$20,F$11-$D$11+2,FALSE)) -> 0.328123784 | G26: =IF(ISBLANK($C26),"",VLOOKUP($C26,RAMP!$C$1:$X$20,G$11-$D$11+2,FALSE)) -> 0.4374983787 | H26: =IF(ISBLANK($C26),"",VLOOKUP($C26,RAMP!$C$1:$X$20,H$11-$D$11+2,FALSE)) -> 0.5468729734 | I26: =IF(ISBLANK($C26),"",VLOOKUP($C26,RAMP!$C$1:$X$20,I$11-$D$11+2,FALSE)) -> 0.6453101086 | J26: =IF(ISBLANK($C26),"",VLOOKUP($C26,RAMP!$C$1:$X$20,J$11-$D$11+2,FALSE)) -> 0.7240598168 | K26: =IF(ISBLANK($C26),"",VLOOKUP($C26,RAMP!$C$1:$X$20,K$11-$D$11+2,FALSE)) -> 0.7870595833 | L26: =IF(ISBLANK($C26),"",VLOOKUP($C26,RAMP!$C$1:$X$20,L$11-$D$11+2,FALSE)) -> 0.8374593966 | M26: =IF(ISBLANK($C26),"",VLOOKUP($C26,RAMP!$C$1:$X$20,M$11-$D$11+2,FALSE)) -> 0.8777792471 | N26: =IF(ISBLANK($C26),"",VLOOKUP($C26,RAMP!$C$1:$X$20,N$11-$D$11+2,FALSE)) -> 0.9100351276 | O26: =IF(ISBLANK($C26),"",VLOOKUP($C26,RAMP!$C$1:$X$20,O$11-$D$11+2,FALSE)) -> 0.935839832 | P26: =IF(ISBLANK($C26),"",VLOOKUP($C26,RAMP!$C$1:$X$20,P$11-$D$11+2,FALSE)) -> 0.9564835955 | Q26: =IF(ISBLANK($C26),"",VLOOKUP($C26,RAMP!$C$1:$X$20,Q$11-$D$11+2,FALSE)) -> 0.9729986063 | R26: =IF(ISBLANK($C26),"",VLOOKUP($C26,RAMP!$C$1:$X$20,R$11-$D$11+2,FALSE)) -> 0.9862106149 | S26: =IF(ISBLANK($C26),"",VLOOKUP($C26,RAMP!$C$1:$X$20,S$11-$D$11+2,FALSE)) -> 0.9967802218 | T26: =IF(ISBLANK($C26),"",VLOOKUP($C26,RAMP!$C$1:$X$20,T$11-$D$11+2,FALSE)) -> 0.9968523147 | U26: =IF(ISBLANK($C26),"",VLOOKUP($C26,RAMP!$C$1:$X$20,U$11-$D$11+2,FALSE)) -> 0.9968780621 | V26: =IF(ISBLANK($C26),"",VLOOKUP($C26,RAMP!$C$1:$X$20,V$11-$D$11+2,FALSE)) -> 0.9968868396 | W26: =IF(ISBLANK($C26),"",VLOOKUP($C26,RAMP!$C$1:$X$20,W$11-$D$11+2,FALSE)) -> 0.9968897019 | X26: 0.85
A27: =MLIST!A27 -> Food Preparation | B27: =MLIST!D27 -> Griddle-NR | C27: LO5Med | D27: =IF(ISBLANK($C27),"",VLOOKUP($C27,RAMP!$C$1:$X$20,D$11-$D$11+2,FALSE)) -> 0.043 | E27: =IF(ISBLANK($C27),"",VLOOKUP($C27,RAMP!$C$1:$X$20,E$11-$D$11+2,FALSE)) -> 0.09579714228 | F27: =IF(ISBLANK($C27),"",VLOOKUP($C27,RAMP!$C$1:$X$20,F$11-$D$11+2,FALSE)) -> 0.1604053937 | G27: =IF(ISBLANK($C27),"",VLOOKUP($C27,RAMP!$C$1:$X$20,G$11-$D$11+2,FALSE)) -> 0.2354053937 | H27: =IF(ISBLANK($C27),"",VLOOKUP($C27,RAMP!$C$1:$X$20,H$11-$D$11+2,FALSE)) -> 0.3209523912 | I27: =IF(ISBLANK($C27),"",VLOOKUP($C27,RAMP!$C$1:$X$20,I$11-$D$11+2,FALSE)) -> 0.4209671143 | J27: =IF(ISBLANK($C27),"",VLOOKUP($C27,RAMP!$C$1:$X$20,J$11-$D$11+2,FALSE)) -> 0.5306848186 | K27: =IF(ISBLANK($C27),"",VLOOKUP($C27,RAMP!$C$1:$X$20,K$11-$D$11+2,FALSE)) -> 0.6427692037 | L27: =IF(ISBLANK($C27),"",VLOOKUP($C27,RAMP!$C$1:$X$20,L$11-$D$11+2,FALSE)) -> 0.7483952854 | M27: =IF(ISBLANK($C27),"",VLOOKUP($C27,RAMP!$C$1:$X$20,M$11-$D$11+2,FALSE)) -> 0.8391898494 | N27: =IF(ISBLANK($C27),"",VLOOKUP($C27,RAMP!$C$1:$X$20,N$11-$D$11+2,FALSE)) -> 0.9094505163 | O27: =IF(ISBLANK($C27),"",VLOOKUP($C27,RAMP!$C$1:$X$20,O$11-$D$11+2,FALSE)) -> 0.9576688768 | P27: =IF(ISBLANK($C27),"",VLOOKUP($C27,RAMP!$C$1:$X$20,P$11-$D$11+2,FALSE)) -> 0.9865231114 | Q27: =IF(ISBLANK($C27),"",VLOOKUP($C27,RAMP!$C$1:$X$20,Q$11-$D$11+2,FALSE)) -> 1 | R27: =IF(ISBLANK($C27),"",VLOOKUP($C27,RAMP!$C$1:$X$20,R$11-$D$11+2,FALSE)) -> 1 | S27: =IF(ISBLANK($C27),"",VLOOKUP($C27,RAMP!$C$1:$X$20,S$11-$D$11+2,FALSE)) -> 1 | T27: =IF(ISBLANK($C27),"",VLOOKUP($C27,RAMP!$C$1:$X$20,T$11-$D$11+2,FALSE)) -> 1 | U27: =IF(ISBLANK($C27),"",VLOOKUP($C27,RAMP!$C$1:$X$20,U$11-$D$11+2,FALSE)) -> 1 | V27: =IF(ISBLANK($C27),"",VLOOKUP($C27,RAMP!$C$1:$X$20,V$11-$D$11+2,FALSE)) -> 1 | W27: =IF(ISBLANK($C27),"",VLOOKUP($C27,RAMP!$C$1:$X$20,W$11-$D$11+2,FALSE)) -> 1 | X27: 0.85
A28: =MLIST!A28 -> Food Preparation | B28: =MLIST!D28 -> Overwrapper-NR | C28: LO5Med | D28: =IF(ISBLANK($C28),"",VLOOKUP($C28,RAMP!$C$1:$X$20,D$11-$D$11+2,FALSE)) -> 0.043 | E28: =IF(ISBLANK($C28),"",VLOOKUP($C28,RAMP!$C$1:$X$20,E$11-$D$11+2,FALSE)) -> 0.09579714228 | F28: =IF(ISBLANK($C28),"",VLOOKUP($C28,RAMP!$C$1:$X$20,F$11-$D$11+2,FALSE)) -> 0.1604053937 | G28: =IF(ISBLANK($C28),"",VLOOKUP($C28,RAMP!$C$1:$X$20,G$11-$D$11+2,FALSE)) -> 0.2354053937 | H28: =IF(ISBLANK($C28),"",VLOOKUP($C28,RAMP!$C$1:$X$20,H$11-$D$11+2,FALSE)) -> 0.3209523912 | I28: =IF(ISBLANK($C28),"",VLOOKUP($C28,RAMP!$C$1:$X$20,I$11-$D$11+2,FALSE)) -> 0.4209671143 | J28: =IF(ISBLANK($C28),"",VLOOKUP($C28,RAMP!$C$1:$X$20,J$11-$D$11+2,FALSE)) -> 0.5306848186 | K28: =IF(ISBLANK($C28),"",VLOOKUP($C28,RAMP!$C$1:$X$20,K$11-$D$11+2,FALSE)) -> 0.6427692037 | L28: =IF(ISBLANK($C28),"",VLOOKUP($C28,RAMP!$C$1:$X$20,L$11-$D$11+2,FALSE)) -> 0.7483952854 | M28: =IF(ISBLANK($C28),"",VLOOKUP($C28,RAMP!$C$1:$X$20,M$11-$D$11+2,FALSE)) -> 0.8391898494 | N28: =IF(ISBLANK($C28),"",VLOOKUP($C28,RAMP!$C$1:$X$20,N$11-$D$11+2,FALSE)) -> 0.9094505163 | O28: =IF(ISBLANK($C28),"",VLOOKUP($C28,RAMP!$C$1:$X$20,O$11-$D$11+2,FALSE)) -> 0.9576688768 | P28: =IF(ISBLANK($C28),"",VLOOKUP($C28,RAMP!$C$1:$X$20,P$11-$D$11+2,FALSE)) -> 0.9865231114 | Q28: =IF(ISBLANK($C28),"",VLOOKUP($C28,RAMP!$C$1:$X$20,Q$11-$D$11+2,FALSE)) -> 1 | R28: =IF(ISBLANK($C28),"",VLOOKUP($C28,RAMP!$C$1:$X$20,R$11-$D$11+2,FALSE)) -> 1 | S28: =IF(ISBLANK($C28),"",VLOOKUP($C28,RAMP!$C$1:$X$20,S$11-$D$11+2,FALSE)) -> 1 | T28: =IF(ISBLANK($C28),"",VLOOKUP($C28,RAMP!$C$1:$X$20,T$11-$D$11+2,FALSE)) -> 1 | U28: =IF(ISBLANK($C28),"",VLOOKUP($C28,RAMP!$C$1:$X$20,U$11-$D$11+2,FALSE)) -> 1 | V28: =IF(ISBLANK($C28),"",VLOOKUP($C28,RAMP!$C$1:$X$20,V$11-$D$11+2,FALSE)) -> 1 | W28: =IF(ISBLANK($C28),"",VLOOKUP($C28,RAMP!$C$1:$X$20,W$11-$D$11+2,FALSE)) -> 1 | X28: 0.85
A29: =MLIST!A29 -> HVAC | B29: =MLIST!D29 -> DHP-New | C29: LO12Med | D29: =IF(ISBLANK($C29),"",VLOOKUP($C29,RAMP!$C$1:$X$20,D$11-$D$11+2,FALSE)) -> 0.1093745947 | E29: =IF(ISBLANK($C29),"",VLOOKUP($C29,RAMP!$C$1:$X$20,E$11-$D$11+2,FALSE)) -> 0.2187491894 | F29: =IF(ISBLANK($C29),"",VLOOKUP($C29,RAMP!$C$1:$X$20,F$11-$D$11+2,FALSE)) -> 0.328123784 | G29: =IF(ISBLANK($C29),"",VLOOKUP($C29,RAMP!$C$1:$X$20,G$11-$D$11+2,FALSE)) -> 0.4374983787 | H29: =IF(ISBLANK($C29),"",VLOOKUP($C29,RAMP!$C$1:$X$20,H$11-$D$11+2,FALSE)) -> 0.5468729734 | I29: =IF(ISBLANK($C29),"",VLOOKUP($C29,RAMP!$C$1:$X$20,I$11-$D$11+2,FALSE)) -> 0.6453101086 | J29: =IF(ISBLANK($C29),"",VLOOKUP($C29,RAMP!$C$1:$X$20,J$11-$D$11+2,FALSE)) -> 0.7240598168 | K29: =IF(ISBLANK($C29),"",VLOOKUP($C29,RAMP!$C$1:$X$20,K$11-$D$11+2,FALSE)) -> 0.7870595833 | L29: =IF(ISBLANK($C29),"",VLOOKUP($C29,RAMP!$C$1:$X$20,L$11-$D$11+2,FALSE)) -> 0.8374593966 | M29: =IF(ISBLANK($C29),"",VLOOKUP($C29,RAMP!$C$1:$X$20,M$11-$D$11+2,FALSE)) -> 0.8777792471 | N29: =IF(ISBLANK($C29),"",VLOOKUP($C29,RAMP!$C$1:$X$20,N$11-$D$11+2,FALSE)) -> 0.9100351276 | O29: =IF(ISBLANK($C29),"",VLOOKUP($C29,RAMP!$C$1:$X$20,O$11-$D$11+2,FALSE)) -> 0.935839832 | P29: =IF(ISBLANK($C29),"",VLOOKUP($C29,RAMP!$C$1:$X$20,P$11-$D$11+2,FALSE)) -> 0.9564835955 | Q29: =IF(ISBLANK($C29),"",VLOOKUP($C29,RAMP!$C$1:$X$20,Q$11-$D$11+2,FALSE)) -> 0.9729986063 | R29: =IF(ISBLANK($C29),"",VLOOKUP($C29,RAMP!$C$1:$X$20,R$11-$D$11+2,FALSE)) -> 0.9862106149 | S29: =IF(ISBLANK($C29),"",VLOOKUP($C29,RAMP!$C$1:$X$20,S$11-$D$11+2,FALSE)) -> 0.9967802218 | T29: =IF(ISBLANK($C29),"",VLOOKUP($C29,RAMP!$C$1:$X$20,T$11-$D$11+2,FALSE)) -> 0.9968523147 | U29: =IF(ISBLANK($C29),"",VLOOKUP($C29,RAMP!$C$1:$X$20,U$11-$D$11+2,FALSE)) -> 0.9968780621 | V29: =IF(ISBLANK($C29),"",VLOOKUP($C29,RAMP!$C$1:$X$20,V$11-$D$11+2,FALSE)) -> 0.9968868396 | W29: =IF(ISBLANK($C29),"",VLOOKUP($C29,RAMP!$C$1:$X$20,W$11-$D$11+2,FALSE)) -> 0.9968897019 | X29: 0.85
A30: =MLIST!A30 -> HVAC | B30: =MLIST!D30 -> DHP-Retro | C30: Retro12Med | D30: =IF(ISBLANK($C30),"",VLOOKUP($C30,RAMP!$C$1:$X$20,D$11-$D$11+2,FALSE)) -> 0.1093745947 | E30: =IF(ISBLANK($C30),"",VLOOKUP($C30,RAMP!$C$1:$X$20,E$11-$D$11+2,FALSE)) -> 0.1093745947 | F30: =IF(ISBLANK($C30),"",VLOOKUP($C30,RAMP!$C$1:$X$20,F$11-$D$11+2,FALSE)) -> 0.1093745947 | G30: =IF(ISBLANK($C30),"",VLOOKUP($C30,RAMP!$C$1:$X$20,G$11-$D$11+2,FALSE)) -> 0.1093745947 | H30: =IF(ISBLANK($C30),"",VLOOKUP($C30,RAMP!$C$1:$X$20,H$11-$D$11+2,FALSE)) -> 0.1093745947 | I30: =IF(ISBLANK($C30),"",VLOOKUP($C30,RAMP!$C$1:$X$20,I$11-$D$11+2,FALSE)) -> 0.09843713521 | J30: =IF(ISBLANK($C30),"",VLOOKUP($C30,RAMP!$C$1:$X$20,J$11-$D$11+2,FALSE)) -> 0.07874970817 | K30: =IF(ISBLANK($C30),"",VLOOKUP($C30,RAMP!$C$1:$X$20,K$11-$D$11+2,FALSE)) -> 0.06299976654 | L30: =IF(ISBLANK($C30),"",VLOOKUP($C30,RAMP!$C$1:$X$20,L$11-$D$11+2,FALSE)) -> 0.05039981323 | M30: =IF(ISBLANK($C30),"",VLOOKUP($C30,RAMP!$C$1:$X$20,M$11-$D$11+2,FALSE)) -> 0.04031985058 | N30: =IF(ISBLANK($C30),"",VLOOKUP($C30,RAMP!$C$1:$X$20,N$11-$D$11+2,FALSE)) -> 0.03225588047 | O30: =IF(ISBLANK($C30),"",VLOOKUP($C30,RAMP!$C$1:$X$20,O$11-$D$11+2,FALSE)) -> 0.02580470437 | P30: =IF(ISBLANK($C30),"",VLOOKUP($C30,RAMP!$C$1:$X$20,P$11-$D$11+2,FALSE)) -> 0.0206437635 | Q30: =IF(ISBLANK($C30),"",VLOOKUP($C30,RAMP!$C$1:$X$20,Q$11-$D$11+2,FALSE)) -> 0.0165150108 | R30: =IF(ISBLANK($C30),"",VLOOKUP($C30,RAMP!$C$1:$X$20,R$11-$D$11+2,FALSE)) -> 0.01321200864 | S30: =IF(ISBLANK($C30),"",VLOOKUP($C30,RAMP!$C$1:$X$20,S$11-$D$11+2,FALSE)) -> 0.01056960691 | T30: =IF(ISBLANK($C30),"",VLOOKUP($C30,RAMP!$C$1:$X$20,T$11-$D$11+2,FALSE)) -> 7.209282379e-05 | U30: =IF(ISBLANK($C30),"",VLOOKUP($C30,RAMP!$C$1:$X$20,U$11-$D$11+2,FALSE)) -> 2.574743707e-05 | V30: =IF(ISBLANK($C30),"",VLOOKUP($C30,RAMP!$C$1:$X$20,V$11-$D$11+2,FALSE)) -> 8.777535365e-06 | W30: =IF(ISBLANK($C30),"",VLOOKUP($C30,RAMP!$C$1:$X$20,W$11-$D$11+2,FALSE)) -> 2.862239793e-06 | X30: 0.85
A31: =MLIST!A31 -> HVAC | B31: =MLIST!D31 -> Glass-New | C31: LO1Slow | D31: =IF(ISBLANK($C31),"",VLOOKUP($C31,RAMP!$C$1:$X$20,D$11-$D$11+2,FALSE)) -> 0.005 | E31: =IF(ISBLANK($C31),"",VLOOKUP($C31,RAMP!$C$1:$X$20,E$11-$D$11+2,FALSE)) -> 0.00769045863 | F31: =IF(ISBLANK($C31),"",VLOOKUP($C31,RAMP!$C$1:$X$20,F$11-$D$11+2,FALSE)) -> 0.01679201305 | G31: =IF(ISBLANK($C31),"",VLOOKUP($C31,RAMP!$C$1:$X$20,G$11-$D$11+2,FALSE)) -> 0.03159693878 | H31: =IF(ISBLANK($C31),"",VLOOKUP($C31,RAMP!$C$1:$X$20,H$11-$D$11+2,FALSE)) -> 0.0540687482 | I31: =IF(ISBLANK($C31),"",VLOOKUP($C31,RAMP!$C$1:$X$20,I$11-$D$11+2,FALSE)) -> 0.08625318101 | J31: =IF(ISBLANK($C31),"",VLOOKUP($C31,RAMP!$C$1:$X$20,J$11-$D$11+2,FALSE)) -> 0.1300328482 | K31: =IF(ISBLANK($C31),"",VLOOKUP($C31,RAMP!$C$1:$X$20,K$11-$D$11+2,FALSE)) -> 0.1867871089 | L31: =IF(ISBLANK($C31),"",VLOOKUP($C31,RAMP!$C$1:$X$20,L$11-$D$11+2,FALSE)) -> 0.256982348 | M31: =IF(ISBLANK($C31),"",VLOOKUP($C31,RAMP!$C$1:$X$20,M$11-$D$11+2,FALSE)) -> 0.3397592099 | N31: =IF(ISBLANK($C31),"",VLOOKUP($C31,RAMP!$C$1:$X$20,N$11-$D$11+2,FALSE)) -> 0.4326294694 | O31: =IF(ISBLANK($C31),"",VLOOKUP($C31,RAMP!$C$1:$X$20,O$11-$D$11+2,FALSE)) -> 0.53142594 | P31: =IF(ISBLANK($C31),"",VLOOKUP($C31,RAMP!$C$1:$X$20,P$11-$D$11+2,FALSE)) -> 0.6306348729 | Q31: =IF(ISBLANK($C31),"",VLOOKUP($C31,RAMP!$C$1:$X$20,Q$11-$D$11+2,FALSE)) -> 0.7241560234 | R31: =IF(ISBLANK($C31),"",VLOOKUP($C31,RAMP!$C$1:$X$20,R$11-$D$11+2,FALSE)) -> 0.8063820313 | S31: =IF(ISBLANK($C31),"",VLOOKUP($C31,RAMP!$C$1:$X$20,S$11-$D$11+2,FALSE)) -> 0.8733155973 | T31: =IF(ISBLANK($C31),"",VLOOKUP($C31,RAMP!$C$1:$X$20,T$11-$D$11+2,FALSE)) -> 0.9233451625 | U31: =IF(ISBLANK($C31),"",VLOOKUP($C31,RAMP!$C$1:$X$20,U$11-$D$11+2,FALSE)) -> 0.96 | V31: =IF(ISBLANK($C31),"",VLOOKUP($C31,RAMP!$C$1:$X$20,V$11-$D$11+2,FALSE)) -> 0.98 | W31: =IF(ISBLANK($C31),"",VLOOKUP($C31,RAMP!$C$1:$X$20,W$11-$D$11+2,FALSE)) -> 0.996 | X31: 0.95
A32: =MLIST!A32 -> HVAC | B32: =MLIST!D32 -> Glass-NR | C32: LO1Slow | D32: =IF(ISBLANK($C32),"",VLOOKUP($C32,RAMP!$C$1:$X$20,D$11-$D$11+2,FALSE)) -> 0.005 | E32: =IF(ISBLANK($C32),"",VLOOKUP($C32,RAMP!$C$1:$X$20,E$11-$D$11+2,FALSE)) -> 0.00769045863 | F32: =IF(ISBLANK($C32),"",VLOOKUP($C32,RAMP!$C$1:$X$20,F$11-$D$11+2,FALSE)) -> 0.01679201305 | G32: =IF(ISBLANK($C32),"",VLOOKUP($C32,RAMP!$C$1:$X$20,G$11-$D$11+2,FALSE)) -> 0.03159693878 | H32: =IF(ISBLANK($C32),"",VLOOKUP($C32,RAMP!$C$1:$X$20,H$11-$D$11+2,FALSE)) -> 0.0540687482 | I32: =IF(ISBLANK($C32),"",VLOOKUP($C32,RAMP!$C$1:$X$20,I$11-$D$11+2,FALSE)) -> 0.08625318101 | J32: =IF(ISBLANK($C32),"",VLOOKUP($C32,RAMP!$C$1:$X$20,J$11-$D$11+2,FALSE)) -> 0.1300328482 | K32: =IF(ISBLANK($C32),"",VLOOKUP($C32,RAMP!$C$1:$X$20,K$11-$D$11+2,FALSE)) -> 0.1867871089 | L32: =IF(ISBLANK($C32),"",VLOOKUP($C32,RAMP!$C$1:$X$20,L$11-$D$11+2,FALSE)) -> 0.256982348 | M32: =IF(ISBLANK($C32),"",VLOOKUP($C32,RAMP!$C$1:$X$20,M$11-$D$11+2,FALSE)) -> 0.3397592099 | N32: =IF(ISBLANK($C32),"",VLOOKUP($C32,RAMP!$C$1:$X$20,N$11-$D$11+2,FALSE)) -> 0.4326294694 | O32: =IF(ISBLANK($C32),"",VLOOKUP($C32,RAMP!$C$1:$X$20,O$11-$D$11+2,FALSE)) -> 0.53142594 | P32: =IF(ISBLANK($C32),"",VLOOKUP($C32,RAMP!$C$1:$X$20,P$11-$D$11+2,FALSE)) -> 0.6306348729 | Q32: =IF(ISBLANK($C32),"",VLOOKUP($C32,RAMP!$C$1:$X$20,Q$11-$D$11+2,FALSE)) -> 0.7241560234 | R32: =IF(ISBLANK($C32),"",VLOOKUP($C32,RAMP!$C$1:$X$20,R$11-$D$11+2,FALSE)) -> 0.8063820313 | S32: =IF(ISBLANK($C32),"",VLOOKUP($C32,RAMP!$C$1:$X$20,S$11-$D$11+2,FALSE)) -> 0.8733155973 | T32: =IF(ISBLANK($C32),"",VLOOKUP($C32,RAMP!$C$1:$X$20,T$11-$D$11+2,FALSE)) -> 0.9233451625 | U32: =IF(ISBLANK($C32),"",VLOOKUP($C32,RAMP!$C$1:$X$20,U$11-$D$11+2,FALSE)) -> 0.96 | V32: =IF(ISBLANK($C32),"",VLOOKUP($C32,RAMP!$C$1:$X$20,V$11-$D$11+2,FALSE)) -> 0.98 | W32: =IF(ISBLANK($C32),"",VLOOKUP($C32,RAMP!$C$1:$X$20,W$11-$D$11+2,FALSE)) -> 0.996 | X32: 0.95
A33: =MLIST!A33 -> HVAC | B33: =MLIST!D33 -> ARC-New | C33: LO3Slow | D33: =IF(ISBLANK($C33),"",VLOOKUP($C33,RAMP!$C$1:$X$20,D$11-$D$11+2,FALSE)) -> 0.005532049698 | E33: =IF(ISBLANK($C33),"",VLOOKUP($C33,RAMP!$C$1:$X$20,E$11-$D$11+2,FALSE)) -> 0.01422791834 | F33: =IF(ISBLANK($C33),"",VLOOKUP($C33,RAMP!$C$1:$X$20,F$11-$D$11+2,FALSE)) -> 0.03161965564 | G33: =IF(ISBLANK($C33),"",VLOOKUP($C33,RAMP!$C$1:$X$20,G$11-$D$11+2,FALSE)) -> 0.0620551959 | H33: =IF(ISBLANK($C33),"",VLOOKUP($C33,RAMP!$C$1:$X$20,H$11-$D$11+2,FALSE)) -> 0.1093993696 | I33: =IF(ISBLANK($C33),"",VLOOKUP($C33,RAMP!$C$1:$X$20,I$11-$D$11+2,FALSE)) -> 0.1756812129 | J33: =IF(ISBLANK($C33),"",VLOOKUP($C33,RAMP!$C$1:$X$20,J$11-$D$11+2,FALSE)) -> 0.2600399225 | K33: =IF(ISBLANK($C33),"",VLOOKUP($C33,RAMP!$C$1:$X$20,K$11-$D$11+2,FALSE)) -> 0.358458417 | L33: =IF(ISBLANK($C33),"",VLOOKUP($C33,RAMP!$C$1:$X$20,L$11-$D$11+2,FALSE)) -> 0.4644475649 | M33: =IF(ISBLANK($C33),"",VLOOKUP($C33,RAMP!$C$1:$X$20,M$11-$D$11+2,FALSE)) -> 0.5704367128 | N33: =IF(ISBLANK($C33),"",VLOOKUP($C33,RAMP!$C$1:$X$20,N$11-$D$11+2,FALSE)) -> 0.6693599176 | O33: =IF(ISBLANK($C33),"",VLOOKUP($C33,RAMP!$C$1:$X$20,O$11-$D$11+2,FALSE)) -> 0.7559177217 | P33: =IF(ISBLANK($C33),"",VLOOKUP($C33,RAMP!$C$1:$X$20,P$11-$D$11+2,FALSE)) -> 0.8272006192 | Q33: =IF(ISBLANK($C33),"",VLOOKUP($C33,RAMP!$C$1:$X$20,Q$11-$D$11+2,FALSE)) -> 0.8826428729 | R33: =IF(ISBLANK($C33),"",VLOOKUP($C33,RAMP!$C$1:$X$20,R$11-$D$11+2,FALSE)) -> 0.9234950598 | S33: =IF(ISBLANK($C33),"",VLOOKUP($C33,RAMP!$C$1:$X$20,S$11-$D$11+2,FALSE)) -> 0.9520915906 | T33: =IF(ISBLANK($C33),"",VLOOKUP($C33,RAMP!$C$1:$X$20,T$11-$D$11+2,FALSE)) -> 0.9711559445 | U33: =IF(ISBLANK($C33),"",VLOOKUP($C33,RAMP!$C$1:$X$20,U$11-$D$11+2,FALSE)) -> 0.983287806 | V33: =IF(ISBLANK($C33),"",VLOOKUP($C33,RAMP!$C$1:$X$20,V$11-$D$11+2,FALSE)) -> 0.9906724174 | W33: =IF(ISBLANK($C33),"",VLOOKUP($C33,RAMP!$C$1:$X$20,W$11-$D$11+2,FALSE)) -> 0.996 | X33: 0.95
A34: =MLIST!A34 -> HVAC | B34: =MLIST!D34 -> ARC-NR | C34: LO3Slow | D34: =IF(ISBLANK($C34),"",VLOOKUP($C34,RAMP!$C$1:$X$20,D$11-$D$11+2,FALSE)) -> 0.005532049698 | E34: =IF(ISBLANK($C34),"",VLOOKUP($C34,RAMP!$C$1:$X$20,E$11-$D$11+2,FALSE)) -> 0.01422791834 | F34: =IF(ISBLANK($C34),"",VLOOKUP($C34,RAMP!$C$1:$X$20,F$11-$D$11+2,FALSE)) -> 0.03161965564 | G34: =IF(ISBLANK($C34),"",VLOOKUP($C34,RAMP!$C$1:$X$20,G$11-$D$11+2,FALSE)) -> 0.0620551959 | H34: =IF(ISBLANK($C34),"",VLOOKUP($C34,RAMP!$C$1:$X$20,H$11-$D$11+2,FALSE)) -> 0.1093993696 | I34: =IF(ISBLANK($C34),"",VLOOKUP($C34,RAMP!$C$1:$X$20,I$11-$D$11+2,FALSE)) -> 0.1756812129 | J34: =IF(ISBLANK($C34),"",VLOOKUP($C34,RAMP!$C$1:$X$20,J$11-$D$11+2,FALSE)) -> 0.2600399225 | K34: =IF(ISBLANK($C34),"",VLOOKUP($C34,RAMP!$C$1:$X$20,K$11-$D$11+2,FALSE)) -> 0.358458417 | L34: =IF(ISBLANK($C34),"",VLOOKUP($C34,RAMP!$C$1:$X$20,L$11-$D$11+2,FALSE)) -> 0.4644475649 | M34: =IF(ISBLANK($C34),"",VLOOKUP($C34,RAMP!$C$1:$X$20,M$11-$D$11+2,FALSE)) -> 0.5704367128 | N34: =IF(ISBLANK($C34),"",VLOOKUP($C34,RAMP!$C$1:$X$20,N$11-$D$11+2,FALSE)) -> 0.6693599176 | O34: =IF(ISBLANK($C34),"",VLOOKUP($C34,RAMP!$C$1:$X$20,O$11-$D$11+2,FALSE)) -> 0.7559177217 | P34: =IF(ISBLANK($C34),"",VLOOKUP($C34,RAMP!$C$1:$X$20,P$11-$D$11+2,FALSE)) -> 0.8272006192 | Q34: =IF(ISBLANK($C34),"",VLOOKUP($C34,RAMP!$C$1:$X$20,Q$11-$D$11+2,FALSE)) -> 0.8826428729 | R34: =IF(ISBLANK($C34),"",VLOOKUP($C34,RAMP!$C$1:$X$20,R$11-$D$11+2,FALSE)) -> 0.9234950598 | S34: =IF(ISBLANK($C34),"",VLOOKUP($C34,RAMP!$C$1:$X$20,S$11-$D$11+2,FALSE)) -> 0.9520915906 | T34: =IF(ISBLANK($C34),"",VLOOKUP($C34,RAMP!$C$1:$X$20,T$11-$D$11+2,FALSE)) -> 0.9711559445 | U34: =IF(ISBLANK($C34),"",VLOOKUP($C34,RAMP!$C$1:$X$20,U$11-$D$11+2,FALSE)) -> 0.983287806 | V34: =IF(ISBLANK($C34),"",VLOOKUP($C34,RAMP!$C$1:$X$20,V$11-$D$11+2,FALSE)) -> 0.9906724174 | W34: =IF(ISBLANK($C34),"",VLOOKUP($C34,RAMP!$C$1:$X$20,W$11-$D$11+2,FALSE)) -> 0.996 | X34: 0.85
